Workbook

Sheet Civics All Schools (hidden)
A1: Location | C1: School Name | D1: Civics Course Enrollment | F1: % Tested | H1: ='RT Matrix'!C1 -> Overall | K1: ='RT Matrix'!D1 -> Government Policies and Political Processes | N1: ='RT Matrix'!E1 -> Organization and Function of Government | Q1: ='RT Matrix'!F1 -> Origins and Purposes of Law and Government | T1: ='RT Matrix'!G1 -> Roles, Rights, and Responsibilities
D2: 2012 Baseline | E2: 2013 Baseline | F2: 2012 Baseline | G2: 2013 Baseline | H2: 2012 Baseline | I2: 2013 Baseline | J2: Change | K2: 2012 Baseline | L2: 2013 Baseline | M2: Change | N2: 2012 Baseline | O2: 2013 Baseline | P2: Change | Q2: 2012 Baseline | R2: 2013 Baseline | S2: Change | T2: 2012 Baseline | U2: 2013 Baseline | V2: Change
A3: 9999 | C3: =VLOOKUP(A3,'Sch-Region'!$A$2:$C$476,3,FALSE) -> District | D3: =IFERROR(VLOOKUP($A3,'2012 BL Civics Enrollment'!$A$3:$C$500,3,FALSE),0) -> 26864 | E3: =IFERROR(VLOOKUP($A3,'2013 BL Civics Enrollment'!$A$3:$C$500,3,FALSE),"") -> 26608 | F3: =IFERROR(IF(VLOOKUP(VALUE(A3),'2012-13 BL Civics'!$A$14:$C$200,3,FALSE)<10,"N<10",IF(VLOOKUP(VALUE(A3),'2012-13 BL Civics'!$A$14:$C$200,3,FALSE)>D3,100,VLOOKUP(VALUE(A3),'2012-13 BL Civics'!$A$14:$C$200,3,FALSE)/D3%)),"Not Tested") -> 92.77843955 | G3: =IFERROR(IF(VLOOKUP(VALUE(A3),'2013-14 BL Civics'!$A$14:$C$200,3,FALSE)<10,"N<10",IF(VLOOKUP(VALUE(A3),'2013-14 BL Civics'!$A$14:$C$200,3,FALSE)>E3,100,VLOOKUP(VALUE(A3),'2013-14 BL Civics'!$A$14:$C$200,3,FALSE)/E3%)),"Not Tested") -> 93.35162357 | H3: =IFERROR(IF(F3="N<10","N<10",VLOOKUP(VALUE($A3),'2012-13 BL Civics'!$A$14:$AG$500,5,FALSE)*100),"Not Tested") -> 33.74590754 | I3: =IFERROR(IF(G3="N<10","N<10",VLOOKUP(VALUE($A3),'2013-14 BL Civics'!$A$14:$AG$500,5,FALSE)*100),"Not Tested") -> 36.2606045 | J3: =IFERROR(I3-H3,"") -> 2.514696957 | K3: =IFERROR(IF(H3="N<10","N<10",VLOOKUP(VALUE($A3),'2012-13 BL Civics'!$A$14:$AG$500,11,FALSE)*100),"Not Tested") -> 41.22953868 | L3: =IFERROR(IF(I3="N<10","N<10",VLOOKUP(VALUE($A3),'2013-14 BL Civics'!$A$14:$AG$500,11,FALSE)*100),"Not Tested") -> 38.10408977 | M3: =IFERROR(L3-K3,"") -> -3.125448918 | N3: =IFERROR(IF(K3="N<10","N<10",VLOOKUP(VALUE($A3),'2012-13 BL Civics'!$A$14:$AG$500,17,FALSE)*100),"Not Tested") -> 27.69230696 | O3: =IFERROR(IF(L3="N<10","N<10",VLOOKUP(VALUE($A3),'2013-14 BL Civics'!$A$14:$AG$500,17,FALSE)*100),"Not Tested") -> 31.66666627 | P3: =IFERROR(O3-N3,"") -> 3.974359311 | Q3: =IFERROR(IF(J3="N<10","N<10",VLOOKUP(VALUE($A3),'2012-13 BL Civics'!$A$14:$AG$500,23,FALSE)*100),"Not Tested") -> 33.63636407 | R3: =IFERROR(IF(K3="N<10","N<10",VLOOKUP(VALUE($A3),'2013-14 BL Civics'!$A$14:$AG$500,23,FALSE)*100),"Not Tested") -> 35.89388433 | S3: =IFERROR(R3-Q3,"") -> 2.257520263 | T3: =IFERROR(IF(N3="N<10","N<10",VLOOKUP(VALUE($A3),'2012-13 BL Civics'!$A$14:$AG$500,29,FALSE)*100),"Not Tested") -> 35.63523142 | U3: =IFERROR(IF(O3="N<10","N<10",VLOOKUP(VALUE($A3),'2013-14 BL Civics'!$A$14:$AG$500,29,FALSE)*100),"Not Tested") -> 41.85409061 | V3: =IFERROR(U3-T3,"") -> 6.218859195
A4: 0070 | C4: =VLOOKUP(TEXT(A4,"0000"),SchList!$A$2:$C$483,2,FALSE) -> CORAL REEF MONTESSORI ACAD CH | D4: =IFERROR(VLOOKUP(TEXT($A4,"0000"),'2012 BL Civics Enrollment'!$A$3:$C$500,3,FALSE),0) -> 31 | E4: =IFERROR(VLOOKUP(TEXT($A4,"0000"),'2013 BL Civics Enrollment'!$A$3:$C$500,3,FALSE),"") -> 21 | F4: =IFERROR(IF(VLOOKUP(VALUE(A4),'2012-13 BL Civics'!$A$14:$C$200,3,FALSE)<10,"N<10",IF(VLOOKUP(VALUE(A4),'2012-13 BL Civics'!$A$14:$C$200,3,FALSE)>D4,100,VLOOKUP(VALUE(A4),'2012-13 BL Civics'!$A$14:$C$200,3,FALSE)/D4%)),"Not Tested") -> 100 | G4: =IFERROR(IF(VLOOKUP(VALUE(A4),'2013-14 BL Civics'!$A$14:$C$200,3,FALSE)<10,"N<10",IF(VLOOKUP(VALUE(A4),'2013-14 BL Civics'!$A$14:$C$200,3,FALSE)>E4,100,VLOOKUP(VALUE(A4),'2013-14 BL Civics'!$A$14:$C$200,3,FALSE)/E4%)),"Not Tested") -> 95.23809524 | H4: =IFERROR(IF(F4="N<10","N<10",VLOOKUP(VALUE($A4),'2012-13 BL Civics'!$A$14:$AG$500,5,FALSE)*100),"Not Tested") -> 36 | I4: =IFERROR(IF(G4="N<10","N<10",VLOOKUP(VALUE($A4),'2013-14 BL Civics'!$A$14:$AG$500,5,FALSE)*100),"Not Tested") -> 42 | J4: =IFERROR(I4-H4,"") -> 6 | K4: =IFERROR(IF(H4="N<10","N<10",VLOOKUP(VALUE($A4),'2012-13 BL Civics'!$A$14:$AG$500,11,FALSE)*100),"Not Tested") -> 49 | L4: =IFERROR(IF(I4="N<10","N<10",VLOOKUP(VALUE($A4),'2013-14 BL Civics'!$A$14:$AG$500,11,FALSE)*100),"Not Tested") -> 40 | M4: =IFERROR(L4-K4,"") -> -9 | N4: =IFERROR(IF(K4="N<10","N<10",VLOOKUP(VALUE($A4),'2012-13 BL Civics'!$A$14:$AG$500,17,FALSE)*100),"Not Tested") -> 32 | O4: =IFERROR(IF(L4="N<10","N<10",VLOOKUP(VALUE($A4),'2013-14 BL Civics'!$A$14:$AG$500,17,FALSE)*100),"Not Tested") -> 37 | P4: =IFERROR(O4-N4,"") -> 5 | Q4: =IFERROR(IF(J4="N<10","N<10",VLOOKUP(VALUE($A4),'2012-13 BL Civics'!$A$14:$AG$500,23,FALSE)*100),"Not Tested") -> 30 | R4: =IFERROR(IF(K4="N<10","N<10",VLOOKUP(VALUE($A4),'2013-14 BL Civics'!$A$14:$AG$500,23,FALSE)*100),"Not Tested") -> 40 | S4: =IFERROR(R4-Q4,"") -> 10 | T4: =IFERROR(IF(N4="N<10","N<10",VLOOKUP(VALUE($A4),'2012-13 BL Civics'!$A$14:$AG$500,29,FALSE)*100),"Not Tested") -> 39 | U4: =IFERROR(IF(O4="N<10","N<10",VLOOKUP(VALUE($A4),'2013-14 BL Civics'!$A$14:$AG$500,29,FALSE)*100),"Not Tested") -> 53 | V4: =IFERROR(U4-T4,"") -> 14
A5: 0071 | C5: =VLOOKUP(TEXT(A5,"0000"),SchList!$A$2:$C$483,2,FALSE) -> EUGENIA B. THOMAS K-8 CENTER | D5: =IFERROR(VLOOKUP(TEXT($A5,"0000"),'2012 BL Civics Enrollment'!$A$3:$C$500,3,FALSE),0) -> 165 | E5: =IFERROR(VLOOKUP(TEXT($A5,"0000"),'2013 BL Civics Enrollment'!$A$3:$C$500,3,FALSE),"") -> 151 | F5: =IFERROR(IF(VLOOKUP(VALUE(A5),'2012-13 BL Civics'!$A$14:$C$200,3,FALSE)<10,"N<10",IF(VLOOKUP(VALUE(A5),'2012-13 BL Civics'!$A$14:$C$200,3,FALSE)>D5,100,VLOOKUP(VALUE(A5),'2012-13 BL Civics'!$A$14:$C$200,3,FALSE)/D5%)),"Not Tested") -> 98.18181818 | G5: =IFERROR(IF(VLOOKUP(VALUE(A5),'2013-14 BL Civics'!$A$14:$C$200,3,FALSE)<10,"N<10",IF(VLOOKUP(VALUE(A5),'2013-14 BL Civics'!$A$14:$C$200,3,FALSE)>E5,100,VLOOKUP(VALUE(A5),'2013-14 BL Civics'!$A$14:$C$200,3,FALSE)/E5%)),"Not Tested") -> 98.67549669 | H5: =IFERROR(IF(F5="N<10","N<10",VLOOKUP(VALUE($A5),'2012-13 BL Civics'!$A$14:$AG$500,5,FALSE)*100),"Not Tested") -> 35 | I5: =IFERROR(IF(G5="N<10","N<10",VLOOKUP(VALUE($A5),'2013-14 BL Civics'!$A$14:$AG$500,5,FALSE)*100),"Not Tested") -> 41 | J5: 6 | K5: =IFERROR(IF(H5="N<10","N<10",VLOOKUP(VALUE($A5),'2012-13 BL Civics'!$A$14:$AG$500,11,FALSE)*100),"Not Tested") -> 45 | L5: =IFERROR(IF(I5="N<10","N<10",VLOOKUP(VALUE($A5),'2013-14 BL Civics'!$A$14:$AG$500,11,FALSE)*100),"Not Tested") -> 45 | M5: 0 | N5: =IFERROR(IF(K5="N<10","N<10",VLOOKUP(VALUE($A5),'2012-13 BL Civics'!$A$14:$AG$500,17,FALSE)*100),"Not Tested") -> 28 | O5: =IFERROR(IF(L5="N<10","N<10",VLOOKUP(VALUE($A5),'2013-14 BL Civics'!$A$14:$AG$500,17,FALSE)*100),"Not Tested") -> 37 | P5: 9 | Q5: =IFERROR(IF(J5="N<10","N<10",VLOOKUP(VALUE($A5),'2012-13 BL Civics'!$A$14:$AG$500,23,FALSE)*100),"Not Tested") -> 36 | R5: =IFERROR(IF(K5="N<10","N<10",VLOOKUP(VALUE($A5),'2013-14 BL Civics'!$A$14:$AG$500,23,FALSE)*100),"Not Tested") -> 38 | S5: 2 | T5: =IFERROR(IF(N5="N<10","N<10",VLOOKUP(VALUE($A5),'2012-13 BL Civics'!$A$14:$AG$500,29,FALSE)*100),"Not Tested") -> 37 | U5: =IFERROR(IF(O5="N<10","N<10",VLOOKUP(VALUE($A5),'2013-14 BL Civics'!$A$14:$AG$500,29,FALSE)*100),"Not Tested") -> 45 | V5: 8
A6: 0073 | C6: =VLOOKUP(TEXT(A6,"0000"),SchList!$A$2:$C$483,2,FALSE) -> MANDARIN LAKES K-8 CENTER | D6: =IFERROR(VLOOKUP(TEXT($A6,"0000"),'2012 BL Civics Enrollment'!$A$3:$C$500,3,FALSE),0) -> 81 | E6: =IFERROR(VLOOKUP(TEXT($A6,"0000"),'2013 BL Civics Enrollment'!$A$3:$C$500,3,FALSE),"") -> 115 | F6: =IFERROR(IF(VLOOKUP(VALUE(A6),'2012-13 BL Civics'!$A$14:$C$200,3,FALSE)<10,"N<10",IF(VLOOKUP(VALUE(A6),'2012-13 BL Civics'!$A$14:$C$200,3,FALSE)>D6,100,VLOOKUP(VALUE(A6),'2012-13 BL Civics'!$A$14:$C$200,3,FALSE)/D6%)),"Not Tested") -> 96.2962963 | G6: =IFERROR(IF(VLOOKUP(VALUE(A6),'2013-14 BL Civics'!$A$14:$C$200,3,FALSE)<10,"N<10",IF(VLOOKUP(VALUE(A6),'2013-14 BL Civics'!$A$14:$C$200,3,FALSE)>E6,100,VLOOKUP(VALUE(A6),'2013-14 BL Civics'!$A$14:$C$200,3,FALSE)/E6%)),"Not Tested") -> 92.17391304 | H6: =IFERROR(IF(F6="N<10","N<10",VLOOKUP(VALUE($A6),'2012-13 BL Civics'!$A$14:$AG$500,5,FALSE)*100),"Not Tested") -> 33 | I6: =IFERROR(IF(G6="N<10","N<10",VLOOKUP(VALUE($A6),'2013-14 BL Civics'!$A$14:$AG$500,5,FALSE)*100),"Not Tested") -> 33 | J6: 0 | K6: =IFERROR(IF(H6="N<10","N<10",VLOOKUP(VALUE($A6),'2012-13 BL Civics'!$A$14:$AG$500,11,FALSE)*100),"Not Tested") -> 39 | L6: =IFERROR(IF(I6="N<10","N<10",VLOOKUP(VALUE($A6),'2013-14 BL Civics'!$A$14:$AG$500,11,FALSE)*100),"Not Tested") -> 35 | M6: -4 | N6: =IFERROR(IF(K6="N<10","N<10",VLOOKUP(VALUE($A6),'2012-13 BL Civics'!$A$14:$AG$500,17,FALSE)*100),"Not Tested") -> 28 | O6: =IFERROR(IF(L6="N<10","N<10",VLOOKUP(VALUE($A6),'2013-14 BL Civics'!$A$14:$AG$500,17,FALSE)*100),"Not Tested") -> 30 | P6: 2 | Q6: =IFERROR(IF(J6="N<10","N<10",VLOOKUP(VALUE($A6),'2012-13 BL Civics'!$A$14:$AG$500,23,FALSE)*100),"Not Tested") -> 33 | R6: =IFERROR(IF(K6="N<10","N<10",VLOOKUP(VALUE($A6),'2013-14 BL Civics'!$A$14:$AG$500,23,FALSE)*100),"Not Tested") -> 31 | S6: -2 | T6: =IFERROR(IF(N6="N<10","N<10",VLOOKUP(VALUE($A6),'2012-13 BL Civics'!$A$14:$AG$500,29,FALSE)*100),"Not Tested") -> 35 | U6: =IFERROR(IF(O6="N<10","N<10",VLOOKUP(VALUE($A6),'2013-14 BL Civics'!$A$14:$AG$500,29,FALSE)*100),"Not Tested") -> 41 | V6: 6
A7: 0091 | C7: =VLOOKUP(TEXT(A7,"0000"),SchList!$A$2:$C$483,2,FALSE) -> BOB GRAHAM EDUCATION CTR | D7: =IFERROR(VLOOKUP(TEXT($A7,"0000"),'2012 BL Civics Enrollment'!$A$3:$C$500,3,FALSE),0) -> 231 | E7: =IFERROR(VLOOKUP(TEXT($A7,"0000"),'2013 BL Civics Enrollment'!$A$3:$C$500,3,FALSE),"") -> 217 | F7: =IFERROR(IF(VLOOKUP(VALUE(A7),'2012-13 BL Civics'!$A$14:$C$200,3,FALSE)<10,"N<10",IF(VLOOKUP(VALUE(A7),'2012-13 BL Civics'!$A$14:$C$200,3,FALSE)>D7,100,VLOOKUP(VALUE(A7),'2012-13 BL Civics'!$A$14:$C$200,3,FALSE)/D7%)),"Not Tested") -> 97.83549784 | G7: =IFERROR(IF(VLOOKUP(VALUE(A7),'2013-14 BL Civics'!$A$14:$C$200,3,FALSE)<10,"N<10",IF(VLOOKUP(VALUE(A7),'2013-14 BL Civics'!$A$14:$C$200,3,FALSE)>E7,100,VLOOKUP(VALUE(A7),'2013-14 BL Civics'!$A$14:$C$200,3,FALSE)/E7%)),"Not Tested") -> 100 | H7: =IFERROR(IF(F7="N<10","N<10",VLOOKUP(VALUE($A7),'2012-13 BL Civics'!$A$14:$AG$500,5,FALSE)*100),"Not Tested") -> 33 | I7: =IFERROR(IF(G7="N<10","N<10",VLOOKUP(VALUE($A7),'2013-14 BL Civics'!$A$14:$AG$500,5,FALSE)*100),"Not Tested") -> 36 | J7: 3 | K7: =IFERROR(IF(H7="N<10","N<10",VLOOKUP(VALUE($A7),'2012-13 BL Civics'!$A$14:$AG$500,11,FALSE)*100),"Not Tested") -> 38 | L7: =IFERROR(IF(I7="N<10","N<10",VLOOKUP(VALUE($A7),'2013-14 BL Civics'!$A$14:$AG$500,11,FALSE)*100),"Not Tested") -> 38 | M7: 0 | N7: =IFERROR(IF(K7="N<10","N<10",VLOOKUP(VALUE($A7),'2012-13 BL Civics'!$A$14:$AG$500,17,FALSE)*100),"Not Tested") -> 28 | O7: =IFERROR(IF(L7="N<10","N<10",VLOOKUP(VALUE($A7),'2013-14 BL Civics'!$A$14:$AG$500,17,FALSE)*100),"Not Tested") -> 34 | P7: 6 | Q7: =IFERROR(IF(J7="N<10","N<10",VLOOKUP(VALUE($A7),'2012-13 BL Civics'!$A$14:$AG$500,23,FALSE)*100),"Not Tested") -> 32 | R7: =IFERROR(IF(K7="N<10","N<10",VLOOKUP(VALUE($A7),'2013-14 BL Civics'!$A$14:$AG$500,23,FALSE)*100),"Not Tested") -> 33 | S7: 1 | T7: =IFERROR(IF(N7="N<10","N<10",VLOOKUP(VALUE($A7),'2012-13 BL Civics'!$A$14:$AG$500,29,FALSE)*100),"Not Tested") -> 36 | U7: =IFERROR(IF(O7="N<10","N<10",VLOOKUP(VALUE($A7),'2013-14 BL Civics'!$A$14:$AG$500,29,FALSE)*100),"Not Tested") -> 42 | V7: 6
A8: 0092 | C8: =VLOOKUP(TEXT(A8,"0000"),SchList!$A$2:$C$483,2,FALSE) -> NORMAN S. EDELCUP/SUNNY ISLES | D8: =IFERROR(VLOOKUP(TEXT($A8,"0000"),'2012 BL Civics Enrollment'!$A$3:$C$500,3,FALSE),0) -> 197 | E8: =IFERROR(VLOOKUP(TEXT($A8,"0000"),'2013 BL Civics Enrollment'!$A$3:$C$500,3,FALSE),"") -> 181 | F8: =IFERROR(IF(VLOOKUP(VALUE(A8),'2012-13 BL Civics'!$A$14:$C$200,3,FALSE)<10,"N<10",IF(VLOOKUP(VALUE(A8),'2012-13 BL Civics'!$A$14:$C$200,3,FALSE)>D8,100,VLOOKUP(VALUE(A8),'2012-13 BL Civics'!$A$14:$C$200,3,FALSE)/D8%)),"Not Tested") -> 96.44670051 | G8: =IFERROR(IF(VLOOKUP(VALUE(A8),'2013-14 BL Civics'!$A$14:$C$200,3,FALSE)<10,"N<10",IF(VLOOKUP(VALUE(A8),'2013-14 BL Civics'!$A$14:$C$200,3,FALSE)>E8,100,VLOOKUP(VALUE(A8),'2013-14 BL Civics'!$A$14:$C$200,3,FALSE)/E8%)),"Not Tested") -> 97.23756906 | H8: =IFERROR(IF(F8="N<10","N<10",VLOOKUP(VALUE($A8),'2012-13 BL Civics'!$A$14:$AG$500,5,FALSE)*100),"Not Tested") -> 36 | I8: =IFERROR(IF(G8="N<10","N<10",VLOOKUP(VALUE($A8),'2013-14 BL Civics'!$A$14:$AG$500,5,FALSE)*100),"Not Tested") -> 38 | J8: 2 | K8: =IFERROR(IF(H8="N<10","N<10",VLOOKUP(VALUE($A8),'2012-13 BL Civics'!$A$14:$AG$500,11,FALSE)*100),"Not Tested") -> 44 | L8: =IFERROR(IF(I8="N<10","N<10",VLOOKUP(VALUE($A8),'2013-14 BL Civics'!$A$14:$AG$500,11,FALSE)*100),"Not Tested") -> 43 | M8: -1 | N8: =IFERROR(IF(K8="N<10","N<10",VLOOKUP(VALUE($A8),'2012-13 BL Civics'!$A$14:$AG$500,17,FALSE)*100),"Not Tested") -> 29 | O8: =IFERROR(IF(L8="N<10","N<10",VLOOKUP(VALUE($A8),'2013-14 BL Civics'!$A$14:$AG$500,17,FALSE)*100),"Not Tested") -> 33 | P8: 4 | Q8: =IFERROR(IF(J8="N<10","N<10",VLOOKUP(VALUE($A8),'2012-13 BL Civics'!$A$14:$AG$500,23,FALSE)*100),"Not Tested") -> 36 | R8: =IFERROR(IF(K8="N<10","N<10",VLOOKUP(VALUE($A8),'2013-14 BL Civics'!$A$14:$AG$500,23,FALSE)*100),"Not Tested") -> 36 | S8: 0 | T8: =IFERROR(IF(N8="N<10","N<10",VLOOKUP(VALUE($A8),'2012-13 BL Civics'!$A$14:$AG$500,29,FALSE)*100),"Not Tested") -> 37 | U8: =IFERROR(IF(O8="N<10","N<10",VLOOKUP(VALUE($A8),'2013-14 BL Civics'!$A$14:$AG$500,29,FALSE)*100),"Not Tested") -> 44 | V8: 7
A9: 0122 | C9: =VLOOKUP(TEXT(A9,"0000"),SchList!$A$2:$C$483,2,FALSE) -> DR ROLANDO ESPINOSA K-8 | D9: =IFERROR(VLOOKUP(TEXT($A9,"0000"),'2012 BL Civics Enrollment'!$A$3:$C$500,3,FALSE),0) -> 195 | E9: =IFERROR(VLOOKUP(TEXT($A9,"0000"),'2013 BL Civics Enrollment'!$A$3:$C$500,3,FALSE),"") -> 178 | F9: =IFERROR(IF(VLOOKUP(VALUE(A9),'2012-13 BL Civics'!$A$14:$C$200,3,FALSE)<10,"N<10",IF(VLOOKUP(VALUE(A9),'2012-13 BL Civics'!$A$14:$C$200,3,FALSE)>D9,100,VLOOKUP(VALUE(A9),'2012-13 BL Civics'!$A$14:$C$200,3,FALSE)/D9%)),"Not Tested") -> 93.33333333 | G9: =IFERROR(IF(VLOOKUP(VALUE(A9),'2013-14 BL Civics'!$A$14:$C$200,3,FALSE)<10,"N<10",IF(VLOOKUP(VALUE(A9),'2013-14 BL Civics'!$A$14:$C$200,3,FALSE)>E9,100,VLOOKUP(VALUE(A9),'2013-14 BL Civics'!$A$14:$C$200,3,FALSE)/E9%)),"Not Tested") -> 96.06741573 | H9: =IFERROR(IF(F9="N<10","N<10",VLOOKUP(VALUE($A9),'2012-13 BL Civics'!$A$14:$AG$500,5,FALSE)*100),"Not Tested") -> 37 | I9: =IFERROR(IF(G9="N<10","N<10",VLOOKUP(VALUE($A9),'2013-14 BL Civics'!$A$14:$AG$500,5,FALSE)*100),"Not Tested") -> 40 | J9: 3 | K9: =IFERROR(IF(H9="N<10","N<10",VLOOKUP(VALUE($A9),'2012-13 BL Civics'!$A$14:$AG$500,11,FALSE)*100),"Not Tested") -> 44 | L9: =IFERROR(IF(I9="N<10","N<10",VLOOKUP(VALUE($A9),'2013-14 BL Civics'!$A$14:$AG$500,11,FALSE)*100),"Not Tested") -> 41 | M9: -3 | N9: =IFERROR(IF(K9="N<10","N<10",VLOOKUP(VALUE($A9),'2012-13 BL Civics'!$A$14:$AG$500,17,FALSE)*100),"Not Tested") -> 30 | O9: =IFERROR(IF(L9="N<10","N<10",VLOOKUP(VALUE($A9),'2013-14 BL Civics'!$A$14:$AG$500,17,FALSE)*100),"Not Tested") -> 37 | P9: 7 | Q9: =IFERROR(IF(J9="N<10","N<10",VLOOKUP(VALUE($A9),'2012-13 BL Civics'!$A$14:$AG$500,23,FALSE)*100),"Not Tested") -> 37 | R9: =IFERROR(IF(K9="N<10","N<10",VLOOKUP(VALUE($A9),'2013-14 BL Civics'!$A$14:$AG$500,23,FALSE)*100),"Not Tested") -> 39 | S9: 2 | T9: =IFERROR(IF(N9="N<10","N<10",VLOOKUP(VALUE($A9),'2012-13 BL Civics'!$A$14:$AG$500,29,FALSE)*100),"Not Tested") -> 37 | U9: =IFERROR(IF(O9="N<10","N<10",VLOOKUP(VALUE($A9),'2013-14 BL Civics'!$A$14:$AG$500,29,FALSE)*100),"Not Tested") -> 46 | V9: 9
A10: 0231 | C10: =VLOOKUP(TEXT(A10,"0000"),SchList!$A$2:$C$483,2,FALSE) -> AVENTURA WATERWAYS K-8 CENTER | D10: =IFERROR(VLOOKUP(TEXT($A10,"0000"),'2012 BL Civics Enrollment'!$A$3:$C$500,3,FALSE),0) -> 187 | E10: =IFERROR(VLOOKUP(TEXT($A10,"0000"),'2013 BL Civics Enrollment'!$A$3:$C$500,3,FALSE),"") -> 190 | F10: =IFERROR(IF(VLOOKUP(VALUE(A10),'2012-13 BL Civics'!$A$14:$C$200,3,FALSE)<10,"N<10",IF(VLOOKUP(VALUE(A10),'2012-13 BL Civics'!$A$14:$C$200,3,FALSE)>D10,100,VLOOKUP(VALUE(A10),'2012-13 BL Civics'!$A$14:$C$200,3,FALSE)/D10%)),"Not Tested") -> 89.83957219 | G10: =IFERROR(IF(VLOOKUP(VALUE(A10),'2013-14 BL Civics'!$A$14:$C$200,3,FALSE)<10,"N<10",IF(VLOOKUP(VALUE(A10),'2013-14 BL Civics'!$A$14:$C$200,3,FALSE)>E10,100,VLOOKUP(VALUE(A10),'2013-14 BL Civics'!$A$14:$C$200,3,FALSE)/E10%)),"Not Tested") -> 84.73684211 | H10: =IFERROR(IF(F10="N<10","N<10",VLOOKUP(VALUE($A10),'2012-13 BL Civics'!$A$14:$AG$500,5,FALSE)*100),"Not Tested") -> 34 | I10: =IFERROR(IF(G10="N<10","N<10",VLOOKUP(VALUE($A10),'2013-14 BL Civics'!$A$14:$AG$500,5,FALSE)*100),"Not Tested") -> 35 | J10: 1 | K10: =IFERROR(IF(H10="N<10","N<10",VLOOKUP(VALUE($A10),'2012-13 BL Civics'!$A$14:$AG$500,11,FALSE)*100),"Not Tested") -> 43 | L10: =IFERROR(IF(I10="N<10","N<10",VLOOKUP(VALUE($A10),'2013-14 BL Civics'!$A$14:$AG$500,11,FALSE)*100),"Not Tested") -> 38 | M10: -5 | N10: =IFERROR(IF(K10="N<10","N<10",VLOOKUP(VALUE($A10),'2012-13 BL Civics'!$A$14:$AG$500,17,FALSE)*100),"Not Tested") -> 28 | O10: =IFERROR(IF(L10="N<10","N<10",VLOOKUP(VALUE($A10),'2013-14 BL Civics'!$A$14:$AG$500,17,FALSE)*100),"Not Tested") -> 29 | P10: 1 | Q10: =IFERROR(IF(J10="N<10","N<10",VLOOKUP(VALUE($A10),'2012-13 BL Civics'!$A$14:$AG$500,23,FALSE)*100),"Not Tested") -> 32 | R10: =IFERROR(IF(K10="N<10","N<10",VLOOKUP(VALUE($A10),'2013-14 BL Civics'!$A$14:$AG$500,23,FALSE)*100),"Not Tested") -> 35 | S10: 3 | T10: =IFERROR(IF(N10="N<10","N<10",VLOOKUP(VALUE($A10),'2012-13 BL Civics'!$A$14:$AG$500,29,FALSE)*100),"Not Tested") -> 35 | U10: =IFERROR(IF(O10="N<10","N<10",VLOOKUP(VALUE($A10),'2013-14 BL Civics'!$A$14:$AG$500,29,FALSE)*100),"Not Tested") -> 42 | V10: 7
A11: 0241 | C11: =VLOOKUP(TEXT(A11,"0000"),SchList!$A$2:$C$483,2,FALSE) -> RUTH K BROAD/BAY HARBOR K-8 | D11: =IFERROR(VLOOKUP(TEXT($A11,"0000"),'2012 BL Civics Enrollment'!$A$3:$C$500,3,FALSE),0) -> 114 | E11: =IFERROR(VLOOKUP(TEXT($A11,"0000"),'2013 BL Civics Enrollment'!$A$3:$C$500,3,FALSE),"") -> 162 | F11: =IFERROR(IF(VLOOKUP(VALUE(A11),'2012-13 BL Civics'!$A$14:$C$200,3,FALSE)<10,"N<10",IF(VLOOKUP(VALUE(A11),'2012-13 BL Civics'!$A$14:$C$200,3,FALSE)>D11,100,VLOOKUP(VALUE(A11),'2012-13 BL Civics'!$A$14:$C$200,3,FALSE)/D11%)),"Not Tested") -> 99.12280702 | G11: =IFERROR(IF(VLOOKUP(VALUE(A11),'2013-14 BL Civics'!$A$14:$C$200,3,FALSE)<10,"N<10",IF(VLOOKUP(VALUE(A11),'2013-14 BL Civics'!$A$14:$C$200,3,FALSE)>E11,100,VLOOKUP(VALUE(A11),'2013-14 BL Civics'!$A$14:$C$200,3,FALSE)/E11%)),"Not Tested") -> 95.67901235 | H11: =IFERROR(IF(F11="N<10","N<10",VLOOKUP(VALUE($A11),'2012-13 BL Civics'!$A$14:$AG$500,5,FALSE)*100),"Not Tested") -> 36 | I11: =IFERROR(IF(G11="N<10","N<10",VLOOKUP(VALUE($A11),'2013-14 BL Civics'!$A$14:$AG$500,5,FALSE)*100),"Not Tested") -> 39 | J11: 3 | K11: =IFERROR(IF(H11="N<10","N<10",VLOOKUP(VALUE($A11),'2012-13 BL Civics'!$A$14:$AG$500,11,FALSE)*100),"Not Tested") -> 42 | L11: =IFERROR(IF(I11="N<10","N<10",VLOOKUP(VALUE($A11),'2013-14 BL Civics'!$A$14:$AG$500,11,FALSE)*100),"Not Tested") -> 44 | M11: 2 | N11: =IFERROR(IF(K11="N<10","N<10",VLOOKUP(VALUE($A11),'2012-13 BL Civics'!$A$14:$AG$500,17,FALSE)*100),"Not Tested") -> 31 | O11: =IFERROR(IF(L11="N<10","N<10",VLOOKUP(VALUE($A11),'2013-14 BL Civics'!$A$14:$AG$500,17,FALSE)*100),"Not Tested") -> 32 | P11: 1 | Q11: =IFERROR(IF(J11="N<10","N<10",VLOOKUP(VALUE($A11),'2012-13 BL Civics'!$A$14:$AG$500,23,FALSE)*100),"Not Tested") -> 35 | R11: =IFERROR(IF(K11="N<10","N<10",VLOOKUP(VALUE($A11),'2013-14 BL Civics'!$A$14:$AG$500,23,FALSE)*100),"Not Tested") -> 37 | S11: 2 | T11: =IFERROR(IF(N11="N<10","N<10",VLOOKUP(VALUE($A11),'2012-13 BL Civics'!$A$14:$AG$500,29,FALSE)*100),"Not Tested") -> 37 | U11: =IFERROR(IF(O11="N<10","N<10",VLOOKUP(VALUE($A11),'2013-14 BL Civics'!$A$14:$AG$500,29,FALSE)*100),"Not Tested") -> 48 | V11: 11
A12: 0332 | C12: =VLOOKUP(TEXT(A12,"0000"),SchList!$A$2:$C$483,2,FALSE) -> SOMERSET ACADEMY(SILVER PALMS) | D12: =IFERROR(VLOOKUP(TEXT($A12,"0000"),'2012 BL Civics Enrollment'!$A$3:$C$500,3,FALSE),0) -> 152 | E12: =IFERROR(VLOOKUP(TEXT($A12,"0000"),'2013 BL Civics Enrollment'!$A$3:$C$500,3,FALSE),"") -> 148 | F12: =IFERROR(IF(VLOOKUP(VALUE(A12),'2012-13 BL Civics'!$A$14:$C$200,3,FALSE)<10,"N<10",IF(VLOOKUP(VALUE(A12),'2012-13 BL Civics'!$A$14:$C$200,3,FALSE)>D12,100,VLOOKUP(VALUE(A12),'2012-13 BL Civics'!$A$14:$C$200,3,FALSE)/D12%)),"Not Tested") -> 98.68421053 | G12: =IFERROR(IF(VLOOKUP(VALUE(A12),'2013-14 BL Civics'!$A$14:$C$200,3,FALSE)<10,"N<10",IF(VLOOKUP(VALUE(A12),'2013-14 BL Civics'!$A$14:$C$200,3,FALSE)>E12,100,VLOOKUP(VALUE(A12),'2013-14 BL Civics'!$A$14:$C$200,3,FALSE)/E12%)),"Not Tested") -> 89.18918919 | H12: =IFERROR(IF(F12="N<10","N<10",VLOOKUP(VALUE($A12),'2012-13 BL Civics'!$A$14:$AG$500,5,FALSE)*100),"Not Tested") -> 34 | I12: =IFERROR(IF(G12="N<10","N<10",VLOOKUP(VALUE($A12),'2013-14 BL Civics'!$A$14:$AG$500,5,FALSE)*100),"Not Tested") -> 36 | J12: 2 | K12: =IFERROR(IF(H12="N<10","N<10",VLOOKUP(VALUE($A12),'2012-13 BL Civics'!$A$14:$AG$500,11,FALSE)*100),"Not Tested") -> 42 | L12: =IFERROR(IF(I12="N<10","N<10",VLOOKUP(VALUE($A12),'2013-14 BL Civics'!$A$14:$AG$500,11,FALSE)*100),"Not Tested") -> 39 | M12: -3 | N12: =IFERROR(IF(K12="N<10","N<10",VLOOKUP(VALUE($A12),'2012-13 BL Civics'!$A$14:$AG$500,17,FALSE)*100),"Not Tested") -> 25 | O12: =IFERROR(IF(L12="N<10","N<10",VLOOKUP(VALUE($A12),'2013-14 BL Civics'!$A$14:$AG$500,17,FALSE)*100),"Not Tested") -> 30 | P12: 5 | Q12: =IFERROR(IF(J12="N<10","N<10",VLOOKUP(VALUE($A12),'2012-13 BL Civics'!$A$14:$AG$500,23,FALSE)*100),"Not Tested") -> 34 | R12: =IFERROR(IF(K12="N<10","N<10",VLOOKUP(VALUE($A12),'2013-14 BL Civics'!$A$14:$AG$500,23,FALSE)*100),"Not Tested") -> 38 | S12: 4 | T12: =IFERROR(IF(N12="N<10","N<10",VLOOKUP(VALUE($A12),'2012-13 BL Civics'!$A$14:$AG$500,29,FALSE)*100),"Not Tested") -> 37 | U12: =IFERROR(IF(O12="N<10","N<10",VLOOKUP(VALUE($A12),'2013-14 BL Civics'!$A$14:$AG$500,29,FALSE)*100),"Not Tested") -> 41 | V12: 4
A13: 0451 | C13: =VLOOKUP(TEXT(A13,"0000"),SchList!$A$2:$C$483,2,FALSE) -> BOWMAN ASHE/DOOLIN K-8 ACAD | D13: =IFERROR(VLOOKUP(TEXT($A13,"0000"),'2012 BL Civics Enrollment'!$A$3:$C$500,3,FALSE),0) -> 200 | E13: =IFERROR(VLOOKUP(TEXT($A13,"0000"),'2013 BL Civics Enrollment'!$A$3:$C$500,3,FALSE),"") -> 164 | F13: =IFERROR(IF(VLOOKUP(VALUE(A13),'2012-13 BL Civics'!$A$14:$C$200,3,FALSE)<10,"N<10",IF(VLOOKUP(VALUE(A13),'2012-13 BL Civics'!$A$14:$C$200,3,FALSE)>D13,100,VLOOKUP(VALUE(A13),'2012-13 BL Civics'!$A$14:$C$200,3,FALSE)/D13%)),"Not Tested") -> 100 | G13: =IFERROR(IF(VLOOKUP(VALUE(A13),'2013-14 BL Civics'!$A$14:$C$200,3,FALSE)<10,"N<10",IF(VLOOKUP(VALUE(A13),'2013-14 BL Civics'!$A$14:$C$200,3,FALSE)>E13,100,VLOOKUP(VALUE(A13),'2013-14 BL Civics'!$A$14:$C$200,3,FALSE)/E13%)),"Not Tested") -> 92.68292683 | H13: =IFERROR(IF(F13="N<10","N<10",VLOOKUP(VALUE($A13),'2012-13 BL Civics'!$A$14:$AG$500,5,FALSE)*100),"Not Tested") -> 32 | I13: =IFERROR(IF(G13="N<10","N<10",VLOOKUP(VALUE($A13),'2013-14 BL Civics'!$A$14:$AG$500,5,FALSE)*100),"Not Tested") -> 32 | J13: 0 | K13: =IFERROR(IF(H13="N<10","N<10",VLOOKUP(VALUE($A13),'2012-13 BL Civics'!$A$14:$AG$500,11,FALSE)*100),"Not Tested") -> 37 | L13: =IFERROR(IF(I13="N<10","N<10",VLOOKUP(VALUE($A13),'2013-14 BL Civics'!$A$14:$AG$500,11,FALSE)*100),"Not Tested") -> 33 | M13: -4 | N13: =IFERROR(IF(K13="N<10","N<10",VLOOKUP(VALUE($A13),'2012-13 BL Civics'!$A$14:$AG$500,17,FALSE)*100),"Not Tested") -> 28 | O13: =IFERROR(IF(L13="N<10","N<10",VLOOKUP(VALUE($A13),'2013-14 BL Civics'!$A$14:$AG$500,17,FALSE)*100),"Not Tested") -> 29 | P13: 1 | Q13: =IFERROR(IF(J13="N<10","N<10",VLOOKUP(VALUE($A13),'2012-13 BL Civics'!$A$14:$AG$500,23,FALSE)*100),"Not Tested") -> 31 | R13: =IFERROR(IF(K13="N<10","N<10",VLOOKUP(VALUE($A13),'2013-14 BL Civics'!$A$14:$AG$500,23,FALSE)*100),"Not Tested") -> 30 | S13: -1 | T13: =IFERROR(IF(N13="N<10","N<10",VLOOKUP(VALUE($A13),'2012-13 BL Civics'!$A$14:$AG$500,29,FALSE)*100),"Not Tested") -> 35 | U13: =IFERROR(IF(O13="N<10","N<10",VLOOKUP(VALUE($A13),'2013-14 BL Civics'!$A$14:$AG$500,29,FALSE)*100),"Not Tested") -> 38 | V13: 3
A14: 0651 | C14: =VLOOKUP(TEXT(A14,"0000"),SchList!$A$2:$C$483,2,FALSE) -> CAMPBELL DRIVE K-8 CENTER | D14: =IFERROR(VLOOKUP(TEXT($A14,"0000"),'2012 BL Civics Enrollment'!$A$3:$C$500,3,FALSE),0) -> 61 | E14: =IFERROR(VLOOKUP(TEXT($A14,"0000"),'2013 BL Civics Enrollment'!$A$3:$C$500,3,FALSE),"") -> 79 | F14: =IFERROR(IF(VLOOKUP(VALUE(A14),'2012-13 BL Civics'!$A$14:$C$200,3,FALSE)<10,"N<10",IF(VLOOKUP(VALUE(A14),'2012-13 BL Civics'!$A$14:$C$200,3,FALSE)>D14,100,VLOOKUP(VALUE(A14),'2012-13 BL Civics'!$A$14:$C$200,3,FALSE)/D14%)),"Not Tested") -> 93.44262295 | G14: =IFERROR(IF(VLOOKUP(VALUE(A14),'2013-14 BL Civics'!$A$14:$C$200,3,FALSE)<10,"N<10",IF(VLOOKUP(VALUE(A14),'2013-14 BL Civics'!$A$14:$C$200,3,FALSE)>E14,100,VLOOKUP(VALUE(A14),'2013-14 BL Civics'!$A$14:$C$200,3,FALSE)/E14%)),"Not Tested") -> 79.74683544 | H14: =IFERROR(IF(F14="N<10","N<10",VLOOKUP(VALUE($A14),'2012-13 BL Civics'!$A$14:$AG$500,5,FALSE)*100),"Not Tested") -> 32 | I14: =IFERROR(IF(G14="N<10","N<10",VLOOKUP(VALUE($A14),'2013-14 BL Civics'!$A$14:$AG$500,5,FALSE)*100),"Not Tested") -> 34 | J14: 2 | K14: =IFERROR(IF(H14="N<10","N<10",VLOOKUP(VALUE($A14),'2012-13 BL Civics'!$A$14:$AG$500,11,FALSE)*100),"Not Tested") -> 40 | L14: =IFERROR(IF(I14="N<10","N<10",VLOOKUP(VALUE($A14),'2013-14 BL Civics'!$A$14:$AG$500,11,FALSE)*100),"Not Tested") -> 35 | M14: -5 | N14: =IFERROR(IF(K14="N<10","N<10",VLOOKUP(VALUE($A14),'2012-13 BL Civics'!$A$14:$AG$500,17,FALSE)*100),"Not Tested") -> 23 | O14: =IFERROR(IF(L14="N<10","N<10",VLOOKUP(VALUE($A14),'2013-14 BL Civics'!$A$14:$AG$500,17,FALSE)*100),"Not Tested") -> 29 | P14: 6 | Q14: =IFERROR(IF(J14="N<10","N<10",VLOOKUP(VALUE($A14),'2012-13 BL Civics'!$A$14:$AG$500,23,FALSE)*100),"Not Tested") -> 32 | R14: =IFERROR(IF(K14="N<10","N<10",VLOOKUP(VALUE($A14),'2013-14 BL Civics'!$A$14:$AG$500,23,FALSE)*100),"Not Tested") -> 34 | S14: 2 | T14: =IFERROR(IF(N14="N<10","N<10",VLOOKUP(VALUE($A14),'2012-13 BL Civics'!$A$14:$AG$500,29,FALSE)*100),"Not Tested") -> 38 | U14: =IFERROR(IF(O14="N<10","N<10",VLOOKUP(VALUE($A14),'2013-14 BL Civics'!$A$14:$AG$500,29,FALSE)*100),"Not Tested") -> 41 | V14: 3
A15: 0761 | C15: =VLOOKUP(TEXT(A15,"0000"),SchList!$A$2:$C$483,2,FALSE) -> FIENBERG/FISHER K-8 CENTER | D15: =IFERROR(VLOOKUP(TEXT($A15,"0000"),'2012 BL Civics Enrollment'!$A$3:$C$500,3,FALSE),0) -> 90 | E15: =IFERROR(VLOOKUP(TEXT($A15,"0000"),'2013 BL Civics Enrollment'!$A$3:$C$500,3,FALSE),"") -> 100 | F15: =IFERROR(IF(VLOOKUP(VALUE(A15),'2012-13 BL Civics'!$A$14:$C$200,3,FALSE)<10,"N<10",IF(VLOOKUP(VALUE(A15),'2012-13 BL Civics'!$A$14:$C$200,3,FALSE)>D15,100,VLOOKUP(VALUE(A15),'2012-13 BL Civics'!$A$14:$C$200,3,FALSE)/D15%)),"Not Tested") -> 97.77777778 | G15: =IFERROR(IF(VLOOKUP(VALUE(A15),'2013-14 BL Civics'!$A$14:$C$200,3,FALSE)<10,"N<10",IF(VLOOKUP(VALUE(A15),'2013-14 BL Civics'!$A$14:$C$200,3,FALSE)>E15,100,VLOOKUP(VALUE(A15),'2013-14 BL Civics'!$A$14:$C$200,3,FALSE)/E15%)),"Not Tested") -> 98 | H15: =IFERROR(IF(F15="N<10","N<10",VLOOKUP(VALUE($A15),'2012-13 BL Civics'!$A$14:$AG$500,5,FALSE)*100),"Not Tested") -> 33 | I15: =IFERROR(IF(G15="N<10","N<10",VLOOKUP(VALUE($A15),'2013-14 BL Civics'!$A$14:$AG$500,5,FALSE)*100),"Not Tested") -> 35 | J15: 2 | K15: =IFERROR(IF(H15="N<10","N<10",VLOOKUP(VALUE($A15),'2012-13 BL Civics'!$A$14:$AG$500,11,FALSE)*100),"Not Tested") -> 37 | L15: =IFERROR(IF(I15="N<10","N<10",VLOOKUP(VALUE($A15),'2013-14 BL Civics'!$A$14:$AG$500,11,FALSE)*100),"Not Tested") -> 37 | M15: 0 | N15: =IFERROR(IF(K15="N<10","N<10",VLOOKUP(VALUE($A15),'2012-13 BL Civics'!$A$14:$AG$500,17,FALSE)*100),"Not Tested") -> 26 | O15: =IFERROR(IF(L15="N<10","N<10",VLOOKUP(VALUE($A15),'2013-14 BL Civics'!$A$14:$AG$500,17,FALSE)*100),"Not Tested") -> 33 | P15: 7 | Q15: =IFERROR(IF(J15="N<10","N<10",VLOOKUP(VALUE($A15),'2012-13 BL Civics'!$A$14:$AG$500,23,FALSE)*100),"Not Tested") -> 34 | R15: =IFERROR(IF(K15="N<10","N<10",VLOOKUP(VALUE($A15),'2013-14 BL Civics'!$A$14:$AG$500,23,FALSE)*100),"Not Tested") -> 32 | S15: -2 | T15: =IFERROR(IF(N15="N<10","N<10",VLOOKUP(VALUE($A15),'2012-13 BL Civics'!$A$14:$AG$500,29,FALSE)*100),"Not Tested") -> 37 | U15: =IFERROR(IF(O15="N<10","N<10",VLOOKUP(VALUE($A15),'2013-14 BL Civics'!$A$14:$AG$500,29,FALSE)*100),"Not Tested") -> 39 | V15: 2
A16: 0950 | C16: =VLOOKUP(TEXT(A16,"0000"),SchList!$A$2:$C$483,2,FALSE) -> AVENTURA CITY OF EXCELLENCE | D16: =IFERROR(VLOOKUP(TEXT($A16,"0000"),'2012 BL Civics Enrollment'!$A$3:$C$500,3,FALSE),0) -> 108 | E16: =IFERROR(VLOOKUP(TEXT($A16,"0000"),'2013 BL Civics Enrollment'!$A$3:$C$500,3,FALSE),"") -> 109 | F16: =IFERROR(IF(VLOOKUP(VALUE(A16),'2012-13 BL Civics'!$A$14:$C$200,3,FALSE)<10,"N<10",IF(VLOOKUP(VALUE(A16),'2012-13 BL Civics'!$A$14:$C$200,3,FALSE)>D16,100,VLOOKUP(VALUE(A16),'2012-13 BL Civics'!$A$14:$C$200,3,FALSE)/D16%)),"Not Tested") -> 93.51851852 | G16: =IFERROR(IF(VLOOKUP(VALUE(A16),'2013-14 BL Civics'!$A$14:$C$200,3,FALSE)<10,"N<10",IF(VLOOKUP(VALUE(A16),'2013-14 BL Civics'!$A$14:$C$200,3,FALSE)>E16,100,VLOOKUP(VALUE(A16),'2013-14 BL Civics'!$A$14:$C$200,3,FALSE)/E16%)),"Not Tested") -> 96.33027523 | H16: =IFERROR(IF(F16="N<10","N<10",VLOOKUP(VALUE($A16),'2012-13 BL Civics'!$A$14:$AG$500,5,FALSE)*100),"Not Tested") -> 44 | I16: =IFERROR(IF(G16="N<10","N<10",VLOOKUP(VALUE($A16),'2013-14 BL Civics'!$A$14:$AG$500,5,FALSE)*100),"Not Tested") -> 44 | J16: 0 | K16: =IFERROR(IF(H16="N<10","N<10",VLOOKUP(VALUE($A16),'2012-13 BL Civics'!$A$14:$AG$500,11,FALSE)*100),"Not Tested") -> 53 | L16: =IFERROR(IF(I16="N<10","N<10",VLOOKUP(VALUE($A16),'2013-14 BL Civics'!$A$14:$AG$500,11,FALSE)*100),"Not Tested") -> 48 | M16: -5 | N16: =IFERROR(IF(K16="N<10","N<10",VLOOKUP(VALUE($A16),'2012-13 BL Civics'!$A$14:$AG$500,17,FALSE)*100),"Not Tested") -> 36 | O16: =IFERROR(IF(L16="N<10","N<10",VLOOKUP(VALUE($A16),'2013-14 BL Civics'!$A$14:$AG$500,17,FALSE)*100),"Not Tested") -> 37 | P16: 1 | Q16: =IFERROR(IF(J16="N<10","N<10",VLOOKUP(VALUE($A16),'2012-13 BL Civics'!$A$14:$AG$500,23,FALSE)*100),"Not Tested") -> 46 | R16: =IFERROR(IF(K16="N<10","N<10",VLOOKUP(VALUE($A16),'2013-14 BL Civics'!$A$14:$AG$500,23,FALSE)*100),"Not Tested") -> 43 | S16: -3 | T16: =IFERROR(IF(N16="N<10","N<10",VLOOKUP(VALUE($A16),'2012-13 BL Civics'!$A$14:$AG$500,29,FALSE)*100),"Not Tested") -> 46 | U16: =IFERROR(IF(O16="N<10","N<10",VLOOKUP(VALUE($A16),'2013-14 BL Civics'!$A$14:$AG$500,29,FALSE)*100),"Not Tested") -> 48 | V16: 2
A17: 0961 | C17: =VLOOKUP(TEXT(A17,"0000"),SchList!$A$2:$C$483,2,FALSE) -> CORAL GABLES PREPARATORY ACAD | D17: =IFERROR(VLOOKUP(TEXT($A17,"0000"),'2012 BL Civics Enrollment'!$A$3:$C$500,3,FALSE),0) -> 99 | E17: =IFERROR(VLOOKUP(TEXT($A17,"0000"),'2013 BL Civics Enrollment'!$A$3:$C$500,3,FALSE),"") -> 75 | F17: =IFERROR(IF(VLOOKUP(VALUE(A17),'2012-13 BL Civics'!$A$14:$C$200,3,FALSE)<10,"N<10",IF(VLOOKUP(VALUE(A17),'2012-13 BL Civics'!$A$14:$C$200,3,FALSE)>D17,100,VLOOKUP(VALUE(A17),'2012-13 BL Civics'!$A$14:$C$200,3,FALSE)/D17%)),"Not Tested") -> 98.98989899 | G17: =IFERROR(IF(VLOOKUP(VALUE(A17),'2013-14 BL Civics'!$A$14:$C$200,3,FALSE)<10,"N<10",IF(VLOOKUP(VALUE(A17),'2013-14 BL Civics'!$A$14:$C$200,3,FALSE)>E17,100,VLOOKUP(VALUE(A17),'2013-14 BL Civics'!$A$14:$C$200,3,FALSE)/E17%)),"Not Tested") -> 94.66666667 | H17: =IFERROR(IF(F17="N<10","N<10",VLOOKUP(VALUE($A17),'2012-13 BL Civics'!$A$14:$AG$500,5,FALSE)*100),"Not Tested") -> 37 | I17: =IFERROR(IF(G17="N<10","N<10",VLOOKUP(VALUE($A17),'2013-14 BL Civics'!$A$14:$AG$500,5,FALSE)*100),"Not Tested") -> 44 | J17: 7 | K17: =IFERROR(IF(H17="N<10","N<10",VLOOKUP(VALUE($A17),'2012-13 BL Civics'!$A$14:$AG$500,11,FALSE)*100),"Not Tested") -> 48 | L17: =IFERROR(IF(I17="N<10","N<10",VLOOKUP(VALUE($A17),'2013-14 BL Civics'!$A$14:$AG$500,11,FALSE)*100),"Not Tested") -> 49 | M17: 1 | N17: =IFERROR(IF(K17="N<10","N<10",VLOOKUP(VALUE($A17),'2012-13 BL Civics'!$A$14:$AG$500,17,FALSE)*100),"Not Tested") -> 28 | O17: =IFERROR(IF(L17="N<10","N<10",VLOOKUP(VALUE($A17),'2013-14 BL Civics'!$A$14:$AG$500,17,FALSE)*100),"Not Tested") -> 39 | P17: 11 | Q17: =IFERROR(IF(J17="N<10","N<10",VLOOKUP(VALUE($A17),'2012-13 BL Civics'!$A$14:$AG$500,23,FALSE)*100),"Not Tested") -> 36 | R17: =IFERROR(IF(K17="N<10","N<10",VLOOKUP(VALUE($A17),'2013-14 BL Civics'!$A$14:$AG$500,23,FALSE)*100),"Not Tested") -> 43 | S17: 7 | T17: =IFERROR(IF(N17="N<10","N<10",VLOOKUP(VALUE($A17),'2012-13 BL Civics'!$A$14:$AG$500,29,FALSE)*100),"Not Tested") -> 41 | U17: =IFERROR(IF(O17="N<10","N<10",VLOOKUP(VALUE($A17),'2013-14 BL Civics'!$A$14:$AG$500,29,FALSE)*100),"Not Tested") -> 51 | V17: 10
A18: 1020 | C18: =VLOOKUP(TEXT(A18,"0000"),SchList!$A$2:$C$483,2,FALSE) -> YOUTH CO-OP CHARTER SCHOOL | D18: =IFERROR(VLOOKUP(TEXT($A18,"0000"),'2012 BL Civics Enrollment'!$A$3:$C$500,3,FALSE),0) -> 91 | E18: =IFERROR(VLOOKUP(TEXT($A18,"0000"),'2013 BL Civics Enrollment'!$A$3:$C$500,3,FALSE),"") -> 66 | F18: =IFERROR(IF(VLOOKUP(VALUE(A18),'2012-13 BL Civics'!$A$14:$C$200,3,FALSE)<10,"N<10",IF(VLOOKUP(VALUE(A18),'2012-13 BL Civics'!$A$14:$C$200,3,FALSE)>D18,100,VLOOKUP(VALUE(A18),'2012-13 BL Civics'!$A$14:$C$200,3,FALSE)/D18%)),"Not Tested") -> 91.20879121 | G18: =IFERROR(IF(VLOOKUP(VALUE(A18),'2013-14 BL Civics'!$A$14:$C$200,3,FALSE)<10,"N<10",IF(VLOOKUP(VALUE(A18),'2013-14 BL Civics'!$A$14:$C$200,3,FALSE)>E18,100,VLOOKUP(VALUE(A18),'2013-14 BL Civics'!$A$14:$C$200,3,FALSE)/E18%)),"Not Tested") -> 96.96969697 | H18: =IFERROR(IF(F18="N<10","N<10",VLOOKUP(VALUE($A18),'2012-13 BL Civics'!$A$14:$AG$500,5,FALSE)*100),"Not Tested") -> 35 | I18: =IFERROR(IF(G18="N<10","N<10",VLOOKUP(VALUE($A18),'2013-14 BL Civics'!$A$14:$AG$500,5,FALSE)*100),"Not Tested") -> 40 | J18: 5 | K18: =IFERROR(IF(H18="N<10","N<10",VLOOKUP(VALUE($A18),'2012-13 BL Civics'!$A$14:$AG$500,11,FALSE)*100),"Not Tested") -> 41 | L18: =IFERROR(IF(I18="N<10","N<10",VLOOKUP(VALUE($A18),'2013-14 BL Civics'!$A$14:$AG$500,11,FALSE)*100),"Not Tested") -> 43 | M18: 2 | N18: =IFERROR(IF(K18="N<10","N<10",VLOOKUP(VALUE($A18),'2012-13 BL Civics'!$A$14:$AG$500,17,FALSE)*100),"Not Tested") -> 27 | O18: =IFERROR(IF(L18="N<10","N<10",VLOOKUP(VALUE($A18),'2013-14 BL Civics'!$A$14:$AG$500,17,FALSE)*100),"Not Tested") -> 36 | P18: 9 | Q18: =IFERROR(IF(J18="N<10","N<10",VLOOKUP(VALUE($A18),'2012-13 BL Civics'!$A$14:$AG$500,23,FALSE)*100),"Not Tested") -> 37 | R18: =IFERROR(IF(K18="N<10","N<10",VLOOKUP(VALUE($A18),'2013-14 BL Civics'!$A$14:$AG$500,23,FALSE)*100),"Not Tested") -> 39 | S18: 2 | T18: =IFERROR(IF(N18="N<10","N<10",VLOOKUP(VALUE($A18),'2012-13 BL Civics'!$A$14:$AG$500,29,FALSE)*100),"Not Tested") -> 37 | U18: =IFERROR(IF(O18="N<10","N<10",VLOOKUP(VALUE($A18),'2013-14 BL Civics'!$A$14:$AG$500,29,FALSE)*100),"Not Tested") -> 43 | V18: 6
A19: 1121 | C19: =VLOOKUP(TEXT(A19,"0000"),SchList!$A$2:$C$483,2,FALSE) -> CORAL WAY K-8 CENTER | D19: =IFERROR(VLOOKUP(TEXT($A19,"0000"),'2012 BL Civics Enrollment'!$A$3:$C$500,3,FALSE),0) -> 162 | E19: =IFERROR(VLOOKUP(TEXT($A19,"0000"),'2013 BL Civics Enrollment'!$A$3:$C$500,3,FALSE),"") -> 162 | F19: =IFERROR(IF(VLOOKUP(VALUE(A19),'2012-13 BL Civics'!$A$14:$C$200,3,FALSE)<10,"N<10",IF(VLOOKUP(VALUE(A19),'2012-13 BL Civics'!$A$14:$C$200,3,FALSE)>D19,100,VLOOKUP(VALUE(A19),'2012-13 BL Civics'!$A$14:$C$200,3,FALSE)/D19%)),"Not Tested") -> 96.91358025 | G19: =IFERROR(IF(VLOOKUP(VALUE(A19),'2013-14 BL Civics'!$A$14:$C$200,3,FALSE)<10,"N<10",IF(VLOOKUP(VALUE(A19),'2013-14 BL Civics'!$A$14:$C$200,3,FALSE)>E19,100,VLOOKUP(VALUE(A19),'2013-14 BL Civics'!$A$14:$C$200,3,FALSE)/E19%)),"Not Tested") -> 96.91358025 | H19: =IFERROR(IF(F19="N<10","N<10",VLOOKUP(VALUE($A19),'2012-13 BL Civics'!$A$14:$AG$500,5,FALSE)*100),"Not Tested") -> 34 | I19: =IFERROR(IF(G19="N<10","N<10",VLOOKUP(VALUE($A19),'2013-14 BL Civics'!$A$14:$AG$500,5,FALSE)*100),"Not Tested") -> 37 | J19: 3 | K19: =IFERROR(IF(H19="N<10","N<10",VLOOKUP(VALUE($A19),'2012-13 BL Civics'!$A$14:$AG$500,11,FALSE)*100),"Not Tested") -> 41 | L19: =IFERROR(IF(I19="N<10","N<10",VLOOKUP(VALUE($A19),'2013-14 BL Civics'!$A$14:$AG$500,11,FALSE)*100),"Not Tested") -> 40 | M19: -1 | N19: =IFERROR(IF(K19="N<10","N<10",VLOOKUP(VALUE($A19),'2012-13 BL Civics'!$A$14:$AG$500,17,FALSE)*100),"Not Tested") -> 30 | O19: =IFERROR(IF(L19="N<10","N<10",VLOOKUP(VALUE($A19),'2013-14 BL Civics'!$A$14:$AG$500,17,FALSE)*100),"Not Tested") -> 30 | P19: 0 | Q19: =IFERROR(IF(J19="N<10","N<10",VLOOKUP(VALUE($A19),'2012-13 BL Civics'!$A$14:$AG$500,23,FALSE)*100),"Not Tested") -> 33 | R19: =IFERROR(IF(K19="N<10","N<10",VLOOKUP(VALUE($A19),'2013-14 BL Civics'!$A$14:$AG$500,23,FALSE)*100),"Not Tested") -> 36 | S19: 3 | T19: =IFERROR(IF(N19="N<10","N<10",VLOOKUP(VALUE($A19),'2012-13 BL Civics'!$A$14:$AG$500,29,FALSE)*100),"Not Tested") -> 33 | U19: =IFERROR(IF(O19="N<10","N<10",VLOOKUP(VALUE($A19),'2013-14 BL Civics'!$A$14:$AG$500,29,FALSE)*100),"Not Tested") -> 48 | V19: 15
A20: 1331 | C20: =VLOOKUP(TEXT(A20,"0000"),SchList!$A$2:$C$483,2,FALSE) -> DEVON AIRE K-8 CENTER | D20: =IFERROR(VLOOKUP(TEXT($A20,"0000"),'2012 BL Civics Enrollment'!$A$3:$C$500,3,FALSE),0) -> 182 | E20: =IFERROR(VLOOKUP(TEXT($A20,"0000"),'2013 BL Civics Enrollment'!$A$3:$C$500,3,FALSE),"") -> 206 | F20: =IFERROR(IF(VLOOKUP(VALUE(A20),'2012-13 BL Civics'!$A$14:$C$200,3,FALSE)<10,"N<10",IF(VLOOKUP(VALUE(A20),'2012-13 BL Civics'!$A$14:$C$200,3,FALSE)>D20,100,VLOOKUP(VALUE(A20),'2012-13 BL Civics'!$A$14:$C$200,3,FALSE)/D20%)),"Not Tested") -> 95.6043956 | G20: =IFERROR(IF(VLOOKUP(VALUE(A20),'2013-14 BL Civics'!$A$14:$C$200,3,FALSE)<10,"N<10",IF(VLOOKUP(VALUE(A20),'2013-14 BL Civics'!$A$14:$C$200,3,FALSE)>E20,100,VLOOKUP(VALUE(A20),'2013-14 BL Civics'!$A$14:$C$200,3,FALSE)/E20%)),"Not Tested") -> 99.02912621 | H20: =IFERROR(IF(F20="N<10","N<10",VLOOKUP(VALUE($A20),'2012-13 BL Civics'!$A$14:$AG$500,5,FALSE)*100),"Not Tested") -> 35 | I20: =IFERROR(IF(G20="N<10","N<10",VLOOKUP(VALUE($A20),'2013-14 BL Civics'!$A$14:$AG$500,5,FALSE)*100),"Not Tested") -> 33 | J20: -2 | K20: =IFERROR(IF(H20="N<10","N<10",VLOOKUP(VALUE($A20),'2012-13 BL Civics'!$A$14:$AG$500,11,FALSE)*100),"Not Tested") -> 40 | L20: =IFERROR(IF(I20="N<10","N<10",VLOOKUP(VALUE($A20),'2013-14 BL Civics'!$A$14:$AG$500,11,FALSE)*100),"Not Tested") -> 35 | M20: -5 | N20: =IFERROR(IF(K20="N<10","N<10",VLOOKUP(VALUE($A20),'2012-13 BL Civics'!$A$14:$AG$500,17,FALSE)*100),"Not Tested") -> 30 | O20: =IFERROR(IF(L20="N<10","N<10",VLOOKUP(VALUE($A20),'2013-14 BL Civics'!$A$14:$AG$500,17,FALSE)*100),"Not Tested") -> 29 | P20: -1 | Q20: =IFERROR(IF(J20="N<10","N<10",VLOOKUP(VALUE($A20),'2012-13 BL Civics'!$A$14:$AG$500,23,FALSE)*100),"Not Tested") -> 33 | R20: =IFERROR(IF(K20="N<10","N<10",VLOOKUP(VALUE($A20),'2013-14 BL Civics'!$A$14:$AG$500,23,FALSE)*100),"Not Tested") -> 32 | S20: -1 | T20: =IFERROR(IF(N20="N<10","N<10",VLOOKUP(VALUE($A20),'2012-13 BL Civics'!$A$14:$AG$500,29,FALSE)*100),"Not Tested") -> 38 | U20: =IFERROR(IF(O20="N<10","N<10",VLOOKUP(VALUE($A20),'2013-14 BL Civics'!$A$14:$AG$500,29,FALSE)*100),"Not Tested") -> 38 | V20: 0
A21: 1401 | C21: =VLOOKUP(TEXT(A21,"0000"),SchList!$A$2:$C$483,2,FALSE) -> CHARLES R. DREW ELEMENTARY | D21: =IFERROR(VLOOKUP(TEXT($A21,"0000"),'2012 BL Civics Enrollment'!$A$3:$C$500,3,FALSE),0) -> 0 | E21: =IFERROR(VLOOKUP(TEXT($A21,"0000"),'2013 BL Civics Enrollment'!$A$3:$C$500,3,FALSE),"") -> 40 | F21: =IFERROR(IF(VLOOKUP(VALUE(A21),'2012-13 BL Civics'!$A$14:$C$200,3,FALSE)<10,"N<10",IF(VLOOKUP(VALUE(A21),'2012-13 BL Civics'!$A$14:$C$200,3,FALSE)>D21,100,VLOOKUP(VALUE(A21),'2012-13 BL Civics'!$A$14:$C$200,3,FALSE)/D21%)),"Not Tested") -> Not Tested | G21: =IFERROR(IF(VLOOKUP(VALUE(A21),'2013-14 BL Civics'!$A$14:$C$200,3,FALSE)<10,"N<10",IF(VLOOKUP(VALUE(A21),'2013-14 BL Civics'!$A$14:$C$200,3,FALSE)>E21,100,VLOOKUP(VALUE(A21),'2013-14 BL Civics'!$A$14:$C$200,3,FALSE)/E21%)),"Not Tested") -> 92.5 | H21: =IFERROR(IF(F21="N<10","N<10",VLOOKUP(VALUE($A21),'2012-13 BL Civics'!$A$14:$AG$500,5,FALSE)*100),"Not Tested") -> Not Tested | I21: =IFERROR(IF(G21="N<10","N<10",VLOOKUP(VALUE($A21),'2013-14 BL Civics'!$A$14:$AG$500,5,FALSE)*100),"Not Tested") -> 34 | K21: =IFERROR(IF(H21="N<10","N<10",VLOOKUP(VALUE($A21),'2012-13 BL Civics'!$A$14:$AG$500,11,FALSE)*100),"Not Tested") -> Not Tested | L21: =IFERROR(IF(I21="N<10","N<10",VLOOKUP(VALUE($A21),'2013-14 BL Civics'!$A$14:$AG$500,11,FALSE)*100),"Not Tested") -> 35 | N21: =IFERROR(IF(K21="N<10","N<10",VLOOKUP(VALUE($A21),'2012-13 BL Civics'!$A$14:$AG$500,17,FALSE)*100),"Not Tested") -> Not Tested | O21: =IFERROR(IF(L21="N<10","N<10",VLOOKUP(VALUE($A21),'2013-14 BL Civics'!$A$14:$AG$500,17,FALSE)*100),"Not Tested") -> 32 | Q21: =IFERROR(IF(J21="N<10","N<10",VLOOKUP(VALUE($A21),'2012-13 BL Civics'!$A$14:$AG$500,23,FALSE)*100),"Not Tested") -> Not Tested | R21: =IFERROR(IF(K21="N<10","N<10",VLOOKUP(VALUE($A21),'2013-14 BL Civics'!$A$14:$AG$500,23,FALSE)*100),"Not Tested") -> 31 | T21: =IFERROR(IF(N21="N<10","N<10",VLOOKUP(VALUE($A21),'2012-13 BL Civics'!$A$14:$AG$500,29,FALSE)*100),"Not Tested") -> Not Tested | U21: =IFERROR(IF(O21="N<10","N<10",VLOOKUP(VALUE($A21),'2013-14 BL Civics'!$A$14:$AG$500,29,FALSE)*100),"Not Tested") -> 42
A22: 1441 | C22: =VLOOKUP(TEXT(A22,"0000"),SchList!$A$2:$C$483,2,FALSE) -> PAUL LAURENCE DUNBAR ELEM | D22: =IFERROR(VLOOKUP(TEXT($A22,"0000"),'2012 BL Civics Enrollment'!$A$3:$C$500,3,FALSE),0) -> 0 | E22: =IFERROR(VLOOKUP(TEXT($A22,"0000"),'2013 BL Civics Enrollment'!$A$3:$C$500,3,FALSE),"") -> 21 | F22: =IFERROR(IF(VLOOKUP(VALUE(A22),'2012-13 BL Civics'!$A$14:$C$200,3,FALSE)<10,"N<10",IF(VLOOKUP(VALUE(A22),'2012-13 BL Civics'!$A$14:$C$200,3,FALSE)>D22,100,VLOOKUP(VALUE(A22),'2012-13 BL Civics'!$A$14:$C$200,3,FALSE)/D22%)),"Not Tested") -> Not Tested | G22: =IFERROR(IF(VLOOKUP(VALUE(A22),'2013-14 BL Civics'!$A$14:$C$200,3,FALSE)<10,"N<10",IF(VLOOKUP(VALUE(A22),'2013-14 BL Civics'!$A$14:$C$200,3,FALSE)>E22,100,VLOOKUP(VALUE(A22),'2013-14 BL Civics'!$A$14:$C$200,3,FALSE)/E22%)),"Not Tested") -> 85.71428571 | H22: =IFERROR(IF(F22="N<10","N<10",VLOOKUP(VALUE($A22),'2012-13 BL Civics'!$A$14:$AG$500,5,FALSE)*100),"Not Tested") -> Not Tested | I22: =IFERROR(IF(G22="N<10","N<10",VLOOKUP(VALUE($A22),'2013-14 BL Civics'!$A$14:$AG$500,5,FALSE)*100),"Not Tested") -> 31 | K22: =IFERROR(IF(H22="N<10","N<10",VLOOKUP(VALUE($A22),'2012-13 BL Civics'!$A$14:$AG$500,11,FALSE)*100),"Not Tested") -> Not Tested | L22: =IFERROR(IF(I22="N<10","N<10",VLOOKUP(VALUE($A22),'2013-14 BL Civics'!$A$14:$AG$500,11,FALSE)*100),"Not Tested") -> 34 | N22: =IFERROR(IF(K22="N<10","N<10",VLOOKUP(VALUE($A22),'2012-13 BL Civics'!$A$14:$AG$500,17,FALSE)*100),"Not Tested") -> Not Tested | O22: =IFERROR(IF(L22="N<10","N<10",VLOOKUP(VALUE($A22),'2013-14 BL Civics'!$A$14:$AG$500,17,FALSE)*100),"Not Tested") -> 28 | Q22: =IFERROR(IF(J22="N<10","N<10",VLOOKUP(VALUE($A22),'2012-13 BL Civics'!$A$14:$AG$500,23,FALSE)*100),"Not Tested") -> Not Tested | R22: =IFERROR(IF(K22="N<10","N<10",VLOOKUP(VALUE($A22),'2013-14 BL Civics'!$A$14:$AG$500,23,FALSE)*100),"Not Tested") -> 25 | T22: =IFERROR(IF(N22="N<10","N<10",VLOOKUP(VALUE($A22),'2012-13 BL Civics'!$A$14:$AG$500,29,FALSE)*100),"Not Tested") -> Not Tested | U22: =IFERROR(IF(O22="N<10","N<10",VLOOKUP(VALUE($A22),'2013-14 BL Civics'!$A$14:$AG$500,29,FALSE)*100),"Not Tested") -> 41
A23: 1601 | C23: =VLOOKUP(TEXT(A23,"0000"),SchList!$A$2:$C$483,2,FALSE) -> EDISON PARK ELEMENTARY | D23: =IFERROR(VLOOKUP(TEXT($A23,"0000"),'2012 BL Civics Enrollment'!$A$3:$C$500,3,FALSE),0) -> 0 | E23: =IFERROR(VLOOKUP(TEXT($A23,"0000"),'2013 BL Civics Enrollment'!$A$3:$C$500,3,FALSE),"") -> 20 | F23: =IFERROR(IF(VLOOKUP(VALUE(A23),'2012-13 BL Civics'!$A$14:$C$200,3,FALSE)<10,"N<10",IF(VLOOKUP(VALUE(A23),'2012-13 BL Civics'!$A$14:$C$200,3,FALSE)>D23,100,VLOOKUP(VALUE(A23),'2012-13 BL Civics'!$A$14:$C$200,3,FALSE)/D23%)),"Not Tested") -> Not Tested | G23: =IFERROR(IF(VLOOKUP(VALUE(A23),'2013-14 BL Civics'!$A$14:$C$200,3,FALSE)<10,"N<10",IF(VLOOKUP(VALUE(A23),'2013-14 BL Civics'!$A$14:$C$200,3,FALSE)>E23,100,VLOOKUP(VALUE(A23),'2013-14 BL Civics'!$A$14:$C$200,3,FALSE)/E23%)),"Not Tested") -> 90 | H23: =IFERROR(IF(F23="N<10","N<10",VLOOKUP(VALUE($A23),'2012-13 BL Civics'!$A$14:$AG$500,5,FALSE)*100),"Not Tested") -> Not Tested | I23: =IFERROR(IF(G23="N<10","N<10",VLOOKUP(VALUE($A23),'2013-14 BL Civics'!$A$14:$AG$500,5,FALSE)*100),"Not Tested") -> 33 | K23: =IFERROR(IF(H23="N<10","N<10",VLOOKUP(VALUE($A23),'2012-13 BL Civics'!$A$14:$AG$500,11,FALSE)*100),"Not Tested") -> Not Tested | L23: =IFERROR(IF(I23="N<10","N<10",VLOOKUP(VALUE($A23),'2013-14 BL Civics'!$A$14:$AG$500,11,FALSE)*100),"Not Tested") -> 27 | N23: =IFERROR(IF(K23="N<10","N<10",VLOOKUP(VALUE($A23),'2012-13 BL Civics'!$A$14:$AG$500,17,FALSE)*100),"Not Tested") -> Not Tested | O23: =IFERROR(IF(L23="N<10","N<10",VLOOKUP(VALUE($A23),'2013-14 BL Civics'!$A$14:$AG$500,17,FALSE)*100),"Not Tested") -> 29 | Q23: =IFERROR(IF(J23="N<10","N<10",VLOOKUP(VALUE($A23),'2012-13 BL Civics'!$A$14:$AG$500,23,FALSE)*100),"Not Tested") -> Not Tested | R23: =IFERROR(IF(K23="N<10","N<10",VLOOKUP(VALUE($A23),'2013-14 BL Civics'!$A$14:$AG$500,23,FALSE)*100),"Not Tested") -> 31 | T23: =IFERROR(IF(N23="N<10","N<10",VLOOKUP(VALUE($A23),'2012-13 BL Civics'!$A$14:$AG$500,29,FALSE)*100),"Not Tested") -> Not Tested | U23: =IFERROR(IF(O23="N<10","N<10",VLOOKUP(VALUE($A23),'2013-14 BL Civics'!$A$14:$AG$500,29,FALSE)*100),"Not Tested") -> 46
A24: 1681 | C24: =VLOOKUP(TEXT(A24,"0000"),SchList!$A$2:$C$483,2,FALSE) -> LILLIE C. EVANS K-8 CENTER | D24: =IFERROR(VLOOKUP(TEXT($A24,"0000"),'2012 BL Civics Enrollment'!$A$3:$C$500,3,FALSE),0) -> 36 | E24: =IFERROR(VLOOKUP(TEXT($A24,"0000"),'2013 BL Civics Enrollment'!$A$3:$C$500,3,FALSE),"") -> 46 | F24: =IFERROR(IF(VLOOKUP(VALUE(A24),'2012-13 BL Civics'!$A$14:$C$200,3,FALSE)<10,"N<10",IF(VLOOKUP(VALUE(A24),'2012-13 BL Civics'!$A$14:$C$200,3,FALSE)>D24,100,VLOOKUP(VALUE(A24),'2012-13 BL Civics'!$A$14:$C$200,3,FALSE)/D24%)),"Not Tested") -> 100 | G24: =IFERROR(IF(VLOOKUP(VALUE(A24),'2013-14 BL Civics'!$A$14:$C$200,3,FALSE)<10,"N<10",IF(VLOOKUP(VALUE(A24),'2013-14 BL Civics'!$A$14:$C$200,3,FALSE)>E24,100,VLOOKUP(VALUE(A24),'2013-14 BL Civics'!$A$14:$C$200,3,FALSE)/E24%)),"Not Tested") -> 95.65217391 | H24: =IFERROR(IF(F24="N<10","N<10",VLOOKUP(VALUE($A24),'2012-13 BL Civics'!$A$14:$AG$500,5,FALSE)*100),"Not Tested") -> 34 | I24: =IFERROR(IF(G24="N<10","N<10",VLOOKUP(VALUE($A24),'2013-14 BL Civics'!$A$14:$AG$500,5,FALSE)*100),"Not Tested") -> 33 | J24: -1 | K24: =IFERROR(IF(H24="N<10","N<10",VLOOKUP(VALUE($A24),'2012-13 BL Civics'!$A$14:$AG$500,11,FALSE)*100),"Not Tested") -> 42 | L24: =IFERROR(IF(I24="N<10","N<10",VLOOKUP(VALUE($A24),'2013-14 BL Civics'!$A$14:$AG$500,11,FALSE)*100),"Not Tested") -> 31 | M24: -11 | N24: =IFERROR(IF(K24="N<10","N<10",VLOOKUP(VALUE($A24),'2012-13 BL Civics'!$A$14:$AG$500,17,FALSE)*100),"Not Tested") -> 26 | O24: =IFERROR(IF(L24="N<10","N<10",VLOOKUP(VALUE($A24),'2013-14 BL Civics'!$A$14:$AG$500,17,FALSE)*100),"Not Tested") -> 30 | P24: 4 | Q24: =IFERROR(IF(J24="N<10","N<10",VLOOKUP(VALUE($A24),'2012-13 BL Civics'!$A$14:$AG$500,23,FALSE)*100),"Not Tested") -> 34 | R24: =IFERROR(IF(K24="N<10","N<10",VLOOKUP(VALUE($A24),'2013-14 BL Civics'!$A$14:$AG$500,23,FALSE)*100),"Not Tested") -> 34 | S24: 0 | T24: =IFERROR(IF(N24="N<10","N<10",VLOOKUP(VALUE($A24),'2012-13 BL Civics'!$A$14:$AG$500,29,FALSE)*100),"Not Tested") -> 38 | U24: =IFERROR(IF(O24="N<10","N<10",VLOOKUP(VALUE($A24),'2013-14 BL Civics'!$A$14:$AG$500,29,FALSE)*100),"Not Tested") -> 40 | V24: 2
A25: 1721 | C25: =VLOOKUP(TEXT(A25,"0000"),SchList!$A$2:$C$483,2,FALSE) -> EVERGLADES K-8 CENTER | D25: =IFERROR(VLOOKUP(TEXT($A25,"0000"),'2012 BL Civics Enrollment'!$A$3:$C$500,3,FALSE),0) -> 151 | E25: =IFERROR(VLOOKUP(TEXT($A25,"0000"),'2013 BL Civics Enrollment'!$A$3:$C$500,3,FALSE),"") -> 139 | F25: =IFERROR(IF(VLOOKUP(VALUE(A25),'2012-13 BL Civics'!$A$14:$C$200,3,FALSE)<10,"N<10",IF(VLOOKUP(VALUE(A25),'2012-13 BL Civics'!$A$14:$C$200,3,FALSE)>D25,100,VLOOKUP(VALUE(A25),'2012-13 BL Civics'!$A$14:$C$200,3,FALSE)/D25%)),"Not Tested") -> 100 | G25: =IFERROR(IF(VLOOKUP(VALUE(A25),'2013-14 BL Civics'!$A$14:$C$200,3,FALSE)<10,"N<10",IF(VLOOKUP(VALUE(A25),'2013-14 BL Civics'!$A$14:$C$200,3,FALSE)>E25,100,VLOOKUP(VALUE(A25),'2013-14 BL Civics'!$A$14:$C$200,3,FALSE)/E25%)),"Not Tested") -> 100 | H25: =IFERROR(IF(F25="N<10","N<10",VLOOKUP(VALUE($A25),'2012-13 BL Civics'!$A$14:$AG$500,5,FALSE)*100),"Not Tested") -> 34 | I25: =IFERROR(IF(G25="N<10","N<10",VLOOKUP(VALUE($A25),'2013-14 BL Civics'!$A$14:$AG$500,5,FALSE)*100),"Not Tested") -> 38 | J25: 4 | K25: =IFERROR(IF(H25="N<10","N<10",VLOOKUP(VALUE($A25),'2012-13 BL Civics'!$A$14:$AG$500,11,FALSE)*100),"Not Tested") -> 42 | L25: =IFERROR(IF(I25="N<10","N<10",VLOOKUP(VALUE($A25),'2013-14 BL Civics'!$A$14:$AG$500,11,FALSE)*100),"Not Tested") -> 39 | M25: -3 | N25: =IFERROR(IF(K25="N<10","N<10",VLOOKUP(VALUE($A25),'2012-13 BL Civics'!$A$14:$AG$500,17,FALSE)*100),"Not Tested") -> 27 | O25: =IFERROR(IF(L25="N<10","N<10",VLOOKUP(VALUE($A25),'2013-14 BL Civics'!$A$14:$AG$500,17,FALSE)*100),"Not Tested") -> 36 | P25: 9 | Q25: =IFERROR(IF(J25="N<10","N<10",VLOOKUP(VALUE($A25),'2012-13 BL Civics'!$A$14:$AG$500,23,FALSE)*100),"Not Tested") -> 34 | R25: =IFERROR(IF(K25="N<10","N<10",VLOOKUP(VALUE($A25),'2013-14 BL Civics'!$A$14:$AG$500,23,FALSE)*100),"Not Tested") -> 36 | S25: 2 | T25: =IFERROR(IF(N25="N<10","N<10",VLOOKUP(VALUE($A25),'2012-13 BL Civics'!$A$14:$AG$500,29,FALSE)*100),"Not Tested") -> 35 | U25: =IFERROR(IF(O25="N<10","N<10",VLOOKUP(VALUE($A25),'2013-14 BL Civics'!$A$14:$AG$500,29,FALSE)*100),"Not Tested") -> 44 | V25: 9
A26: 2041 | C26: =VLOOKUP(TEXT(A26,"0000"),SchList!$A$2:$C$483,2,FALSE) -> BENJAMIN FRANKLIN K-8 CENTER | D26: =IFERROR(VLOOKUP(TEXT($A26,"0000"),'2012 BL Civics Enrollment'!$A$3:$C$500,3,FALSE),0) -> 43 | E26: =IFERROR(VLOOKUP(TEXT($A26,"0000"),'2013 BL Civics Enrollment'!$A$3:$C$500,3,FALSE),"") -> 63 | F26: =IFERROR(IF(VLOOKUP(VALUE(A26),'2012-13 BL Civics'!$A$14:$C$200,3,FALSE)<10,"N<10",IF(VLOOKUP(VALUE(A26),'2012-13 BL Civics'!$A$14:$C$200,3,FALSE)>D26,100,VLOOKUP(VALUE(A26),'2012-13 BL Civics'!$A$14:$C$200,3,FALSE)/D26%)),"Not Tested") -> 88.37209302 | G26: =IFERROR(IF(VLOOKUP(VALUE(A26),'2013-14 BL Civics'!$A$14:$C$200,3,FALSE)<10,"N<10",IF(VLOOKUP(VALUE(A26),'2013-14 BL Civics'!$A$14:$C$200,3,FALSE)>E26,100,VLOOKUP(VALUE(A26),'2013-14 BL Civics'!$A$14:$C$200,3,FALSE)/E26%)),"Not Tested") -> 84.12698413 | H26: =IFERROR(IF(F26="N<10","N<10",VLOOKUP(VALUE($A26),'2012-13 BL Civics'!$A$14:$AG$500,5,FALSE)*100),"Not Tested") -> 33 | I26: =IFERROR(IF(G26="N<10","N<10",VLOOKUP(VALUE($A26),'2013-14 BL Civics'!$A$14:$AG$500,5,FALSE)*100),"Not Tested") -> 32 | J26: -1 | K26: =IFERROR(IF(H26="N<10","N<10",VLOOKUP(VALUE($A26),'2012-13 BL Civics'!$A$14:$AG$500,11,FALSE)*100),"Not Tested") -> 36 | L26: =IFERROR(IF(I26="N<10","N<10",VLOOKUP(VALUE($A26),'2013-14 BL Civics'!$A$14:$AG$500,11,FALSE)*100),"Not Tested") -> 29 | M26: -7 | N26: =IFERROR(IF(K26="N<10","N<10",VLOOKUP(VALUE($A26),'2012-13 BL Civics'!$A$14:$AG$500,17,FALSE)*100),"Not Tested") -> 29 | O26: =IFERROR(IF(L26="N<10","N<10",VLOOKUP(VALUE($A26),'2013-14 BL Civics'!$A$14:$AG$500,17,FALSE)*100),"Not Tested") -> 29 | P26: 0 | Q26: =IFERROR(IF(J26="N<10","N<10",VLOOKUP(VALUE($A26),'2012-13 BL Civics'!$A$14:$AG$500,23,FALSE)*100),"Not Tested") -> 32 | R26: =IFERROR(IF(K26="N<10","N<10",VLOOKUP(VALUE($A26),'2013-14 BL Civics'!$A$14:$AG$500,23,FALSE)*100),"Not Tested") -> 32 | S26: 0 | T26: =IFERROR(IF(N26="N<10","N<10",VLOOKUP(VALUE($A26),'2012-13 BL Civics'!$A$14:$AG$500,29,FALSE)*100),"Not Tested") -> 35 | U26: =IFERROR(IF(O26="N<10","N<10",VLOOKUP(VALUE($A26),'2013-14 BL Civics'!$A$14:$AG$500,29,FALSE)*100),"Not Tested") -> 38 | V26: 3
A27: 2060 | C27: =VLOOKUP(TEXT(A27,"0000"),SchList!$A$2:$C$483,2,FALSE) -> GIBSON CHARTER SCHOOL | D27: =IFERROR(VLOOKUP(TEXT($A27,"0000"),'2012 BL Civics Enrollment'!$A$3:$C$500,3,FALSE),0) -> 43 | E27: =IFERROR(VLOOKUP(TEXT($A27,"0000"),'2013 BL Civics Enrollment'!$A$3:$C$500,3,FALSE),"") -> 33 | F27: =IFERROR(IF(VLOOKUP(VALUE(A27),'2012-13 BL Civics'!$A$14:$C$200,3,FALSE)<10,"N<10",IF(VLOOKUP(VALUE(A27),'2012-13 BL Civics'!$A$14:$C$200,3,FALSE)>D27,100,VLOOKUP(VALUE(A27),'2012-13 BL Civics'!$A$14:$C$200,3,FALSE)/D27%)),"Not Tested") -> 67.44186047 | G27: =IFERROR(IF(VLOOKUP(VALUE(A27),'2013-14 BL Civics'!$A$14:$C$200,3,FALSE)<10,"N<10",IF(VLOOKUP(VALUE(A27),'2013-14 BL Civics'!$A$14:$C$200,3,FALSE)>E27,100,VLOOKUP(VALUE(A27),'2013-14 BL Civics'!$A$14:$C$200,3,FALSE)/E27%)),"Not Tested") -> 96.96969697 | H27: =IFERROR(IF(F27="N<10","N<10",VLOOKUP(VALUE($A27),'2012-13 BL Civics'!$A$14:$AG$500,5,FALSE)*100),"Not Tested") -> 33 | I27: =IFERROR(IF(G27="N<10","N<10",VLOOKUP(VALUE($A27),'2013-14 BL Civics'!$A$14:$AG$500,5,FALSE)*100),"Not Tested") -> 34 | J27: 1 | K27: =IFERROR(IF(H27="N<10","N<10",VLOOKUP(VALUE($A27),'2012-13 BL Civics'!$A$14:$AG$500,11,FALSE)*100),"Not Tested") -> 46 | L27: =IFERROR(IF(I27="N<10","N<10",VLOOKUP(VALUE($A27),'2013-14 BL Civics'!$A$14:$AG$500,11,FALSE)*100),"Not Tested") -> 36 | M27: -10 | N27: =IFERROR(IF(K27="N<10","N<10",VLOOKUP(VALUE($A27),'2012-13 BL Civics'!$A$14:$AG$500,17,FALSE)*100),"Not Tested") -> 23 | O27: =IFERROR(IF(L27="N<10","N<10",VLOOKUP(VALUE($A27),'2013-14 BL Civics'!$A$14:$AG$500,17,FALSE)*100),"Not Tested") -> 28 | P27: 5 | Q27: =IFERROR(IF(J27="N<10","N<10",VLOOKUP(VALUE($A27),'2012-13 BL Civics'!$A$14:$AG$500,23,FALSE)*100),"Not Tested") -> 33 | R27: =IFERROR(IF(K27="N<10","N<10",VLOOKUP(VALUE($A27),'2013-14 BL Civics'!$A$14:$AG$500,23,FALSE)*100),"Not Tested") -> 33 | S27: 0 | T27: =IFERROR(IF(N27="N<10","N<10",VLOOKUP(VALUE($A27),'2012-13 BL Civics'!$A$14:$AG$500,29,FALSE)*100),"Not Tested") -> 36 | U27: =IFERROR(IF(O27="N<10","N<10",VLOOKUP(VALUE($A27),'2013-14 BL Civics'!$A$14:$AG$500,29,FALSE)*100),"Not Tested") -> 43 | V27: 7
A28: 2701 | C28: =VLOOKUP(TEXT(A28,"0000"),SchList!$A$2:$C$483,2,FALSE) -> KENWOOD K-8 CENTER | D28: =IFERROR(VLOOKUP(TEXT($A28,"0000"),'2012 BL Civics Enrollment'!$A$3:$C$500,3,FALSE),0) -> 125 | E28: =IFERROR(VLOOKUP(TEXT($A28,"0000"),'2013 BL Civics Enrollment'!$A$3:$C$500,3,FALSE),"") -> 145 | F28: =IFERROR(IF(VLOOKUP(VALUE(A28),'2012-13 BL Civics'!$A$14:$C$200,3,FALSE)<10,"N<10",IF(VLOOKUP(VALUE(A28),'2012-13 BL Civics'!$A$14:$C$200,3,FALSE)>D28,100,VLOOKUP(VALUE(A28),'2012-13 BL Civics'!$A$14:$C$200,3,FALSE)/D28%)),"Not Tested") -> 100 | G28: =IFERROR(IF(VLOOKUP(VALUE(A28),'2013-14 BL Civics'!$A$14:$C$200,3,FALSE)<10,"N<10",IF(VLOOKUP(VALUE(A28),'2013-14 BL Civics'!$A$14:$C$200,3,FALSE)>E28,100,VLOOKUP(VALUE(A28),'2013-14 BL Civics'!$A$14:$C$200,3,FALSE)/E28%)),"Not Tested") -> 97.93103448 | H28: =IFERROR(IF(F28="N<10","N<10",VLOOKUP(VALUE($A28),'2012-13 BL Civics'!$A$14:$AG$500,5,FALSE)*100),"Not Tested") -> 37 | I28: =IFERROR(IF(G28="N<10","N<10",VLOOKUP(VALUE($A28),'2013-14 BL Civics'!$A$14:$AG$500,5,FALSE)*100),"Not Tested") -> 40 | J28: 3 | K28: =IFERROR(IF(H28="N<10","N<10",VLOOKUP(VALUE($A28),'2012-13 BL Civics'!$A$14:$AG$500,11,FALSE)*100),"Not Tested") -> 43 | L28: =IFERROR(IF(I28="N<10","N<10",VLOOKUP(VALUE($A28),'2013-14 BL Civics'!$A$14:$AG$500,11,FALSE)*100),"Not Tested") -> 44 | M28: 1 | N28: =IFERROR(IF(K28="N<10","N<10",VLOOKUP(VALUE($A28),'2012-13 BL Civics'!$A$14:$AG$500,17,FALSE)*100),"Not Tested") -> 30 | O28: =IFERROR(IF(L28="N<10","N<10",VLOOKUP(VALUE($A28),'2013-14 BL Civics'!$A$14:$AG$500,17,FALSE)*100),"Not Tested") -> 33 | P28: 3 | Q28: =IFERROR(IF(J28="N<10","N<10",VLOOKUP(VALUE($A28),'2012-13 BL Civics'!$A$14:$AG$500,23,FALSE)*100),"Not Tested") -> 38 | R28: =IFERROR(IF(K28="N<10","N<10",VLOOKUP(VALUE($A28),'2013-14 BL Civics'!$A$14:$AG$500,23,FALSE)*100),"Not Tested") -> 38 | S28: 0 | T28: =IFERROR(IF(N28="N<10","N<10",VLOOKUP(VALUE($A28),'2012-13 BL Civics'!$A$14:$AG$500,29,FALSE)*100),"Not Tested") -> 38 | U28: =IFERROR(IF(O28="N<10","N<10",VLOOKUP(VALUE($A28),'2013-14 BL Civics'!$A$14:$AG$500,29,FALSE)*100),"Not Tested") -> 48 | V28: 10
A29: 2741 | C29: =VLOOKUP(TEXT(A29,"0000"),SchList!$A$2:$C$483,2,FALSE) -> KEY BISCAYNE K-8 CENTER | D29: =IFERROR(VLOOKUP(TEXT($A29,"0000"),'2012 BL Civics Enrollment'!$A$3:$C$500,3,FALSE),0) -> 137 | E29: =IFERROR(VLOOKUP(TEXT($A29,"0000"),'2013 BL Civics Enrollment'!$A$3:$C$500,3,FALSE),"") -> 162 | F29: =IFERROR(IF(VLOOKUP(VALUE(A29),'2012-13 BL Civics'!$A$14:$C$200,3,FALSE)<10,"N<10",IF(VLOOKUP(VALUE(A29),'2012-13 BL Civics'!$A$14:$C$200,3,FALSE)>D29,100,VLOOKUP(VALUE(A29),'2012-13 BL Civics'!$A$14:$C$200,3,FALSE)/D29%)),"Not Tested") -> 95.62043796 | G29: =IFERROR(IF(VLOOKUP(VALUE(A29),'2013-14 BL Civics'!$A$14:$C$200,3,FALSE)<10,"N<10",IF(VLOOKUP(VALUE(A29),'2013-14 BL Civics'!$A$14:$C$200,3,FALSE)>E29,100,VLOOKUP(VALUE(A29),'2013-14 BL Civics'!$A$14:$C$200,3,FALSE)/E29%)),"Not Tested") -> 82.71604938 | H29: =IFERROR(IF(F29="N<10","N<10",VLOOKUP(VALUE($A29),'2012-13 BL Civics'!$A$14:$AG$500,5,FALSE)*100),"Not Tested") -> 41 | I29: =IFERROR(IF(G29="N<10","N<10",VLOOKUP(VALUE($A29),'2013-14 BL Civics'!$A$14:$AG$500,5,FALSE)*100),"Not Tested") -> 39 | J29: -2 | K29: =IFERROR(IF(H29="N<10","N<10",VLOOKUP(VALUE($A29),'2012-13 BL Civics'!$A$14:$AG$500,11,FALSE)*100),"Not Tested") -> 50 | L29: =IFERROR(IF(I29="N<10","N<10",VLOOKUP(VALUE($A29),'2013-14 BL Civics'!$A$14:$AG$500,11,FALSE)*100),"Not Tested") -> 41 | M29: -9 | N29: =IFERROR(IF(K29="N<10","N<10",VLOOKUP(VALUE($A29),'2012-13 BL Civics'!$A$14:$AG$500,17,FALSE)*100),"Not Tested") -> 36 | O29: =IFERROR(IF(L29="N<10","N<10",VLOOKUP(VALUE($A29),'2013-14 BL Civics'!$A$14:$AG$500,17,FALSE)*100),"Not Tested") -> 36 | P29: 0 | Q29: =IFERROR(IF(J29="N<10","N<10",VLOOKUP(VALUE($A29),'2012-13 BL Civics'!$A$14:$AG$500,23,FALSE)*100),"Not Tested") -> 39 | R29: =IFERROR(IF(K29="N<10","N<10",VLOOKUP(VALUE($A29),'2013-14 BL Civics'!$A$14:$AG$500,23,FALSE)*100),"Not Tested") -> 37 | S29: -2 | T29: =IFERROR(IF(N29="N<10","N<10",VLOOKUP(VALUE($A29),'2012-13 BL Civics'!$A$14:$AG$500,29,FALSE)*100),"Not Tested") -> 40 | U29: =IFERROR(IF(O29="N<10","N<10",VLOOKUP(VALUE($A29),'2013-14 BL Civics'!$A$14:$AG$500,29,FALSE)*100),"Not Tested") -> 44 | V29: 4
A30: 2881 | C30: =VLOOKUP(TEXT(A30,"0000"),SchList!$A$2:$C$483,2,FALSE) -> LEEWOOD K-8 CENTER | D30: =IFERROR(VLOOKUP(TEXT($A30,"0000"),'2012 BL Civics Enrollment'!$A$3:$C$500,3,FALSE),0) -> 67 | E30: =IFERROR(VLOOKUP(TEXT($A30,"0000"),'2013 BL Civics Enrollment'!$A$3:$C$500,3,FALSE),"") -> 75 | F30: =IFERROR(IF(VLOOKUP(VALUE(A30),'2012-13 BL Civics'!$A$14:$C$200,3,FALSE)<10,"N<10",IF(VLOOKUP(VALUE(A30),'2012-13 BL Civics'!$A$14:$C$200,3,FALSE)>D30,100,VLOOKUP(VALUE(A30),'2012-13 BL Civics'!$A$14:$C$200,3,FALSE)/D30%)),"Not Tested") -> 100 | G30: =IFERROR(IF(VLOOKUP(VALUE(A30),'2013-14 BL Civics'!$A$14:$C$200,3,FALSE)<10,"N<10",IF(VLOOKUP(VALUE(A30),'2013-14 BL Civics'!$A$14:$C$200,3,FALSE)>E30,100,VLOOKUP(VALUE(A30),'2013-14 BL Civics'!$A$14:$C$200,3,FALSE)/E30%)),"Not Tested") -> 97.33333333 | H30: =IFERROR(IF(F30="N<10","N<10",VLOOKUP(VALUE($A30),'2012-13 BL Civics'!$A$14:$AG$500,5,FALSE)*100),"Not Tested") -> 36 | I30: =IFERROR(IF(G30="N<10","N<10",VLOOKUP(VALUE($A30),'2013-14 BL Civics'!$A$14:$AG$500,5,FALSE)*100),"Not Tested") -> 44 | J30: 8 | K30: =IFERROR(IF(H30="N<10","N<10",VLOOKUP(VALUE($A30),'2012-13 BL Civics'!$A$14:$AG$500,11,FALSE)*100),"Not Tested") -> 44 | L30: =IFERROR(IF(I30="N<10","N<10",VLOOKUP(VALUE($A30),'2013-14 BL Civics'!$A$14:$AG$500,11,FALSE)*100),"Not Tested") -> 48 | M30: 4 | N30: =IFERROR(IF(K30="N<10","N<10",VLOOKUP(VALUE($A30),'2012-13 BL Civics'!$A$14:$AG$500,17,FALSE)*100),"Not Tested") -> 29 | O30: =IFERROR(IF(L30="N<10","N<10",VLOOKUP(VALUE($A30),'2013-14 BL Civics'!$A$14:$AG$500,17,FALSE)*100),"Not Tested") -> 37 | P30: 8 | Q30: =IFERROR(IF(J30="N<10","N<10",VLOOKUP(VALUE($A30),'2012-13 BL Civics'!$A$14:$AG$500,23,FALSE)*100),"Not Tested") -> 36 | R30: =IFERROR(IF(K30="N<10","N<10",VLOOKUP(VALUE($A30),'2013-14 BL Civics'!$A$14:$AG$500,23,FALSE)*100),"Not Tested") -> 45 | S30: 9 | T30: =IFERROR(IF(N30="N<10","N<10",VLOOKUP(VALUE($A30),'2012-13 BL Civics'!$A$14:$AG$500,29,FALSE)*100),"Not Tested") -> 41 | U30: =IFERROR(IF(O30="N<10","N<10",VLOOKUP(VALUE($A30),'2013-14 BL Civics'!$A$14:$AG$500,29,FALSE)*100),"Not Tested") -> 51 | V30: 10
A31: 2901 | C31: =VLOOKUP(TEXT(A31,"0000"),SchList!$A$2:$C$483,2,FALSE) -> LEISURE CITY K-8 CENTER | D31: =IFERROR(VLOOKUP(TEXT($A31,"0000"),'2012 BL Civics Enrollment'!$A$3:$C$500,3,FALSE),0) -> 113 | E31: =IFERROR(VLOOKUP(TEXT($A31,"0000"),'2013 BL Civics Enrollment'!$A$3:$C$500,3,FALSE),"") -> 103 | F31: =IFERROR(IF(VLOOKUP(VALUE(A31),'2012-13 BL Civics'!$A$14:$C$200,3,FALSE)<10,"N<10",IF(VLOOKUP(VALUE(A31),'2012-13 BL Civics'!$A$14:$C$200,3,FALSE)>D31,100,VLOOKUP(VALUE(A31),'2012-13 BL Civics'!$A$14:$C$200,3,FALSE)/D31%)),"Not Tested") -> 100 | G31: =IFERROR(IF(VLOOKUP(VALUE(A31),'2013-14 BL Civics'!$A$14:$C$200,3,FALSE)<10,"N<10",IF(VLOOKUP(VALUE(A31),'2013-14 BL Civics'!$A$14:$C$200,3,FALSE)>E31,100,VLOOKUP(VALUE(A31),'2013-14 BL Civics'!$A$14:$C$200,3,FALSE)/E31%)),"Not Tested") -> 95.14563107 | H31: =IFERROR(IF(F31="N<10","N<10",VLOOKUP(VALUE($A31),'2012-13 BL Civics'!$A$14:$AG$500,5,FALSE)*100),"Not Tested") -> 32 | I31: =IFERROR(IF(G31="N<10","N<10",VLOOKUP(VALUE($A31),'2013-14 BL Civics'!$A$14:$AG$500,5,FALSE)*100),"Not Tested") -> 35 | J31: 3 | K31: =IFERROR(IF(H31="N<10","N<10",VLOOKUP(VALUE($A31),'2012-13 BL Civics'!$A$14:$AG$500,11,FALSE)*100),"Not Tested") -> 38 | L31: =IFERROR(IF(I31="N<10","N<10",VLOOKUP(VALUE($A31),'2013-14 BL Civics'!$A$14:$AG$500,11,FALSE)*100),"Not Tested") -> 35 | M31: -3 | N31: =IFERROR(IF(K31="N<10","N<10",VLOOKUP(VALUE($A31),'2012-13 BL Civics'!$A$14:$AG$500,17,FALSE)*100),"Not Tested") -> 26 | O31: =IFERROR(IF(L31="N<10","N<10",VLOOKUP(VALUE($A31),'2013-14 BL Civics'!$A$14:$AG$500,17,FALSE)*100),"Not Tested") -> 30 | P31: 4 | Q31: =IFERROR(IF(J31="N<10","N<10",VLOOKUP(VALUE($A31),'2012-13 BL Civics'!$A$14:$AG$500,23,FALSE)*100),"Not Tested") -> 34 | R31: =IFERROR(IF(K31="N<10","N<10",VLOOKUP(VALUE($A31),'2013-14 BL Civics'!$A$14:$AG$500,23,FALSE)*100),"Not Tested") -> 36 | S31: 2 | T31: =IFERROR(IF(N31="N<10","N<10",VLOOKUP(VALUE($A31),'2012-13 BL Civics'!$A$14:$AG$500,29,FALSE)*100),"Not Tested") -> 34 | U31: =IFERROR(IF(O31="N<10","N<10",VLOOKUP(VALUE($A31),'2013-14 BL Civics'!$A$14:$AG$500,29,FALSE)*100),"Not Tested") -> 41 | V31: 7
A32: 2911 | C32: =VLOOKUP(TEXT(A32,"0000"),SchList!$A$2:$C$483,2,FALSE) -> LINDA LENTIN K-8 CENTER | D32: =IFERROR(VLOOKUP(TEXT($A32,"0000"),'2012 BL Civics Enrollment'!$A$3:$C$500,3,FALSE),0) -> 102 | E32: =IFERROR(VLOOKUP(TEXT($A32,"0000"),'2013 BL Civics Enrollment'!$A$3:$C$500,3,FALSE),"") -> 122 | F32: =IFERROR(IF(VLOOKUP(VALUE(A32),'2012-13 BL Civics'!$A$14:$C$200,3,FALSE)<10,"N<10",IF(VLOOKUP(VALUE(A32),'2012-13 BL Civics'!$A$14:$C$200,3,FALSE)>D32,100,VLOOKUP(VALUE(A32),'2012-13 BL Civics'!$A$14:$C$200,3,FALSE)/D32%)),"Not Tested") -> 100 | G32: =IFERROR(IF(VLOOKUP(VALUE(A32),'2013-14 BL Civics'!$A$14:$C$200,3,FALSE)<10,"N<10",IF(VLOOKUP(VALUE(A32),'2013-14 BL Civics'!$A$14:$C$200,3,FALSE)>E32,100,VLOOKUP(VALUE(A32),'2013-14 BL Civics'!$A$14:$C$200,3,FALSE)/E32%)),"Not Tested") -> 97.54098361 | H32: =IFERROR(IF(F32="N<10","N<10",VLOOKUP(VALUE($A32),'2012-13 BL Civics'!$A$14:$AG$500,5,FALSE)*100),"Not Tested") -> 34 | I32: =IFERROR(IF(G32="N<10","N<10",VLOOKUP(VALUE($A32),'2013-14 BL Civics'!$A$14:$AG$500,5,FALSE)*100),"Not Tested") -> 33 | J32: -1 | K32: =IFERROR(IF(H32="N<10","N<10",VLOOKUP(VALUE($A32),'2012-13 BL Civics'!$A$14:$AG$500,11,FALSE)*100),"Not Tested") -> 43 | L32: =IFERROR(IF(I32="N<10","N<10",VLOOKUP(VALUE($A32),'2013-14 BL Civics'!$A$14:$AG$500,11,FALSE)*100),"Not Tested") -> 34 | M32: -9 | N32: =IFERROR(IF(K32="N<10","N<10",VLOOKUP(VALUE($A32),'2012-13 BL Civics'!$A$14:$AG$500,17,FALSE)*100),"Not Tested") -> 26 | O32: =IFERROR(IF(L32="N<10","N<10",VLOOKUP(VALUE($A32),'2013-14 BL Civics'!$A$14:$AG$500,17,FALSE)*100),"Not Tested") -> 30 | P32: 4 | Q32: =IFERROR(IF(J32="N<10","N<10",VLOOKUP(VALUE($A32),'2012-13 BL Civics'!$A$14:$AG$500,23,FALSE)*100),"Not Tested") -> 33 | R32: =IFERROR(IF(K32="N<10","N<10",VLOOKUP(VALUE($A32),'2013-14 BL Civics'!$A$14:$AG$500,23,FALSE)*100),"Not Tested") -> 32 | S32: -1 | T32: =IFERROR(IF(N32="N<10","N<10",VLOOKUP(VALUE($A32),'2012-13 BL Civics'!$A$14:$AG$500,29,FALSE)*100),"Not Tested") -> 40 | U32: =IFERROR(IF(O32="N<10","N<10",VLOOKUP(VALUE($A32),'2013-14 BL Civics'!$A$14:$AG$500,29,FALSE)*100),"Not Tested") -> 40 | V32: 0
A33: 3029 | C33: =VLOOKUP(TEXT(A33,"0000"),SchList!$A$2:$C$483,2,FALSE) -> DORAL ACADEMY OF TECHNOLOGY | D33: =IFERROR(VLOOKUP(TEXT($A33,"0000"),'2012 BL Civics Enrollment'!$A$3:$C$500,3,FALSE),0) -> 63 | E33: =IFERROR(VLOOKUP(TEXT($A33,"0000"),'2013 BL Civics Enrollment'!$A$3:$C$500,3,FALSE),"") -> 71 | F33: =IFERROR(IF(VLOOKUP(VALUE(A33),'2012-13 BL Civics'!$A$14:$C$200,3,FALSE)<10,"N<10",IF(VLOOKUP(VALUE(A33),'2012-13 BL Civics'!$A$14:$C$200,3,FALSE)>D33,100,VLOOKUP(VALUE(A33),'2012-13 BL Civics'!$A$14:$C$200,3,FALSE)/D33%)),"Not Tested") -> 100 | G33: =IFERROR(IF(VLOOKUP(VALUE(A33),'2013-14 BL Civics'!$A$14:$C$200,3,FALSE)<10,"N<10",IF(VLOOKUP(VALUE(A33),'2013-14 BL Civics'!$A$14:$C$200,3,FALSE)>E33,100,VLOOKUP(VALUE(A33),'2013-14 BL Civics'!$A$14:$C$200,3,FALSE)/E33%)),"Not Tested") -> 100 | H33: =IFERROR(IF(F33="N<10","N<10",VLOOKUP(VALUE($A33),'2012-13 BL Civics'!$A$14:$AG$500,5,FALSE)*100),"Not Tested") -> 44 | I33: =IFERROR(IF(G33="N<10","N<10",VLOOKUP(VALUE($A33),'2013-14 BL Civics'!$A$14:$AG$500,5,FALSE)*100),"Not Tested") -> 48 | J33: 4 | K33: =IFERROR(IF(H33="N<10","N<10",VLOOKUP(VALUE($A33),'2012-13 BL Civics'!$A$14:$AG$500,11,FALSE)*100),"Not Tested") -> 53 | L33: =IFERROR(IF(I33="N<10","N<10",VLOOKUP(VALUE($A33),'2013-14 BL Civics'!$A$14:$AG$500,11,FALSE)*100),"Not Tested") -> 55 | M33: 2 | N33: =IFERROR(IF(K33="N<10","N<10",VLOOKUP(VALUE($A33),'2012-13 BL Civics'!$A$14:$AG$500,17,FALSE)*100),"Not Tested") -> 37 | O33: =IFERROR(IF(L33="N<10","N<10",VLOOKUP(VALUE($A33),'2013-14 BL Civics'!$A$14:$AG$500,17,FALSE)*100),"Not Tested") -> 39 | P33: 2 | Q33: =IFERROR(IF(J33="N<10","N<10",VLOOKUP(VALUE($A33),'2012-13 BL Civics'!$A$14:$AG$500,23,FALSE)*100),"Not Tested") -> 46 | R33: =IFERROR(IF(K33="N<10","N<10",VLOOKUP(VALUE($A33),'2013-14 BL Civics'!$A$14:$AG$500,23,FALSE)*100),"Not Tested") -> 49 | S33: 3 | T33: =IFERROR(IF(N33="N<10","N<10",VLOOKUP(VALUE($A33),'2012-13 BL Civics'!$A$14:$AG$500,29,FALSE)*100),"Not Tested") -> 43 | U33: =IFERROR(IF(O33="N<10","N<10",VLOOKUP(VALUE($A33),'2013-14 BL Civics'!$A$14:$AG$500,29,FALSE)*100),"Not Tested") -> 54 | V33: 11
A34: 3032 | C34: =VLOOKUP(TEXT(A34,"0000"),SchList!$A$2:$C$483,2,FALSE) -> PALM GLADES PREPATORY ACADEMY | D34: =IFERROR(VLOOKUP(TEXT($A34,"0000"),'2012 BL Civics Enrollment'!$A$3:$C$500,3,FALSE),0) -> 131 | E34: =IFERROR(VLOOKUP(TEXT($A34,"0000"),'2013 BL Civics Enrollment'!$A$3:$C$500,3,FALSE),"") -> 167 | F34: =IFERROR(IF(VLOOKUP(VALUE(A34),'2012-13 BL Civics'!$A$14:$C$200,3,FALSE)<10,"N<10",IF(VLOOKUP(VALUE(A34),'2012-13 BL Civics'!$A$14:$C$200,3,FALSE)>D34,100,VLOOKUP(VALUE(A34),'2012-13 BL Civics'!$A$14:$C$200,3,FALSE)/D34%)),"Not Tested") -> 15.26717557 | G34: =IFERROR(IF(VLOOKUP(VALUE(A34),'2013-14 BL Civics'!$A$14:$C$200,3,FALSE)<10,"N<10",IF(VLOOKUP(VALUE(A34),'2013-14 BL Civics'!$A$14:$C$200,3,FALSE)>E34,100,VLOOKUP(VALUE(A34),'2013-14 BL Civics'!$A$14:$C$200,3,FALSE)/E34%)),"Not Tested") -> 91.01796407 | H34: =IFERROR(IF(F34="N<10","N<10",VLOOKUP(VALUE($A34),'2012-13 BL Civics'!$A$14:$AG$500,5,FALSE)*100),"Not Tested") -> 42 | I34: =IFERROR(IF(G34="N<10","N<10",VLOOKUP(VALUE($A34),'2013-14 BL Civics'!$A$14:$AG$500,5,FALSE)*100),"Not Tested") -> 36 | J34: -6 | K34: =IFERROR(IF(H34="N<10","N<10",VLOOKUP(VALUE($A34),'2012-13 BL Civics'!$A$14:$AG$500,11,FALSE)*100),"Not Tested") -> 52 | L34: =IFERROR(IF(I34="N<10","N<10",VLOOKUP(VALUE($A34),'2013-14 BL Civics'!$A$14:$AG$500,11,FALSE)*100),"Not Tested") -> 39 | M34: -13 | N34: =IFERROR(IF(K34="N<10","N<10",VLOOKUP(VALUE($A34),'2012-13 BL Civics'!$A$14:$AG$500,17,FALSE)*100),"Not Tested") -> 30 | O34: =IFERROR(IF(L34="N<10","N<10",VLOOKUP(VALUE($A34),'2013-14 BL Civics'!$A$14:$AG$500,17,FALSE)*100),"Not Tested") -> 30 | P34: 0 | Q34: =IFERROR(IF(J34="N<10","N<10",VLOOKUP(VALUE($A34),'2012-13 BL Civics'!$A$14:$AG$500,23,FALSE)*100),"Not Tested") -> 49 | R34: =IFERROR(IF(K34="N<10","N<10",VLOOKUP(VALUE($A34),'2013-14 BL Civics'!$A$14:$AG$500,23,FALSE)*100),"Not Tested") -> 36 | S34: -13 | T34: =IFERROR(IF(N34="N<10","N<10",VLOOKUP(VALUE($A34),'2012-13 BL Civics'!$A$14:$AG$500,29,FALSE)*100),"Not Tested") -> 43 | U34: =IFERROR(IF(O34="N<10","N<10",VLOOKUP(VALUE($A34),'2013-14 BL Civics'!$A$14:$AG$500,29,FALSE)*100),"Not Tested") -> 41 | V34: -2
A35: 3101 | C35: =VLOOKUP(TEXT(A35,"0000"),SchList!$A$2:$C$483,2,FALSE) -> FRANK C. MARTIN K-8 CENTER | D35: =IFERROR(VLOOKUP(TEXT($A35,"0000"),'2012 BL Civics Enrollment'!$A$3:$C$500,3,FALSE),0) -> 137 | E35: =IFERROR(VLOOKUP(TEXT($A35,"0000"),'2013 BL Civics Enrollment'!$A$3:$C$500,3,FALSE),"") -> 122 | F35: =IFERROR(IF(VLOOKUP(VALUE(A35),'2012-13 BL Civics'!$A$14:$C$200,3,FALSE)<10,"N<10",IF(VLOOKUP(VALUE(A35),'2012-13 BL Civics'!$A$14:$C$200,3,FALSE)>D35,100,VLOOKUP(VALUE(A35),'2012-13 BL Civics'!$A$14:$C$200,3,FALSE)/D35%)),"Not Tested") -> 99.27007299 | G35: =IFERROR(IF(VLOOKUP(VALUE(A35),'2013-14 BL Civics'!$A$14:$C$200,3,FALSE)<10,"N<10",IF(VLOOKUP(VALUE(A35),'2013-14 BL Civics'!$A$14:$C$200,3,FALSE)>E35,100,VLOOKUP(VALUE(A35),'2013-14 BL Civics'!$A$14:$C$200,3,FALSE)/E35%)),"Not Tested") -> 99.18032787 | H35: =IFERROR(IF(F35="N<10","N<10",VLOOKUP(VALUE($A35),'2012-13 BL Civics'!$A$14:$AG$500,5,FALSE)*100),"Not Tested") -> 41 | I35: =IFERROR(IF(G35="N<10","N<10",VLOOKUP(VALUE($A35),'2013-14 BL Civics'!$A$14:$AG$500,5,FALSE)*100),"Not Tested") -> 44 | J35: 3 | K35: =IFERROR(IF(H35="N<10","N<10",VLOOKUP(VALUE($A35),'2012-13 BL Civics'!$A$14:$AG$500,11,FALSE)*100),"Not Tested") -> 52 | L35: =IFERROR(IF(I35="N<10","N<10",VLOOKUP(VALUE($A35),'2013-14 BL Civics'!$A$14:$AG$500,11,FALSE)*100),"Not Tested") -> 50 | M35: -2 | N35: =IFERROR(IF(K35="N<10","N<10",VLOOKUP(VALUE($A35),'2012-13 BL Civics'!$A$14:$AG$500,17,FALSE)*100),"Not Tested") -> 32 | O35: =IFERROR(IF(L35="N<10","N<10",VLOOKUP(VALUE($A35),'2013-14 BL Civics'!$A$14:$AG$500,17,FALSE)*100),"Not Tested") -> 37 | P35: 5 | Q35: =IFERROR(IF(J35="N<10","N<10",VLOOKUP(VALUE($A35),'2012-13 BL Civics'!$A$14:$AG$500,23,FALSE)*100),"Not Tested") -> 42 | R35: =IFERROR(IF(K35="N<10","N<10",VLOOKUP(VALUE($A35),'2013-14 BL Civics'!$A$14:$AG$500,23,FALSE)*100),"Not Tested") -> 44 | S35: 2 | T35: =IFERROR(IF(N35="N<10","N<10",VLOOKUP(VALUE($A35),'2012-13 BL Civics'!$A$14:$AG$500,29,FALSE)*100),"Not Tested") -> 43 | U35: =IFERROR(IF(O35="N<10","N<10",VLOOKUP(VALUE($A35),'2013-14 BL Civics'!$A$14:$AG$500,29,FALSE)*100),"Not Tested") -> 49 | V35: 6
A36: 3191 | C36: =VLOOKUP(TEXT(A36,"0000"),SchList!$A$2:$C$483,2,FALSE) -> ADA MERRITT K-8 CENTER | D36: =IFERROR(VLOOKUP(TEXT($A36,"0000"),'2012 BL Civics Enrollment'!$A$3:$C$500,3,FALSE),0) -> 112 | E36: =IFERROR(VLOOKUP(TEXT($A36,"0000"),'2013 BL Civics Enrollment'!$A$3:$C$500,3,FALSE),"") -> 91 | F36: =IFERROR(IF(VLOOKUP(VALUE(A36),'2012-13 BL Civics'!$A$14:$C$200,3,FALSE)<10,"N<10",IF(VLOOKUP(VALUE(A36),'2012-13 BL Civics'!$A$14:$C$200,3,FALSE)>D36,100,VLOOKUP(VALUE(A36),'2012-13 BL Civics'!$A$14:$C$200,3,FALSE)/D36%)),"Not Tested") -> 96.42857143 | G36: =IFERROR(IF(VLOOKUP(VALUE(A36),'2013-14 BL Civics'!$A$14:$C$200,3,FALSE)<10,"N<10",IF(VLOOKUP(VALUE(A36),'2013-14 BL Civics'!$A$14:$C$200,3,FALSE)>E36,100,VLOOKUP(VALUE(A36),'2013-14 BL Civics'!$A$14:$C$200,3,FALSE)/E36%)),"Not Tested") -> 96.7032967 | H36: =IFERROR(IF(F36="N<10","N<10",VLOOKUP(VALUE($A36),'2012-13 BL Civics'!$A$14:$AG$500,5,FALSE)*100),"Not Tested") -> 39 | I36: =IFERROR(IF(G36="N<10","N<10",VLOOKUP(VALUE($A36),'2013-14 BL Civics'!$A$14:$AG$500,5,FALSE)*100),"Not Tested") -> 48 | J36: 9 | K36: =IFERROR(IF(H36="N<10","N<10",VLOOKUP(VALUE($A36),'2012-13 BL Civics'!$A$14:$AG$500,11,FALSE)*100),"Not Tested") -> 52 | L36: =IFERROR(IF(I36="N<10","N<10",VLOOKUP(VALUE($A36),'2013-14 BL Civics'!$A$14:$AG$500,11,FALSE)*100),"Not Tested") -> 52 | M36: 0 | N36: =IFERROR(IF(K36="N<10","N<10",VLOOKUP(VALUE($A36),'2012-13 BL Civics'!$A$14:$AG$500,17,FALSE)*100),"Not Tested") -> 31 | O36: =IFERROR(IF(L36="N<10","N<10",VLOOKUP(VALUE($A36),'2013-14 BL Civics'!$A$14:$AG$500,17,FALSE)*100),"Not Tested") -> 41 | P36: 10 | Q36: =IFERROR(IF(J36="N<10","N<10",VLOOKUP(VALUE($A36),'2012-13 BL Civics'!$A$14:$AG$500,23,FALSE)*100),"Not Tested") -> 38 | R36: =IFERROR(IF(K36="N<10","N<10",VLOOKUP(VALUE($A36),'2013-14 BL Civics'!$A$14:$AG$500,23,FALSE)*100),"Not Tested") -> 49 | S36: 11 | T36: =IFERROR(IF(N36="N<10","N<10",VLOOKUP(VALUE($A36),'2012-13 BL Civics'!$A$14:$AG$500,29,FALSE)*100),"Not Tested") -> 43 | U36: =IFERROR(IF(O36="N<10","N<10",VLOOKUP(VALUE($A36),'2013-14 BL Civics'!$A$14:$AG$500,29,FALSE)*100),"Not Tested") -> 52 | V36: 9
A37: 3281 | C37: =VLOOKUP(TEXT(A37,"0000"),SchList!$A$2:$C$483,2,FALSE) -> MIAMI LAKES K-8 CENTER | D37: =IFERROR(VLOOKUP(TEXT($A37,"0000"),'2012 BL Civics Enrollment'!$A$3:$C$500,3,FALSE),0) -> 152 | E37: =IFERROR(VLOOKUP(TEXT($A37,"0000"),'2013 BL Civics Enrollment'!$A$3:$C$500,3,FALSE),"") -> 165 | F37: =IFERROR(IF(VLOOKUP(VALUE(A37),'2012-13 BL Civics'!$A$14:$C$200,3,FALSE)<10,"N<10",IF(VLOOKUP(VALUE(A37),'2012-13 BL Civics'!$A$14:$C$200,3,FALSE)>D37,100,VLOOKUP(VALUE(A37),'2012-13 BL Civics'!$A$14:$C$200,3,FALSE)/D37%)),"Not Tested") -> 100 | G37: =IFERROR(IF(VLOOKUP(VALUE(A37),'2013-14 BL Civics'!$A$14:$C$200,3,FALSE)<10,"N<10",IF(VLOOKUP(VALUE(A37),'2013-14 BL Civics'!$A$14:$C$200,3,FALSE)>E37,100,VLOOKUP(VALUE(A37),'2013-14 BL Civics'!$A$14:$C$200,3,FALSE)/E37%)),"Not Tested") -> 55.15151515 | H37: =IFERROR(IF(F37="N<10","N<10",VLOOKUP(VALUE($A37),'2012-13 BL Civics'!$A$14:$AG$500,5,FALSE)*100),"Not Tested") -> 34 | I37: =IFERROR(IF(G37="N<10","N<10",VLOOKUP(VALUE($A37),'2013-14 BL Civics'!$A$14:$AG$500,5,FALSE)*100),"Not Tested") -> 34 | J37: 0 | K37: =IFERROR(IF(H37="N<10","N<10",VLOOKUP(VALUE($A37),'2012-13 BL Civics'!$A$14:$AG$500,11,FALSE)*100),"Not Tested") -> 41 | L37: =IFERROR(IF(I37="N<10","N<10",VLOOKUP(VALUE($A37),'2013-14 BL Civics'!$A$14:$AG$500,11,FALSE)*100),"Not Tested") -> 37 | M37: -4 | N37: =IFERROR(IF(K37="N<10","N<10",VLOOKUP(VALUE($A37),'2012-13 BL Civics'!$A$14:$AG$500,17,FALSE)*100),"Not Tested") -> 27 | O37: =IFERROR(IF(L37="N<10","N<10",VLOOKUP(VALUE($A37),'2013-14 BL Civics'!$A$14:$AG$500,17,FALSE)*100),"Not Tested") -> 30 | P37: 3 | Q37: =IFERROR(IF(J37="N<10","N<10",VLOOKUP(VALUE($A37),'2012-13 BL Civics'!$A$14:$AG$500,23,FALSE)*100),"Not Tested") -> 33 | R37: =IFERROR(IF(K37="N<10","N<10",VLOOKUP(VALUE($A37),'2013-14 BL Civics'!$A$14:$AG$500,23,FALSE)*100),"Not Tested") -> 35 | S37: 2 | T37: =IFERROR(IF(N37="N<10","N<10",VLOOKUP(VALUE($A37),'2012-13 BL Civics'!$A$14:$AG$500,29,FALSE)*100),"Not Tested") -> 37 | U37: =IFERROR(IF(O37="N<10","N<10",VLOOKUP(VALUE($A37),'2013-14 BL Civics'!$A$14:$AG$500,29,FALSE)*100),"Not Tested") -> 39 | V37: 2
A38: 3421 | C38: =VLOOKUP(TEXT(A38,"0000"),SchList!$A$2:$C$483,2,FALSE) -> M.A. MILAM K-8 CENTER | D38: =IFERROR(VLOOKUP(TEXT($A38,"0000"),'2012 BL Civics Enrollment'!$A$3:$C$500,3,FALSE),0) -> 154 | E38: =IFERROR(VLOOKUP(TEXT($A38,"0000"),'2013 BL Civics Enrollment'!$A$3:$C$500,3,FALSE),"") -> 128 | F38: =IFERROR(IF(VLOOKUP(VALUE(A38),'2012-13 BL Civics'!$A$14:$C$200,3,FALSE)<10,"N<10",IF(VLOOKUP(VALUE(A38),'2012-13 BL Civics'!$A$14:$C$200,3,FALSE)>D38,100,VLOOKUP(VALUE(A38),'2012-13 BL Civics'!$A$14:$C$200,3,FALSE)/D38%)),"Not Tested") -> 100 | G38: =IFERROR(IF(VLOOKUP(VALUE(A38),'2013-14 BL Civics'!$A$14:$C$200,3,FALSE)<10,"N<10",IF(VLOOKUP(VALUE(A38),'2013-14 BL Civics'!$A$14:$C$200,3,FALSE)>E38,100,VLOOKUP(VALUE(A38),'2013-14 BL Civics'!$A$14:$C$200,3,FALSE)/E38%)),"Not Tested") -> 99.21875 | H38: =IFERROR(IF(F38="N<10","N<10",VLOOKUP(VALUE($A38),'2012-13 BL Civics'!$A$14:$AG$500,5,FALSE)*100),"Not Tested") -> 32 | I38: =IFERROR(IF(G38="N<10","N<10",VLOOKUP(VALUE($A38),'2013-14 BL Civics'!$A$14:$AG$500,5,FALSE)*100),"Not Tested") -> 38 | J38: 6 | K38: =IFERROR(IF(H38="N<10","N<10",VLOOKUP(VALUE($A38),'2012-13 BL Civics'!$A$14:$AG$500,11,FALSE)*100),"Not Tested") -> 42 | L38: =IFERROR(IF(I38="N<10","N<10",VLOOKUP(VALUE($A38),'2013-14 BL Civics'!$A$14:$AG$500,11,FALSE)*100),"Not Tested") -> 39 | M38: -3 | N38: =IFERROR(IF(K38="N<10","N<10",VLOOKUP(VALUE($A38),'2012-13 BL Civics'!$A$14:$AG$500,17,FALSE)*100),"Not Tested") -> 26 | O38: =IFERROR(IF(L38="N<10","N<10",VLOOKUP(VALUE($A38),'2013-14 BL Civics'!$A$14:$AG$500,17,FALSE)*100),"Not Tested") -> 34 | P38: 8 | Q38: =IFERROR(IF(J38="N<10","N<10",VLOOKUP(VALUE($A38),'2012-13 BL Civics'!$A$14:$AG$500,23,FALSE)*100),"Not Tested") -> 31 | R38: =IFERROR(IF(K38="N<10","N<10",VLOOKUP(VALUE($A38),'2013-14 BL Civics'!$A$14:$AG$500,23,FALSE)*100),"Not Tested") -> 38 | S38: 7 | T38: =IFERROR(IF(N38="N<10","N<10",VLOOKUP(VALUE($A38),'2012-13 BL Civics'!$A$14:$AG$500,29,FALSE)*100),"Not Tested") -> 35 | U38: =IFERROR(IF(O38="N<10","N<10",VLOOKUP(VALUE($A38),'2013-14 BL Civics'!$A$14:$AG$500,29,FALSE)*100),"Not Tested") -> 45 | V38: 10
A39: 3501 | C39: =VLOOKUP(TEXT(A39,"0000"),SchList!$A$2:$C$483,2,FALSE) -> MORNINGSIDE ELEMENTARY | D39: =IFERROR(VLOOKUP(TEXT($A39,"0000"),'2012 BL Civics Enrollment'!$A$3:$C$500,3,FALSE),0) -> 0 | E39: =IFERROR(VLOOKUP(TEXT($A39,"0000"),'2013 BL Civics Enrollment'!$A$3:$C$500,3,FALSE),"") -> 23 | F39: =IFERROR(IF(VLOOKUP(VALUE(A39),'2012-13 BL Civics'!$A$14:$C$200,3,FALSE)<10,"N<10",IF(VLOOKUP(VALUE(A39),'2012-13 BL Civics'!$A$14:$C$200,3,FALSE)>D39,100,VLOOKUP(VALUE(A39),'2012-13 BL Civics'!$A$14:$C$200,3,FALSE)/D39%)),"Not Tested") -> Not Tested | G39: =IFERROR(IF(VLOOKUP(VALUE(A39),'2013-14 BL Civics'!$A$14:$C$200,3,FALSE)<10,"N<10",IF(VLOOKUP(VALUE(A39),'2013-14 BL Civics'!$A$14:$C$200,3,FALSE)>E39,100,VLOOKUP(VALUE(A39),'2013-14 BL Civics'!$A$14:$C$200,3,FALSE)/E39%)),"Not Tested") -> 95.65217391 | H39: =IFERROR(IF(F39="N<10","N<10",VLOOKUP(VALUE($A39),'2012-13 BL Civics'!$A$14:$AG$500,5,FALSE)*100),"Not Tested") -> Not Tested | I39: =IFERROR(IF(G39="N<10","N<10",VLOOKUP(VALUE($A39),'2013-14 BL Civics'!$A$14:$AG$500,5,FALSE)*100),"Not Tested") -> 30 | K39: =IFERROR(IF(H39="N<10","N<10",VLOOKUP(VALUE($A39),'2012-13 BL Civics'!$A$14:$AG$500,11,FALSE)*100),"Not Tested") -> Not Tested | L39: =IFERROR(IF(I39="N<10","N<10",VLOOKUP(VALUE($A39),'2013-14 BL Civics'!$A$14:$AG$500,11,FALSE)*100),"Not Tested") -> 34 | N39: =IFERROR(IF(K39="N<10","N<10",VLOOKUP(VALUE($A39),'2012-13 BL Civics'!$A$14:$AG$500,17,FALSE)*100),"Not Tested") -> Not Tested | O39: =IFERROR(IF(L39="N<10","N<10",VLOOKUP(VALUE($A39),'2013-14 BL Civics'!$A$14:$AG$500,17,FALSE)*100),"Not Tested") -> 26 | Q39: =IFERROR(IF(J39="N<10","N<10",VLOOKUP(VALUE($A39),'2012-13 BL Civics'!$A$14:$AG$500,23,FALSE)*100),"Not Tested") -> Not Tested | R39: =IFERROR(IF(K39="N<10","N<10",VLOOKUP(VALUE($A39),'2013-14 BL Civics'!$A$14:$AG$500,23,FALSE)*100),"Not Tested") -> 27 | T39: =IFERROR(IF(N39="N<10","N<10",VLOOKUP(VALUE($A39),'2012-13 BL Civics'!$A$14:$AG$500,29,FALSE)*100),"Not Tested") -> Not Tested | U39: =IFERROR(IF(O39="N<10","N<10",VLOOKUP(VALUE($A39),'2013-14 BL Civics'!$A$14:$AG$500,29,FALSE)*100),"Not Tested") -> 38
A40: 3581 | C40: =VLOOKUP(TEXT(A40,"0000"),SchList!$A$2:$C$483,2,FALSE) -> MYRTLE GROVE ELEMENTARY | D40: =IFERROR(VLOOKUP(TEXT($A40,"0000"),'2012 BL Civics Enrollment'!$A$3:$C$500,3,FALSE),0) -> 0 | E40: =IFERROR(VLOOKUP(TEXT($A40,"0000"),'2013 BL Civics Enrollment'!$A$3:$C$500,3,FALSE),"") -> 41 | F40: =IFERROR(IF(VLOOKUP(VALUE(A40),'2012-13 BL Civics'!$A$14:$C$200,3,FALSE)<10,"N<10",IF(VLOOKUP(VALUE(A40),'2012-13 BL Civics'!$A$14:$C$200,3,FALSE)>D40,100,VLOOKUP(VALUE(A40),'2012-13 BL Civics'!$A$14:$C$200,3,FALSE)/D40%)),"Not Tested") -> Not Tested | G40: =IFERROR(IF(VLOOKUP(VALUE(A40),'2013-14 BL Civics'!$A$14:$C$200,3,FALSE)<10,"N<10",IF(VLOOKUP(VALUE(A40),'2013-14 BL Civics'!$A$14:$C$200,3,FALSE)>E40,100,VLOOKUP(VALUE(A40),'2013-14 BL Civics'!$A$14:$C$200,3,FALSE)/E40%)),"Not Tested") -> 92.68292683 | H40: =IFERROR(IF(F40="N<10","N<10",VLOOKUP(VALUE($A40),'2012-13 BL Civics'!$A$14:$AG$500,5,FALSE)*100),"Not Tested") -> Not Tested | I40: =IFERROR(IF(G40="N<10","N<10",VLOOKUP(VALUE($A40),'2013-14 BL Civics'!$A$14:$AG$500,5,FALSE)*100),"Not Tested") -> 35 | K40: =IFERROR(IF(H40="N<10","N<10",VLOOKUP(VALUE($A40),'2012-13 BL Civics'!$A$14:$AG$500,11,FALSE)*100),"Not Tested") -> Not Tested | L40: =IFERROR(IF(I40="N<10","N<10",VLOOKUP(VALUE($A40),'2013-14 BL Civics'!$A$14:$AG$500,11,FALSE)*100),"Not Tested") -> 34 | N40: =IFERROR(IF(K40="N<10","N<10",VLOOKUP(VALUE($A40),'2012-13 BL Civics'!$A$14:$AG$500,17,FALSE)*100),"Not Tested") -> Not Tested | O40: =IFERROR(IF(L40="N<10","N<10",VLOOKUP(VALUE($A40),'2013-14 BL Civics'!$A$14:$AG$500,17,FALSE)*100),"Not Tested") -> 34 | Q40: =IFERROR(IF(J40="N<10","N<10",VLOOKUP(VALUE($A40),'2012-13 BL Civics'!$A$14:$AG$500,23,FALSE)*100),"Not Tested") -> Not Tested | R40: =IFERROR(IF(K40="N<10","N<10",VLOOKUP(VALUE($A40),'2013-14 BL Civics'!$A$14:$AG$500,23,FALSE)*100),"Not Tested") -> 32 | T40: =IFERROR(IF(N40="N<10","N<10",VLOOKUP(VALUE($A40),'2012-13 BL Civics'!$A$14:$AG$500,29,FALSE)*100),"Not Tested") -> Not Tested | U40: =IFERROR(IF(O40="N<10","N<10",VLOOKUP(VALUE($A40),'2013-14 BL Civics'!$A$14:$AG$500,29,FALSE)*100),"Not Tested") -> 43
A41: 3610 | C41: =VLOOKUP(TEXT(A41,"0000"),SchList!$A$2:$C$483,2,FALSE) -> KEYS GATE CHARTER SCHOOL | D41: =IFERROR(VLOOKUP(TEXT($A41,"0000"),'2012 BL Civics Enrollment'!$A$3:$C$500,3,FALSE),0) -> 290 | E41: =IFERROR(VLOOKUP(TEXT($A41,"0000"),'2013 BL Civics Enrollment'!$A$3:$C$500,3,FALSE),"") -> 262 | F41: =IFERROR(IF(VLOOKUP(VALUE(A41),'2012-13 BL Civics'!$A$14:$C$200,3,FALSE)<10,"N<10",IF(VLOOKUP(VALUE(A41),'2012-13 BL Civics'!$A$14:$C$200,3,FALSE)>D41,100,VLOOKUP(VALUE(A41),'2012-13 BL Civics'!$A$14:$C$200,3,FALSE)/D41%)),"Not Tested") -> 87.24137931 | G41: =IFERROR(IF(VLOOKUP(VALUE(A41),'2013-14 BL Civics'!$A$14:$C$200,3,FALSE)<10,"N<10",IF(VLOOKUP(VALUE(A41),'2013-14 BL Civics'!$A$14:$C$200,3,FALSE)>E41,100,VLOOKUP(VALUE(A41),'2013-14 BL Civics'!$A$14:$C$200,3,FALSE)/E41%)),"Not Tested") -> N<10 | H41: =IFERROR(IF(F41="N<10","N<10",VLOOKUP(VALUE($A41),'2012-13 BL Civics'!$A$14:$AG$500,5,FALSE)*100),"Not Tested") -> 34 | I41: =IFERROR(IF(G41="N<10","N<10",VLOOKUP(VALUE($A41),'2013-14 BL Civics'!$A$14:$AG$500,5,FALSE)*100),"Not Tested") -> N<10 | K41: =IFERROR(IF(H41="N<10","N<10",VLOOKUP(VALUE($A41),'2012-13 BL Civics'!$A$14:$AG$500,11,FALSE)*100),"Not Tested") -> 41 | L41: =IFERROR(IF(I41="N<10","N<10",VLOOKUP(VALUE($A41),'2013-14 BL Civics'!$A$14:$AG$500,11,FALSE)*100),"Not Tested") -> N<10 | N41: =IFERROR(IF(K41="N<10","N<10",VLOOKUP(VALUE($A41),'2012-13 BL Civics'!$A$14:$AG$500,17,FALSE)*100),"Not Tested") -> 27 | O41: =IFERROR(IF(L41="N<10","N<10",VLOOKUP(VALUE($A41),'2013-14 BL Civics'!$A$14:$AG$500,17,FALSE)*100),"Not Tested") -> N<10 | Q41: =IFERROR(IF(J41="N<10","N<10",VLOOKUP(VALUE($A41),'2012-13 BL Civics'!$A$14:$AG$500,23,FALSE)*100),"Not Tested") -> 34 | R41: =IFERROR(IF(K41="N<10","N<10",VLOOKUP(VALUE($A41),'2013-14 BL Civics'!$A$14:$AG$500,23,FALSE)*100),"Not Tested") -> 64 | S41: 30 | T41: =IFERROR(IF(N41="N<10","N<10",VLOOKUP(VALUE($A41),'2012-13 BL Civics'!$A$14:$AG$500,29,FALSE)*100),"Not Tested") -> 36 | U41: =IFERROR(IF(O41="N<10","N<10",VLOOKUP(VALUE($A41),'2013-14 BL Civics'!$A$14:$AG$500,29,FALSE)*100),"Not Tested") -> N<10
A42: 3621 | C42: =VLOOKUP(TEXT(A42,"0000"),SchList!$A$2:$C$483,2,FALSE) -> COCONUT PALM K-8 ACADEMY | D42: =IFERROR(VLOOKUP(TEXT($A42,"0000"),'2012 BL Civics Enrollment'!$A$3:$C$500,3,FALSE),0) -> 117 | E42: =IFERROR(VLOOKUP(TEXT($A42,"0000"),'2013 BL Civics Enrollment'!$A$3:$C$500,3,FALSE),"") -> 121 | F42: =IFERROR(IF(VLOOKUP(VALUE(A42),'2012-13 BL Civics'!$A$14:$C$200,3,FALSE)<10,"N<10",IF(VLOOKUP(VALUE(A42),'2012-13 BL Civics'!$A$14:$C$200,3,FALSE)>D42,100,VLOOKUP(VALUE(A42),'2012-13 BL Civics'!$A$14:$C$200,3,FALSE)/D42%)),"Not Tested") -> 62.39316239 | G42: =IFERROR(IF(VLOOKUP(VALUE(A42),'2013-14 BL Civics'!$A$14:$C$200,3,FALSE)<10,"N<10",IF(VLOOKUP(VALUE(A42),'2013-14 BL Civics'!$A$14:$C$200,3,FALSE)>E42,100,VLOOKUP(VALUE(A42),'2013-14 BL Civics'!$A$14:$C$200,3,FALSE)/E42%)),"Not Tested") -> 90.08264463 | H42: =IFERROR(IF(F42="N<10","N<10",VLOOKUP(VALUE($A42),'2012-13 BL Civics'!$A$14:$AG$500,5,FALSE)*100),"Not Tested") -> 34 | I42: =IFERROR(IF(G42="N<10","N<10",VLOOKUP(VALUE($A42),'2013-14 BL Civics'!$A$14:$AG$500,5,FALSE)*100),"Not Tested") -> 33 | J42: -1 | K42: =IFERROR(IF(H42="N<10","N<10",VLOOKUP(VALUE($A42),'2012-13 BL Civics'!$A$14:$AG$500,11,FALSE)*100),"Not Tested") -> 37 | L42: =IFERROR(IF(I42="N<10","N<10",VLOOKUP(VALUE($A42),'2013-14 BL Civics'!$A$14:$AG$500,11,FALSE)*100),"Not Tested") -> 32 | M42: -5 | N42: =IFERROR(IF(K42="N<10","N<10",VLOOKUP(VALUE($A42),'2012-13 BL Civics'!$A$14:$AG$500,17,FALSE)*100),"Not Tested") -> 29 | O42: =IFERROR(IF(L42="N<10","N<10",VLOOKUP(VALUE($A42),'2013-14 BL Civics'!$A$14:$AG$500,17,FALSE)*100),"Not Tested") -> 29 | P42: 0 | Q42: =IFERROR(IF(J42="N<10","N<10",VLOOKUP(VALUE($A42),'2012-13 BL Civics'!$A$14:$AG$500,23,FALSE)*100),"Not Tested") -> 34 | R42: =IFERROR(IF(K42="N<10","N<10",VLOOKUP(VALUE($A42),'2013-14 BL Civics'!$A$14:$AG$500,23,FALSE)*100),"Not Tested") -> 32 | S42: -2 | T42: =IFERROR(IF(N42="N<10","N<10",VLOOKUP(VALUE($A42),'2012-13 BL Civics'!$A$14:$AG$500,29,FALSE)*100),"Not Tested") -> 39 | U42: =IFERROR(IF(O42="N<10","N<10",VLOOKUP(VALUE($A42),'2013-14 BL Civics'!$A$14:$AG$500,29,FALSE)*100),"Not Tested") -> 39 | V42: 0
A43: 3821 | C43: =VLOOKUP(TEXT(A43,"0000"),SchList!$A$2:$C$483,2,FALSE) -> NORTH COUNTY K-8 CENTER | D43: =IFERROR(VLOOKUP(TEXT($A43,"0000"),'2012 BL Civics Enrollment'!$A$3:$C$500,3,FALSE),0) -> 37 | E43: =IFERROR(VLOOKUP(TEXT($A43,"0000"),'2013 BL Civics Enrollment'!$A$3:$C$500,3,FALSE),"") -> 36 | F43: =IFERROR(IF(VLOOKUP(VALUE(A43),'2012-13 BL Civics'!$A$14:$C$200,3,FALSE)<10,"N<10",IF(VLOOKUP(VALUE(A43),'2012-13 BL Civics'!$A$14:$C$200,3,FALSE)>D43,100,VLOOKUP(VALUE(A43),'2012-13 BL Civics'!$A$14:$C$200,3,FALSE)/D43%)),"Not Tested") -> 97.2972973 | G43: =IFERROR(IF(VLOOKUP(VALUE(A43),'2013-14 BL Civics'!$A$14:$C$200,3,FALSE)<10,"N<10",IF(VLOOKUP(VALUE(A43),'2013-14 BL Civics'!$A$14:$C$200,3,FALSE)>E43,100,VLOOKUP(VALUE(A43),'2013-14 BL Civics'!$A$14:$C$200,3,FALSE)/E43%)),"Not Tested") -> 97.22222222 | H43: =IFERROR(IF(F43="N<10","N<10",VLOOKUP(VALUE($A43),'2012-13 BL Civics'!$A$14:$AG$500,5,FALSE)*100),"Not Tested") -> 33 | I43: =IFERROR(IF(G43="N<10","N<10",VLOOKUP(VALUE($A43),'2013-14 BL Civics'!$A$14:$AG$500,5,FALSE)*100),"Not Tested") -> 34 | J43: 1 | K43: =IFERROR(IF(H43="N<10","N<10",VLOOKUP(VALUE($A43),'2012-13 BL Civics'!$A$14:$AG$500,11,FALSE)*100),"Not Tested") -> 39 | L43: =IFERROR(IF(I43="N<10","N<10",VLOOKUP(VALUE($A43),'2013-14 BL Civics'!$A$14:$AG$500,11,FALSE)*100),"Not Tested") -> 36 | M43: -3 | N43: =IFERROR(IF(K43="N<10","N<10",VLOOKUP(VALUE($A43),'2012-13 BL Civics'!$A$14:$AG$500,17,FALSE)*100),"Not Tested") -> 28 | O43: =IFERROR(IF(L43="N<10","N<10",VLOOKUP(VALUE($A43),'2013-14 BL Civics'!$A$14:$AG$500,17,FALSE)*100),"Not Tested") -> 32 | P43: 4 | Q43: =IFERROR(IF(J43="N<10","N<10",VLOOKUP(VALUE($A43),'2012-13 BL Civics'!$A$14:$AG$500,23,FALSE)*100),"Not Tested") -> 33 | R43: =IFERROR(IF(K43="N<10","N<10",VLOOKUP(VALUE($A43),'2013-14 BL Civics'!$A$14:$AG$500,23,FALSE)*100),"Not Tested") -> 30 | S43: -3 | T43: =IFERROR(IF(N43="N<10","N<10",VLOOKUP(VALUE($A43),'2012-13 BL Civics'!$A$14:$AG$500,29,FALSE)*100),"Not Tested") -> 35 | U43: =IFERROR(IF(O43="N<10","N<10",VLOOKUP(VALUE($A43),'2013-14 BL Civics'!$A$14:$AG$500,29,FALSE)*100),"Not Tested") -> 40 | V43: 5
A44: 4031 | C44: =VLOOKUP(TEXT(A44,"0000"),SchList!$A$2:$C$483,2,FALSE) -> GATEWAY ENVIRONMENTAL K-8 | D44: =IFERROR(VLOOKUP(TEXT($A44,"0000"),'2012 BL Civics Enrollment'!$A$3:$C$500,3,FALSE),0) -> 131 | E44: =IFERROR(VLOOKUP(TEXT($A44,"0000"),'2013 BL Civics Enrollment'!$A$3:$C$500,3,FALSE),"") -> 152 | F44: =IFERROR(IF(VLOOKUP(VALUE(A44),'2012-13 BL Civics'!$A$14:$C$200,3,FALSE)<10,"N<10",IF(VLOOKUP(VALUE(A44),'2012-13 BL Civics'!$A$14:$C$200,3,FALSE)>D44,100,VLOOKUP(VALUE(A44),'2012-13 BL Civics'!$A$14:$C$200,3,FALSE)/D44%)),"Not Tested") -> 98.47328244 | G44: =IFERROR(IF(VLOOKUP(VALUE(A44),'2013-14 BL Civics'!$A$14:$C$200,3,FALSE)<10,"N<10",IF(VLOOKUP(VALUE(A44),'2013-14 BL Civics'!$A$14:$C$200,3,FALSE)>E44,100,VLOOKUP(VALUE(A44),'2013-14 BL Civics'!$A$14:$C$200,3,FALSE)/E44%)),"Not Tested") -> 85.52631579 | H44: =IFERROR(IF(F44="N<10","N<10",VLOOKUP(VALUE($A44),'2012-13 BL Civics'!$A$14:$AG$500,5,FALSE)*100),"Not Tested") -> 32 | I44: =IFERROR(IF(G44="N<10","N<10",VLOOKUP(VALUE($A44),'2013-14 BL Civics'!$A$14:$AG$500,5,FALSE)*100),"Not Tested") -> 35 | J44: 3 | K44: =IFERROR(IF(H44="N<10","N<10",VLOOKUP(VALUE($A44),'2012-13 BL Civics'!$A$14:$AG$500,11,FALSE)*100),"Not Tested") -> 39 | L44: =IFERROR(IF(I44="N<10","N<10",VLOOKUP(VALUE($A44),'2013-14 BL Civics'!$A$14:$AG$500,11,FALSE)*100),"Not Tested") -> 36 | M44: -3 | N44: =IFERROR(IF(K44="N<10","N<10",VLOOKUP(VALUE($A44),'2012-13 BL Civics'!$A$14:$AG$500,17,FALSE)*100),"Not Tested") -> 25 | O44: =IFERROR(IF(L44="N<10","N<10",VLOOKUP(VALUE($A44),'2013-14 BL Civics'!$A$14:$AG$500,17,FALSE)*100),"Not Tested") -> 31 | P44: 6 | Q44: =IFERROR(IF(J44="N<10","N<10",VLOOKUP(VALUE($A44),'2012-13 BL Civics'!$A$14:$AG$500,23,FALSE)*100),"Not Tested") -> 32 | R44: =IFERROR(IF(K44="N<10","N<10",VLOOKUP(VALUE($A44),'2013-14 BL Civics'!$A$14:$AG$500,23,FALSE)*100),"Not Tested") -> 33 | S44: 1 | T44: =IFERROR(IF(N44="N<10","N<10",VLOOKUP(VALUE($A44),'2012-13 BL Civics'!$A$14:$AG$500,29,FALSE)*100),"Not Tested") -> 36 | U44: =IFERROR(IF(O44="N<10","N<10",VLOOKUP(VALUE($A44),'2013-14 BL Civics'!$A$14:$AG$500,29,FALSE)*100),"Not Tested") -> 41 | V44: 5
A45: 4391 | C45: =VLOOKUP(TEXT(A45,"0000"),SchList!$A$2:$C$483,2,FALSE) -> IRVING & BEATRICE PESKOE K-8 | D45: =IFERROR(VLOOKUP(TEXT($A45,"0000"),'2012 BL Civics Enrollment'!$A$3:$C$500,3,FALSE),0) -> 40 | E45: =IFERROR(VLOOKUP(TEXT($A45,"0000"),'2013 BL Civics Enrollment'!$A$3:$C$500,3,FALSE),"") -> 61 | F45: =IFERROR(IF(VLOOKUP(VALUE(A45),'2012-13 BL Civics'!$A$14:$C$200,3,FALSE)<10,"N<10",IF(VLOOKUP(VALUE(A45),'2012-13 BL Civics'!$A$14:$C$200,3,FALSE)>D45,100,VLOOKUP(VALUE(A45),'2012-13 BL Civics'!$A$14:$C$200,3,FALSE)/D45%)),"Not Tested") -> 100 | G45: =IFERROR(IF(VLOOKUP(VALUE(A45),'2013-14 BL Civics'!$A$14:$C$200,3,FALSE)<10,"N<10",IF(VLOOKUP(VALUE(A45),'2013-14 BL Civics'!$A$14:$C$200,3,FALSE)>E45,100,VLOOKUP(VALUE(A45),'2013-14 BL Civics'!$A$14:$C$200,3,FALSE)/E45%)),"Not Tested") -> 98.36065574 | H45: =IFERROR(IF(F45="N<10","N<10",VLOOKUP(VALUE($A45),'2012-13 BL Civics'!$A$14:$AG$500,5,FALSE)*100),"Not Tested") -> 30 | I45: =IFERROR(IF(G45="N<10","N<10",VLOOKUP(VALUE($A45),'2013-14 BL Civics'!$A$14:$AG$500,5,FALSE)*100),"Not Tested") -> 32 | J45: 2 | K45: =IFERROR(IF(H45="N<10","N<10",VLOOKUP(VALUE($A45),'2012-13 BL Civics'!$A$14:$AG$500,11,FALSE)*100),"Not Tested") -> 36 | L45: =IFERROR(IF(I45="N<10","N<10",VLOOKUP(VALUE($A45),'2013-14 BL Civics'!$A$14:$AG$500,11,FALSE)*100),"Not Tested") -> 34 | M45: -2 | N45: =IFERROR(IF(K45="N<10","N<10",VLOOKUP(VALUE($A45),'2012-13 BL Civics'!$A$14:$AG$500,17,FALSE)*100),"Not Tested") -> 28 | O45: =IFERROR(IF(L45="N<10","N<10",VLOOKUP(VALUE($A45),'2013-14 BL Civics'!$A$14:$AG$500,17,FALSE)*100),"Not Tested") -> 30 | P45: 2 | Q45: =IFERROR(IF(J45="N<10","N<10",VLOOKUP(VALUE($A45),'2012-13 BL Civics'!$A$14:$AG$500,23,FALSE)*100),"Not Tested") -> 27 | R45: =IFERROR(IF(K45="N<10","N<10",VLOOKUP(VALUE($A45),'2013-14 BL Civics'!$A$14:$AG$500,23,FALSE)*100),"Not Tested") -> 30 | S45: 3 | T45: =IFERROR(IF(N45="N<10","N<10",VLOOKUP(VALUE($A45),'2012-13 BL Civics'!$A$14:$AG$500,29,FALSE)*100),"Not Tested") -> 33 | U45: =IFERROR(IF(O45="N<10","N<10",VLOOKUP(VALUE($A45),'2013-14 BL Civics'!$A$14:$AG$500,29,FALSE)*100),"Not Tested") -> 36 | V45: 3
A46: 4691 | C46: =VLOOKUP(TEXT(A46,"0000"),SchList!$A$2:$C$483,2,FALSE) -> JANE ROBERTS K-8 CENTER | D46: =IFERROR(VLOOKUP(TEXT($A46,"0000"),'2012 BL Civics Enrollment'!$A$3:$C$500,3,FALSE),0) -> 121 | E46: =IFERROR(VLOOKUP(TEXT($A46,"0000"),'2013 BL Civics Enrollment'!$A$3:$C$500,3,FALSE),"") -> 83 | F46: =IFERROR(IF(VLOOKUP(VALUE(A46),'2012-13 BL Civics'!$A$14:$C$200,3,FALSE)<10,"N<10",IF(VLOOKUP(VALUE(A46),'2012-13 BL Civics'!$A$14:$C$200,3,FALSE)>D46,100,VLOOKUP(VALUE(A46),'2012-13 BL Civics'!$A$14:$C$200,3,FALSE)/D46%)),"Not Tested") -> N<10 | G46: =IFERROR(IF(VLOOKUP(VALUE(A46),'2013-14 BL Civics'!$A$14:$C$200,3,FALSE)<10,"N<10",IF(VLOOKUP(VALUE(A46),'2013-14 BL Civics'!$A$14:$C$200,3,FALSE)>E46,100,VLOOKUP(VALUE(A46),'2013-14 BL Civics'!$A$14:$C$200,3,FALSE)/E46%)),"Not Tested") -> 89.15662651 | H46: =IFERROR(IF(F46="N<10","N<10",VLOOKUP(VALUE($A46),'2012-13 BL Civics'!$A$14:$AG$500,5,FALSE)*100),"Not Tested") -> N<10 | I46: =IFERROR(IF(G46="N<10","N<10",VLOOKUP(VALUE($A46),'2013-14 BL Civics'!$A$14:$AG$500,5,FALSE)*100),"Not Tested") -> 38 | K46: =IFERROR(IF(H46="N<10","N<10",VLOOKUP(VALUE($A46),'2012-13 BL Civics'!$A$14:$AG$500,11,FALSE)*100),"Not Tested") -> N<10 | L46: =IFERROR(IF(I46="N<10","N<10",VLOOKUP(VALUE($A46),'2013-14 BL Civics'!$A$14:$AG$500,11,FALSE)*100),"Not Tested") -> 40 | N46: =IFERROR(IF(K46="N<10","N<10",VLOOKUP(VALUE($A46),'2012-13 BL Civics'!$A$14:$AG$500,17,FALSE)*100),"Not Tested") -> N<10 | O46: =IFERROR(IF(L46="N<10","N<10",VLOOKUP(VALUE($A46),'2013-14 BL Civics'!$A$14:$AG$500,17,FALSE)*100),"Not Tested") -> 31 | Q46: =IFERROR(IF(J46="N<10","N<10",VLOOKUP(VALUE($A46),'2012-13 BL Civics'!$A$14:$AG$500,23,FALSE)*100),"Not Tested") -> 36 | R46: =IFERROR(IF(K46="N<10","N<10",VLOOKUP(VALUE($A46),'2013-14 BL Civics'!$A$14:$AG$500,23,FALSE)*100),"Not Tested") -> N<10 | T46: =IFERROR(IF(N46="N<10","N<10",VLOOKUP(VALUE($A46),'2012-13 BL Civics'!$A$14:$AG$500,29,FALSE)*100),"Not Tested") -> N<10 | U46: =IFERROR(IF(O46="N<10","N<10",VLOOKUP(VALUE($A46),'2013-14 BL Civics'!$A$14:$AG$500,29,FALSE)*100),"Not Tested") -> 42
A47: 5003 | C47: =VLOOKUP(TEXT(A47,"0000"),SchList!$A$2:$C$483,2,FALSE) -> SOUTH DADE MIDDLE SCHOOL | D47: =IFERROR(VLOOKUP(TEXT($A47,"0000"),'2012 BL Civics Enrollment'!$A$3:$C$500,3,FALSE),0) -> 270 | E47: =IFERROR(VLOOKUP(TEXT($A47,"0000"),'2013 BL Civics Enrollment'!$A$3:$C$500,3,FALSE),"") -> 257 | F47: =IFERROR(IF(VLOOKUP(VALUE(A47),'2012-13 BL Civics'!$A$14:$C$200,3,FALSE)<10,"N<10",IF(VLOOKUP(VALUE(A47),'2012-13 BL Civics'!$A$14:$C$200,3,FALSE)>D47,100,VLOOKUP(VALUE(A47),'2012-13 BL Civics'!$A$14:$C$200,3,FALSE)/D47%)),"Not Tested") -> 62.59259259 | G47: =IFERROR(IF(VLOOKUP(VALUE(A47),'2013-14 BL Civics'!$A$14:$C$200,3,FALSE)<10,"N<10",IF(VLOOKUP(VALUE(A47),'2013-14 BL Civics'!$A$14:$C$200,3,FALSE)>E47,100,VLOOKUP(VALUE(A47),'2013-14 BL Civics'!$A$14:$C$200,3,FALSE)/E47%)),"Not Tested") -> 93.38521401 | H47: =IFERROR(IF(F47="N<10","N<10",VLOOKUP(VALUE($A47),'2012-13 BL Civics'!$A$14:$AG$500,5,FALSE)*100),"Not Tested") -> 32 | I47: =IFERROR(IF(G47="N<10","N<10",VLOOKUP(VALUE($A47),'2013-14 BL Civics'!$A$14:$AG$500,5,FALSE)*100),"Not Tested") -> 33 | J47: 1 | K47: =IFERROR(IF(H47="N<10","N<10",VLOOKUP(VALUE($A47),'2012-13 BL Civics'!$A$14:$AG$500,11,FALSE)*100),"Not Tested") -> 39 | L47: =IFERROR(IF(I47="N<10","N<10",VLOOKUP(VALUE($A47),'2013-14 BL Civics'!$A$14:$AG$500,11,FALSE)*100),"Not Tested") -> 34 | M47: -5 | N47: =IFERROR(IF(K47="N<10","N<10",VLOOKUP(VALUE($A47),'2012-13 BL Civics'!$A$14:$AG$500,17,FALSE)*100),"Not Tested") -> 27 | O47: =IFERROR(IF(L47="N<10","N<10",VLOOKUP(VALUE($A47),'2013-14 BL Civics'!$A$14:$AG$500,17,FALSE)*100),"Not Tested") -> 30 | P47: 3 | Q47: =IFERROR(IF(J47="N<10","N<10",VLOOKUP(VALUE($A47),'2012-13 BL Civics'!$A$14:$AG$500,23,FALSE)*100),"Not Tested") -> 30 | R47: =IFERROR(IF(K47="N<10","N<10",VLOOKUP(VALUE($A47),'2013-14 BL Civics'!$A$14:$AG$500,23,FALSE)*100),"Not Tested") -> 31 | S47: 1 | T47: =IFERROR(IF(N47="N<10","N<10",VLOOKUP(VALUE($A47),'2012-13 BL Civics'!$A$14:$AG$500,29,FALSE)*100),"Not Tested") -> 32 | U47: =IFERROR(IF(O47="N<10","N<10",VLOOKUP(VALUE($A47),'2013-14 BL Civics'!$A$14:$AG$500,29,FALSE)*100),"Not Tested") -> 40 | V47: 8
A48: 5005 | C48: =VLOOKUP(TEXT(A48,"0000"),SchList!$A$2:$C$483,2,FALSE) -> DAVID LAWRENCE JR K-8 CENTER | D48: =IFERROR(VLOOKUP(TEXT($A48,"0000"),'2012 BL Civics Enrollment'!$A$3:$C$500,3,FALSE),0) -> 195 | E48: =IFERROR(VLOOKUP(TEXT($A48,"0000"),'2013 BL Civics Enrollment'!$A$3:$C$500,3,FALSE),"") -> 195 | F48: =IFERROR(IF(VLOOKUP(VALUE(A48),'2012-13 BL Civics'!$A$14:$C$200,3,FALSE)<10,"N<10",IF(VLOOKUP(VALUE(A48),'2012-13 BL Civics'!$A$14:$C$200,3,FALSE)>D48,100,VLOOKUP(VALUE(A48),'2012-13 BL Civics'!$A$14:$C$200,3,FALSE)/D48%)),"Not Tested") -> 86.66666667 | G48: =IFERROR(IF(VLOOKUP(VALUE(A48),'2013-14 BL Civics'!$A$14:$C$200,3,FALSE)<10,"N<10",IF(VLOOKUP(VALUE(A48),'2013-14 BL Civics'!$A$14:$C$200,3,FALSE)>E48,100,VLOOKUP(VALUE(A48),'2013-14 BL Civics'!$A$14:$C$200,3,FALSE)/E48%)),"Not Tested") -> 94.35897436 | H48: =IFERROR(IF(F48="N<10","N<10",VLOOKUP(VALUE($A48),'2012-13 BL Civics'!$A$14:$AG$500,5,FALSE)*100),"Not Tested") -> 35 | I48: =IFERROR(IF(G48="N<10","N<10",VLOOKUP(VALUE($A48),'2013-14 BL Civics'!$A$14:$AG$500,5,FALSE)*100),"Not Tested") -> 35 | J48: 0 | K48: =IFERROR(IF(H48="N<10","N<10",VLOOKUP(VALUE($A48),'2012-13 BL Civics'!$A$14:$AG$500,11,FALSE)*100),"Not Tested") -> 43 | L48: =IFERROR(IF(I48="N<10","N<10",VLOOKUP(VALUE($A48),'2013-14 BL Civics'!$A$14:$AG$500,11,FALSE)*100),"Not Tested") -> 37 | M48: -6 | N48: =IFERROR(IF(K48="N<10","N<10",VLOOKUP(VALUE($A48),'2012-13 BL Civics'!$A$14:$AG$500,17,FALSE)*100),"Not Tested") -> 27 | O48: =IFERROR(IF(L48="N<10","N<10",VLOOKUP(VALUE($A48),'2013-14 BL Civics'!$A$14:$AG$500,17,FALSE)*100),"Not Tested") -> 31 | P48: 4 | Q48: =IFERROR(IF(J48="N<10","N<10",VLOOKUP(VALUE($A48),'2012-13 BL Civics'!$A$14:$AG$500,23,FALSE)*100),"Not Tested") -> 34 | R48: =IFERROR(IF(K48="N<10","N<10",VLOOKUP(VALUE($A48),'2013-14 BL Civics'!$A$14:$AG$500,23,FALSE)*100),"Not Tested") -> 34 | S48: 0 | T48: =IFERROR(IF(N48="N<10","N<10",VLOOKUP(VALUE($A48),'2012-13 BL Civics'!$A$14:$AG$500,29,FALSE)*100),"Not Tested") -> 38 | U48: =IFERROR(IF(O48="N<10","N<10",VLOOKUP(VALUE($A48),'2013-14 BL Civics'!$A$14:$AG$500,29,FALSE)*100),"Not Tested") -> 40 | V48: 2
A49: 5006 | C49: =VLOOKUP(TEXT(A49,"0000"),SchList!$A$2:$C$483,2,FALSE) -> EVERGLADES PREPARATORY ACADEMY | D49: =IFERROR(VLOOKUP(TEXT($A49,"0000"),'2012 BL Civics Enrollment'!$A$3:$C$500,3,FALSE),0) -> 189 | E49: =IFERROR(VLOOKUP(TEXT($A49,"0000"),'2013 BL Civics Enrollment'!$A$3:$C$500,3,FALSE),"") -> 235 | F49: =IFERROR(IF(VLOOKUP(VALUE(A49),'2012-13 BL Civics'!$A$14:$C$200,3,FALSE)<10,"N<10",IF(VLOOKUP(VALUE(A49),'2012-13 BL Civics'!$A$14:$C$200,3,FALSE)>D49,100,VLOOKUP(VALUE(A49),'2012-13 BL Civics'!$A$14:$C$200,3,FALSE)/D49%)),"Not Tested") -> 87.3015873 | G49: =IFERROR(IF(VLOOKUP(VALUE(A49),'2013-14 BL Civics'!$A$14:$C$200,3,FALSE)<10,"N<10",IF(VLOOKUP(VALUE(A49),'2013-14 BL Civics'!$A$14:$C$200,3,FALSE)>E49,100,VLOOKUP(VALUE(A49),'2013-14 BL Civics'!$A$14:$C$200,3,FALSE)/E49%)),"Not Tested") -> 96.17021277 | H49: =IFERROR(IF(F49="N<10","N<10",VLOOKUP(VALUE($A49),'2012-13 BL Civics'!$A$14:$AG$500,5,FALSE)*100),"Not Tested") -> 38 | I49: =IFERROR(IF(G49="N<10","N<10",VLOOKUP(VALUE($A49),'2013-14 BL Civics'!$A$14:$AG$500,5,FALSE)*100),"Not Tested") -> 35 | J49: -3 | K49: =IFERROR(IF(H49="N<10","N<10",VLOOKUP(VALUE($A49),'2012-13 BL Civics'!$A$14:$AG$500,11,FALSE)*100),"Not Tested") -> 45 | L49: =IFERROR(IF(I49="N<10","N<10",VLOOKUP(VALUE($A49),'2013-14 BL Civics'!$A$14:$AG$500,11,FALSE)*100),"Not Tested") -> 38 | M49: -7 | N49: =IFERROR(IF(K49="N<10","N<10",VLOOKUP(VALUE($A49),'2012-13 BL Civics'!$A$14:$AG$500,17,FALSE)*100),"Not Tested") -> 29 | O49: =IFERROR(IF(L49="N<10","N<10",VLOOKUP(VALUE($A49),'2013-14 BL Civics'!$A$14:$AG$500,17,FALSE)*100),"Not Tested") -> 30 | P49: 1 | Q49: =IFERROR(IF(J49="N<10","N<10",VLOOKUP(VALUE($A49),'2012-13 BL Civics'!$A$14:$AG$500,23,FALSE)*100),"Not Tested") -> 38 | R49: =IFERROR(IF(K49="N<10","N<10",VLOOKUP(VALUE($A49),'2013-14 BL Civics'!$A$14:$AG$500,23,FALSE)*100),"Not Tested") -> 35 | S49: -3 | T49: =IFERROR(IF(N49="N<10","N<10",VLOOKUP(VALUE($A49),'2012-13 BL Civics'!$A$14:$AG$500,29,FALSE)*100),"Not Tested") -> 42 | U49: =IFERROR(IF(O49="N<10","N<10",VLOOKUP(VALUE($A49),'2013-14 BL Civics'!$A$14:$AG$500,29,FALSE)*100),"Not Tested") -> 41 | V49: -1
A50: 5007 | C50: =VLOOKUP(TEXT(A50,"0000"),SchList!$A$2:$C$483,2,FALSE) -> LINCOLN-MARTI CHARTER HIALEAH | D50: =IFERROR(VLOOKUP(TEXT($A50,"0000"),'2012 BL Civics Enrollment'!$A$3:$C$500,3,FALSE),0) -> 20 | E50: =IFERROR(VLOOKUP(TEXT($A50,"0000"),'2013 BL Civics Enrollment'!$A$3:$C$500,3,FALSE),"") -> 28 | F50: =IFERROR(IF(VLOOKUP(VALUE(A50),'2012-13 BL Civics'!$A$14:$C$200,3,FALSE)<10,"N<10",IF(VLOOKUP(VALUE(A50),'2012-13 BL Civics'!$A$14:$C$200,3,FALSE)>D50,100,VLOOKUP(VALUE(A50),'2012-13 BL Civics'!$A$14:$C$200,3,FALSE)/D50%)),"Not Tested") -> 95 | G50: =IFERROR(IF(VLOOKUP(VALUE(A50),'2013-14 BL Civics'!$A$14:$C$200,3,FALSE)<10,"N<10",IF(VLOOKUP(VALUE(A50),'2013-14 BL Civics'!$A$14:$C$200,3,FALSE)>E50,100,VLOOKUP(VALUE(A50),'2013-14 BL Civics'!$A$14:$C$200,3,FALSE)/E50%)),"Not Tested") -> 96.42857143 | H50: =IFERROR(IF(F50="N<10","N<10",VLOOKUP(VALUE($A50),'2012-13 BL Civics'!$A$14:$AG$500,5,FALSE)*100),"Not Tested") -> 34 | I50: =IFERROR(IF(G50="N<10","N<10",VLOOKUP(VALUE($A50),'2013-14 BL Civics'!$A$14:$AG$500,5,FALSE)*100),"Not Tested") -> 37 | J50: 3 | K50: =IFERROR(IF(H50="N<10","N<10",VLOOKUP(VALUE($A50),'2012-13 BL Civics'!$A$14:$AG$500,11,FALSE)*100),"Not Tested") -> 38 | L50: =IFERROR(IF(I50="N<10","N<10",VLOOKUP(VALUE($A50),'2013-14 BL Civics'!$A$14:$AG$500,11,FALSE)*100),"Not Tested") -> 38 | M50: 0 | N50: =IFERROR(IF(K50="N<10","N<10",VLOOKUP(VALUE($A50),'2012-13 BL Civics'!$A$14:$AG$500,17,FALSE)*100),"Not Tested") -> 25 | O50: =IFERROR(IF(L50="N<10","N<10",VLOOKUP(VALUE($A50),'2013-14 BL Civics'!$A$14:$AG$500,17,FALSE)*100),"Not Tested") -> 32 | P50: 7 | Q50: =IFERROR(IF(J50="N<10","N<10",VLOOKUP(VALUE($A50),'2012-13 BL Civics'!$A$14:$AG$500,23,FALSE)*100),"Not Tested") -> 35 | R50: =IFERROR(IF(K50="N<10","N<10",VLOOKUP(VALUE($A50),'2013-14 BL Civics'!$A$14:$AG$500,23,FALSE)*100),"Not Tested") -> 33 | S50: -2 | T50: =IFERROR(IF(N50="N<10","N<10",VLOOKUP(VALUE($A50),'2012-13 BL Civics'!$A$14:$AG$500,29,FALSE)*100),"Not Tested") -> 39 | U50: =IFERROR(IF(O50="N<10","N<10",VLOOKUP(VALUE($A50),'2013-14 BL Civics'!$A$14:$AG$500,29,FALSE)*100),"Not Tested") -> 47 | V50: 8
A51: 5010 | C51: =VLOOKUP(TEXT(A51,"0000"),SchList!$A$2:$C$483,2,FALSE) -> OXFORD ACADEMY OF MIAMI | D51: =IFERROR(VLOOKUP(TEXT($A51,"0000"),'2012 BL Civics Enrollment'!$A$3:$C$500,3,FALSE),0) -> 13 | E51: =IFERROR(VLOOKUP(TEXT($A51,"0000"),'2013 BL Civics Enrollment'!$A$3:$C$500,3,FALSE),"") -> 19 | F51: =IFERROR(IF(VLOOKUP(VALUE(A51),'2012-13 BL Civics'!$A$14:$C$200,3,FALSE)<10,"N<10",IF(VLOOKUP(VALUE(A51),'2012-13 BL Civics'!$A$14:$C$200,3,FALSE)>D51,100,VLOOKUP(VALUE(A51),'2012-13 BL Civics'!$A$14:$C$200,3,FALSE)/D51%)),"Not Tested") -> Not Tested | G51: =IFERROR(IF(VLOOKUP(VALUE(A51),'2013-14 BL Civics'!$A$14:$C$200,3,FALSE)<10,"N<10",IF(VLOOKUP(VALUE(A51),'2013-14 BL Civics'!$A$14:$C$200,3,FALSE)>E51,100,VLOOKUP(VALUE(A51),'2013-14 BL Civics'!$A$14:$C$200,3,FALSE)/E51%)),"Not Tested") -> 100 | H51: =IFERROR(IF(F51="N<10","N<10",VLOOKUP(VALUE($A51),'2012-13 BL Civics'!$A$14:$AG$500,5,FALSE)*100),"Not Tested") -> Not Tested | I51: =IFERROR(IF(G51="N<10","N<10",VLOOKUP(VALUE($A51),'2013-14 BL Civics'!$A$14:$AG$500,5,FALSE)*100),"Not Tested") -> 40 | K51: =IFERROR(IF(H51="N<10","N<10",VLOOKUP(VALUE($A51),'2012-13 BL Civics'!$A$14:$AG$500,11,FALSE)*100),"Not Tested") -> Not Tested | L51: =IFERROR(IF(I51="N<10","N<10",VLOOKUP(VALUE($A51),'2013-14 BL Civics'!$A$14:$AG$500,11,FALSE)*100),"Not Tested") -> 46 | N51: =IFERROR(IF(K51="N<10","N<10",VLOOKUP(VALUE($A51),'2012-13 BL Civics'!$A$14:$AG$500,17,FALSE)*100),"Not Tested") -> Not Tested | O51: =IFERROR(IF(L51="N<10","N<10",VLOOKUP(VALUE($A51),'2013-14 BL Civics'!$A$14:$AG$500,17,FALSE)*100),"Not Tested") -> 36 | Q51: =IFERROR(IF(J51="N<10","N<10",VLOOKUP(VALUE($A51),'2012-13 BL Civics'!$A$14:$AG$500,23,FALSE)*100),"Not Tested") -> Not Tested | R51: =IFERROR(IF(K51="N<10","N<10",VLOOKUP(VALUE($A51),'2013-14 BL Civics'!$A$14:$AG$500,23,FALSE)*100),"Not Tested") -> 36 | T51: =IFERROR(IF(N51="N<10","N<10",VLOOKUP(VALUE($A51),'2012-13 BL Civics'!$A$14:$AG$500,29,FALSE)*100),"Not Tested") -> Not Tested | U51: =IFERROR(IF(O51="N<10","N<10",VLOOKUP(VALUE($A51),'2013-14 BL Civics'!$A$14:$AG$500,29,FALSE)*100),"Not Tested") -> 46
A52: 5020 | C52: =VLOOKUP(TEXT(A52,"0000"),SchList!$A$2:$C$483,2,FALSE) -> BRIDGEPOINT ACAD INTERAMERICAN | D52: =IFERROR(VLOOKUP(TEXT($A52,"0000"),'2012 BL Civics Enrollment'!$A$3:$C$500,3,FALSE),0) -> 16 | E52: =IFERROR(VLOOKUP(TEXT($A52,"0000"),'2013 BL Civics Enrollment'!$A$3:$C$500,3,FALSE),"") -> 16 | F52: =IFERROR(IF(VLOOKUP(VALUE(A52),'2012-13 BL Civics'!$A$14:$C$200,3,FALSE)<10,"N<10",IF(VLOOKUP(VALUE(A52),'2012-13 BL Civics'!$A$14:$C$200,3,FALSE)>D52,100,VLOOKUP(VALUE(A52),'2012-13 BL Civics'!$A$14:$C$200,3,FALSE)/D52%)),"Not Tested") -> 100 | G52: =IFERROR(IF(VLOOKUP(VALUE(A52),'2013-14 BL Civics'!$A$14:$C$200,3,FALSE)<10,"N<10",IF(VLOOKUP(VALUE(A52),'2013-14 BL Civics'!$A$14:$C$200,3,FALSE)>E52,100,VLOOKUP(VALUE(A52),'2013-14 BL Civics'!$A$14:$C$200,3,FALSE)/E52%)),"Not Tested") -> 100 | H52: =IFERROR(IF(F52="N<10","N<10",VLOOKUP(VALUE($A52),'2012-13 BL Civics'!$A$14:$AG$500,5,FALSE)*100),"Not Tested") -> 30 | I52: =IFERROR(IF(G52="N<10","N<10",VLOOKUP(VALUE($A52),'2013-14 BL Civics'!$A$14:$AG$500,5,FALSE)*100),"Not Tested") -> 34 | J52: 4 | K52: =IFERROR(IF(H52="N<10","N<10",VLOOKUP(VALUE($A52),'2012-13 BL Civics'!$A$14:$AG$500,11,FALSE)*100),"Not Tested") -> 39 | L52: =IFERROR(IF(I52="N<10","N<10",VLOOKUP(VALUE($A52),'2013-14 BL Civics'!$A$14:$AG$500,11,FALSE)*100),"Not Tested") -> 27 | M52: -12 | N52: =IFERROR(IF(K52="N<10","N<10",VLOOKUP(VALUE($A52),'2012-13 BL Civics'!$A$14:$AG$500,17,FALSE)*100),"Not Tested") -> 20 | O52: =IFERROR(IF(L52="N<10","N<10",VLOOKUP(VALUE($A52),'2013-14 BL Civics'!$A$14:$AG$500,17,FALSE)*100),"Not Tested") -> 30 | P52: 10 | Q52: =IFERROR(IF(J52="N<10","N<10",VLOOKUP(VALUE($A52),'2012-13 BL Civics'!$A$14:$AG$500,23,FALSE)*100),"Not Tested") -> 37 | R52: =IFERROR(IF(K52="N<10","N<10",VLOOKUP(VALUE($A52),'2013-14 BL Civics'!$A$14:$AG$500,23,FALSE)*100),"Not Tested") -> 36 | S52: -1 | T52: =IFERROR(IF(N52="N<10","N<10",VLOOKUP(VALUE($A52),'2012-13 BL Civics'!$A$14:$AG$500,29,FALSE)*100),"Not Tested") -> 27 | U52: =IFERROR(IF(O52="N<10","N<10",VLOOKUP(VALUE($A52),'2013-14 BL Civics'!$A$14:$AG$500,29,FALSE)*100),"Not Tested") -> 43 | V52: 16
A53: 5022 | C53: =VLOOKUP(TEXT(A53,"0000"),SchList!$A$2:$C$483,2,FALSE) -> BEN GAMLA CHARTER SCHL | D53: =IFERROR(VLOOKUP(TEXT($A53,"0000"),'2012 BL Civics Enrollment'!$A$3:$C$500,3,FALSE),0) -> 16 | E53: =IFERROR(VLOOKUP(TEXT($A53,"0000"),'2013 BL Civics Enrollment'!$A$3:$C$500,3,FALSE),"") -> 21 | F53: =IFERROR(IF(VLOOKUP(VALUE(A53),'2012-13 BL Civics'!$A$14:$C$200,3,FALSE)<10,"N<10",IF(VLOOKUP(VALUE(A53),'2012-13 BL Civics'!$A$14:$C$200,3,FALSE)>D53,100,VLOOKUP(VALUE(A53),'2012-13 BL Civics'!$A$14:$C$200,3,FALSE)/D53%)),"Not Tested") -> 93.75 | G53: =IFERROR(IF(VLOOKUP(VALUE(A53),'2013-14 BL Civics'!$A$14:$C$200,3,FALSE)<10,"N<10",IF(VLOOKUP(VALUE(A53),'2013-14 BL Civics'!$A$14:$C$200,3,FALSE)>E53,100,VLOOKUP(VALUE(A53),'2013-14 BL Civics'!$A$14:$C$200,3,FALSE)/E53%)),"Not Tested") -> 100 | H53: =IFERROR(IF(F53="N<10","N<10",VLOOKUP(VALUE($A53),'2012-13 BL Civics'!$A$14:$AG$500,5,FALSE)*100),"Not Tested") -> 33 | I53: =IFERROR(IF(G53="N<10","N<10",VLOOKUP(VALUE($A53),'2013-14 BL Civics'!$A$14:$AG$500,5,FALSE)*100),"Not Tested") -> 38 | J53: 5 | K53: =IFERROR(IF(H53="N<10","N<10",VLOOKUP(VALUE($A53),'2012-13 BL Civics'!$A$14:$AG$500,11,FALSE)*100),"Not Tested") -> 43 | L53: =IFERROR(IF(I53="N<10","N<10",VLOOKUP(VALUE($A53),'2013-14 BL Civics'!$A$14:$AG$500,11,FALSE)*100),"Not Tested") -> 38 | M53: -5 | N53: =IFERROR(IF(K53="N<10","N<10",VLOOKUP(VALUE($A53),'2012-13 BL Civics'!$A$14:$AG$500,17,FALSE)*100),"Not Tested") -> 26 | O53: =IFERROR(IF(L53="N<10","N<10",VLOOKUP(VALUE($A53),'2013-14 BL Civics'!$A$14:$AG$500,17,FALSE)*100),"Not Tested") -> 36 | P53: 10 | Q53: =IFERROR(IF(J53="N<10","N<10",VLOOKUP(VALUE($A53),'2012-13 BL Civics'!$A$14:$AG$500,23,FALSE)*100),"Not Tested") -> 31 | R53: =IFERROR(IF(K53="N<10","N<10",VLOOKUP(VALUE($A53),'2013-14 BL Civics'!$A$14:$AG$500,23,FALSE)*100),"Not Tested") -> 38 | S53: 7 | T53: =IFERROR(IF(N53="N<10","N<10",VLOOKUP(VALUE($A53),'2012-13 BL Civics'!$A$14:$AG$500,29,FALSE)*100),"Not Tested") -> 38 | U53: =IFERROR(IF(O53="N<10","N<10",VLOOKUP(VALUE($A53),'2013-14 BL Civics'!$A$14:$AG$500,29,FALSE)*100),"Not Tested") -> 41 | V53: 3
A54: 5025 | C54: =VLOOKUP(TEXT(A54,"0000"),SchList!$A$2:$C$483,2,FALSE) -> LINCOLN-MARTI CS LITTLE HAVANA | D54: =IFERROR(VLOOKUP(TEXT($A54,"0000"),'2012 BL Civics Enrollment'!$A$3:$C$500,3,FALSE),0) -> 78 | E54: =IFERROR(VLOOKUP(TEXT($A54,"0000"),'2013 BL Civics Enrollment'!$A$3:$C$500,3,FALSE),"") -> 54 | F54: =IFERROR(IF(VLOOKUP(VALUE(A54),'2012-13 BL Civics'!$A$14:$C$200,3,FALSE)<10,"N<10",IF(VLOOKUP(VALUE(A54),'2012-13 BL Civics'!$A$14:$C$200,3,FALSE)>D54,100,VLOOKUP(VALUE(A54),'2012-13 BL Civics'!$A$14:$C$200,3,FALSE)/D54%)),"Not Tested") -> 93.58974359 | G54: =IFERROR(IF(VLOOKUP(VALUE(A54),'2013-14 BL Civics'!$A$14:$C$200,3,FALSE)<10,"N<10",IF(VLOOKUP(VALUE(A54),'2013-14 BL Civics'!$A$14:$C$200,3,FALSE)>E54,100,VLOOKUP(VALUE(A54),'2013-14 BL Civics'!$A$14:$C$200,3,FALSE)/E54%)),"Not Tested") -> 94.44444444 | H54: =IFERROR(IF(F54="N<10","N<10",VLOOKUP(VALUE($A54),'2012-13 BL Civics'!$A$14:$AG$500,5,FALSE)*100),"Not Tested") -> 34 | I54: =IFERROR(IF(G54="N<10","N<10",VLOOKUP(VALUE($A54),'2013-14 BL Civics'!$A$14:$AG$500,5,FALSE)*100),"Not Tested") -> 35 | J54: 1 | K54: =IFERROR(IF(H54="N<10","N<10",VLOOKUP(VALUE($A54),'2012-13 BL Civics'!$A$14:$AG$500,11,FALSE)*100),"Not Tested") -> 38 | L54: =IFERROR(IF(I54="N<10","N<10",VLOOKUP(VALUE($A54),'2013-14 BL Civics'!$A$14:$AG$500,11,FALSE)*100),"Not Tested") -> 33 | M54: -5 | N54: =IFERROR(IF(K54="N<10","N<10",VLOOKUP(VALUE($A54),'2012-13 BL Civics'!$A$14:$AG$500,17,FALSE)*100),"Not Tested") -> 29 | O54: =IFERROR(IF(L54="N<10","N<10",VLOOKUP(VALUE($A54),'2013-14 BL Civics'!$A$14:$AG$500,17,FALSE)*100),"Not Tested") -> 33 | P54: 4 | Q54: =IFERROR(IF(J54="N<10","N<10",VLOOKUP(VALUE($A54),'2012-13 BL Civics'!$A$14:$AG$500,23,FALSE)*100),"Not Tested") -> 37 | R54: =IFERROR(IF(K54="N<10","N<10",VLOOKUP(VALUE($A54),'2013-14 BL Civics'!$A$14:$AG$500,23,FALSE)*100),"Not Tested") -> 34 | S54: -3 | T54: =IFERROR(IF(N54="N<10","N<10",VLOOKUP(VALUE($A54),'2012-13 BL Civics'!$A$14:$AG$500,29,FALSE)*100),"Not Tested") -> 34 | U54: =IFERROR(IF(O54="N<10","N<10",VLOOKUP(VALUE($A54),'2013-14 BL Civics'!$A$14:$AG$500,29,FALSE)*100),"Not Tested") -> 42 | V54: 8
A55: 5032 | C55: =VLOOKUP(TEXT(A55,"0000"),SchList!$A$2:$C$483,2,FALSE) -> EXCELSIOR CHARTER ACADEMY | D55: =IFERROR(VLOOKUP(TEXT($A55,"0000"),'2012 BL Civics Enrollment'!$A$3:$C$500,3,FALSE),0) -> 22 | E55: =IFERROR(VLOOKUP(TEXT($A55,"0000"),'2013 BL Civics Enrollment'!$A$3:$C$500,3,FALSE),"") -> 27 | F55: =IFERROR(IF(VLOOKUP(VALUE(A55),'2012-13 BL Civics'!$A$14:$C$200,3,FALSE)<10,"N<10",IF(VLOOKUP(VALUE(A55),'2012-13 BL Civics'!$A$14:$C$200,3,FALSE)>D55,100,VLOOKUP(VALUE(A55),'2012-13 BL Civics'!$A$14:$C$200,3,FALSE)/D55%)),"Not Tested") -> 59.09090909 | G55: =IFERROR(IF(VLOOKUP(VALUE(A55),'2013-14 BL Civics'!$A$14:$C$200,3,FALSE)<10,"N<10",IF(VLOOKUP(VALUE(A55),'2013-14 BL Civics'!$A$14:$C$200,3,FALSE)>E55,100,VLOOKUP(VALUE(A55),'2013-14 BL Civics'!$A$14:$C$200,3,FALSE)/E55%)),"Not Tested") -> 51.85185185 | H55: =IFERROR(IF(F55="N<10","N<10",VLOOKUP(VALUE($A55),'2012-13 BL Civics'!$A$14:$AG$500,5,FALSE)*100),"Not Tested") -> 29 | I55: =IFERROR(IF(G55="N<10","N<10",VLOOKUP(VALUE($A55),'2013-14 BL Civics'!$A$14:$AG$500,5,FALSE)*100),"Not Tested") -> 35 | J55: 6 | K55: =IFERROR(IF(H55="N<10","N<10",VLOOKUP(VALUE($A55),'2012-13 BL Civics'!$A$14:$AG$500,11,FALSE)*100),"Not Tested") -> 37 | L55: =IFERROR(IF(I55="N<10","N<10",VLOOKUP(VALUE($A55),'2013-14 BL Civics'!$A$14:$AG$500,11,FALSE)*100),"Not Tested") -> 33 | M55: -4 | N55: =IFERROR(IF(K55="N<10","N<10",VLOOKUP(VALUE($A55),'2012-13 BL Civics'!$A$14:$AG$500,17,FALSE)*100),"Not Tested") -> 21 | O55: =IFERROR(IF(L55="N<10","N<10",VLOOKUP(VALUE($A55),'2013-14 BL Civics'!$A$14:$AG$500,17,FALSE)*100),"Not Tested") -> 34 | P55: 13 | Q55: =IFERROR(IF(J55="N<10","N<10",VLOOKUP(VALUE($A55),'2012-13 BL Civics'!$A$14:$AG$500,23,FALSE)*100),"Not Tested") -> 34 | R55: =IFERROR(IF(K55="N<10","N<10",VLOOKUP(VALUE($A55),'2013-14 BL Civics'!$A$14:$AG$500,23,FALSE)*100),"Not Tested") -> 30 | S55: -4 | T55: =IFERROR(IF(N55="N<10","N<10",VLOOKUP(VALUE($A55),'2012-13 BL Civics'!$A$14:$AG$500,29,FALSE)*100),"Not Tested") -> 28 | U55: =IFERROR(IF(O55="N<10","N<10",VLOOKUP(VALUE($A55),'2013-14 BL Civics'!$A$14:$AG$500,29,FALSE)*100),"Not Tested") -> 43 | V55: 15
A56: 5044 | C56: =VLOOKUP(TEXT(A56,"0000"),SchList!$A$2:$C$483,2,FALSE) -> ACADEMY FOR INT'L EDUCATION CH | D56: =IFERROR(VLOOKUP(TEXT($A56,"0000"),'2012 BL Civics Enrollment'!$A$3:$C$500,3,FALSE),0) -> 13 | E56: =IFERROR(VLOOKUP(TEXT($A56,"0000"),'2013 BL Civics Enrollment'!$A$3:$C$500,3,FALSE),"") -> 47 | F56: =IFERROR(IF(VLOOKUP(VALUE(A56),'2012-13 BL Civics'!$A$14:$C$200,3,FALSE)<10,"N<10",IF(VLOOKUP(VALUE(A56),'2012-13 BL Civics'!$A$14:$C$200,3,FALSE)>D56,100,VLOOKUP(VALUE(A56),'2012-13 BL Civics'!$A$14:$C$200,3,FALSE)/D56%)),"Not Tested") -> 100 | G56: =IFERROR(IF(VLOOKUP(VALUE(A56),'2013-14 BL Civics'!$A$14:$C$200,3,FALSE)<10,"N<10",IF(VLOOKUP(VALUE(A56),'2013-14 BL Civics'!$A$14:$C$200,3,FALSE)>E56,100,VLOOKUP(VALUE(A56),'2013-14 BL Civics'!$A$14:$C$200,3,FALSE)/E56%)),"Not Tested") -> 97.87234043 | H56: =IFERROR(IF(F56="N<10","N<10",VLOOKUP(VALUE($A56),'2012-13 BL Civics'!$A$14:$AG$500,5,FALSE)*100),"Not Tested") -> 33 | I56: =IFERROR(IF(G56="N<10","N<10",VLOOKUP(VALUE($A56),'2013-14 BL Civics'!$A$14:$AG$500,5,FALSE)*100),"Not Tested") -> 41 | J56: 8 | K56: =IFERROR(IF(H56="N<10","N<10",VLOOKUP(VALUE($A56),'2012-13 BL Civics'!$A$14:$AG$500,11,FALSE)*100),"Not Tested") -> 40 | L56: =IFERROR(IF(I56="N<10","N<10",VLOOKUP(VALUE($A56),'2013-14 BL Civics'!$A$14:$AG$500,11,FALSE)*100),"Not Tested") -> 42 | M56: 2 | N56: =IFERROR(IF(K56="N<10","N<10",VLOOKUP(VALUE($A56),'2012-13 BL Civics'!$A$14:$AG$500,17,FALSE)*100),"Not Tested") -> 24 | O56: =IFERROR(IF(L56="N<10","N<10",VLOOKUP(VALUE($A56),'2013-14 BL Civics'!$A$14:$AG$500,17,FALSE)*100),"Not Tested") -> 38 | P56: 14 | Q56: =IFERROR(IF(J56="N<10","N<10",VLOOKUP(VALUE($A56),'2012-13 BL Civics'!$A$14:$AG$500,23,FALSE)*100),"Not Tested") -> 35 | R56: =IFERROR(IF(K56="N<10","N<10",VLOOKUP(VALUE($A56),'2013-14 BL Civics'!$A$14:$AG$500,23,FALSE)*100),"Not Tested") -> 39 | S56: 4 | T56: =IFERROR(IF(N56="N<10","N<10",VLOOKUP(VALUE($A56),'2012-13 BL Civics'!$A$14:$AG$500,29,FALSE)*100),"Not Tested") -> 39 | U56: =IFERROR(IF(O56="N<10","N<10",VLOOKUP(VALUE($A56),'2013-14 BL Civics'!$A$14:$AG$500,29,FALSE)*100),"Not Tested") -> 49 | V56: 10
A57: 5045 | C57: =VLOOKUP(TEXT(A57,"0000"),SchList!$A$2:$C$483,2,FALSE) -> MATER GROVE ACADEMY | D57: =IFERROR(VLOOKUP(TEXT($A57,"0000"),'2012 BL Civics Enrollment'!$A$3:$C$500,3,FALSE),0) -> 0 | E57: =IFERROR(VLOOKUP(TEXT($A57,"0000"),'2013 BL Civics Enrollment'!$A$3:$C$500,3,FALSE),"") -> 16 | F57: =IFERROR(IF(VLOOKUP(VALUE(A57),'2012-13 BL Civics'!$A$14:$C$200,3,FALSE)<10,"N<10",IF(VLOOKUP(VALUE(A57),'2012-13 BL Civics'!$A$14:$C$200,3,FALSE)>D57,100,VLOOKUP(VALUE(A57),'2012-13 BL Civics'!$A$14:$C$200,3,FALSE)/D57%)),"Not Tested") -> Not Tested | G57: =IFERROR(IF(VLOOKUP(VALUE(A57),'2013-14 BL Civics'!$A$14:$C$200,3,FALSE)<10,"N<10",IF(VLOOKUP(VALUE(A57),'2013-14 BL Civics'!$A$14:$C$200,3,FALSE)>E57,100,VLOOKUP(VALUE(A57),'2013-14 BL Civics'!$A$14:$C$200,3,FALSE)/E57%)),"Not Tested") -> 100 | H57: =IFERROR(IF(F57="N<10","N<10",VLOOKUP(VALUE($A57),'2012-13 BL Civics'!$A$14:$AG$500,5,FALSE)*100),"Not Tested") -> Not Tested | I57: =IFERROR(IF(G57="N<10","N<10",VLOOKUP(VALUE($A57),'2013-14 BL Civics'!$A$14:$AG$500,5,FALSE)*100),"Not Tested") -> 39 | K57: =IFERROR(IF(H57="N<10","N<10",VLOOKUP(VALUE($A57),'2012-13 BL Civics'!$A$14:$AG$500,11,FALSE)*100),"Not Tested") -> Not Tested | L57: =IFERROR(IF(I57="N<10","N<10",VLOOKUP(VALUE($A57),'2013-14 BL Civics'!$A$14:$AG$500,11,FALSE)*100),"Not Tested") -> 42 | N57: =IFERROR(IF(K57="N<10","N<10",VLOOKUP(VALUE($A57),'2012-13 BL Civics'!$A$14:$AG$500,17,FALSE)*100),"Not Tested") -> Not Tested | O57: =IFERROR(IF(L57="N<10","N<10",VLOOKUP(VALUE($A57),'2013-14 BL Civics'!$A$14:$AG$500,17,FALSE)*100),"Not Tested") -> 33 | Q57: =IFERROR(IF(J57="N<10","N<10",VLOOKUP(VALUE($A57),'2012-13 BL Civics'!$A$14:$AG$500,23,FALSE)*100),"Not Tested") -> Not Tested | R57: =IFERROR(IF(K57="N<10","N<10",VLOOKUP(VALUE($A57),'2013-14 BL Civics'!$A$14:$AG$500,23,FALSE)*100),"Not Tested") -> 41 | T57: =IFERROR(IF(N57="N<10","N<10",VLOOKUP(VALUE($A57),'2012-13 BL Civics'!$A$14:$AG$500,29,FALSE)*100),"Not Tested") -> Not Tested | U57: =IFERROR(IF(O57="N<10","N<10",VLOOKUP(VALUE($A57),'2013-14 BL Civics'!$A$14:$AG$500,29,FALSE)*100),"Not Tested") -> 41
A58: 5046 | C58: =VLOOKUP(TEXT(A58,"0000"),SchList!$A$2:$C$483,2,FALSE) -> MATER BRICKELL PREP ACADEMY | D58: =IFERROR(VLOOKUP(TEXT($A58,"0000"),'2012 BL Civics Enrollment'!$A$3:$C$500,3,FALSE),0) -> 0 | E58: =IFERROR(VLOOKUP(TEXT($A58,"0000"),'2013 BL Civics Enrollment'!$A$3:$C$500,3,FALSE),"") -> 14 | F58: =IFERROR(IF(VLOOKUP(VALUE(A58),'2012-13 BL Civics'!$A$14:$C$200,3,FALSE)<10,"N<10",IF(VLOOKUP(VALUE(A58),'2012-13 BL Civics'!$A$14:$C$200,3,FALSE)>D58,100,VLOOKUP(VALUE(A58),'2012-13 BL Civics'!$A$14:$C$200,3,FALSE)/D58%)),"Not Tested") -> Not Tested | G58: =IFERROR(IF(VLOOKUP(VALUE(A58),'2013-14 BL Civics'!$A$14:$C$200,3,FALSE)<10,"N<10",IF(VLOOKUP(VALUE(A58),'2013-14 BL Civics'!$A$14:$C$200,3,FALSE)>E58,100,VLOOKUP(VALUE(A58),'2013-14 BL Civics'!$A$14:$C$200,3,FALSE)/E58%)),"Not Tested") -> 100 | H58: =IFERROR(IF(F58="N<10","N<10",VLOOKUP(VALUE($A58),'2012-13 BL Civics'!$A$14:$AG$500,5,FALSE)*100),"Not Tested") -> Not Tested | I58: =IFERROR(IF(G58="N<10","N<10",VLOOKUP(VALUE($A58),'2013-14 BL Civics'!$A$14:$AG$500,5,FALSE)*100),"Not Tested") -> 40 | K58: =IFERROR(IF(H58="N<10","N<10",VLOOKUP(VALUE($A58),'2012-13 BL Civics'!$A$14:$AG$500,11,FALSE)*100),"Not Tested") -> Not Tested | L58: =IFERROR(IF(I58="N<10","N<10",VLOOKUP(VALUE($A58),'2013-14 BL Civics'!$A$14:$AG$500,11,FALSE)*100),"Not Tested") -> 39 | N58: =IFERROR(IF(K58="N<10","N<10",VLOOKUP(VALUE($A58),'2012-13 BL Civics'!$A$14:$AG$500,17,FALSE)*100),"Not Tested") -> Not Tested | O58: =IFERROR(IF(L58="N<10","N<10",VLOOKUP(VALUE($A58),'2013-14 BL Civics'!$A$14:$AG$500,17,FALSE)*100),"Not Tested") -> 36 | Q58: =IFERROR(IF(J58="N<10","N<10",VLOOKUP(VALUE($A58),'2012-13 BL Civics'!$A$14:$AG$500,23,FALSE)*100),"Not Tested") -> Not Tested | R58: =IFERROR(IF(K58="N<10","N<10",VLOOKUP(VALUE($A58),'2013-14 BL Civics'!$A$14:$AG$500,23,FALSE)*100),"Not Tested") -> 41 | T58: =IFERROR(IF(N58="N<10","N<10",VLOOKUP(VALUE($A58),'2012-13 BL Civics'!$A$14:$AG$500,29,FALSE)*100),"Not Tested") -> Not Tested | U58: =IFERROR(IF(O58="N<10","N<10",VLOOKUP(VALUE($A58),'2013-14 BL Civics'!$A$14:$AG$500,29,FALSE)*100),"Not Tested") -> 45
A59: 5047 | C59: =VLOOKUP(TEXT(A59,"0000"),SchList!$A$2:$C$483,2,FALSE) -> MATER ACADEMY (MIAMI BEACH) | D59: =IFERROR(VLOOKUP(TEXT($A59,"0000"),'2012 BL Civics Enrollment'!$A$3:$C$500,3,FALSE),0) -> 80 | E59: =IFERROR(VLOOKUP(TEXT($A59,"0000"),'2013 BL Civics Enrollment'!$A$3:$C$500,3,FALSE),"") -> 48 | F59: =IFERROR(IF(VLOOKUP(VALUE(A59),'2012-13 BL Civics'!$A$14:$C$200,3,FALSE)<10,"N<10",IF(VLOOKUP(VALUE(A59),'2012-13 BL Civics'!$A$14:$C$200,3,FALSE)>D59,100,VLOOKUP(VALUE(A59),'2012-13 BL Civics'!$A$14:$C$200,3,FALSE)/D59%)),"Not Tested") -> 86.25 | G59: =IFERROR(IF(VLOOKUP(VALUE(A59),'2013-14 BL Civics'!$A$14:$C$200,3,FALSE)<10,"N<10",IF(VLOOKUP(VALUE(A59),'2013-14 BL Civics'!$A$14:$C$200,3,FALSE)>E59,100,VLOOKUP(VALUE(A59),'2013-14 BL Civics'!$A$14:$C$200,3,FALSE)/E59%)),"Not Tested") -> 81.25 | H59: =IFERROR(IF(F59="N<10","N<10",VLOOKUP(VALUE($A59),'2012-13 BL Civics'!$A$14:$AG$500,5,FALSE)*100),"Not Tested") -> 34 | I59: =IFERROR(IF(G59="N<10","N<10",VLOOKUP(VALUE($A59),'2013-14 BL Civics'!$A$14:$AG$500,5,FALSE)*100),"Not Tested") -> 38 | J59: 4 | K59: =IFERROR(IF(H59="N<10","N<10",VLOOKUP(VALUE($A59),'2012-13 BL Civics'!$A$14:$AG$500,11,FALSE)*100),"Not Tested") -> 45 | L59: =IFERROR(IF(I59="N<10","N<10",VLOOKUP(VALUE($A59),'2013-14 BL Civics'!$A$14:$AG$500,11,FALSE)*100),"Not Tested") -> 40 | M59: -5 | N59: =IFERROR(IF(K59="N<10","N<10",VLOOKUP(VALUE($A59),'2012-13 BL Civics'!$A$14:$AG$500,17,FALSE)*100),"Not Tested") -> 29 | O59: =IFERROR(IF(L59="N<10","N<10",VLOOKUP(VALUE($A59),'2013-14 BL Civics'!$A$14:$AG$500,17,FALSE)*100),"Not Tested") -> 33 | P59: 4 | Q59: =IFERROR(IF(J59="N<10","N<10",VLOOKUP(VALUE($A59),'2012-13 BL Civics'!$A$14:$AG$500,23,FALSE)*100),"Not Tested") -> 29 | R59: =IFERROR(IF(K59="N<10","N<10",VLOOKUP(VALUE($A59),'2013-14 BL Civics'!$A$14:$AG$500,23,FALSE)*100),"Not Tested") -> 39 | S59: 10 | T59: =IFERROR(IF(N59="N<10","N<10",VLOOKUP(VALUE($A59),'2012-13 BL Civics'!$A$14:$AG$500,29,FALSE)*100),"Not Tested") -> 37 | U59: =IFERROR(IF(O59="N<10","N<10",VLOOKUP(VALUE($A59),'2013-14 BL Civics'!$A$14:$AG$500,29,FALSE)*100),"Not Tested") -> 42 | V59: 5
A60: 5049 | C60: =VLOOKUP(TEXT(A60,"0000"),SchList!$A$2:$C$483,2,FALSE) -> PINECREST COVE ACADEMY | D60: =IFERROR(VLOOKUP(TEXT($A60,"0000"),'2012 BL Civics Enrollment'!$A$3:$C$500,3,FALSE),0) -> 27 | E60: =IFERROR(VLOOKUP(TEXT($A60,"0000"),'2013 BL Civics Enrollment'!$A$3:$C$500,3,FALSE),"") -> 80 | F60: =IFERROR(IF(VLOOKUP(VALUE(A60),'2012-13 BL Civics'!$A$14:$C$200,3,FALSE)<10,"N<10",IF(VLOOKUP(VALUE(A60),'2012-13 BL Civics'!$A$14:$C$200,3,FALSE)>D60,100,VLOOKUP(VALUE(A60),'2012-13 BL Civics'!$A$14:$C$200,3,FALSE)/D60%)),"Not Tested") -> 100 | G60: =IFERROR(IF(VLOOKUP(VALUE(A60),'2013-14 BL Civics'!$A$14:$C$200,3,FALSE)<10,"N<10",IF(VLOOKUP(VALUE(A60),'2013-14 BL Civics'!$A$14:$C$200,3,FALSE)>E60,100,VLOOKUP(VALUE(A60),'2013-14 BL Civics'!$A$14:$C$200,3,FALSE)/E60%)),"Not Tested") -> 97.5 | H60: =IFERROR(IF(F60="N<10","N<10",VLOOKUP(VALUE($A60),'2012-13 BL Civics'!$A$14:$AG$500,5,FALSE)*100),"Not Tested") -> 37 | I60: =IFERROR(IF(G60="N<10","N<10",VLOOKUP(VALUE($A60),'2013-14 BL Civics'!$A$14:$AG$500,5,FALSE)*100),"Not Tested") -> 38 | J60: 1 | K60: =IFERROR(IF(H60="N<10","N<10",VLOOKUP(VALUE($A60),'2012-13 BL Civics'!$A$14:$AG$500,11,FALSE)*100),"Not Tested") -> 43 | L60: =IFERROR(IF(I60="N<10","N<10",VLOOKUP(VALUE($A60),'2013-14 BL Civics'!$A$14:$AG$500,11,FALSE)*100),"Not Tested") -> 40 | M60: -3 | N60: =IFERROR(IF(K60="N<10","N<10",VLOOKUP(VALUE($A60),'2012-13 BL Civics'!$A$14:$AG$500,17,FALSE)*100),"Not Tested") -> 28 | O60: =IFERROR(IF(L60="N<10","N<10",VLOOKUP(VALUE($A60),'2013-14 BL Civics'!$A$14:$AG$500,17,FALSE)*100),"Not Tested") -> 32 | P60: 4 | Q60: =IFERROR(IF(J60="N<10","N<10",VLOOKUP(VALUE($A60),'2012-13 BL Civics'!$A$14:$AG$500,23,FALSE)*100),"Not Tested") -> 38 | R60: =IFERROR(IF(K60="N<10","N<10",VLOOKUP(VALUE($A60),'2013-14 BL Civics'!$A$14:$AG$500,23,FALSE)*100),"Not Tested") -> 38 | S60: 0 | T60: =IFERROR(IF(N60="N<10","N<10",VLOOKUP(VALUE($A60),'2012-13 BL Civics'!$A$14:$AG$500,29,FALSE)*100),"Not Tested") -> 41 | U60: =IFERROR(IF(O60="N<10","N<10",VLOOKUP(VALUE($A60),'2013-14 BL Civics'!$A$14:$AG$500,29,FALSE)*100),"Not Tested") -> 47 | V60: 6
A61: 5051 | C61: =VLOOKUP(TEXT(A61,"0000"),SchList!$A$2:$C$483,2,FALSE) -> ERNEST R GRAHAM K-8 CENTER | D61: =IFERROR(VLOOKUP(TEXT($A61,"0000"),'2012 BL Civics Enrollment'!$A$3:$C$500,3,FALSE),0) -> 104 | E61: =IFERROR(VLOOKUP(TEXT($A61,"0000"),'2013 BL Civics Enrollment'!$A$3:$C$500,3,FALSE),"") -> 131 | F61: =IFERROR(IF(VLOOKUP(VALUE(A61),'2012-13 BL Civics'!$A$14:$C$200,3,FALSE)<10,"N<10",IF(VLOOKUP(VALUE(A61),'2012-13 BL Civics'!$A$14:$C$200,3,FALSE)>D61,100,VLOOKUP(VALUE(A61),'2012-13 BL Civics'!$A$14:$C$200,3,FALSE)/D61%)),"Not Tested") -> 99.03846154 | G61: =IFERROR(IF(VLOOKUP(VALUE(A61),'2013-14 BL Civics'!$A$14:$C$200,3,FALSE)<10,"N<10",IF(VLOOKUP(VALUE(A61),'2013-14 BL Civics'!$A$14:$C$200,3,FALSE)>E61,100,VLOOKUP(VALUE(A61),'2013-14 BL Civics'!$A$14:$C$200,3,FALSE)/E61%)),"Not Tested") -> 99.23664122 | H61: =IFERROR(IF(F61="N<10","N<10",VLOOKUP(VALUE($A61),'2012-13 BL Civics'!$A$14:$AG$500,5,FALSE)*100),"Not Tested") -> 33 | I61: =IFERROR(IF(G61="N<10","N<10",VLOOKUP(VALUE($A61),'2013-14 BL Civics'!$A$14:$AG$500,5,FALSE)*100),"Not Tested") -> 35 | J61: 2 | K61: =IFERROR(IF(H61="N<10","N<10",VLOOKUP(VALUE($A61),'2012-13 BL Civics'!$A$14:$AG$500,11,FALSE)*100),"Not Tested") -> 39 | L61: =IFERROR(IF(I61="N<10","N<10",VLOOKUP(VALUE($A61),'2013-14 BL Civics'!$A$14:$AG$500,11,FALSE)*100),"Not Tested") -> 37 | M61: -2 | N61: =IFERROR(IF(K61="N<10","N<10",VLOOKUP(VALUE($A61),'2012-13 BL Civics'!$A$14:$AG$500,17,FALSE)*100),"Not Tested") -> 27 | O61: =IFERROR(IF(L61="N<10","N<10",VLOOKUP(VALUE($A61),'2013-14 BL Civics'!$A$14:$AG$500,17,FALSE)*100),"Not Tested") -> 29 | P61: 2 | Q61: =IFERROR(IF(J61="N<10","N<10",VLOOKUP(VALUE($A61),'2012-13 BL Civics'!$A$14:$AG$500,23,FALSE)*100),"Not Tested") -> 30 | R61: =IFERROR(IF(K61="N<10","N<10",VLOOKUP(VALUE($A61),'2013-14 BL Civics'!$A$14:$AG$500,23,FALSE)*100),"Not Tested") -> 33 | S61: 3 | T61: =IFERROR(IF(N61="N<10","N<10",VLOOKUP(VALUE($A61),'2012-13 BL Civics'!$A$14:$AG$500,29,FALSE)*100),"Not Tested") -> 36 | U61: =IFERROR(IF(O61="N<10","N<10",VLOOKUP(VALUE($A61),'2013-14 BL Civics'!$A$14:$AG$500,29,FALSE)*100),"Not Tested") -> 46 | V61: 10
A62: 5101 | C62: =VLOOKUP(TEXT(A62,"0000"),SchList!$A$2:$C$483,2,FALSE) -> JOHN I. SMITH K-8 CENTER | D62: =IFERROR(VLOOKUP(TEXT($A62,"0000"),'2012 BL Civics Enrollment'!$A$3:$C$500,3,FALSE),0) -> 110 | E62: =IFERROR(VLOOKUP(TEXT($A62,"0000"),'2013 BL Civics Enrollment'!$A$3:$C$500,3,FALSE),"") -> 103 | F62: =IFERROR(IF(VLOOKUP(VALUE(A62),'2012-13 BL Civics'!$A$14:$C$200,3,FALSE)<10,"N<10",IF(VLOOKUP(VALUE(A62),'2012-13 BL Civics'!$A$14:$C$200,3,FALSE)>D62,100,VLOOKUP(VALUE(A62),'2012-13 BL Civics'!$A$14:$C$200,3,FALSE)/D62%)),"Not Tested") -> 95.45454545 | G62: =IFERROR(IF(VLOOKUP(VALUE(A62),'2013-14 BL Civics'!$A$14:$C$200,3,FALSE)<10,"N<10",IF(VLOOKUP(VALUE(A62),'2013-14 BL Civics'!$A$14:$C$200,3,FALSE)>E62,100,VLOOKUP(VALUE(A62),'2013-14 BL Civics'!$A$14:$C$200,3,FALSE)/E62%)),"Not Tested") -> 76.69902913 | H62: =IFERROR(IF(F62="N<10","N<10",VLOOKUP(VALUE($A62),'2012-13 BL Civics'!$A$14:$AG$500,5,FALSE)*100),"Not Tested") -> 28 | I62: =IFERROR(IF(G62="N<10","N<10",VLOOKUP(VALUE($A62),'2013-14 BL Civics'!$A$14:$AG$500,5,FALSE)*100),"Not Tested") -> 33 | J62: 5 | K62: =IFERROR(IF(H62="N<10","N<10",VLOOKUP(VALUE($A62),'2012-13 BL Civics'!$A$14:$AG$500,11,FALSE)*100),"Not Tested") -> 35 | L62: =IFERROR(IF(I62="N<10","N<10",VLOOKUP(VALUE($A62),'2013-14 BL Civics'!$A$14:$AG$500,11,FALSE)*100),"Not Tested") -> 35 | M62: 0 | N62: =IFERROR(IF(K62="N<10","N<10",VLOOKUP(VALUE($A62),'2012-13 BL Civics'!$A$14:$AG$500,17,FALSE)*100),"Not Tested") -> 21 | O62: =IFERROR(IF(L62="N<10","N<10",VLOOKUP(VALUE($A62),'2013-14 BL Civics'!$A$14:$AG$500,17,FALSE)*100),"Not Tested") -> 31 | P62: 10 | Q62: =IFERROR(IF(J62="N<10","N<10",VLOOKUP(VALUE($A62),'2012-13 BL Civics'!$A$14:$AG$500,23,FALSE)*100),"Not Tested") -> 28 | R62: =IFERROR(IF(K62="N<10","N<10",VLOOKUP(VALUE($A62),'2013-14 BL Civics'!$A$14:$AG$500,23,FALSE)*100),"Not Tested") -> 32 | S62: 4 | T62: =IFERROR(IF(N62="N<10","N<10",VLOOKUP(VALUE($A62),'2012-13 BL Civics'!$A$14:$AG$500,29,FALSE)*100),"Not Tested") -> 31 | U62: =IFERROR(IF(O62="N<10","N<10",VLOOKUP(VALUE($A62),'2013-14 BL Civics'!$A$14:$AG$500,29,FALSE)*100),"Not Tested") -> 35 | V62: 4
A63: 5141 | C63: =VLOOKUP(TEXT(A63,"0000"),SchList!$A$2:$C$483,2,FALSE) -> HUBERT O. SIBLEY K-8 CENTER | D63: =IFERROR(VLOOKUP(TEXT($A63,"0000"),'2012 BL Civics Enrollment'!$A$3:$C$500,3,FALSE),0) -> 98 | E63: =IFERROR(VLOOKUP(TEXT($A63,"0000"),'2013 BL Civics Enrollment'!$A$3:$C$500,3,FALSE),"") -> 95 | F63: =IFERROR(IF(VLOOKUP(VALUE(A63),'2012-13 BL Civics'!$A$14:$C$200,3,FALSE)<10,"N<10",IF(VLOOKUP(VALUE(A63),'2012-13 BL Civics'!$A$14:$C$200,3,FALSE)>D63,100,VLOOKUP(VALUE(A63),'2012-13 BL Civics'!$A$14:$C$200,3,FALSE)/D63%)),"Not Tested") -> 93.87755102 | G63: =IFERROR(IF(VLOOKUP(VALUE(A63),'2013-14 BL Civics'!$A$14:$C$200,3,FALSE)<10,"N<10",IF(VLOOKUP(VALUE(A63),'2013-14 BL Civics'!$A$14:$C$200,3,FALSE)>E63,100,VLOOKUP(VALUE(A63),'2013-14 BL Civics'!$A$14:$C$200,3,FALSE)/E63%)),"Not Tested") -> 93.68421053 | H63: =IFERROR(IF(F63="N<10","N<10",VLOOKUP(VALUE($A63),'2012-13 BL Civics'!$A$14:$AG$500,5,FALSE)*100),"Not Tested") -> 31 | I63: =IFERROR(IF(G63="N<10","N<10",VLOOKUP(VALUE($A63),'2013-14 BL Civics'!$A$14:$AG$500,5,FALSE)*100),"Not Tested") -> 32 | J63: 1 | K63: =IFERROR(IF(H63="N<10","N<10",VLOOKUP(VALUE($A63),'2012-13 BL Civics'!$A$14:$AG$500,11,FALSE)*100),"Not Tested") -> 34 | L63: =IFERROR(IF(I63="N<10","N<10",VLOOKUP(VALUE($A63),'2013-14 BL Civics'!$A$14:$AG$500,11,FALSE)*100),"Not Tested") -> 31 | M63: -3 | N63: =IFERROR(IF(K63="N<10","N<10",VLOOKUP(VALUE($A63),'2012-13 BL Civics'!$A$14:$AG$500,17,FALSE)*100),"Not Tested") -> 26 | O63: =IFERROR(IF(L63="N<10","N<10",VLOOKUP(VALUE($A63),'2013-14 BL Civics'!$A$14:$AG$500,17,FALSE)*100),"Not Tested") -> 27 | P63: 1 | Q63: =IFERROR(IF(J63="N<10","N<10",VLOOKUP(VALUE($A63),'2012-13 BL Civics'!$A$14:$AG$500,23,FALSE)*100),"Not Tested") -> 32 | R63: =IFERROR(IF(K63="N<10","N<10",VLOOKUP(VALUE($A63),'2013-14 BL Civics'!$A$14:$AG$500,23,FALSE)*100),"Not Tested") -> 33 | S63: 1 | T63: =IFERROR(IF(N63="N<10","N<10",VLOOKUP(VALUE($A63),'2012-13 BL Civics'!$A$14:$AG$500,29,FALSE)*100),"Not Tested") -> 33 | U63: =IFERROR(IF(O63="N<10","N<10",VLOOKUP(VALUE($A63),'2013-14 BL Civics'!$A$14:$AG$500,29,FALSE)*100),"Not Tested") -> 40 | V63: 7
A64: 5241 | C64: =VLOOKUP(TEXT(A64,"0000"),SchList!$A$2:$C$483,2,FALSE) -> SOUTH MIAMI K-8 CENTER | D64: =IFERROR(VLOOKUP(TEXT($A64,"0000"),'2012 BL Civics Enrollment'!$A$3:$C$500,3,FALSE),0) -> 63 | E64: =IFERROR(VLOOKUP(TEXT($A64,"0000"),'2013 BL Civics Enrollment'!$A$3:$C$500,3,FALSE),"") -> 64 | F64: =IFERROR(IF(VLOOKUP(VALUE(A64),'2012-13 BL Civics'!$A$14:$C$200,3,FALSE)<10,"N<10",IF(VLOOKUP(VALUE(A64),'2012-13 BL Civics'!$A$14:$C$200,3,FALSE)>D64,100,VLOOKUP(VALUE(A64),'2012-13 BL Civics'!$A$14:$C$200,3,FALSE)/D64%)),"Not Tested") -> 100 | G64: =IFERROR(IF(VLOOKUP(VALUE(A64),'2013-14 BL Civics'!$A$14:$C$200,3,FALSE)<10,"N<10",IF(VLOOKUP(VALUE(A64),'2013-14 BL Civics'!$A$14:$C$200,3,FALSE)>E64,100,VLOOKUP(VALUE(A64),'2013-14 BL Civics'!$A$14:$C$200,3,FALSE)/E64%)),"Not Tested") -> 100 | H64: =IFERROR(IF(F64="N<10","N<10",VLOOKUP(VALUE($A64),'2012-13 BL Civics'!$A$14:$AG$500,5,FALSE)*100),"Not Tested") -> 32 | I64: =IFERROR(IF(G64="N<10","N<10",VLOOKUP(VALUE($A64),'2013-14 BL Civics'!$A$14:$AG$500,5,FALSE)*100),"Not Tested") -> 43 | J64: 11 | K64: =IFERROR(IF(H64="N<10","N<10",VLOOKUP(VALUE($A64),'2012-13 BL Civics'!$A$14:$AG$500,11,FALSE)*100),"Not Tested") -> 40 | L64: =IFERROR(IF(I64="N<10","N<10",VLOOKUP(VALUE($A64),'2013-14 BL Civics'!$A$14:$AG$500,11,FALSE)*100),"Not Tested") -> 44 | M64: 4 | N64: =IFERROR(IF(K64="N<10","N<10",VLOOKUP(VALUE($A64),'2012-13 BL Civics'!$A$14:$AG$500,17,FALSE)*100),"Not Tested") -> 28 | O64: =IFERROR(IF(L64="N<10","N<10",VLOOKUP(VALUE($A64),'2013-14 BL Civics'!$A$14:$AG$500,17,FALSE)*100),"Not Tested") -> 38 | P64: 10 | Q64: =IFERROR(IF(J64="N<10","N<10",VLOOKUP(VALUE($A64),'2012-13 BL Civics'!$A$14:$AG$500,23,FALSE)*100),"Not Tested") -> 30 | R64: =IFERROR(IF(K64="N<10","N<10",VLOOKUP(VALUE($A64),'2013-14 BL Civics'!$A$14:$AG$500,23,FALSE)*100),"Not Tested") -> 45 | S64: 15 | T64: =IFERROR(IF(N64="N<10","N<10",VLOOKUP(VALUE($A64),'2012-13 BL Civics'!$A$14:$AG$500,29,FALSE)*100),"Not Tested") -> 32 | U64: =IFERROR(IF(O64="N<10","N<10",VLOOKUP(VALUE($A64),'2013-14 BL Civics'!$A$14:$AG$500,29,FALSE)*100),"Not Tested") -> 45 | V64: 13
A65: 5671 | C65: =VLOOKUP(TEXT(A65,"0000"),SchList!$A$2:$C$483,2,FALSE) -> VINELAND K-8 CENTER | D65: =IFERROR(VLOOKUP(TEXT($A65,"0000"),'2012 BL Civics Enrollment'!$A$3:$C$500,3,FALSE),0) -> 89 | E65: =IFERROR(VLOOKUP(TEXT($A65,"0000"),'2013 BL Civics Enrollment'!$A$3:$C$500,3,FALSE),"") -> 82 | F65: =IFERROR(IF(VLOOKUP(VALUE(A65),'2012-13 BL Civics'!$A$14:$C$200,3,FALSE)<10,"N<10",IF(VLOOKUP(VALUE(A65),'2012-13 BL Civics'!$A$14:$C$200,3,FALSE)>D65,100,VLOOKUP(VALUE(A65),'2012-13 BL Civics'!$A$14:$C$200,3,FALSE)/D65%)),"Not Tested") -> 100 | G65: =IFERROR(IF(VLOOKUP(VALUE(A65),'2013-14 BL Civics'!$A$14:$C$200,3,FALSE)<10,"N<10",IF(VLOOKUP(VALUE(A65),'2013-14 BL Civics'!$A$14:$C$200,3,FALSE)>E65,100,VLOOKUP(VALUE(A65),'2013-14 BL Civics'!$A$14:$C$200,3,FALSE)/E65%)),"Not Tested") -> 97.56097561 | H65: =IFERROR(IF(F65="N<10","N<10",VLOOKUP(VALUE($A65),'2012-13 BL Civics'!$A$14:$AG$500,5,FALSE)*100),"Not Tested") -> 40 | I65: =IFERROR(IF(G65="N<10","N<10",VLOOKUP(VALUE($A65),'2013-14 BL Civics'!$A$14:$AG$500,5,FALSE)*100),"Not Tested") -> 39 | J65: -1 | K65: =IFERROR(IF(H65="N<10","N<10",VLOOKUP(VALUE($A65),'2012-13 BL Civics'!$A$14:$AG$500,11,FALSE)*100),"Not Tested") -> 47 | L65: =IFERROR(IF(I65="N<10","N<10",VLOOKUP(VALUE($A65),'2013-14 BL Civics'!$A$14:$AG$500,11,FALSE)*100),"Not Tested") -> 42 | M65: -5 | N65: =IFERROR(IF(K65="N<10","N<10",VLOOKUP(VALUE($A65),'2012-13 BL Civics'!$A$14:$AG$500,17,FALSE)*100),"Not Tested") -> 30 | O65: =IFERROR(IF(L65="N<10","N<10",VLOOKUP(VALUE($A65),'2013-14 BL Civics'!$A$14:$AG$500,17,FALSE)*100),"Not Tested") -> 34 | P65: 4 | Q65: =IFERROR(IF(J65="N<10","N<10",VLOOKUP(VALUE($A65),'2012-13 BL Civics'!$A$14:$AG$500,23,FALSE)*100),"Not Tested") -> 42 | R65: =IFERROR(IF(K65="N<10","N<10",VLOOKUP(VALUE($A65),'2013-14 BL Civics'!$A$14:$AG$500,23,FALSE)*100),"Not Tested") -> 40 | S65: -2 | T65: =IFERROR(IF(N65="N<10","N<10",VLOOKUP(VALUE($A65),'2012-13 BL Civics'!$A$14:$AG$500,29,FALSE)*100),"Not Tested") -> 44 | U65: =IFERROR(IF(O65="N<10","N<10",VLOOKUP(VALUE($A65),'2013-14 BL Civics'!$A$14:$AG$500,29,FALSE)*100),"Not Tested") -> 44 | V65: 0
A66: 5861 | C66: =VLOOKUP(TEXT(A66,"0000"),SchList!$A$2:$C$483,2,FALSE) -> DR H W MACK/W LITTLE RIVER K8 | D66: =IFERROR(VLOOKUP(TEXT($A66,"0000"),'2012 BL Civics Enrollment'!$A$3:$C$500,3,FALSE),0) -> 43 | E66: =IFERROR(VLOOKUP(TEXT($A66,"0000"),'2013 BL Civics Enrollment'!$A$3:$C$500,3,FALSE),"") -> 44 | F66: =IFERROR(IF(VLOOKUP(VALUE(A66),'2012-13 BL Civics'!$A$14:$C$200,3,FALSE)<10,"N<10",IF(VLOOKUP(VALUE(A66),'2012-13 BL Civics'!$A$14:$C$200,3,FALSE)>D66,100,VLOOKUP(VALUE(A66),'2012-13 BL Civics'!$A$14:$C$200,3,FALSE)/D66%)),"Not Tested") -> 83.72093023 | G66: =IFERROR(IF(VLOOKUP(VALUE(A66),'2013-14 BL Civics'!$A$14:$C$200,3,FALSE)<10,"N<10",IF(VLOOKUP(VALUE(A66),'2013-14 BL Civics'!$A$14:$C$200,3,FALSE)>E66,100,VLOOKUP(VALUE(A66),'2013-14 BL Civics'!$A$14:$C$200,3,FALSE)/E66%)),"Not Tested") -> 90.90909091 | H66: =IFERROR(IF(F66="N<10","N<10",VLOOKUP(VALUE($A66),'2012-13 BL Civics'!$A$14:$AG$500,5,FALSE)*100),"Not Tested") -> 33 | I66: =IFERROR(IF(G66="N<10","N<10",VLOOKUP(VALUE($A66),'2013-14 BL Civics'!$A$14:$AG$500,5,FALSE)*100),"Not Tested") -> 34 | J66: 1 | K66: =IFERROR(IF(H66="N<10","N<10",VLOOKUP(VALUE($A66),'2012-13 BL Civics'!$A$14:$AG$500,11,FALSE)*100),"Not Tested") -> 37 | L66: =IFERROR(IF(I66="N<10","N<10",VLOOKUP(VALUE($A66),'2013-14 BL Civics'!$A$14:$AG$500,11,FALSE)*100),"Not Tested") -> 34 | M66: -3 | N66: =IFERROR(IF(K66="N<10","N<10",VLOOKUP(VALUE($A66),'2012-13 BL Civics'!$A$14:$AG$500,17,FALSE)*100),"Not Tested") -> 29 | O66: =IFERROR(IF(L66="N<10","N<10",VLOOKUP(VALUE($A66),'2013-14 BL Civics'!$A$14:$AG$500,17,FALSE)*100),"Not Tested") -> 30 | P66: 1 | Q66: =IFERROR(IF(J66="N<10","N<10",VLOOKUP(VALUE($A66),'2012-13 BL Civics'!$A$14:$AG$500,23,FALSE)*100),"Not Tested") -> 34 | R66: =IFERROR(IF(K66="N<10","N<10",VLOOKUP(VALUE($A66),'2013-14 BL Civics'!$A$14:$AG$500,23,FALSE)*100),"Not Tested") -> 30 | S66: -4 | T66: =IFERROR(IF(N66="N<10","N<10",VLOOKUP(VALUE($A66),'2012-13 BL Civics'!$A$14:$AG$500,29,FALSE)*100),"Not Tested") -> 33 | U66: =IFERROR(IF(O66="N<10","N<10",VLOOKUP(VALUE($A66),'2013-14 BL Civics'!$A$14:$AG$500,29,FALSE)*100),"Not Tested") -> 43 | V66: 10
A67: 5901 | C67: =VLOOKUP(TEXT(A67,"0000"),SchList!$A$2:$C$483,2,FALSE) -> CARRIE P MEEK/WESTVIEW K-8 CTR | D67: =IFERROR(VLOOKUP(TEXT($A67,"0000"),'2012 BL Civics Enrollment'!$A$3:$C$500,3,FALSE),0) -> 61 | E67: =IFERROR(VLOOKUP(TEXT($A67,"0000"),'2013 BL Civics Enrollment'!$A$3:$C$500,3,FALSE),"") -> 77 | F67: =IFERROR(IF(VLOOKUP(VALUE(A67),'2012-13 BL Civics'!$A$14:$C$200,3,FALSE)<10,"N<10",IF(VLOOKUP(VALUE(A67),'2012-13 BL Civics'!$A$14:$C$200,3,FALSE)>D67,100,VLOOKUP(VALUE(A67),'2012-13 BL Civics'!$A$14:$C$200,3,FALSE)/D67%)),"Not Tested") -> 90.16393443 | G67: =IFERROR(IF(VLOOKUP(VALUE(A67),'2013-14 BL Civics'!$A$14:$C$200,3,FALSE)<10,"N<10",IF(VLOOKUP(VALUE(A67),'2013-14 BL Civics'!$A$14:$C$200,3,FALSE)>E67,100,VLOOKUP(VALUE(A67),'2013-14 BL Civics'!$A$14:$C$200,3,FALSE)/E67%)),"Not Tested") -> 92.20779221 | H67: =IFERROR(IF(F67="N<10","N<10",VLOOKUP(VALUE($A67),'2012-13 BL Civics'!$A$14:$AG$500,5,FALSE)*100),"Not Tested") -> 32 | I67: =IFERROR(IF(G67="N<10","N<10",VLOOKUP(VALUE($A67),'2013-14 BL Civics'!$A$14:$AG$500,5,FALSE)*100),"Not Tested") -> 32 | J67: 0 | K67: =IFERROR(IF(H67="N<10","N<10",VLOOKUP(VALUE($A67),'2012-13 BL Civics'!$A$14:$AG$500,11,FALSE)*100),"Not Tested") -> 37 | L67: =IFERROR(IF(I67="N<10","N<10",VLOOKUP(VALUE($A67),'2013-14 BL Civics'!$A$14:$AG$500,11,FALSE)*100),"Not Tested") -> 35 | M67: -2 | N67: =IFERROR(IF(K67="N<10","N<10",VLOOKUP(VALUE($A67),'2012-13 BL Civics'!$A$14:$AG$500,17,FALSE)*100),"Not Tested") -> 27 | O67: =IFERROR(IF(L67="N<10","N<10",VLOOKUP(VALUE($A67),'2013-14 BL Civics'!$A$14:$AG$500,17,FALSE)*100),"Not Tested") -> 27 | P67: 0 | Q67: =IFERROR(IF(J67="N<10","N<10",VLOOKUP(VALUE($A67),'2012-13 BL Civics'!$A$14:$AG$500,23,FALSE)*100),"Not Tested") -> 32 | R67: =IFERROR(IF(K67="N<10","N<10",VLOOKUP(VALUE($A67),'2013-14 BL Civics'!$A$14:$AG$500,23,FALSE)*100),"Not Tested") -> 30 | S67: -2 | T67: =IFERROR(IF(N67="N<10","N<10",VLOOKUP(VALUE($A67),'2012-13 BL Civics'!$A$14:$AG$500,29,FALSE)*100),"Not Tested") -> 35 | U67: =IFERROR(IF(O67="N<10","N<10",VLOOKUP(VALUE($A67),'2013-14 BL Civics'!$A$14:$AG$500,29,FALSE)*100),"Not Tested") -> 38 | V67: 3
A68: 5961 | C68: =VLOOKUP(TEXT(A68,"0000"),SchList!$A$2:$C$483,2,FALSE) -> WINSTON PARK K-8 CENTER | D68: =IFERROR(VLOOKUP(TEXT($A68,"0000"),'2012 BL Civics Enrollment'!$A$3:$C$500,3,FALSE),0) -> 164 | E68: =IFERROR(VLOOKUP(TEXT($A68,"0000"),'2013 BL Civics Enrollment'!$A$3:$C$500,3,FALSE),"") -> 153 | F68: =IFERROR(IF(VLOOKUP(VALUE(A68),'2012-13 BL Civics'!$A$14:$C$200,3,FALSE)<10,"N<10",IF(VLOOKUP(VALUE(A68),'2012-13 BL Civics'!$A$14:$C$200,3,FALSE)>D68,100,VLOOKUP(VALUE(A68),'2012-13 BL Civics'!$A$14:$C$200,3,FALSE)/D68%)),"Not Tested") -> 97.56097561 | G68: =IFERROR(IF(VLOOKUP(VALUE(A68),'2013-14 BL Civics'!$A$14:$C$200,3,FALSE)<10,"N<10",IF(VLOOKUP(VALUE(A68),'2013-14 BL Civics'!$A$14:$C$200,3,FALSE)>E68,100,VLOOKUP(VALUE(A68),'2013-14 BL Civics'!$A$14:$C$200,3,FALSE)/E68%)),"Not Tested") -> 95.4248366 | H68: =IFERROR(IF(F68="N<10","N<10",VLOOKUP(VALUE($A68),'2012-13 BL Civics'!$A$14:$AG$500,5,FALSE)*100),"Not Tested") -> 34 | I68: =IFERROR(IF(G68="N<10","N<10",VLOOKUP(VALUE($A68),'2013-14 BL Civics'!$A$14:$AG$500,5,FALSE)*100),"Not Tested") -> 27 | J68: =IFERROR(I68-H68,"") -> -7 | K68: =IFERROR(IF(H68="N<10","N<10",VLOOKUP(VALUE($A68),'2012-13 BL Civics'!$A$14:$AG$500,11,FALSE)*100),"Not Tested") -> 43 | L68: =IFERROR(IF(I68="N<10","N<10",VLOOKUP(VALUE($A68),'2013-14 BL Civics'!$A$14:$AG$500,11,FALSE)*100),"Not Tested") -> 26 | M68: =IFERROR(L68-K68,"") -> -17 | N68: =IFERROR(IF(K68="N<10","N<10",VLOOKUP(VALUE($A68),'2012-13 BL Civics'!$A$14:$AG$500,17,FALSE)*100),"Not Tested") -> 29 | O68: =IFERROR(IF(L68="N<10","N<10",VLOOKUP(VALUE($A68),'2013-14 BL Civics'!$A$14:$AG$500,17,FALSE)*100),"Not Tested") -> 27 | P68: =IFERROR(O68-N68,"") -> -2 | Q68: =IFERROR(IF(J68="N<10","N<10",VLOOKUP(VALUE($A68),'2012-13 BL Civics'!$A$14:$AG$500,23,FALSE)*100),"Not Tested") -> 35 | R68: =IFERROR(IF(K68="N<10","N<10",VLOOKUP(VALUE($A68),'2013-14 BL Civics'!$A$14:$AG$500,23,FALSE)*100),"Not Tested") -> 27 | S68: =IFERROR(R68-Q68,"") -> -8 | T68: =IFERROR(IF(N68="N<10","N<10",VLOOKUP(VALUE($A68),'2012-13 BL Civics'!$A$14:$AG$500,29,FALSE)*100),"Not Tested") -> 33 | U68: =IFERROR(IF(O68="N<10","N<10",VLOOKUP(VALUE($A68),'2013-14 BL Civics'!$A$14:$AG$500,29,FALSE)*100),"Not Tested") -> 28 | V68: =IFERROR(U68-T68,"") -> -5
A69: 6001 | C69: =VLOOKUP(TEXT(A69,"0000"),SchList!$A$2:$C$483,2,FALSE) -> HERBERT A. AMMONS MIDDLE | D69: =IFERROR(VLOOKUP(TEXT($A69,"0000"),'2012 BL Civics Enrollment'!$A$3:$C$500,3,FALSE),0) -> 419 | E69: =IFERROR(VLOOKUP(TEXT($A69,"0000"),'2013 BL Civics Enrollment'!$A$3:$C$500,3,FALSE),"") -> 402 | F69: =IFERROR(IF(VLOOKUP(VALUE(A69),'2012-13 BL Civics'!$A$14:$C$200,3,FALSE)<10,"N<10",IF(VLOOKUP(VALUE(A69),'2012-13 BL Civics'!$A$14:$C$200,3,FALSE)>D69,100,VLOOKUP(VALUE(A69),'2012-13 BL Civics'!$A$14:$C$200,3,FALSE)/D69%)),"Not Tested") -> 99.04534606 | G69: =IFERROR(IF(VLOOKUP(VALUE(A69),'2013-14 BL Civics'!$A$14:$C$200,3,FALSE)<10,"N<10",IF(VLOOKUP(VALUE(A69),'2013-14 BL Civics'!$A$14:$C$200,3,FALSE)>E69,100,VLOOKUP(VALUE(A69),'2013-14 BL Civics'!$A$14:$C$200,3,FALSE)/E69%)),"Not Tested") -> 99.75124378 | H69: =IFERROR(IF(F69="N<10","N<10",VLOOKUP(VALUE($A69),'2012-13 BL Civics'!$A$14:$AG$500,5,FALSE)*100),"Not Tested") -> 40 | I69: =IFERROR(IF(G69="N<10","N<10",VLOOKUP(VALUE($A69),'2013-14 BL Civics'!$A$14:$AG$500,5,FALSE)*100),"Not Tested") -> 47 | J69: 7 | K69: =IFERROR(IF(H69="N<10","N<10",VLOOKUP(VALUE($A69),'2012-13 BL Civics'!$A$14:$AG$500,11,FALSE)*100),"Not Tested") -> 52 | L69: =IFERROR(IF(I69="N<10","N<10",VLOOKUP(VALUE($A69),'2013-14 BL Civics'!$A$14:$AG$500,11,FALSE)*100),"Not Tested") -> 50 | M69: -2 | N69: =IFERROR(IF(K69="N<10","N<10",VLOOKUP(VALUE($A69),'2012-13 BL Civics'!$A$14:$AG$500,17,FALSE)*100),"Not Tested") -> 31 | O69: =IFERROR(IF(L69="N<10","N<10",VLOOKUP(VALUE($A69),'2013-14 BL Civics'!$A$14:$AG$500,17,FALSE)*100),"Not Tested") -> 42 | P69: 11 | Q69: =IFERROR(IF(J69="N<10","N<10",VLOOKUP(VALUE($A69),'2012-13 BL Civics'!$A$14:$AG$500,23,FALSE)*100),"Not Tested") -> 40 | R69: =IFERROR(IF(K69="N<10","N<10",VLOOKUP(VALUE($A69),'2013-14 BL Civics'!$A$14:$AG$500,23,FALSE)*100),"Not Tested") -> 46 | S69: 6 | T69: =IFERROR(IF(N69="N<10","N<10",VLOOKUP(VALUE($A69),'2012-13 BL Civics'!$A$14:$AG$500,29,FALSE)*100),"Not Tested") -> 41 | U69: =IFERROR(IF(O69="N<10","N<10",VLOOKUP(VALUE($A69),'2013-14 BL Civics'!$A$14:$AG$500,29,FALSE)*100),"Not Tested") -> 52 | V69: 11
A70: 6004 | C70: =VLOOKUP(TEXT(A70,"0000"),SchList!$A$2:$C$483,2,FALSE) -> SOMERSET ACADEMY MIDDLE | D70: =IFERROR(VLOOKUP(TEXT($A70,"0000"),'2012 BL Civics Enrollment'!$A$3:$C$500,3,FALSE),0) -> 92 | E70: =IFERROR(VLOOKUP(TEXT($A70,"0000"),'2013 BL Civics Enrollment'!$A$3:$C$500,3,FALSE),"") -> 73 | F70: =IFERROR(IF(VLOOKUP(VALUE(A70),'2012-13 BL Civics'!$A$14:$C$200,3,FALSE)<10,"N<10",IF(VLOOKUP(VALUE(A70),'2012-13 BL Civics'!$A$14:$C$200,3,FALSE)>D70,100,VLOOKUP(VALUE(A70),'2012-13 BL Civics'!$A$14:$C$200,3,FALSE)/D70%)),"Not Tested") -> 100 | G70: =IFERROR(IF(VLOOKUP(VALUE(A70),'2013-14 BL Civics'!$A$14:$C$200,3,FALSE)<10,"N<10",IF(VLOOKUP(VALUE(A70),'2013-14 BL Civics'!$A$14:$C$200,3,FALSE)>E70,100,VLOOKUP(VALUE(A70),'2013-14 BL Civics'!$A$14:$C$200,3,FALSE)/E70%)),"Not Tested") -> 97.26027397 | H70: =IFERROR(IF(F70="N<10","N<10",VLOOKUP(VALUE($A70),'2012-13 BL Civics'!$A$14:$AG$500,5,FALSE)*100),"Not Tested") -> 36 | I70: =IFERROR(IF(G70="N<10","N<10",VLOOKUP(VALUE($A70),'2013-14 BL Civics'!$A$14:$AG$500,5,FALSE)*100),"Not Tested") -> 37 | J70: 1 | K70: =IFERROR(IF(H70="N<10","N<10",VLOOKUP(VALUE($A70),'2012-13 BL Civics'!$A$14:$AG$500,11,FALSE)*100),"Not Tested") -> 44 | L70: =IFERROR(IF(I70="N<10","N<10",VLOOKUP(VALUE($A70),'2013-14 BL Civics'!$A$14:$AG$500,11,FALSE)*100),"Not Tested") -> 37 | M70: -7 | N70: =IFERROR(IF(K70="N<10","N<10",VLOOKUP(VALUE($A70),'2012-13 BL Civics'!$A$14:$AG$500,17,FALSE)*100),"Not Tested") -> 30 | O70: =IFERROR(IF(L70="N<10","N<10",VLOOKUP(VALUE($A70),'2013-14 BL Civics'!$A$14:$AG$500,17,FALSE)*100),"Not Tested") -> 31 | P70: 1 | Q70: =IFERROR(IF(J70="N<10","N<10",VLOOKUP(VALUE($A70),'2012-13 BL Civics'!$A$14:$AG$500,23,FALSE)*100),"Not Tested") -> 35 | R70: =IFERROR(IF(K70="N<10","N<10",VLOOKUP(VALUE($A70),'2013-14 BL Civics'!$A$14:$AG$500,23,FALSE)*100),"Not Tested") -> 37 | S70: 2 | T70: =IFERROR(IF(N70="N<10","N<10",VLOOKUP(VALUE($A70),'2012-13 BL Civics'!$A$14:$AG$500,29,FALSE)*100),"Not Tested") -> 38 | U70: =IFERROR(IF(O70="N<10","N<10",VLOOKUP(VALUE($A70),'2013-14 BL Civics'!$A$14:$AG$500,29,FALSE)*100),"Not Tested") -> 48 | V70: 10
A71: 6005 | C71: =VLOOKUP(TEXT(A71,"0000"),SchList!$A$2:$C$483,2,FALSE) -> RAMZ ACAD MIDDLE MIAMI CAMPUS | D71: =IFERROR(VLOOKUP(TEXT($A71,"0000"),'2012 BL Civics Enrollment'!$A$3:$C$500,3,FALSE),0) -> 36 | E71: =IFERROR(VLOOKUP(TEXT($A71,"0000"),'2013 BL Civics Enrollment'!$A$3:$C$500,3,FALSE),"") -> 46 | F71: =IFERROR(IF(VLOOKUP(VALUE(A71),'2012-13 BL Civics'!$A$14:$C$200,3,FALSE)<10,"N<10",IF(VLOOKUP(VALUE(A71),'2012-13 BL Civics'!$A$14:$C$200,3,FALSE)>D71,100,VLOOKUP(VALUE(A71),'2012-13 BL Civics'!$A$14:$C$200,3,FALSE)/D71%)),"Not Tested") -> 100 | G71: =IFERROR(IF(VLOOKUP(VALUE(A71),'2013-14 BL Civics'!$A$14:$C$200,3,FALSE)<10,"N<10",IF(VLOOKUP(VALUE(A71),'2013-14 BL Civics'!$A$14:$C$200,3,FALSE)>E71,100,VLOOKUP(VALUE(A71),'2013-14 BL Civics'!$A$14:$C$200,3,FALSE)/E71%)),"Not Tested") -> 97.82608696 | H71: =IFERROR(IF(F71="N<10","N<10",VLOOKUP(VALUE($A71),'2012-13 BL Civics'!$A$14:$AG$500,5,FALSE)*100),"Not Tested") -> 31 | I71: =IFERROR(IF(G71="N<10","N<10",VLOOKUP(VALUE($A71),'2013-14 BL Civics'!$A$14:$AG$500,5,FALSE)*100),"Not Tested") -> 34 | J71: 3 | K71: =IFERROR(IF(H71="N<10","N<10",VLOOKUP(VALUE($A71),'2012-13 BL Civics'!$A$14:$AG$500,11,FALSE)*100),"Not Tested") -> 35 | L71: =IFERROR(IF(I71="N<10","N<10",VLOOKUP(VALUE($A71),'2013-14 BL Civics'!$A$14:$AG$500,11,FALSE)*100),"Not Tested") -> 37 | M71: 2 | N71: =IFERROR(IF(K71="N<10","N<10",VLOOKUP(VALUE($A71),'2012-13 BL Civics'!$A$14:$AG$500,17,FALSE)*100),"Not Tested") -> 29 | O71: =IFERROR(IF(L71="N<10","N<10",VLOOKUP(VALUE($A71),'2013-14 BL Civics'!$A$14:$AG$500,17,FALSE)*100),"Not Tested") -> 27 | P71: -2 | Q71: =IFERROR(IF(J71="N<10","N<10",VLOOKUP(VALUE($A71),'2012-13 BL Civics'!$A$14:$AG$500,23,FALSE)*100),"Not Tested") -> 26 | R71: =IFERROR(IF(K71="N<10","N<10",VLOOKUP(VALUE($A71),'2013-14 BL Civics'!$A$14:$AG$500,23,FALSE)*100),"Not Tested") -> 34 | S71: 8 | T71: =IFERROR(IF(N71="N<10","N<10",VLOOKUP(VALUE($A71),'2012-13 BL Civics'!$A$14:$AG$500,29,FALSE)*100),"Not Tested") -> 35 | U71: =IFERROR(IF(O71="N<10","N<10",VLOOKUP(VALUE($A71),'2013-14 BL Civics'!$A$14:$AG$500,29,FALSE)*100),"Not Tested") -> 41 | V71: 6
A72: 6006 | C72: =VLOOKUP(TEXT(A72,"0000"),SchList!$A$2:$C$483,2,FALSE) -> ARCHIMEDEAN CONSERVATORY | D72: =IFERROR(VLOOKUP(TEXT($A72,"0000"),'2012 BL Civics Enrollment'!$A$3:$C$500,3,FALSE),0) -> 121 | E72: =IFERROR(VLOOKUP(TEXT($A72,"0000"),'2013 BL Civics Enrollment'!$A$3:$C$500,3,FALSE),"") -> 109 | F72: =IFERROR(IF(VLOOKUP(VALUE(A72),'2012-13 BL Civics'!$A$14:$C$200,3,FALSE)<10,"N<10",IF(VLOOKUP(VALUE(A72),'2012-13 BL Civics'!$A$14:$C$200,3,FALSE)>D72,100,VLOOKUP(VALUE(A72),'2012-13 BL Civics'!$A$14:$C$200,3,FALSE)/D72%)),"Not Tested") -> 100 | G72: =IFERROR(IF(VLOOKUP(VALUE(A72),'2013-14 BL Civics'!$A$14:$C$200,3,FALSE)<10,"N<10",IF(VLOOKUP(VALUE(A72),'2013-14 BL Civics'!$A$14:$C$200,3,FALSE)>E72,100,VLOOKUP(VALUE(A72),'2013-14 BL Civics'!$A$14:$C$200,3,FALSE)/E72%)),"Not Tested") -> 100 | H72: =IFERROR(IF(F72="N<10","N<10",VLOOKUP(VALUE($A72),'2012-13 BL Civics'!$A$14:$AG$500,5,FALSE)*100),"Not Tested") -> 41 | I72: =IFERROR(IF(G72="N<10","N<10",VLOOKUP(VALUE($A72),'2013-14 BL Civics'!$A$14:$AG$500,5,FALSE)*100),"Not Tested") -> 44 | J72: 3 | K72: =IFERROR(IF(H72="N<10","N<10",VLOOKUP(VALUE($A72),'2012-13 BL Civics'!$A$14:$AG$500,11,FALSE)*100),"Not Tested") -> 51 | L72: =IFERROR(IF(I72="N<10","N<10",VLOOKUP(VALUE($A72),'2013-14 BL Civics'!$A$14:$AG$500,11,FALSE)*100),"Not Tested") -> 52 | M72: 1 | N72: =IFERROR(IF(K72="N<10","N<10",VLOOKUP(VALUE($A72),'2012-13 BL Civics'!$A$14:$AG$500,17,FALSE)*100),"Not Tested") -> 30 | O72: =IFERROR(IF(L72="N<10","N<10",VLOOKUP(VALUE($A72),'2013-14 BL Civics'!$A$14:$AG$500,17,FALSE)*100),"Not Tested") -> 35 | P72: 5 | Q72: =IFERROR(IF(J72="N<10","N<10",VLOOKUP(VALUE($A72),'2012-13 BL Civics'!$A$14:$AG$500,23,FALSE)*100),"Not Tested") -> 44 | R72: =IFERROR(IF(K72="N<10","N<10",VLOOKUP(VALUE($A72),'2013-14 BL Civics'!$A$14:$AG$500,23,FALSE)*100),"Not Tested") -> 45 | S72: 1 | T72: =IFERROR(IF(N72="N<10","N<10",VLOOKUP(VALUE($A72),'2012-13 BL Civics'!$A$14:$AG$500,29,FALSE)*100),"Not Tested") -> 43 | U72: =IFERROR(IF(O72="N<10","N<10",VLOOKUP(VALUE($A72),'2013-14 BL Civics'!$A$14:$AG$500,29,FALSE)*100),"Not Tested") -> 48 | V72: 5
A73: 6008 | C73: =VLOOKUP(TEXT(A73,"0000"),SchList!$A$2:$C$483,2,FALSE) -> LAWRENCE ACADEMY MIDDLE | D73: =IFERROR(VLOOKUP(TEXT($A73,"0000"),'2012 BL Civics Enrollment'!$A$3:$C$500,3,FALSE),0) -> 35 | E73: =IFERROR(VLOOKUP(TEXT($A73,"0000"),'2013 BL Civics Enrollment'!$A$3:$C$500,3,FALSE),"") -> 28 | F73: =IFERROR(IF(VLOOKUP(VALUE(A73),'2012-13 BL Civics'!$A$14:$C$200,3,FALSE)<10,"N<10",IF(VLOOKUP(VALUE(A73),'2012-13 BL Civics'!$A$14:$C$200,3,FALSE)>D73,100,VLOOKUP(VALUE(A73),'2012-13 BL Civics'!$A$14:$C$200,3,FALSE)/D73%)),"Not Tested") -> 77.14285714 | G73: =IFERROR(IF(VLOOKUP(VALUE(A73),'2013-14 BL Civics'!$A$14:$C$200,3,FALSE)<10,"N<10",IF(VLOOKUP(VALUE(A73),'2013-14 BL Civics'!$A$14:$C$200,3,FALSE)>E73,100,VLOOKUP(VALUE(A73),'2013-14 BL Civics'!$A$14:$C$200,3,FALSE)/E73%)),"Not Tested") -> 89.28571429 | H73: =IFERROR(IF(F73="N<10","N<10",VLOOKUP(VALUE($A73),'2012-13 BL Civics'!$A$14:$AG$500,5,FALSE)*100),"Not Tested") -> 34 | I73: =IFERROR(IF(G73="N<10","N<10",VLOOKUP(VALUE($A73),'2013-14 BL Civics'!$A$14:$AG$500,5,FALSE)*100),"Not Tested") -> 34 | J73: 0 | K73: =IFERROR(IF(H73="N<10","N<10",VLOOKUP(VALUE($A73),'2012-13 BL Civics'!$A$14:$AG$500,11,FALSE)*100),"Not Tested") -> 32 | L73: =IFERROR(IF(I73="N<10","N<10",VLOOKUP(VALUE($A73),'2013-14 BL Civics'!$A$14:$AG$500,11,FALSE)*100),"Not Tested") -> 31 | M73: -1 | N73: =IFERROR(IF(K73="N<10","N<10",VLOOKUP(VALUE($A73),'2012-13 BL Civics'!$A$14:$AG$500,17,FALSE)*100),"Not Tested") -> 30 | O73: =IFERROR(IF(L73="N<10","N<10",VLOOKUP(VALUE($A73),'2013-14 BL Civics'!$A$14:$AG$500,17,FALSE)*100),"Not Tested") -> 30 | P73: 0 | Q73: =IFERROR(IF(J73="N<10","N<10",VLOOKUP(VALUE($A73),'2012-13 BL Civics'!$A$14:$AG$500,23,FALSE)*100),"Not Tested") -> 38 | R73: =IFERROR(IF(K73="N<10","N<10",VLOOKUP(VALUE($A73),'2013-14 BL Civics'!$A$14:$AG$500,23,FALSE)*100),"Not Tested") -> 37 | S73: -1 | T73: =IFERROR(IF(N73="N<10","N<10",VLOOKUP(VALUE($A73),'2012-13 BL Civics'!$A$14:$AG$500,29,FALSE)*100),"Not Tested") -> 37 | U73: =IFERROR(IF(O73="N<10","N<10",VLOOKUP(VALUE($A73),'2013-14 BL Civics'!$A$14:$AG$500,29,FALSE)*100),"Not Tested") -> 40 | V73: 3
A74: 6009 | C74: =VLOOKUP(TEXT(A74,"0000"),SchList!$A$2:$C$483,2,FALSE) -> MATER ACADEMY EAST MIDDLE | D74: =IFERROR(VLOOKUP(TEXT($A74,"0000"),'2012 BL Civics Enrollment'!$A$3:$C$500,3,FALSE),0) -> 116 | E74: =IFERROR(VLOOKUP(TEXT($A74,"0000"),'2013 BL Civics Enrollment'!$A$3:$C$500,3,FALSE),"") -> 118 | F74: =IFERROR(IF(VLOOKUP(VALUE(A74),'2012-13 BL Civics'!$A$14:$C$200,3,FALSE)<10,"N<10",IF(VLOOKUP(VALUE(A74),'2012-13 BL Civics'!$A$14:$C$200,3,FALSE)>D74,100,VLOOKUP(VALUE(A74),'2012-13 BL Civics'!$A$14:$C$200,3,FALSE)/D74%)),"Not Tested") -> 96.55172414 | G74: =IFERROR(IF(VLOOKUP(VALUE(A74),'2013-14 BL Civics'!$A$14:$C$200,3,FALSE)<10,"N<10",IF(VLOOKUP(VALUE(A74),'2013-14 BL Civics'!$A$14:$C$200,3,FALSE)>E74,100,VLOOKUP(VALUE(A74),'2013-14 BL Civics'!$A$14:$C$200,3,FALSE)/E74%)),"Not Tested") -> 92.37288136 | H74: =IFERROR(IF(F74="N<10","N<10",VLOOKUP(VALUE($A74),'2012-13 BL Civics'!$A$14:$AG$500,5,FALSE)*100),"Not Tested") -> 35 | I74: =IFERROR(IF(G74="N<10","N<10",VLOOKUP(VALUE($A74),'2013-14 BL Civics'!$A$14:$AG$500,5,FALSE)*100),"Not Tested") -> 37 | J74: 2 | K74: =IFERROR(IF(H74="N<10","N<10",VLOOKUP(VALUE($A74),'2012-13 BL Civics'!$A$14:$AG$500,11,FALSE)*100),"Not Tested") -> 38 | L74: =IFERROR(IF(I74="N<10","N<10",VLOOKUP(VALUE($A74),'2013-14 BL Civics'!$A$14:$AG$500,11,FALSE)*100),"Not Tested") -> 40 | M74: 2 | N74: =IFERROR(IF(K74="N<10","N<10",VLOOKUP(VALUE($A74),'2012-13 BL Civics'!$A$14:$AG$500,17,FALSE)*100),"Not Tested") -> 30 | O74: =IFERROR(IF(L74="N<10","N<10",VLOOKUP(VALUE($A74),'2013-14 BL Civics'!$A$14:$AG$500,17,FALSE)*100),"Not Tested") -> 32 | P74: 2 | Q74: =IFERROR(IF(J74="N<10","N<10",VLOOKUP(VALUE($A74),'2012-13 BL Civics'!$A$14:$AG$500,23,FALSE)*100),"Not Tested") -> 35 | R74: =IFERROR(IF(K74="N<10","N<10",VLOOKUP(VALUE($A74),'2013-14 BL Civics'!$A$14:$AG$500,23,FALSE)*100),"Not Tested") -> 37 | S74: 2 | T74: =IFERROR(IF(N74="N<10","N<10",VLOOKUP(VALUE($A74),'2012-13 BL Civics'!$A$14:$AG$500,29,FALSE)*100),"Not Tested") -> 37 | U74: =IFERROR(IF(O74="N<10","N<10",VLOOKUP(VALUE($A74),'2013-14 BL Civics'!$A$14:$AG$500,29,FALSE)*100),"Not Tested") -> 42 | V74: 5
A75: 6010 | C75: =VLOOKUP(TEXT(A75,"0000"),SchList!$A$2:$C$483,2,FALSE) -> FLORIDA INTERNATIONAL ACADEMY | D75: =IFERROR(VLOOKUP(TEXT($A75,"0000"),'2012 BL Civics Enrollment'!$A$3:$C$500,3,FALSE),0) -> 123 | E75: =IFERROR(VLOOKUP(TEXT($A75,"0000"),'2013 BL Civics Enrollment'!$A$3:$C$500,3,FALSE),"") -> 93 | F75: =IFERROR(IF(VLOOKUP(VALUE(A75),'2012-13 BL Civics'!$A$14:$C$200,3,FALSE)<10,"N<10",IF(VLOOKUP(VALUE(A75),'2012-13 BL Civics'!$A$14:$C$200,3,FALSE)>D75,100,VLOOKUP(VALUE(A75),'2012-13 BL Civics'!$A$14:$C$200,3,FALSE)/D75%)),"Not Tested") -> 95.12195122 | G75: =IFERROR(IF(VLOOKUP(VALUE(A75),'2013-14 BL Civics'!$A$14:$C$200,3,FALSE)<10,"N<10",IF(VLOOKUP(VALUE(A75),'2013-14 BL Civics'!$A$14:$C$200,3,FALSE)>E75,100,VLOOKUP(VALUE(A75),'2013-14 BL Civics'!$A$14:$C$200,3,FALSE)/E75%)),"Not Tested") -> 70.96774194 | H75: =IFERROR(IF(F75="N<10","N<10",VLOOKUP(VALUE($A75),'2012-13 BL Civics'!$A$14:$AG$500,5,FALSE)*100),"Not Tested") -> 32 | I75: =IFERROR(IF(G75="N<10","N<10",VLOOKUP(VALUE($A75),'2013-14 BL Civics'!$A$14:$AG$500,5,FALSE)*100),"Not Tested") -> 33 | J75: 1 | K75: =IFERROR(IF(H75="N<10","N<10",VLOOKUP(VALUE($A75),'2012-13 BL Civics'!$A$14:$AG$500,11,FALSE)*100),"Not Tested") -> 40 | L75: =IFERROR(IF(I75="N<10","N<10",VLOOKUP(VALUE($A75),'2013-14 BL Civics'!$A$14:$AG$500,11,FALSE)*100),"Not Tested") -> 32 | M75: -8 | N75: =IFERROR(IF(K75="N<10","N<10",VLOOKUP(VALUE($A75),'2012-13 BL Civics'!$A$14:$AG$500,17,FALSE)*100),"Not Tested") -> 27 | O75: =IFERROR(IF(L75="N<10","N<10",VLOOKUP(VALUE($A75),'2013-14 BL Civics'!$A$14:$AG$500,17,FALSE)*100),"Not Tested") -> 28 | P75: 1 | Q75: =IFERROR(IF(J75="N<10","N<10",VLOOKUP(VALUE($A75),'2012-13 BL Civics'!$A$14:$AG$500,23,FALSE)*100),"Not Tested") -> 31 | R75: =IFERROR(IF(K75="N<10","N<10",VLOOKUP(VALUE($A75),'2013-14 BL Civics'!$A$14:$AG$500,23,FALSE)*100),"Not Tested") -> 32 | S75: 1 | T75: =IFERROR(IF(N75="N<10","N<10",VLOOKUP(VALUE($A75),'2012-13 BL Civics'!$A$14:$AG$500,29,FALSE)*100),"Not Tested") -> 32 | U75: =IFERROR(IF(O75="N<10","N<10",VLOOKUP(VALUE($A75),'2013-14 BL Civics'!$A$14:$AG$500,29,FALSE)*100),"Not Tested") -> 43 | V75: 11
A76: 6011 | C76: =VLOOKUP(TEXT(A76,"0000"),SchList!$A$2:$C$483,2,FALSE) -> ALLAPATTAH MIDDLE | D76: =IFERROR(VLOOKUP(TEXT($A76,"0000"),'2012 BL Civics Enrollment'!$A$3:$C$500,3,FALSE),0) -> 193 | E76: =IFERROR(VLOOKUP(TEXT($A76,"0000"),'2013 BL Civics Enrollment'!$A$3:$C$500,3,FALSE),"") -> 163 | F76: =IFERROR(IF(VLOOKUP(VALUE(A76),'2012-13 BL Civics'!$A$14:$C$200,3,FALSE)<10,"N<10",IF(VLOOKUP(VALUE(A76),'2012-13 BL Civics'!$A$14:$C$200,3,FALSE)>D76,100,VLOOKUP(VALUE(A76),'2012-13 BL Civics'!$A$14:$C$200,3,FALSE)/D76%)),"Not Tested") -> 75.12953368 | G76: =IFERROR(IF(VLOOKUP(VALUE(A76),'2013-14 BL Civics'!$A$14:$C$200,3,FALSE)<10,"N<10",IF(VLOOKUP(VALUE(A76),'2013-14 BL Civics'!$A$14:$C$200,3,FALSE)>E76,100,VLOOKUP(VALUE(A76),'2013-14 BL Civics'!$A$14:$C$200,3,FALSE)/E76%)),"Not Tested") -> 92.02453988 | H76: =IFERROR(IF(F76="N<10","N<10",VLOOKUP(VALUE($A76),'2012-13 BL Civics'!$A$14:$AG$500,5,FALSE)*100),"Not Tested") -> 29 | I76: =IFERROR(IF(G76="N<10","N<10",VLOOKUP(VALUE($A76),'2013-14 BL Civics'!$A$14:$AG$500,5,FALSE)*100),"Not Tested") -> 28 | J76: -1 | K76: =IFERROR(IF(H76="N<10","N<10",VLOOKUP(VALUE($A76),'2012-13 BL Civics'!$A$14:$AG$500,11,FALSE)*100),"Not Tested") -> 33 | L76: =IFERROR(IF(I76="N<10","N<10",VLOOKUP(VALUE($A76),'2013-14 BL Civics'!$A$14:$AG$500,11,FALSE)*100),"Not Tested") -> 30 | M76: -3 | N76: =IFERROR(IF(K76="N<10","N<10",VLOOKUP(VALUE($A76),'2012-13 BL Civics'!$A$14:$AG$500,17,FALSE)*100),"Not Tested") -> 24 | O76: =IFERROR(IF(L76="N<10","N<10",VLOOKUP(VALUE($A76),'2013-14 BL Civics'!$A$14:$AG$500,17,FALSE)*100),"Not Tested") -> 27 | P76: 3 | Q76: =IFERROR(IF(J76="N<10","N<10",VLOOKUP(VALUE($A76),'2012-13 BL Civics'!$A$14:$AG$500,23,FALSE)*100),"Not Tested") -> 29 | R76: =IFERROR(IF(K76="N<10","N<10",VLOOKUP(VALUE($A76),'2013-14 BL Civics'!$A$14:$AG$500,23,FALSE)*100),"Not Tested") -> 27 | S76: -2 | T76: =IFERROR(IF(N76="N<10","N<10",VLOOKUP(VALUE($A76),'2012-13 BL Civics'!$A$14:$AG$500,29,FALSE)*100),"Not Tested") -> 32 | U76: =IFERROR(IF(O76="N<10","N<10",VLOOKUP(VALUE($A76),'2013-14 BL Civics'!$A$14:$AG$500,29,FALSE)*100),"Not Tested") -> 32 | V76: 0
A77: 6012 | C77: =VLOOKUP(TEXT(A77,"0000"),SchList!$A$2:$C$483,2,FALSE) -> MATER ACADEMY CHARTER MIDDLE | D77: =IFERROR(VLOOKUP(TEXT($A77,"0000"),'2012 BL Civics Enrollment'!$A$3:$C$500,3,FALSE),0) -> 502 | E77: =IFERROR(VLOOKUP(TEXT($A77,"0000"),'2013 BL Civics Enrollment'!$A$3:$C$500,3,FALSE),"") -> 462 | F77: =IFERROR(IF(VLOOKUP(VALUE(A77),'2012-13 BL Civics'!$A$14:$C$200,3,FALSE)<10,"N<10",IF(VLOOKUP(VALUE(A77),'2012-13 BL Civics'!$A$14:$C$200,3,FALSE)>D77,100,VLOOKUP(VALUE(A77),'2012-13 BL Civics'!$A$14:$C$200,3,FALSE)/D77%)),"Not Tested") -> 97.01195219 | G77: =IFERROR(IF(VLOOKUP(VALUE(A77),'2013-14 BL Civics'!$A$14:$C$200,3,FALSE)<10,"N<10",IF(VLOOKUP(VALUE(A77),'2013-14 BL Civics'!$A$14:$C$200,3,FALSE)>E77,100,VLOOKUP(VALUE(A77),'2013-14 BL Civics'!$A$14:$C$200,3,FALSE)/E77%)),"Not Tested") -> 95.45454545 | H77: =IFERROR(IF(F77="N<10","N<10",VLOOKUP(VALUE($A77),'2012-13 BL Civics'!$A$14:$AG$500,5,FALSE)*100),"Not Tested") -> 36 | I77: =IFERROR(IF(G77="N<10","N<10",VLOOKUP(VALUE($A77),'2013-14 BL Civics'!$A$14:$AG$500,5,FALSE)*100),"Not Tested") -> 39 | J77: 3 | K77: =IFERROR(IF(H77="N<10","N<10",VLOOKUP(VALUE($A77),'2012-13 BL Civics'!$A$14:$AG$500,11,FALSE)*100),"Not Tested") -> 44 | L77: =IFERROR(IF(I77="N<10","N<10",VLOOKUP(VALUE($A77),'2013-14 BL Civics'!$A$14:$AG$500,11,FALSE)*100),"Not Tested") -> 42 | M77: -2 | N77: =IFERROR(IF(K77="N<10","N<10",VLOOKUP(VALUE($A77),'2012-13 BL Civics'!$A$14:$AG$500,17,FALSE)*100),"Not Tested") -> 30 | O77: =IFERROR(IF(L77="N<10","N<10",VLOOKUP(VALUE($A77),'2013-14 BL Civics'!$A$14:$AG$500,17,FALSE)*100),"Not Tested") -> 34 | P77: 4 | Q77: =IFERROR(IF(J77="N<10","N<10",VLOOKUP(VALUE($A77),'2012-13 BL Civics'!$A$14:$AG$500,23,FALSE)*100),"Not Tested") -> 36 | R77: =IFERROR(IF(K77="N<10","N<10",VLOOKUP(VALUE($A77),'2013-14 BL Civics'!$A$14:$AG$500,23,FALSE)*100),"Not Tested") -> 38 | S77: 2 | T77: =IFERROR(IF(N77="N<10","N<10",VLOOKUP(VALUE($A77),'2012-13 BL Civics'!$A$14:$AG$500,29,FALSE)*100),"Not Tested") -> 37 | U77: =IFERROR(IF(O77="N<10","N<10",VLOOKUP(VALUE($A77),'2013-14 BL Civics'!$A$14:$AG$500,29,FALSE)*100),"Not Tested") -> 45 | V77: 8
A78: 6013 | C78: =VLOOKUP(TEXT(A78,"0000"),SchList!$A$2:$C$483,2,FALSE) -> SOMERSET ACADEMY MIDDLE-SOUTH | D78: =IFERROR(VLOOKUP(TEXT($A78,"0000"),'2012 BL Civics Enrollment'!$A$3:$C$500,3,FALSE),0) -> 42 | E78: =IFERROR(VLOOKUP(TEXT($A78,"0000"),'2013 BL Civics Enrollment'!$A$3:$C$500,3,FALSE),"") -> 73 | F78: =IFERROR(IF(VLOOKUP(VALUE(A78),'2012-13 BL Civics'!$A$14:$C$200,3,FALSE)<10,"N<10",IF(VLOOKUP(VALUE(A78),'2012-13 BL Civics'!$A$14:$C$200,3,FALSE)>D78,100,VLOOKUP(VALUE(A78),'2012-13 BL Civics'!$A$14:$C$200,3,FALSE)/D78%)),"Not Tested") -> 100 | G78: =IFERROR(IF(VLOOKUP(VALUE(A78),'2013-14 BL Civics'!$A$14:$C$200,3,FALSE)<10,"N<10",IF(VLOOKUP(VALUE(A78),'2013-14 BL Civics'!$A$14:$C$200,3,FALSE)>E78,100,VLOOKUP(VALUE(A78),'2013-14 BL Civics'!$A$14:$C$200,3,FALSE)/E78%)),"Not Tested") -> 91.78082192 | H78: =IFERROR(IF(F78="N<10","N<10",VLOOKUP(VALUE($A78),'2012-13 BL Civics'!$A$14:$AG$500,5,FALSE)*100),"Not Tested") -> 34 | I78: =IFERROR(IF(G78="N<10","N<10",VLOOKUP(VALUE($A78),'2013-14 BL Civics'!$A$14:$AG$500,5,FALSE)*100),"Not Tested") -> 34 | J78: 0 | K78: =IFERROR(IF(H78="N<10","N<10",VLOOKUP(VALUE($A78),'2012-13 BL Civics'!$A$14:$AG$500,11,FALSE)*100),"Not Tested") -> 37 | L78: =IFERROR(IF(I78="N<10","N<10",VLOOKUP(VALUE($A78),'2013-14 BL Civics'!$A$14:$AG$500,11,FALSE)*100),"Not Tested") -> 37 | M78: 0 | N78: =IFERROR(IF(K78="N<10","N<10",VLOOKUP(VALUE($A78),'2012-13 BL Civics'!$A$14:$AG$500,17,FALSE)*100),"Not Tested") -> 29 | O78: =IFERROR(IF(L78="N<10","N<10",VLOOKUP(VALUE($A78),'2013-14 BL Civics'!$A$14:$AG$500,17,FALSE)*100),"Not Tested") -> 29 | P78: 0 | Q78: =IFERROR(IF(J78="N<10","N<10",VLOOKUP(VALUE($A78),'2012-13 BL Civics'!$A$14:$AG$500,23,FALSE)*100),"Not Tested") -> 37 | R78: =IFERROR(IF(K78="N<10","N<10",VLOOKUP(VALUE($A78),'2013-14 BL Civics'!$A$14:$AG$500,23,FALSE)*100),"Not Tested") -> 34 | S78: -3 | T78: =IFERROR(IF(N78="N<10","N<10",VLOOKUP(VALUE($A78),'2012-13 BL Civics'!$A$14:$AG$500,29,FALSE)*100),"Not Tested") -> 37 | U78: =IFERROR(IF(O78="N<10","N<10",VLOOKUP(VALUE($A78),'2013-14 BL Civics'!$A$14:$AG$500,29,FALSE)*100),"Not Tested") -> 40 | V78: 3
A79: 6014 | C79: =VLOOKUP(TEXT(A79,"0000"),SchList!$A$2:$C$483,2,FALSE) -> Imater Academy Middle School | D79: =IFERROR(VLOOKUP(TEXT($A79,"0000"),'2012 BL Civics Enrollment'!$A$3:$C$500,3,FALSE),0) -> 0 | E79: =IFERROR(VLOOKUP(TEXT($A79,"0000"),'2013 BL Civics Enrollment'!$A$3:$C$500,3,FALSE),"") -> 161 | F79: =IFERROR(IF(VLOOKUP(VALUE(A79),'2012-13 BL Civics'!$A$14:$C$200,3,FALSE)<10,"N<10",IF(VLOOKUP(VALUE(A79),'2012-13 BL Civics'!$A$14:$C$200,3,FALSE)>D79,100,VLOOKUP(VALUE(A79),'2012-13 BL Civics'!$A$14:$C$200,3,FALSE)/D79%)),"Not Tested") -> Not Tested | G79: =IFERROR(IF(VLOOKUP(VALUE(A79),'2013-14 BL Civics'!$A$14:$C$200,3,FALSE)<10,"N<10",IF(VLOOKUP(VALUE(A79),'2013-14 BL Civics'!$A$14:$C$200,3,FALSE)>E79,100,VLOOKUP(VALUE(A79),'2013-14 BL Civics'!$A$14:$C$200,3,FALSE)/E79%)),"Not Tested") -> 98.75776398 | H79: =IFERROR(IF(F79="N<10","N<10",VLOOKUP(VALUE($A79),'2012-13 BL Civics'!$A$14:$AG$500,5,FALSE)*100),"Not Tested") -> Not Tested | I79: =IFERROR(IF(G79="N<10","N<10",VLOOKUP(VALUE($A79),'2013-14 BL Civics'!$A$14:$AG$500,5,FALSE)*100),"Not Tested") -> 35 | K79: =IFERROR(IF(H79="N<10","N<10",VLOOKUP(VALUE($A79),'2012-13 BL Civics'!$A$14:$AG$500,11,FALSE)*100),"Not Tested") -> Not Tested | L79: =IFERROR(IF(I79="N<10","N<10",VLOOKUP(VALUE($A79),'2013-14 BL Civics'!$A$14:$AG$500,11,FALSE)*100),"Not Tested") -> 39 | N79: =IFERROR(IF(K79="N<10","N<10",VLOOKUP(VALUE($A79),'2012-13 BL Civics'!$A$14:$AG$500,17,FALSE)*100),"Not Tested") -> Not Tested | O79: =IFERROR(IF(L79="N<10","N<10",VLOOKUP(VALUE($A79),'2013-14 BL Civics'!$A$14:$AG$500,17,FALSE)*100),"Not Tested") -> 30 | Q79: =IFERROR(IF(J79="N<10","N<10",VLOOKUP(VALUE($A79),'2012-13 BL Civics'!$A$14:$AG$500,23,FALSE)*100),"Not Tested") -> Not Tested | R79: =IFERROR(IF(K79="N<10","N<10",VLOOKUP(VALUE($A79),'2013-14 BL Civics'!$A$14:$AG$500,23,FALSE)*100),"Not Tested") -> 33 | T79: =IFERROR(IF(N79="N<10","N<10",VLOOKUP(VALUE($A79),'2012-13 BL Civics'!$A$14:$AG$500,29,FALSE)*100),"Not Tested") -> Not Tested | U79: =IFERROR(IF(O79="N<10","N<10",VLOOKUP(VALUE($A79),'2013-14 BL Civics'!$A$14:$AG$500,29,FALSE)*100),"Not Tested") -> 43
A80: 6015 | C80: =VLOOKUP(TEXT(A80,"0000"),SchList!$A$2:$C$483,2,FALSE) -> Sports Leadership And Management (Slam) Chart | D80: =IFERROR(VLOOKUP(TEXT($A80,"0000"),'2012 BL Civics Enrollment'!$A$3:$C$500,3,FALSE),0) -> 0 | E80: =IFERROR(VLOOKUP(TEXT($A80,"0000"),'2013 BL Civics Enrollment'!$A$3:$C$500,3,FALSE),"") -> 158 | F80: =IFERROR(IF(VLOOKUP(VALUE(A80),'2012-13 BL Civics'!$A$14:$C$200,3,FALSE)<10,"N<10",IF(VLOOKUP(VALUE(A80),'2012-13 BL Civics'!$A$14:$C$200,3,FALSE)>D80,100,VLOOKUP(VALUE(A80),'2012-13 BL Civics'!$A$14:$C$200,3,FALSE)/D80%)),"Not Tested") -> Not Tested | G80: =IFERROR(IF(VLOOKUP(VALUE(A80),'2013-14 BL Civics'!$A$14:$C$200,3,FALSE)<10,"N<10",IF(VLOOKUP(VALUE(A80),'2013-14 BL Civics'!$A$14:$C$200,3,FALSE)>E80,100,VLOOKUP(VALUE(A80),'2013-14 BL Civics'!$A$14:$C$200,3,FALSE)/E80%)),"Not Tested") -> 86.07594937 | H80: =IFERROR(IF(F80="N<10","N<10",VLOOKUP(VALUE($A80),'2012-13 BL Civics'!$A$14:$AG$500,5,FALSE)*100),"Not Tested") -> Not Tested | I80: =IFERROR(IF(G80="N<10","N<10",VLOOKUP(VALUE($A80),'2013-14 BL Civics'!$A$14:$AG$500,5,FALSE)*100),"Not Tested") -> 37 | K80: =IFERROR(IF(H80="N<10","N<10",VLOOKUP(VALUE($A80),'2012-13 BL Civics'!$A$14:$AG$500,11,FALSE)*100),"Not Tested") -> Not Tested | L80: =IFERROR(IF(I80="N<10","N<10",VLOOKUP(VALUE($A80),'2013-14 BL Civics'!$A$14:$AG$500,11,FALSE)*100),"Not Tested") -> 38 | N80: =IFERROR(IF(K80="N<10","N<10",VLOOKUP(VALUE($A80),'2012-13 BL Civics'!$A$14:$AG$500,17,FALSE)*100),"Not Tested") -> Not Tested | O80: =IFERROR(IF(L80="N<10","N<10",VLOOKUP(VALUE($A80),'2013-14 BL Civics'!$A$14:$AG$500,17,FALSE)*100),"Not Tested") -> 31 | Q80: =IFERROR(IF(J80="N<10","N<10",VLOOKUP(VALUE($A80),'2012-13 BL Civics'!$A$14:$AG$500,23,FALSE)*100),"Not Tested") -> Not Tested | R80: =IFERROR(IF(K80="N<10","N<10",VLOOKUP(VALUE($A80),'2013-14 BL Civics'!$A$14:$AG$500,23,FALSE)*100),"Not Tested") -> 37 | T80: =IFERROR(IF(N80="N<10","N<10",VLOOKUP(VALUE($A80),'2012-13 BL Civics'!$A$14:$AG$500,29,FALSE)*100),"Not Tested") -> Not Tested | U80: =IFERROR(IF(O80="N<10","N<10",VLOOKUP(VALUE($A80),'2013-14 BL Civics'!$A$14:$AG$500,29,FALSE)*100),"Not Tested") -> 44
A81: 6020 | C81: =VLOOKUP(TEXT(A81,"0000"),SchList!$A$2:$C$483,2,FALSE) -> ASPIRA RAUL A. MARTINEZ CHTR | D81: =IFERROR(VLOOKUP(TEXT($A81,"0000"),'2012 BL Civics Enrollment'!$A$3:$C$500,3,FALSE),0) -> 206 | E81: =IFERROR(VLOOKUP(TEXT($A81,"0000"),'2013 BL Civics Enrollment'!$A$3:$C$500,3,FALSE),"") -> 215 | F81: =IFERROR(IF(VLOOKUP(VALUE(A81),'2012-13 BL Civics'!$A$14:$C$200,3,FALSE)<10,"N<10",IF(VLOOKUP(VALUE(A81),'2012-13 BL Civics'!$A$14:$C$200,3,FALSE)>D81,100,VLOOKUP(VALUE(A81),'2012-13 BL Civics'!$A$14:$C$200,3,FALSE)/D81%)),"Not Tested") -> 85.4368932 | G81: =IFERROR(IF(VLOOKUP(VALUE(A81),'2013-14 BL Civics'!$A$14:$C$200,3,FALSE)<10,"N<10",IF(VLOOKUP(VALUE(A81),'2013-14 BL Civics'!$A$14:$C$200,3,FALSE)>E81,100,VLOOKUP(VALUE(A81),'2013-14 BL Civics'!$A$14:$C$200,3,FALSE)/E81%)),"Not Tested") -> 100 | H81: =IFERROR(IF(F81="N<10","N<10",VLOOKUP(VALUE($A81),'2012-13 BL Civics'!$A$14:$AG$500,5,FALSE)*100),"Not Tested") -> 33 | I81: =IFERROR(IF(G81="N<10","N<10",VLOOKUP(VALUE($A81),'2013-14 BL Civics'!$A$14:$AG$500,5,FALSE)*100),"Not Tested") -> 32 | J81: -1 | K81: =IFERROR(IF(H81="N<10","N<10",VLOOKUP(VALUE($A81),'2012-13 BL Civics'!$A$14:$AG$500,11,FALSE)*100),"Not Tested") -> 38 | L81: =IFERROR(IF(I81="N<10","N<10",VLOOKUP(VALUE($A81),'2013-14 BL Civics'!$A$14:$AG$500,11,FALSE)*100),"Not Tested") -> 35 | M81: -3 | N81: =IFERROR(IF(K81="N<10","N<10",VLOOKUP(VALUE($A81),'2012-13 BL Civics'!$A$14:$AG$500,17,FALSE)*100),"Not Tested") -> 25 | O81: =IFERROR(IF(L81="N<10","N<10",VLOOKUP(VALUE($A81),'2013-14 BL Civics'!$A$14:$AG$500,17,FALSE)*100),"Not Tested") -> 29 | P81: 4 | Q81: =IFERROR(IF(J81="N<10","N<10",VLOOKUP(VALUE($A81),'2012-13 BL Civics'!$A$14:$AG$500,23,FALSE)*100),"Not Tested") -> 34 | R81: =IFERROR(IF(K81="N<10","N<10",VLOOKUP(VALUE($A81),'2013-14 BL Civics'!$A$14:$AG$500,23,FALSE)*100),"Not Tested") -> 32 | S81: -2 | T81: =IFERROR(IF(N81="N<10","N<10",VLOOKUP(VALUE($A81),'2012-13 BL Civics'!$A$14:$AG$500,29,FALSE)*100),"Not Tested") -> 37 | U81: =IFERROR(IF(O81="N<10","N<10",VLOOKUP(VALUE($A81),'2013-14 BL Civics'!$A$14:$AG$500,29,FALSE)*100),"Not Tested") -> 37 | V81: 0
A82: 6021 | C82: =VLOOKUP(TEXT(A82,"0000"),SchList!$A$2:$C$483,2,FALSE) -> ARVIDA MIDDLE SCHOOL | D82: =IFERROR(VLOOKUP(TEXT($A82,"0000"),'2012 BL Civics Enrollment'!$A$3:$C$500,3,FALSE),0) -> 394 | E82: =IFERROR(VLOOKUP(TEXT($A82,"0000"),'2013 BL Civics Enrollment'!$A$3:$C$500,3,FALSE),"") -> 439 | F82: =IFERROR(IF(VLOOKUP(VALUE(A82),'2012-13 BL Civics'!$A$14:$C$200,3,FALSE)<10,"N<10",IF(VLOOKUP(VALUE(A82),'2012-13 BL Civics'!$A$14:$C$200,3,FALSE)>D82,100,VLOOKUP(VALUE(A82),'2012-13 BL Civics'!$A$14:$C$200,3,FALSE)/D82%)),"Not Tested") -> 97.96954315 | G82: =IFERROR(IF(VLOOKUP(VALUE(A82),'2013-14 BL Civics'!$A$14:$C$200,3,FALSE)<10,"N<10",IF(VLOOKUP(VALUE(A82),'2013-14 BL Civics'!$A$14:$C$200,3,FALSE)>E82,100,VLOOKUP(VALUE(A82),'2013-14 BL Civics'!$A$14:$C$200,3,FALSE)/E82%)),"Not Tested") -> 97.72209567 | H82: =IFERROR(IF(F82="N<10","N<10",VLOOKUP(VALUE($A82),'2012-13 BL Civics'!$A$14:$AG$500,5,FALSE)*100),"Not Tested") -> 38 | I82: =IFERROR(IF(G82="N<10","N<10",VLOOKUP(VALUE($A82),'2013-14 BL Civics'!$A$14:$AG$500,5,FALSE)*100),"Not Tested") -> 38 | J82: 0 | K82: =IFERROR(IF(H82="N<10","N<10",VLOOKUP(VALUE($A82),'2012-13 BL Civics'!$A$14:$AG$500,11,FALSE)*100),"Not Tested") -> 45 | L82: =IFERROR(IF(I82="N<10","N<10",VLOOKUP(VALUE($A82),'2013-14 BL Civics'!$A$14:$AG$500,11,FALSE)*100),"Not Tested") -> 42 | M82: -3 | N82: =IFERROR(IF(K82="N<10","N<10",VLOOKUP(VALUE($A82),'2012-13 BL Civics'!$A$14:$AG$500,17,FALSE)*100),"Not Tested") -> 31 | O82: =IFERROR(IF(L82="N<10","N<10",VLOOKUP(VALUE($A82),'2013-14 BL Civics'!$A$14:$AG$500,17,FALSE)*100),"Not Tested") -> 33 | P82: 2 | Q82: =IFERROR(IF(J82="N<10","N<10",VLOOKUP(VALUE($A82),'2012-13 BL Civics'!$A$14:$AG$500,23,FALSE)*100),"Not Tested") -> 40 | R82: =IFERROR(IF(K82="N<10","N<10",VLOOKUP(VALUE($A82),'2013-14 BL Civics'!$A$14:$AG$500,23,FALSE)*100),"Not Tested") -> 38 | S82: -2 | T82: =IFERROR(IF(N82="N<10","N<10",VLOOKUP(VALUE($A82),'2012-13 BL Civics'!$A$14:$AG$500,29,FALSE)*100),"Not Tested") -> 40 | U82: =IFERROR(IF(O82="N<10","N<10",VLOOKUP(VALUE($A82),'2013-14 BL Civics'!$A$14:$AG$500,29,FALSE)*100),"Not Tested") -> 44 | V82: 4
A83: 6022 | C83: =VLOOKUP(TEXT(A83,"0000"),SchList!$A$2:$C$483,2,FALSE) -> PINECREST ACADEMY CHARTER MIDD | D83: =IFERROR(VLOOKUP(TEXT($A83,"0000"),'2012 BL Civics Enrollment'!$A$3:$C$500,3,FALSE),0) -> 207 | E83: =IFERROR(VLOOKUP(TEXT($A83,"0000"),'2013 BL Civics Enrollment'!$A$3:$C$500,3,FALSE),"") -> 199 | F83: =IFERROR(IF(VLOOKUP(VALUE(A83),'2012-13 BL Civics'!$A$14:$C$200,3,FALSE)<10,"N<10",IF(VLOOKUP(VALUE(A83),'2012-13 BL Civics'!$A$14:$C$200,3,FALSE)>D83,100,VLOOKUP(VALUE(A83),'2012-13 BL Civics'!$A$14:$C$200,3,FALSE)/D83%)),"Not Tested") -> 100 | G83: =IFERROR(IF(VLOOKUP(VALUE(A83),'2013-14 BL Civics'!$A$14:$C$200,3,FALSE)<10,"N<10",IF(VLOOKUP(VALUE(A83),'2013-14 BL Civics'!$A$14:$C$200,3,FALSE)>E83,100,VLOOKUP(VALUE(A83),'2013-14 BL Civics'!$A$14:$C$200,3,FALSE)/E83%)),"Not Tested") -> 100 | H83: =IFERROR(IF(F83="N<10","N<10",VLOOKUP(VALUE($A83),'2012-13 BL Civics'!$A$14:$AG$500,5,FALSE)*100),"Not Tested") -> 36 | I83: =IFERROR(IF(G83="N<10","N<10",VLOOKUP(VALUE($A83),'2013-14 BL Civics'!$A$14:$AG$500,5,FALSE)*100),"Not Tested") -> 38 | J83: 2 | K83: =IFERROR(IF(H83="N<10","N<10",VLOOKUP(VALUE($A83),'2012-13 BL Civics'!$A$14:$AG$500,11,FALSE)*100),"Not Tested") -> 44 | L83: =IFERROR(IF(I83="N<10","N<10",VLOOKUP(VALUE($A83),'2013-14 BL Civics'!$A$14:$AG$500,11,FALSE)*100),"Not Tested") -> 40 | M83: -4 | N83: =IFERROR(IF(K83="N<10","N<10",VLOOKUP(VALUE($A83),'2012-13 BL Civics'!$A$14:$AG$500,17,FALSE)*100),"Not Tested") -> 29 | O83: =IFERROR(IF(L83="N<10","N<10",VLOOKUP(VALUE($A83),'2013-14 BL Civics'!$A$14:$AG$500,17,FALSE)*100),"Not Tested") -> 32 | P83: 3 | Q83: =IFERROR(IF(J83="N<10","N<10",VLOOKUP(VALUE($A83),'2012-13 BL Civics'!$A$14:$AG$500,23,FALSE)*100),"Not Tested") -> 34 | R83: =IFERROR(IF(K83="N<10","N<10",VLOOKUP(VALUE($A83),'2013-14 BL Civics'!$A$14:$AG$500,23,FALSE)*100),"Not Tested") -> 38 | S83: 4 | T83: =IFERROR(IF(N83="N<10","N<10",VLOOKUP(VALUE($A83),'2012-13 BL Civics'!$A$14:$AG$500,29,FALSE)*100),"Not Tested") -> 41 | U83: =IFERROR(IF(O83="N<10","N<10",VLOOKUP(VALUE($A83),'2013-14 BL Civics'!$A$14:$AG$500,29,FALSE)*100),"Not Tested") -> 47 | V83: 6
A84: 6023 | C84: =VLOOKUP(TEXT(A84,"0000"),SchList!$A$2:$C$483,2,FALSE) -> ANDOVER MIDDLE SCHOOL | D84: =IFERROR(VLOOKUP(TEXT($A84,"0000"),'2012 BL Civics Enrollment'!$A$3:$C$500,3,FALSE),0) -> 343 | E84: =IFERROR(VLOOKUP(TEXT($A84,"0000"),'2013 BL Civics Enrollment'!$A$3:$C$500,3,FALSE),"") -> 304 | F84: =IFERROR(IF(VLOOKUP(VALUE(A84),'2012-13 BL Civics'!$A$14:$C$200,3,FALSE)<10,"N<10",IF(VLOOKUP(VALUE(A84),'2012-13 BL Civics'!$A$14:$C$200,3,FALSE)>D84,100,VLOOKUP(VALUE(A84),'2012-13 BL Civics'!$A$14:$C$200,3,FALSE)/D84%)),"Not Tested") -> 100 | G84: =IFERROR(IF(VLOOKUP(VALUE(A84),'2013-14 BL Civics'!$A$14:$C$200,3,FALSE)<10,"N<10",IF(VLOOKUP(VALUE(A84),'2013-14 BL Civics'!$A$14:$C$200,3,FALSE)>E84,100,VLOOKUP(VALUE(A84),'2013-14 BL Civics'!$A$14:$C$200,3,FALSE)/E84%)),"Not Tested") -> 94.73684211 | H84: =IFERROR(IF(F84="N<10","N<10",VLOOKUP(VALUE($A84),'2012-13 BL Civics'!$A$14:$AG$500,5,FALSE)*100),"Not Tested") -> 33 | I84: =IFERROR(IF(G84="N<10","N<10",VLOOKUP(VALUE($A84),'2013-14 BL Civics'!$A$14:$AG$500,5,FALSE)*100),"Not Tested") -> 35 | J84: 2 | K84: =IFERROR(IF(H84="N<10","N<10",VLOOKUP(VALUE($A84),'2012-13 BL Civics'!$A$14:$AG$500,11,FALSE)*100),"Not Tested") -> 39 | L84: =IFERROR(IF(I84="N<10","N<10",VLOOKUP(VALUE($A84),'2013-14 BL Civics'!$A$14:$AG$500,11,FALSE)*100),"Not Tested") -> 35 | M84: -4 | N84: =IFERROR(IF(K84="N<10","N<10",VLOOKUP(VALUE($A84),'2012-13 BL Civics'!$A$14:$AG$500,17,FALSE)*100),"Not Tested") -> 27 | O84: =IFERROR(IF(L84="N<10","N<10",VLOOKUP(VALUE($A84),'2013-14 BL Civics'!$A$14:$AG$500,17,FALSE)*100),"Not Tested") -> 31 | P84: 4 | Q84: =IFERROR(IF(J84="N<10","N<10",VLOOKUP(VALUE($A84),'2012-13 BL Civics'!$A$14:$AG$500,23,FALSE)*100),"Not Tested") -> 34 | R84: =IFERROR(IF(K84="N<10","N<10",VLOOKUP(VALUE($A84),'2013-14 BL Civics'!$A$14:$AG$500,23,FALSE)*100),"Not Tested") -> 33 | S84: -1 | T84: =IFERROR(IF(N84="N<10","N<10",VLOOKUP(VALUE($A84),'2012-13 BL Civics'!$A$14:$AG$500,29,FALSE)*100),"Not Tested") -> 34 | U84: =IFERROR(IF(O84="N<10","N<10",VLOOKUP(VALUE($A84),'2013-14 BL Civics'!$A$14:$AG$500,29,FALSE)*100),"Not Tested") -> 43 | V84: 9
A85: 6028 | C85: =VLOOKUP(TEXT(A85,"0000"),SchList!$A$2:$C$483,2,FALSE) -> RENAISSANCE MIDDLE CHARTER | D85: =IFERROR(VLOOKUP(TEXT($A85,"0000"),'2012 BL Civics Enrollment'!$A$3:$C$500,3,FALSE),0) -> 145 | E85: =IFERROR(VLOOKUP(TEXT($A85,"0000"),'2013 BL Civics Enrollment'!$A$3:$C$500,3,FALSE),"") -> 149 | F85: =IFERROR(IF(VLOOKUP(VALUE(A85),'2012-13 BL Civics'!$A$14:$C$200,3,FALSE)<10,"N<10",IF(VLOOKUP(VALUE(A85),'2012-13 BL Civics'!$A$14:$C$200,3,FALSE)>D85,100,VLOOKUP(VALUE(A85),'2012-13 BL Civics'!$A$14:$C$200,3,FALSE)/D85%)),"Not Tested") -> Not Tested | G85: =IFERROR(IF(VLOOKUP(VALUE(A85),'2013-14 BL Civics'!$A$14:$C$200,3,FALSE)<10,"N<10",IF(VLOOKUP(VALUE(A85),'2013-14 BL Civics'!$A$14:$C$200,3,FALSE)>E85,100,VLOOKUP(VALUE(A85),'2013-14 BL Civics'!$A$14:$C$200,3,FALSE)/E85%)),"Not Tested") -> Not Tested | H85: =IFERROR(IF(F85="N<10","N<10",VLOOKUP(VALUE($A85),'2012-13 BL Civics'!$A$14:$AG$500,5,FALSE)*100),"Not Tested") -> Not Tested | I85: =IFERROR(IF(G85="N<10","N<10",VLOOKUP(VALUE($A85),'2013-14 BL Civics'!$A$14:$AG$500,5,FALSE)*100),"Not Tested") -> Not Tested | K85: =IFERROR(IF(H85="N<10","N<10",VLOOKUP(VALUE($A85),'2012-13 BL Civics'!$A$14:$AG$500,11,FALSE)*100),"Not Tested") -> Not Tested | L85: =IFERROR(IF(I85="N<10","N<10",VLOOKUP(VALUE($A85),'2013-14 BL Civics'!$A$14:$AG$500,11,FALSE)*100),"Not Tested") -> Not Tested | N85: =IFERROR(IF(K85="N<10","N<10",VLOOKUP(VALUE($A85),'2012-13 BL Civics'!$A$14:$AG$500,17,FALSE)*100),"Not Tested") -> Not Tested | O85: =IFERROR(IF(L85="N<10","N<10",VLOOKUP(VALUE($A85),'2013-14 BL Civics'!$A$14:$AG$500,17,FALSE)*100),"Not Tested") -> Not Tested | Q85: =IFERROR(IF(J85="N<10","N<10",VLOOKUP(VALUE($A85),'2012-13 BL Civics'!$A$14:$AG$500,23,FALSE)*100),"Not Tested") -> Not Tested | R85: =IFERROR(IF(K85="N<10","N<10",VLOOKUP(VALUE($A85),'2013-14 BL Civics'!$A$14:$AG$500,23,FALSE)*100),"Not Tested") -> Not Tested | T85: =IFERROR(IF(N85="N<10","N<10",VLOOKUP(VALUE($A85),'2012-13 BL Civics'!$A$14:$AG$500,29,FALSE)*100),"Not Tested") -> Not Tested | U85: =IFERROR(IF(O85="N<10","N<10",VLOOKUP(VALUE($A85),'2013-14 BL Civics'!$A$14:$AG$500,29,FALSE)*100),"Not Tested") -> Not Tested
A86: 6030 | C86: =VLOOKUP(TEXT(A86,"0000"),SchList!$A$2:$C$483,2,FALSE) -> DORAL ACADEMY CHARTER MIDDLE | D86: =IFERROR(VLOOKUP(TEXT($A86,"0000"),'2012 BL Civics Enrollment'!$A$3:$C$500,3,FALSE),0) -> 464 | E86: =IFERROR(VLOOKUP(TEXT($A86,"0000"),'2013 BL Civics Enrollment'!$A$3:$C$500,3,FALSE),"") -> 460 | F86: =IFERROR(IF(VLOOKUP(VALUE(A86),'2012-13 BL Civics'!$A$14:$C$200,3,FALSE)<10,"N<10",IF(VLOOKUP(VALUE(A86),'2012-13 BL Civics'!$A$14:$C$200,3,FALSE)>D86,100,VLOOKUP(VALUE(A86),'2012-13 BL Civics'!$A$14:$C$200,3,FALSE)/D86%)),"Not Tested") -> 98.92241379 | G86: =IFERROR(IF(VLOOKUP(VALUE(A86),'2013-14 BL Civics'!$A$14:$C$200,3,FALSE)<10,"N<10",IF(VLOOKUP(VALUE(A86),'2013-14 BL Civics'!$A$14:$C$200,3,FALSE)>E86,100,VLOOKUP(VALUE(A86),'2013-14 BL Civics'!$A$14:$C$200,3,FALSE)/E86%)),"Not Tested") -> 100 | H86: =IFERROR(IF(F86="N<10","N<10",VLOOKUP(VALUE($A86),'2012-13 BL Civics'!$A$14:$AG$500,5,FALSE)*100),"Not Tested") -> 38 | I86: =IFERROR(IF(G86="N<10","N<10",VLOOKUP(VALUE($A86),'2013-14 BL Civics'!$A$14:$AG$500,5,FALSE)*100),"Not Tested") -> 40 | J86: 2 | K86: =IFERROR(IF(H86="N<10","N<10",VLOOKUP(VALUE($A86),'2012-13 BL Civics'!$A$14:$AG$500,11,FALSE)*100),"Not Tested") -> 47 | L86: =IFERROR(IF(I86="N<10","N<10",VLOOKUP(VALUE($A86),'2013-14 BL Civics'!$A$14:$AG$500,11,FALSE)*100),"Not Tested") -> 44 | M86: -3 | N86: =IFERROR(IF(K86="N<10","N<10",VLOOKUP(VALUE($A86),'2012-13 BL Civics'!$A$14:$AG$500,17,FALSE)*100),"Not Tested") -> 30 | O86: =IFERROR(IF(L86="N<10","N<10",VLOOKUP(VALUE($A86),'2013-14 BL Civics'!$A$14:$AG$500,17,FALSE)*100),"Not Tested") -> 34 | P86: 4 | Q86: =IFERROR(IF(J86="N<10","N<10",VLOOKUP(VALUE($A86),'2012-13 BL Civics'!$A$14:$AG$500,23,FALSE)*100),"Not Tested") -> 39 | R86: =IFERROR(IF(K86="N<10","N<10",VLOOKUP(VALUE($A86),'2013-14 BL Civics'!$A$14:$AG$500,23,FALSE)*100),"Not Tested") -> 40 | S86: 1 | T86: =IFERROR(IF(N86="N<10","N<10",VLOOKUP(VALUE($A86),'2012-13 BL Civics'!$A$14:$AG$500,29,FALSE)*100),"Not Tested") -> 40 | U86: =IFERROR(IF(O86="N<10","N<10",VLOOKUP(VALUE($A86),'2013-14 BL Civics'!$A$14:$AG$500,29,FALSE)*100),"Not Tested") -> 46 | V86: 6
A87: 6031 | C87: =VLOOKUP(TEXT(A87,"0000"),SchList!$A$2:$C$483,2,FALSE) -> BROWNSVILLE MIDDLE | D87: =IFERROR(VLOOKUP(TEXT($A87,"0000"),'2012 BL Civics Enrollment'!$A$3:$C$500,3,FALSE),0) -> 218 | E87: =IFERROR(VLOOKUP(TEXT($A87,"0000"),'2013 BL Civics Enrollment'!$A$3:$C$500,3,FALSE),"") -> 288 | F87: =IFERROR(IF(VLOOKUP(VALUE(A87),'2012-13 BL Civics'!$A$14:$C$200,3,FALSE)<10,"N<10",IF(VLOOKUP(VALUE(A87),'2012-13 BL Civics'!$A$14:$C$200,3,FALSE)>D87,100,VLOOKUP(VALUE(A87),'2012-13 BL Civics'!$A$14:$C$200,3,FALSE)/D87%)),"Not Tested") -> 88.53211009 | G87: =IFERROR(IF(VLOOKUP(VALUE(A87),'2013-14 BL Civics'!$A$14:$C$200,3,FALSE)<10,"N<10",IF(VLOOKUP(VALUE(A87),'2013-14 BL Civics'!$A$14:$C$200,3,FALSE)>E87,100,VLOOKUP(VALUE(A87),'2013-14 BL Civics'!$A$14:$C$200,3,FALSE)/E87%)),"Not Tested") -> 91.66666667 | H87: =IFERROR(IF(F87="N<10","N<10",VLOOKUP(VALUE($A87),'2012-13 BL Civics'!$A$14:$AG$500,5,FALSE)*100),"Not Tested") -> 31 | I87: =IFERROR(IF(G87="N<10","N<10",VLOOKUP(VALUE($A87),'2013-14 BL Civics'!$A$14:$AG$500,5,FALSE)*100),"Not Tested") -> 31 | J87: 0 | K87: =IFERROR(IF(H87="N<10","N<10",VLOOKUP(VALUE($A87),'2012-13 BL Civics'!$A$14:$AG$500,11,FALSE)*100),"Not Tested") -> 37 | L87: =IFERROR(IF(I87="N<10","N<10",VLOOKUP(VALUE($A87),'2013-14 BL Civics'!$A$14:$AG$500,11,FALSE)*100),"Not Tested") -> 32 | M87: -5 | N87: =IFERROR(IF(K87="N<10","N<10",VLOOKUP(VALUE($A87),'2012-13 BL Civics'!$A$14:$AG$500,17,FALSE)*100),"Not Tested") -> 26 | O87: =IFERROR(IF(L87="N<10","N<10",VLOOKUP(VALUE($A87),'2013-14 BL Civics'!$A$14:$AG$500,17,FALSE)*100),"Not Tested") -> 27 | P87: 1 | Q87: =IFERROR(IF(J87="N<10","N<10",VLOOKUP(VALUE($A87),'2012-13 BL Civics'!$A$14:$AG$500,23,FALSE)*100),"Not Tested") -> 29 | R87: =IFERROR(IF(K87="N<10","N<10",VLOOKUP(VALUE($A87),'2013-14 BL Civics'!$A$14:$AG$500,23,FALSE)*100),"Not Tested") -> 30 | S87: 1 | T87: =IFERROR(IF(N87="N<10","N<10",VLOOKUP(VALUE($A87),'2012-13 BL Civics'!$A$14:$AG$500,29,FALSE)*100),"Not Tested") -> 33 | U87: =IFERROR(IF(O87="N<10","N<10",VLOOKUP(VALUE($A87),'2013-14 BL Civics'!$A$14:$AG$500,29,FALSE)*100),"Not Tested") -> 37 | V87: 4
A88: 6033 | C88: =VLOOKUP(TEXT(A88,"0000"),SchList!$A$2:$C$483,2,FALSE) -> MATER ACADEMY LAKES MIDDLE | D88: =IFERROR(VLOOKUP(TEXT($A88,"0000"),'2012 BL Civics Enrollment'!$A$3:$C$500,3,FALSE),0) -> 209 | E88: =IFERROR(VLOOKUP(TEXT($A88,"0000"),'2013 BL Civics Enrollment'!$A$3:$C$500,3,FALSE),"") -> 245 | F88: =IFERROR(IF(VLOOKUP(VALUE(A88),'2012-13 BL Civics'!$A$14:$C$200,3,FALSE)<10,"N<10",IF(VLOOKUP(VALUE(A88),'2012-13 BL Civics'!$A$14:$C$200,3,FALSE)>D88,100,VLOOKUP(VALUE(A88),'2012-13 BL Civics'!$A$14:$C$200,3,FALSE)/D88%)),"Not Tested") -> 96.1722488 | G88: =IFERROR(IF(VLOOKUP(VALUE(A88),'2013-14 BL Civics'!$A$14:$C$200,3,FALSE)<10,"N<10",IF(VLOOKUP(VALUE(A88),'2013-14 BL Civics'!$A$14:$C$200,3,FALSE)>E88,100,VLOOKUP(VALUE(A88),'2013-14 BL Civics'!$A$14:$C$200,3,FALSE)/E88%)),"Not Tested") -> 97.55102041 | H88: =IFERROR(IF(F88="N<10","N<10",VLOOKUP(VALUE($A88),'2012-13 BL Civics'!$A$14:$AG$500,5,FALSE)*100),"Not Tested") -> 36 | I88: =IFERROR(IF(G88="N<10","N<10",VLOOKUP(VALUE($A88),'2013-14 BL Civics'!$A$14:$AG$500,5,FALSE)*100),"Not Tested") -> 39 | J88: 3 | K88: =IFERROR(IF(H88="N<10","N<10",VLOOKUP(VALUE($A88),'2012-13 BL Civics'!$A$14:$AG$500,11,FALSE)*100),"Not Tested") -> 45 | L88: =IFERROR(IF(I88="N<10","N<10",VLOOKUP(VALUE($A88),'2013-14 BL Civics'!$A$14:$AG$500,11,FALSE)*100),"Not Tested") -> 43 | M88: -2 | N88: =IFERROR(IF(K88="N<10","N<10",VLOOKUP(VALUE($A88),'2012-13 BL Civics'!$A$14:$AG$500,17,FALSE)*100),"Not Tested") -> 29 | O88: =IFERROR(IF(L88="N<10","N<10",VLOOKUP(VALUE($A88),'2013-14 BL Civics'!$A$14:$AG$500,17,FALSE)*100),"Not Tested") -> 32 | P88: 3 | Q88: =IFERROR(IF(J88="N<10","N<10",VLOOKUP(VALUE($A88),'2012-13 BL Civics'!$A$14:$AG$500,23,FALSE)*100),"Not Tested") -> 35 | R88: =IFERROR(IF(K88="N<10","N<10",VLOOKUP(VALUE($A88),'2013-14 BL Civics'!$A$14:$AG$500,23,FALSE)*100),"Not Tested") -> 37 | S88: 2 | T88: =IFERROR(IF(N88="N<10","N<10",VLOOKUP(VALUE($A88),'2012-13 BL Civics'!$A$14:$AG$500,29,FALSE)*100),"Not Tested") -> 39 | U88: =IFERROR(IF(O88="N<10","N<10",VLOOKUP(VALUE($A88),'2013-14 BL Civics'!$A$14:$AG$500,29,FALSE)*100),"Not Tested") -> 47 | V88: 8
A89: 6040 | C89: =VLOOKUP(TEXT(A89,"0000"),SchList!$A$2:$C$483,2,FALSE) -> DOCTORS CHARTER/MIAMI SHORES | D89: =IFERROR(VLOOKUP(TEXT($A89,"0000"),'2012 BL Civics Enrollment'!$A$3:$C$500,3,FALSE),0) -> 84 | E89: =IFERROR(VLOOKUP(TEXT($A89,"0000"),'2013 BL Civics Enrollment'!$A$3:$C$500,3,FALSE),"") -> 89 | F89: =IFERROR(IF(VLOOKUP(VALUE(A89),'2012-13 BL Civics'!$A$14:$C$200,3,FALSE)<10,"N<10",IF(VLOOKUP(VALUE(A89),'2012-13 BL Civics'!$A$14:$C$200,3,FALSE)>D89,100,VLOOKUP(VALUE(A89),'2012-13 BL Civics'!$A$14:$C$200,3,FALSE)/D89%)),"Not Tested") -> 98.80952381 | G89: =IFERROR(IF(VLOOKUP(VALUE(A89),'2013-14 BL Civics'!$A$14:$C$200,3,FALSE)<10,"N<10",IF(VLOOKUP(VALUE(A89),'2013-14 BL Civics'!$A$14:$C$200,3,FALSE)>E89,100,VLOOKUP(VALUE(A89),'2013-14 BL Civics'!$A$14:$C$200,3,FALSE)/E89%)),"Not Tested") -> 98.87640449 | H89: =IFERROR(IF(F89="N<10","N<10",VLOOKUP(VALUE($A89),'2012-13 BL Civics'!$A$14:$AG$500,5,FALSE)*100),"Not Tested") -> 39 | I89: =IFERROR(IF(G89="N<10","N<10",VLOOKUP(VALUE($A89),'2013-14 BL Civics'!$A$14:$AG$500,5,FALSE)*100),"Not Tested") -> 47 | J89: 8 | K89: =IFERROR(IF(H89="N<10","N<10",VLOOKUP(VALUE($A89),'2012-13 BL Civics'!$A$14:$AG$500,11,FALSE)*100),"Not Tested") -> 51 | L89: =IFERROR(IF(I89="N<10","N<10",VLOOKUP(VALUE($A89),'2013-14 BL Civics'!$A$14:$AG$500,11,FALSE)*100),"Not Tested") -> 51 | M89: 0 | N89: =IFERROR(IF(K89="N<10","N<10",VLOOKUP(VALUE($A89),'2012-13 BL Civics'!$A$14:$AG$500,17,FALSE)*100),"Not Tested") -> 32 | O89: =IFERROR(IF(L89="N<10","N<10",VLOOKUP(VALUE($A89),'2013-14 BL Civics'!$A$14:$AG$500,17,FALSE)*100),"Not Tested") -> 42 | P89: 10 | Q89: =IFERROR(IF(J89="N<10","N<10",VLOOKUP(VALUE($A89),'2012-13 BL Civics'!$A$14:$AG$500,23,FALSE)*100),"Not Tested") -> 39 | R89: =IFERROR(IF(K89="N<10","N<10",VLOOKUP(VALUE($A89),'2013-14 BL Civics'!$A$14:$AG$500,23,FALSE)*100),"Not Tested") -> 46 | S89: 7 | T89: =IFERROR(IF(N89="N<10","N<10",VLOOKUP(VALUE($A89),'2012-13 BL Civics'!$A$14:$AG$500,29,FALSE)*100),"Not Tested") -> 39 | U89: =IFERROR(IF(O89="N<10","N<10",VLOOKUP(VALUE($A89),'2013-14 BL Civics'!$A$14:$AG$500,29,FALSE)*100),"Not Tested") -> 54 | V89: 15
A90: 6041 | C90: =VLOOKUP(TEXT(A90,"0000"),SchList!$A$2:$C$483,2,FALSE) -> PAUL W. BELL MIDDLE | D90: =IFERROR(VLOOKUP(TEXT($A90,"0000"),'2012 BL Civics Enrollment'!$A$3:$C$500,3,FALSE),0) -> 202 | E90: =IFERROR(VLOOKUP(TEXT($A90,"0000"),'2013 BL Civics Enrollment'!$A$3:$C$500,3,FALSE),"") -> 151 | F90: =IFERROR(IF(VLOOKUP(VALUE(A90),'2012-13 BL Civics'!$A$14:$C$200,3,FALSE)<10,"N<10",IF(VLOOKUP(VALUE(A90),'2012-13 BL Civics'!$A$14:$C$200,3,FALSE)>D90,100,VLOOKUP(VALUE(A90),'2012-13 BL Civics'!$A$14:$C$200,3,FALSE)/D90%)),"Not Tested") -> 83.16831683 | G90: =IFERROR(IF(VLOOKUP(VALUE(A90),'2013-14 BL Civics'!$A$14:$C$200,3,FALSE)<10,"N<10",IF(VLOOKUP(VALUE(A90),'2013-14 BL Civics'!$A$14:$C$200,3,FALSE)>E90,100,VLOOKUP(VALUE(A90),'2013-14 BL Civics'!$A$14:$C$200,3,FALSE)/E90%)),"Not Tested") -> 99.33774834 | H90: =IFERROR(IF(F90="N<10","N<10",VLOOKUP(VALUE($A90),'2012-13 BL Civics'!$A$14:$AG$500,5,FALSE)*100),"Not Tested") -> 32 | I90: =IFERROR(IF(G90="N<10","N<10",VLOOKUP(VALUE($A90),'2013-14 BL Civics'!$A$14:$AG$500,5,FALSE)*100),"Not Tested") -> 34 | J90: 2 | K90: =IFERROR(IF(H90="N<10","N<10",VLOOKUP(VALUE($A90),'2012-13 BL Civics'!$A$14:$AG$500,11,FALSE)*100),"Not Tested") -> 39 | L90: =IFERROR(IF(I90="N<10","N<10",VLOOKUP(VALUE($A90),'2013-14 BL Civics'!$A$14:$AG$500,11,FALSE)*100),"Not Tested") -> 38 | M90: -1 | N90: =IFERROR(IF(K90="N<10","N<10",VLOOKUP(VALUE($A90),'2012-13 BL Civics'!$A$14:$AG$500,17,FALSE)*100),"Not Tested") -> 26 | O90: =IFERROR(IF(L90="N<10","N<10",VLOOKUP(VALUE($A90),'2013-14 BL Civics'!$A$14:$AG$500,17,FALSE)*100),"Not Tested") -> 30 | P90: 4 | Q90: =IFERROR(IF(J90="N<10","N<10",VLOOKUP(VALUE($A90),'2012-13 BL Civics'!$A$14:$AG$500,23,FALSE)*100),"Not Tested") -> 33 | R90: =IFERROR(IF(K90="N<10","N<10",VLOOKUP(VALUE($A90),'2013-14 BL Civics'!$A$14:$AG$500,23,FALSE)*100),"Not Tested") -> 35 | S90: 2 | T90: =IFERROR(IF(N90="N<10","N<10",VLOOKUP(VALUE($A90),'2012-13 BL Civics'!$A$14:$AG$500,29,FALSE)*100),"Not Tested") -> 34 | U90: =IFERROR(IF(O90="N<10","N<10",VLOOKUP(VALUE($A90),'2013-14 BL Civics'!$A$14:$AG$500,29,FALSE)*100),"Not Tested") -> 37 | V90: 3
A91: 6042 | C91: =VLOOKUP(TEXT(A91,"0000"),SchList!$A$2:$C$483,2,FALSE) -> MATER GARDENS ACADEMY MIDDLE | D91: =IFERROR(VLOOKUP(TEXT($A91,"0000"),'2012 BL Civics Enrollment'!$A$3:$C$500,3,FALSE),0) -> 93 | E91: =IFERROR(VLOOKUP(TEXT($A91,"0000"),'2013 BL Civics Enrollment'!$A$3:$C$500,3,FALSE),"") -> 81 | F91: =IFERROR(IF(VLOOKUP(VALUE(A91),'2012-13 BL Civics'!$A$14:$C$200,3,FALSE)<10,"N<10",IF(VLOOKUP(VALUE(A91),'2012-13 BL Civics'!$A$14:$C$200,3,FALSE)>D91,100,VLOOKUP(VALUE(A91),'2012-13 BL Civics'!$A$14:$C$200,3,FALSE)/D91%)),"Not Tested") -> 97.84946237 | G91: =IFERROR(IF(VLOOKUP(VALUE(A91),'2013-14 BL Civics'!$A$14:$C$200,3,FALSE)<10,"N<10",IF(VLOOKUP(VALUE(A91),'2013-14 BL Civics'!$A$14:$C$200,3,FALSE)>E91,100,VLOOKUP(VALUE(A91),'2013-14 BL Civics'!$A$14:$C$200,3,FALSE)/E91%)),"Not Tested") -> 97.5308642 | H91: =IFERROR(IF(F91="N<10","N<10",VLOOKUP(VALUE($A91),'2012-13 BL Civics'!$A$14:$AG$500,5,FALSE)*100),"Not Tested") -> 36 | I91: =IFERROR(IF(G91="N<10","N<10",VLOOKUP(VALUE($A91),'2013-14 BL Civics'!$A$14:$AG$500,5,FALSE)*100),"Not Tested") -> 37 | J91: 1 | K91: =IFERROR(IF(H91="N<10","N<10",VLOOKUP(VALUE($A91),'2012-13 BL Civics'!$A$14:$AG$500,11,FALSE)*100),"Not Tested") -> 42 | L91: =IFERROR(IF(I91="N<10","N<10",VLOOKUP(VALUE($A91),'2013-14 BL Civics'!$A$14:$AG$500,11,FALSE)*100),"Not Tested") -> 40 | M91: -2 | N91: =IFERROR(IF(K91="N<10","N<10",VLOOKUP(VALUE($A91),'2012-13 BL Civics'!$A$14:$AG$500,17,FALSE)*100),"Not Tested") -> 30 | O91: =IFERROR(IF(L91="N<10","N<10",VLOOKUP(VALUE($A91),'2013-14 BL Civics'!$A$14:$AG$500,17,FALSE)*100),"Not Tested") -> 32 | P91: 2 | Q91: =IFERROR(IF(J91="N<10","N<10",VLOOKUP(VALUE($A91),'2012-13 BL Civics'!$A$14:$AG$500,23,FALSE)*100),"Not Tested") -> 35 | R91: =IFERROR(IF(K91="N<10","N<10",VLOOKUP(VALUE($A91),'2013-14 BL Civics'!$A$14:$AG$500,23,FALSE)*100),"Not Tested") -> 35 | S91: 0 | T91: =IFERROR(IF(N91="N<10","N<10",VLOOKUP(VALUE($A91),'2012-13 BL Civics'!$A$14:$AG$500,29,FALSE)*100),"Not Tested") -> 40 | U91: =IFERROR(IF(O91="N<10","N<10",VLOOKUP(VALUE($A91),'2013-14 BL Civics'!$A$14:$AG$500,29,FALSE)*100),"Not Tested") -> 46 | V91: 6
A92: 6045 | C92: =VLOOKUP(TEXT(A92,"0000"),SchList!$A$2:$C$483,2,FALSE) -> INTL. STUDIES CHARTER MIDDLE | D92: =IFERROR(VLOOKUP(TEXT($A92,"0000"),'2012 BL Civics Enrollment'!$A$3:$C$500,3,FALSE),0) -> 88 | E92: =IFERROR(VLOOKUP(TEXT($A92,"0000"),'2013 BL Civics Enrollment'!$A$3:$C$500,3,FALSE),"") -> 91 | F92: =IFERROR(IF(VLOOKUP(VALUE(A92),'2012-13 BL Civics'!$A$14:$C$200,3,FALSE)<10,"N<10",IF(VLOOKUP(VALUE(A92),'2012-13 BL Civics'!$A$14:$C$200,3,FALSE)>D92,100,VLOOKUP(VALUE(A92),'2012-13 BL Civics'!$A$14:$C$200,3,FALSE)/D92%)),"Not Tested") -> 96.59090909 | G92: =IFERROR(IF(VLOOKUP(VALUE(A92),'2013-14 BL Civics'!$A$14:$C$200,3,FALSE)<10,"N<10",IF(VLOOKUP(VALUE(A92),'2013-14 BL Civics'!$A$14:$C$200,3,FALSE)>E92,100,VLOOKUP(VALUE(A92),'2013-14 BL Civics'!$A$14:$C$200,3,FALSE)/E92%)),"Not Tested") -> 98.9010989 | H92: =IFERROR(IF(F92="N<10","N<10",VLOOKUP(VALUE($A92),'2012-13 BL Civics'!$A$14:$AG$500,5,FALSE)*100),"Not Tested") -> 36 | I92: =IFERROR(IF(G92="N<10","N<10",VLOOKUP(VALUE($A92),'2013-14 BL Civics'!$A$14:$AG$500,5,FALSE)*100),"Not Tested") -> 38 | J92: 2 | K92: =IFERROR(IF(H92="N<10","N<10",VLOOKUP(VALUE($A92),'2012-13 BL Civics'!$A$14:$AG$500,11,FALSE)*100),"Not Tested") -> 45 | L92: =IFERROR(IF(I92="N<10","N<10",VLOOKUP(VALUE($A92),'2013-14 BL Civics'!$A$14:$AG$500,11,FALSE)*100),"Not Tested") -> 43 | M92: -2 | N92: =IFERROR(IF(K92="N<10","N<10",VLOOKUP(VALUE($A92),'2012-13 BL Civics'!$A$14:$AG$500,17,FALSE)*100),"Not Tested") -> 29 | O92: =IFERROR(IF(L92="N<10","N<10",VLOOKUP(VALUE($A92),'2013-14 BL Civics'!$A$14:$AG$500,17,FALSE)*100),"Not Tested") -> 31 | P92: 2 | Q92: =IFERROR(IF(J92="N<10","N<10",VLOOKUP(VALUE($A92),'2012-13 BL Civics'!$A$14:$AG$500,23,FALSE)*100),"Not Tested") -> 35 | R92: =IFERROR(IF(K92="N<10","N<10",VLOOKUP(VALUE($A92),'2013-14 BL Civics'!$A$14:$AG$500,23,FALSE)*100),"Not Tested") -> 37 | S92: 2 | T92: =IFERROR(IF(N92="N<10","N<10",VLOOKUP(VALUE($A92),'2012-13 BL Civics'!$A$14:$AG$500,29,FALSE)*100),"Not Tested") -> 39 | U92: =IFERROR(IF(O92="N<10","N<10",VLOOKUP(VALUE($A92),'2013-14 BL Civics'!$A$14:$AG$500,29,FALSE)*100),"Not Tested") -> 45 | V92: 6
A93: 6047 | C93: =VLOOKUP(TEXT(A93,"0000"),SchList!$A$2:$C$483,2,FALSE) -> MATER ACADEMY MIDDLE-INTL STUD | D93: =IFERROR(VLOOKUP(TEXT($A93,"0000"),'2012 BL Civics Enrollment'!$A$3:$C$500,3,FALSE),0) -> 42 | E93: =IFERROR(VLOOKUP(TEXT($A93,"0000"),'2013 BL Civics Enrollment'!$A$3:$C$500,3,FALSE),"") -> 42 | F93: =IFERROR(IF(VLOOKUP(VALUE(A93),'2012-13 BL Civics'!$A$14:$C$200,3,FALSE)<10,"N<10",IF(VLOOKUP(VALUE(A93),'2012-13 BL Civics'!$A$14:$C$200,3,FALSE)>D93,100,VLOOKUP(VALUE(A93),'2012-13 BL Civics'!$A$14:$C$200,3,FALSE)/D93%)),"Not Tested") -> 100 | G93: =IFERROR(IF(VLOOKUP(VALUE(A93),'2013-14 BL Civics'!$A$14:$C$200,3,FALSE)<10,"N<10",IF(VLOOKUP(VALUE(A93),'2013-14 BL Civics'!$A$14:$C$200,3,FALSE)>E93,100,VLOOKUP(VALUE(A93),'2013-14 BL Civics'!$A$14:$C$200,3,FALSE)/E93%)),"Not Tested") -> 100 | H93: =IFERROR(IF(F93="N<10","N<10",VLOOKUP(VALUE($A93),'2012-13 BL Civics'!$A$14:$AG$500,5,FALSE)*100),"Not Tested") -> 34 | I93: =IFERROR(IF(G93="N<10","N<10",VLOOKUP(VALUE($A93),'2013-14 BL Civics'!$A$14:$AG$500,5,FALSE)*100),"Not Tested") -> 35 | J93: 1 | K93: =IFERROR(IF(H93="N<10","N<10",VLOOKUP(VALUE($A93),'2012-13 BL Civics'!$A$14:$AG$500,11,FALSE)*100),"Not Tested") -> 41 | L93: =IFERROR(IF(I93="N<10","N<10",VLOOKUP(VALUE($A93),'2013-14 BL Civics'!$A$14:$AG$500,11,FALSE)*100),"Not Tested") -> 35 | M93: -6 | N93: =IFERROR(IF(K93="N<10","N<10",VLOOKUP(VALUE($A93),'2012-13 BL Civics'!$A$14:$AG$500,17,FALSE)*100),"Not Tested") -> 27 | O93: =IFERROR(IF(L93="N<10","N<10",VLOOKUP(VALUE($A93),'2013-14 BL Civics'!$A$14:$AG$500,17,FALSE)*100),"Not Tested") -> 31 | P93: 4 | Q93: =IFERROR(IF(J93="N<10","N<10",VLOOKUP(VALUE($A93),'2012-13 BL Civics'!$A$14:$AG$500,23,FALSE)*100),"Not Tested") -> 34 | R93: =IFERROR(IF(K93="N<10","N<10",VLOOKUP(VALUE($A93),'2013-14 BL Civics'!$A$14:$AG$500,23,FALSE)*100),"Not Tested") -> 34 | S93: 0 | T93: =IFERROR(IF(N93="N<10","N<10",VLOOKUP(VALUE($A93),'2012-13 BL Civics'!$A$14:$AG$500,29,FALSE)*100),"Not Tested") -> 38 | U93: =IFERROR(IF(O93="N<10","N<10",VLOOKUP(VALUE($A93),'2013-14 BL Civics'!$A$14:$AG$500,29,FALSE)*100),"Not Tested") -> 41 | V93: 3
A94: 6048 | C94: =VLOOKUP(TEXT(A94,"0000"),SchList!$A$2:$C$483,2,FALSE) -> MIAMI COMMUNITY CHARTER MIDDLE | D94: =IFERROR(VLOOKUP(TEXT($A94,"0000"),'2012 BL Civics Enrollment'!$A$3:$C$500,3,FALSE),0) -> 95 | E94: =IFERROR(VLOOKUP(TEXT($A94,"0000"),'2013 BL Civics Enrollment'!$A$3:$C$500,3,FALSE),"") -> 113 | F94: =IFERROR(IF(VLOOKUP(VALUE(A94),'2012-13 BL Civics'!$A$14:$C$200,3,FALSE)<10,"N<10",IF(VLOOKUP(VALUE(A94),'2012-13 BL Civics'!$A$14:$C$200,3,FALSE)>D94,100,VLOOKUP(VALUE(A94),'2012-13 BL Civics'!$A$14:$C$200,3,FALSE)/D94%)),"Not Tested") -> 96.84210526 | G94: =IFERROR(IF(VLOOKUP(VALUE(A94),'2013-14 BL Civics'!$A$14:$C$200,3,FALSE)<10,"N<10",IF(VLOOKUP(VALUE(A94),'2013-14 BL Civics'!$A$14:$C$200,3,FALSE)>E94,100,VLOOKUP(VALUE(A94),'2013-14 BL Civics'!$A$14:$C$200,3,FALSE)/E94%)),"Not Tested") -> 94.69026549 | H94: =IFERROR(IF(F94="N<10","N<10",VLOOKUP(VALUE($A94),'2012-13 BL Civics'!$A$14:$AG$500,5,FALSE)*100),"Not Tested") -> 31 | I94: =IFERROR(IF(G94="N<10","N<10",VLOOKUP(VALUE($A94),'2013-14 BL Civics'!$A$14:$AG$500,5,FALSE)*100),"Not Tested") -> 30 | J94: -1 | K94: =IFERROR(IF(H94="N<10","N<10",VLOOKUP(VALUE($A94),'2012-13 BL Civics'!$A$14:$AG$500,11,FALSE)*100),"Not Tested") -> 36 | L94: =IFERROR(IF(I94="N<10","N<10",VLOOKUP(VALUE($A94),'2013-14 BL Civics'!$A$14:$AG$500,11,FALSE)*100),"Not Tested") -> 30 | M94: -6 | N94: =IFERROR(IF(K94="N<10","N<10",VLOOKUP(VALUE($A94),'2012-13 BL Civics'!$A$14:$AG$500,17,FALSE)*100),"Not Tested") -> 26 | O94: =IFERROR(IF(L94="N<10","N<10",VLOOKUP(VALUE($A94),'2013-14 BL Civics'!$A$14:$AG$500,17,FALSE)*100),"Not Tested") -> 28 | P94: 2 | Q94: =IFERROR(IF(J94="N<10","N<10",VLOOKUP(VALUE($A94),'2012-13 BL Civics'!$A$14:$AG$500,23,FALSE)*100),"Not Tested") -> 28 | R94: =IFERROR(IF(K94="N<10","N<10",VLOOKUP(VALUE($A94),'2013-14 BL Civics'!$A$14:$AG$500,23,FALSE)*100),"Not Tested") -> 30 | S94: 2 | T94: =IFERROR(IF(N94="N<10","N<10",VLOOKUP(VALUE($A94),'2012-13 BL Civics'!$A$14:$AG$500,29,FALSE)*100),"Not Tested") -> 36 | U94: =IFERROR(IF(O94="N<10","N<10",VLOOKUP(VALUE($A94),'2013-14 BL Civics'!$A$14:$AG$500,29,FALSE)*100),"Not Tested") -> 35 | V94: -1
A95: 6049 | C95: =VLOOKUP(TEXT(A95,"0000"),SchList!$A$2:$C$483,2,FALSE) -> RIVER CITIES COMMUNITY CHARTER | D95: =IFERROR(VLOOKUP(TEXT($A95,"0000"),'2012 BL Civics Enrollment'!$A$3:$C$500,3,FALSE),0) -> 64 | E95: =IFERROR(VLOOKUP(TEXT($A95,"0000"),'2013 BL Civics Enrollment'!$A$3:$C$500,3,FALSE),"") -> 44 | F95: =IFERROR(IF(VLOOKUP(VALUE(A95),'2012-13 BL Civics'!$A$14:$C$200,3,FALSE)<10,"N<10",IF(VLOOKUP(VALUE(A95),'2012-13 BL Civics'!$A$14:$C$200,3,FALSE)>D95,100,VLOOKUP(VALUE(A95),'2012-13 BL Civics'!$A$14:$C$200,3,FALSE)/D95%)),"Not Tested") -> 98.4375 | G95: =IFERROR(IF(VLOOKUP(VALUE(A95),'2013-14 BL Civics'!$A$14:$C$200,3,FALSE)<10,"N<10",IF(VLOOKUP(VALUE(A95),'2013-14 BL Civics'!$A$14:$C$200,3,FALSE)>E95,100,VLOOKUP(VALUE(A95),'2013-14 BL Civics'!$A$14:$C$200,3,FALSE)/E95%)),"Not Tested") -> 90.90909091 | H95: =IFERROR(IF(F95="N<10","N<10",VLOOKUP(VALUE($A95),'2012-13 BL Civics'!$A$14:$AG$500,5,FALSE)*100),"Not Tested") -> 29 | I95: =IFERROR(IF(G95="N<10","N<10",VLOOKUP(VALUE($A95),'2013-14 BL Civics'!$A$14:$AG$500,5,FALSE)*100),"Not Tested") -> 31 | J95: 2 | K95: =IFERROR(IF(H95="N<10","N<10",VLOOKUP(VALUE($A95),'2012-13 BL Civics'!$A$14:$AG$500,11,FALSE)*100),"Not Tested") -> 34 | L95: =IFERROR(IF(I95="N<10","N<10",VLOOKUP(VALUE($A95),'2013-14 BL Civics'!$A$14:$AG$500,11,FALSE)*100),"Not Tested") -> 31 | M95: -3 | N95: =IFERROR(IF(K95="N<10","N<10",VLOOKUP(VALUE($A95),'2012-13 BL Civics'!$A$14:$AG$500,17,FALSE)*100),"Not Tested") -> 24 | O95: =IFERROR(IF(L95="N<10","N<10",VLOOKUP(VALUE($A95),'2013-14 BL Civics'!$A$14:$AG$500,17,FALSE)*100),"Not Tested") -> 33 | P95: 9 | Q95: =IFERROR(IF(J95="N<10","N<10",VLOOKUP(VALUE($A95),'2012-13 BL Civics'!$A$14:$AG$500,23,FALSE)*100),"Not Tested") -> 26 | R95: =IFERROR(IF(K95="N<10","N<10",VLOOKUP(VALUE($A95),'2013-14 BL Civics'!$A$14:$AG$500,23,FALSE)*100),"Not Tested") -> 27 | S95: 1 | T95: =IFERROR(IF(N95="N<10","N<10",VLOOKUP(VALUE($A95),'2012-13 BL Civics'!$A$14:$AG$500,29,FALSE)*100),"Not Tested") -> 33 | U95: =IFERROR(IF(O95="N<10","N<10",VLOOKUP(VALUE($A95),'2013-14 BL Civics'!$A$14:$AG$500,29,FALSE)*100),"Not Tested") -> 33 | V95: 0
A96: 6051 | C96: =VLOOKUP(TEXT(A96,"0000"),SchList!$A$2:$C$483,2,FALSE) -> CAROL CITY MIDDLE | D96: =IFERROR(VLOOKUP(TEXT($A96,"0000"),'2012 BL Civics Enrollment'!$A$3:$C$500,3,FALSE),0) -> 206 | E96: =IFERROR(VLOOKUP(TEXT($A96,"0000"),'2013 BL Civics Enrollment'!$A$3:$C$500,3,FALSE),"") -> 150 | F96: =IFERROR(IF(VLOOKUP(VALUE(A96),'2012-13 BL Civics'!$A$14:$C$200,3,FALSE)<10,"N<10",IF(VLOOKUP(VALUE(A96),'2012-13 BL Civics'!$A$14:$C$200,3,FALSE)>D96,100,VLOOKUP(VALUE(A96),'2012-13 BL Civics'!$A$14:$C$200,3,FALSE)/D96%)),"Not Tested") -> 88.34951456 | G96: =IFERROR(IF(VLOOKUP(VALUE(A96),'2013-14 BL Civics'!$A$14:$C$200,3,FALSE)<10,"N<10",IF(VLOOKUP(VALUE(A96),'2013-14 BL Civics'!$A$14:$C$200,3,FALSE)>E96,100,VLOOKUP(VALUE(A96),'2013-14 BL Civics'!$A$14:$C$200,3,FALSE)/E96%)),"Not Tested") -> 94.66666667 | H96: =IFERROR(IF(F96="N<10","N<10",VLOOKUP(VALUE($A96),'2012-13 BL Civics'!$A$14:$AG$500,5,FALSE)*100),"Not Tested") -> 31 | I96: =IFERROR(IF(G96="N<10","N<10",VLOOKUP(VALUE($A96),'2013-14 BL Civics'!$A$14:$AG$500,5,FALSE)*100),"Not Tested") -> 28 | J96: -3 | K96: =IFERROR(IF(H96="N<10","N<10",VLOOKUP(VALUE($A96),'2012-13 BL Civics'!$A$14:$AG$500,11,FALSE)*100),"Not Tested") -> 36 | L96: =IFERROR(IF(I96="N<10","N<10",VLOOKUP(VALUE($A96),'2013-14 BL Civics'!$A$14:$AG$500,11,FALSE)*100),"Not Tested") -> 27 | M96: -9 | N96: =IFERROR(IF(K96="N<10","N<10",VLOOKUP(VALUE($A96),'2012-13 BL Civics'!$A$14:$AG$500,17,FALSE)*100),"Not Tested") -> 27 | O96: =IFERROR(IF(L96="N<10","N<10",VLOOKUP(VALUE($A96),'2013-14 BL Civics'!$A$14:$AG$500,17,FALSE)*100),"Not Tested") -> 24 | P96: -3 | Q96: =IFERROR(IF(J96="N<10","N<10",VLOOKUP(VALUE($A96),'2012-13 BL Civics'!$A$14:$AG$500,23,FALSE)*100),"Not Tested") -> 29 | R96: =IFERROR(IF(K96="N<10","N<10",VLOOKUP(VALUE($A96),'2013-14 BL Civics'!$A$14:$AG$500,23,FALSE)*100),"Not Tested") -> 28 | S96: -1 | T96: =IFERROR(IF(N96="N<10","N<10",VLOOKUP(VALUE($A96),'2012-13 BL Civics'!$A$14:$AG$500,29,FALSE)*100),"Not Tested") -> 33 | U96: =IFERROR(IF(O96="N<10","N<10",VLOOKUP(VALUE($A96),'2013-14 BL Civics'!$A$14:$AG$500,29,FALSE)*100),"Not Tested") -> 35 | V96: 2
A97: 6052 | C97: =VLOOKUP(TEXT(A97,"0000"),SchList!$A$2:$C$483,2,FALSE) -> ZELDA GLAZER MIDDLE SCHOOL | D97: =IFERROR(VLOOKUP(TEXT($A97,"0000"),'2012 BL Civics Enrollment'!$A$3:$C$500,3,FALSE),0) -> 411 | E97: =IFERROR(VLOOKUP(TEXT($A97,"0000"),'2013 BL Civics Enrollment'!$A$3:$C$500,3,FALSE),"") -> 356 | F97: =IFERROR(IF(VLOOKUP(VALUE(A97),'2012-13 BL Civics'!$A$14:$C$200,3,FALSE)<10,"N<10",IF(VLOOKUP(VALUE(A97),'2012-13 BL Civics'!$A$14:$C$200,3,FALSE)>D97,100,VLOOKUP(VALUE(A97),'2012-13 BL Civics'!$A$14:$C$200,3,FALSE)/D97%)),"Not Tested") -> 96.59367397 | G97: =IFERROR(IF(VLOOKUP(VALUE(A97),'2013-14 BL Civics'!$A$14:$C$200,3,FALSE)<10,"N<10",IF(VLOOKUP(VALUE(A97),'2013-14 BL Civics'!$A$14:$C$200,3,FALSE)>E97,100,VLOOKUP(VALUE(A97),'2013-14 BL Civics'!$A$14:$C$200,3,FALSE)/E97%)),"Not Tested") -> 97.75280899 | H97: =IFERROR(IF(F97="N<10","N<10",VLOOKUP(VALUE($A97),'2012-13 BL Civics'!$A$14:$AG$500,5,FALSE)*100),"Not Tested") -> 34 | I97: =IFERROR(IF(G97="N<10","N<10",VLOOKUP(VALUE($A97),'2013-14 BL Civics'!$A$14:$AG$500,5,FALSE)*100),"Not Tested") -> 35 | J97: 1 | K97: =IFERROR(IF(H97="N<10","N<10",VLOOKUP(VALUE($A97),'2012-13 BL Civics'!$A$14:$AG$500,11,FALSE)*100),"Not Tested") -> 45 | L97: =IFERROR(IF(I97="N<10","N<10",VLOOKUP(VALUE($A97),'2013-14 BL Civics'!$A$14:$AG$500,11,FALSE)*100),"Not Tested") -> 37 | M97: -8 | N97: =IFERROR(IF(K97="N<10","N<10",VLOOKUP(VALUE($A97),'2012-13 BL Civics'!$A$14:$AG$500,17,FALSE)*100),"Not Tested") -> 27 | O97: =IFERROR(IF(L97="N<10","N<10",VLOOKUP(VALUE($A97),'2013-14 BL Civics'!$A$14:$AG$500,17,FALSE)*100),"Not Tested") -> 31 | P97: 4 | Q97: =IFERROR(IF(J97="N<10","N<10",VLOOKUP(VALUE($A97),'2012-13 BL Civics'!$A$14:$AG$500,23,FALSE)*100),"Not Tested") -> 31 | R97: =IFERROR(IF(K97="N<10","N<10",VLOOKUP(VALUE($A97),'2013-14 BL Civics'!$A$14:$AG$500,23,FALSE)*100),"Not Tested") -> 32 | S97: 1 | T97: =IFERROR(IF(N97="N<10","N<10",VLOOKUP(VALUE($A97),'2012-13 BL Civics'!$A$14:$AG$500,29,FALSE)*100),"Not Tested") -> 36 | U97: =IFERROR(IF(O97="N<10","N<10",VLOOKUP(VALUE($A97),'2013-14 BL Civics'!$A$14:$AG$500,29,FALSE)*100),"Not Tested") -> 40 | V97: 4
A98: 6053 | C98: =VLOOKUP(TEXT(A98,"0000"),SchList!$A$2:$C$483,2,FALSE) -> SOMERSET ACAD MIDDLE (S-MIAMI) | D98: =IFERROR(VLOOKUP(TEXT($A98,"0000"),'2012 BL Civics Enrollment'!$A$3:$C$500,3,FALSE),0) -> 50 | E98: =IFERROR(VLOOKUP(TEXT($A98,"0000"),'2013 BL Civics Enrollment'!$A$3:$C$500,3,FALSE),"") -> 34 | F98: =IFERROR(IF(VLOOKUP(VALUE(A98),'2012-13 BL Civics'!$A$14:$C$200,3,FALSE)<10,"N<10",IF(VLOOKUP(VALUE(A98),'2012-13 BL Civics'!$A$14:$C$200,3,FALSE)>D98,100,VLOOKUP(VALUE(A98),'2012-13 BL Civics'!$A$14:$C$200,3,FALSE)/D98%)),"Not Tested") -> 100 | G98: =IFERROR(IF(VLOOKUP(VALUE(A98),'2013-14 BL Civics'!$A$14:$C$200,3,FALSE)<10,"N<10",IF(VLOOKUP(VALUE(A98),'2013-14 BL Civics'!$A$14:$C$200,3,FALSE)>E98,100,VLOOKUP(VALUE(A98),'2013-14 BL Civics'!$A$14:$C$200,3,FALSE)/E98%)),"Not Tested") -> 100 | H98: =IFERROR(IF(F98="N<10","N<10",VLOOKUP(VALUE($A98),'2012-13 BL Civics'!$A$14:$AG$500,5,FALSE)*100),"Not Tested") -> 41 | I98: =IFERROR(IF(G98="N<10","N<10",VLOOKUP(VALUE($A98),'2013-14 BL Civics'!$A$14:$AG$500,5,FALSE)*100),"Not Tested") -> 42 | J98: 1 | K98: =IFERROR(IF(H98="N<10","N<10",VLOOKUP(VALUE($A98),'2012-13 BL Civics'!$A$14:$AG$500,11,FALSE)*100),"Not Tested") -> 50 | L98: =IFERROR(IF(I98="N<10","N<10",VLOOKUP(VALUE($A98),'2013-14 BL Civics'!$A$14:$AG$500,11,FALSE)*100),"Not Tested") -> 44 | M98: -6 | N98: =IFERROR(IF(K98="N<10","N<10",VLOOKUP(VALUE($A98),'2012-13 BL Civics'!$A$14:$AG$500,17,FALSE)*100),"Not Tested") -> 34 | O98: =IFERROR(IF(L98="N<10","N<10",VLOOKUP(VALUE($A98),'2013-14 BL Civics'!$A$14:$AG$500,17,FALSE)*100),"Not Tested") -> 35 | P98: 1 | Q98: =IFERROR(IF(J98="N<10","N<10",VLOOKUP(VALUE($A98),'2012-13 BL Civics'!$A$14:$AG$500,23,FALSE)*100),"Not Tested") -> 42 | R98: =IFERROR(IF(K98="N<10","N<10",VLOOKUP(VALUE($A98),'2013-14 BL Civics'!$A$14:$AG$500,23,FALSE)*100),"Not Tested") -> 45 | S98: 3 | T98: =IFERROR(IF(N98="N<10","N<10",VLOOKUP(VALUE($A98),'2012-13 BL Civics'!$A$14:$AG$500,29,FALSE)*100),"Not Tested") -> 44 | U98: =IFERROR(IF(O98="N<10","N<10",VLOOKUP(VALUE($A98),'2013-14 BL Civics'!$A$14:$AG$500,29,FALSE)*100),"Not Tested") -> 47 | V98: 3
A99: 6060 | C99: =VLOOKUP(TEXT(A99,"0000"),SchList!$A$2:$C$483,2,FALSE) -> ASPIRA SOUTH YOUTH LEADERSHIP | D99: =IFERROR(VLOOKUP(TEXT($A99,"0000"),'2012 BL Civics Enrollment'!$A$3:$C$500,3,FALSE),0) -> 100 | E99: =IFERROR(VLOOKUP(TEXT($A99,"0000"),'2013 BL Civics Enrollment'!$A$3:$C$500,3,FALSE),"") -> 123 | F99: =IFERROR(IF(VLOOKUP(VALUE(A99),'2012-13 BL Civics'!$A$14:$C$200,3,FALSE)<10,"N<10",IF(VLOOKUP(VALUE(A99),'2012-13 BL Civics'!$A$14:$C$200,3,FALSE)>D99,100,VLOOKUP(VALUE(A99),'2012-13 BL Civics'!$A$14:$C$200,3,FALSE)/D99%)),"Not Tested") -> 97 | G99: =IFERROR(IF(VLOOKUP(VALUE(A99),'2013-14 BL Civics'!$A$14:$C$200,3,FALSE)<10,"N<10",IF(VLOOKUP(VALUE(A99),'2013-14 BL Civics'!$A$14:$C$200,3,FALSE)>E99,100,VLOOKUP(VALUE(A99),'2013-14 BL Civics'!$A$14:$C$200,3,FALSE)/E99%)),"Not Tested") -> 95.93495935 | H99: =IFERROR(IF(F99="N<10","N<10",VLOOKUP(VALUE($A99),'2012-13 BL Civics'!$A$14:$AG$500,5,FALSE)*100),"Not Tested") -> 32 | I99: =IFERROR(IF(G99="N<10","N<10",VLOOKUP(VALUE($A99),'2013-14 BL Civics'!$A$14:$AG$500,5,FALSE)*100),"Not Tested") -> 35 | J99: 3 | K99: =IFERROR(IF(H99="N<10","N<10",VLOOKUP(VALUE($A99),'2012-13 BL Civics'!$A$14:$AG$500,11,FALSE)*100),"Not Tested") -> 38 | L99: =IFERROR(IF(I99="N<10","N<10",VLOOKUP(VALUE($A99),'2013-14 BL Civics'!$A$14:$AG$500,11,FALSE)*100),"Not Tested") -> 35 | M99: -3 | N99: =IFERROR(IF(K99="N<10","N<10",VLOOKUP(VALUE($A99),'2012-13 BL Civics'!$A$14:$AG$500,17,FALSE)*100),"Not Tested") -> 27 | O99: =IFERROR(IF(L99="N<10","N<10",VLOOKUP(VALUE($A99),'2013-14 BL Civics'!$A$14:$AG$500,17,FALSE)*100),"Not Tested") -> 33 | P99: 6 | Q99: =IFERROR(IF(J99="N<10","N<10",VLOOKUP(VALUE($A99),'2012-13 BL Civics'!$A$14:$AG$500,23,FALSE)*100),"Not Tested") -> 30 | R99: =IFERROR(IF(K99="N<10","N<10",VLOOKUP(VALUE($A99),'2013-14 BL Civics'!$A$14:$AG$500,23,FALSE)*100),"Not Tested") -> 34 | S99: 4 | T99: =IFERROR(IF(N99="N<10","N<10",VLOOKUP(VALUE($A99),'2012-13 BL Civics'!$A$14:$AG$500,29,FALSE)*100),"Not Tested") -> 33 | U99: =IFERROR(IF(O99="N<10","N<10",VLOOKUP(VALUE($A99),'2013-14 BL Civics'!$A$14:$AG$500,29,FALSE)*100),"Not Tested") -> 40 | V99: 7
A100: 6061 | C100: =VLOOKUP(TEXT(A100,"0000"),SchList!$A$2:$C$483,2,FALSE) -> CAMPBELL DRIVE MIDDLE | D100: =IFERROR(VLOOKUP(TEXT($A100,"0000"),'2012 BL Civics Enrollment'!$A$3:$C$500,3,FALSE),0) -> 143 | E100: =IFERROR(VLOOKUP(TEXT($A100,"0000"),'2013 BL Civics Enrollment'!$A$3:$C$500,3,FALSE),"") -> 149 | F100: =IFERROR(IF(VLOOKUP(VALUE(A100),'2012-13 BL Civics'!$A$14:$C$200,3,FALSE)<10,"N<10",IF(VLOOKUP(VALUE(A100),'2012-13 BL Civics'!$A$14:$C$200,3,FALSE)>D100,100,VLOOKUP(VALUE(A100),'2012-13 BL Civics'!$A$14:$C$200,3,FALSE)/D100%)),"Not Tested") -> 91.60839161 | G100: =IFERROR(IF(VLOOKUP(VALUE(A100),'2013-14 BL Civics'!$A$14:$C$200,3,FALSE)<10,"N<10",IF(VLOOKUP(VALUE(A100),'2013-14 BL Civics'!$A$14:$C$200,3,FALSE)>E100,100,VLOOKUP(VALUE(A100),'2013-14 BL Civics'!$A$14:$C$200,3,FALSE)/E100%)),"Not Tested") -> 95.97315436 | H100: =IFERROR(IF(F100="N<10","N<10",VLOOKUP(VALUE($A100),'2012-13 BL Civics'!$A$14:$AG$500,5,FALSE)*100),"Not Tested") -> 31 | I100: =IFERROR(IF(G100="N<10","N<10",VLOOKUP(VALUE($A100),'2013-14 BL Civics'!$A$14:$AG$500,5,FALSE)*100),"Not Tested") -> 32 | J100: 1 | K100: =IFERROR(IF(H100="N<10","N<10",VLOOKUP(VALUE($A100),'2012-13 BL Civics'!$A$14:$AG$500,11,FALSE)*100),"Not Tested") -> 34 | L100: =IFERROR(IF(I100="N<10","N<10",VLOOKUP(VALUE($A100),'2013-14 BL Civics'!$A$14:$AG$500,11,FALSE)*100),"Not Tested") -> 30 | M100: -4 | N100: =IFERROR(IF(K100="N<10","N<10",VLOOKUP(VALUE($A100),'2012-13 BL Civics'!$A$14:$AG$500,17,FALSE)*100),"Not Tested") -> 25 | O100: =IFERROR(IF(L100="N<10","N<10",VLOOKUP(VALUE($A100),'2013-14 BL Civics'!$A$14:$AG$500,17,FALSE)*100),"Not Tested") -> 28 | P100: 3 | Q100: =IFERROR(IF(J100="N<10","N<10",VLOOKUP(VALUE($A100),'2012-13 BL Civics'!$A$14:$AG$500,23,FALSE)*100),"Not Tested") -> 30 | R100: =IFERROR(IF(K100="N<10","N<10",VLOOKUP(VALUE($A100),'2013-14 BL Civics'!$A$14:$AG$500,23,FALSE)*100),"Not Tested") -> 33 | S100: 3 | T100: =IFERROR(IF(N100="N<10","N<10",VLOOKUP(VALUE($A100),'2012-13 BL Civics'!$A$14:$AG$500,29,FALSE)*100),"Not Tested") -> 35 | U100: =IFERROR(IF(O100="N<10","N<10",VLOOKUP(VALUE($A100),'2013-14 BL Civics'!$A$14:$AG$500,29,FALSE)*100),"Not Tested") -> 39 | V100: 4
A101: 6070 | C101: =VLOOKUP(TEXT(A101,"0000"),SchList!$A$2:$C$483,2,FALSE) -> ASPIRA EUGENIO MARIA DE HOSTOS | D101: =IFERROR(VLOOKUP(TEXT($A101,"0000"),'2012 BL Civics Enrollment'!$A$3:$C$500,3,FALSE),0) -> 190 | E101: =IFERROR(VLOOKUP(TEXT($A101,"0000"),'2013 BL Civics Enrollment'!$A$3:$C$500,3,FALSE),"") -> 162 | F101: =IFERROR(IF(VLOOKUP(VALUE(A101),'2012-13 BL Civics'!$A$14:$C$200,3,FALSE)<10,"N<10",IF(VLOOKUP(VALUE(A101),'2012-13 BL Civics'!$A$14:$C$200,3,FALSE)>D101,100,VLOOKUP(VALUE(A101),'2012-13 BL Civics'!$A$14:$C$200,3,FALSE)/D101%)),"Not Tested") -> 100 | G101: =IFERROR(IF(VLOOKUP(VALUE(A101),'2013-14 BL Civics'!$A$14:$C$200,3,FALSE)<10,"N<10",IF(VLOOKUP(VALUE(A101),'2013-14 BL Civics'!$A$14:$C$200,3,FALSE)>E101,100,VLOOKUP(VALUE(A101),'2013-14 BL Civics'!$A$14:$C$200,3,FALSE)/E101%)),"Not Tested") -> 99.38271605 | H101: =IFERROR(IF(F101="N<10","N<10",VLOOKUP(VALUE($A101),'2012-13 BL Civics'!$A$14:$AG$500,5,FALSE)*100),"Not Tested") -> 32 | I101: =IFERROR(IF(G101="N<10","N<10",VLOOKUP(VALUE($A101),'2013-14 BL Civics'!$A$14:$AG$500,5,FALSE)*100),"Not Tested") -> 34 | J101: 2 | K101: =IFERROR(IF(H101="N<10","N<10",VLOOKUP(VALUE($A101),'2012-13 BL Civics'!$A$14:$AG$500,11,FALSE)*100),"Not Tested") -> 37 | L101: =IFERROR(IF(I101="N<10","N<10",VLOOKUP(VALUE($A101),'2013-14 BL Civics'!$A$14:$AG$500,11,FALSE)*100),"Not Tested") -> 36 | M101: -1 | N101: =IFERROR(IF(K101="N<10","N<10",VLOOKUP(VALUE($A101),'2012-13 BL Civics'!$A$14:$AG$500,17,FALSE)*100),"Not Tested") -> 27 | O101: =IFERROR(IF(L101="N<10","N<10",VLOOKUP(VALUE($A101),'2013-14 BL Civics'!$A$14:$AG$500,17,FALSE)*100),"Not Tested") -> 29 | P101: 2 | Q101: =IFERROR(IF(J101="N<10","N<10",VLOOKUP(VALUE($A101),'2012-13 BL Civics'!$A$14:$AG$500,23,FALSE)*100),"Not Tested") -> 31 | R101: =IFERROR(IF(K101="N<10","N<10",VLOOKUP(VALUE($A101),'2013-14 BL Civics'!$A$14:$AG$500,23,FALSE)*100),"Not Tested") -> 33 | S101: 2 | T101: =IFERROR(IF(N101="N<10","N<10",VLOOKUP(VALUE($A101),'2012-13 BL Civics'!$A$14:$AG$500,29,FALSE)*100),"Not Tested") -> 34 | U101: =IFERROR(IF(O101="N<10","N<10",VLOOKUP(VALUE($A101),'2013-14 BL Civics'!$A$14:$AG$500,29,FALSE)*100),"Not Tested") -> 41 | V101: 7
A102: 6071 | C102: =VLOOKUP(TEXT(A102,"0000"),SchList!$A$2:$C$483,2,FALSE) -> GEORGE WASHINGTON CARVER | D102: =IFERROR(VLOOKUP(TEXT($A102,"0000"),'2012 BL Civics Enrollment'!$A$3:$C$500,3,FALSE),0) -> 308 | E102: =IFERROR(VLOOKUP(TEXT($A102,"0000"),'2013 BL Civics Enrollment'!$A$3:$C$500,3,FALSE),"") -> 349 | F102: =IFERROR(IF(VLOOKUP(VALUE(A102),'2012-13 BL Civics'!$A$14:$C$200,3,FALSE)<10,"N<10",IF(VLOOKUP(VALUE(A102),'2012-13 BL Civics'!$A$14:$C$200,3,FALSE)>D102,100,VLOOKUP(VALUE(A102),'2012-13 BL Civics'!$A$14:$C$200,3,FALSE)/D102%)),"Not Tested") -> 99.67532468 | G102: =IFERROR(IF(VLOOKUP(VALUE(A102),'2013-14 BL Civics'!$A$14:$C$200,3,FALSE)<10,"N<10",IF(VLOOKUP(VALUE(A102),'2013-14 BL Civics'!$A$14:$C$200,3,FALSE)>E102,100,VLOOKUP(VALUE(A102),'2013-14 BL Civics'!$A$14:$C$200,3,FALSE)/E102%)),"Not Tested") -> 98.85386819 | H102: =IFERROR(IF(F102="N<10","N<10",VLOOKUP(VALUE($A102),'2012-13 BL Civics'!$A$14:$AG$500,5,FALSE)*100),"Not Tested") -> 40 | I102: =IFERROR(IF(G102="N<10","N<10",VLOOKUP(VALUE($A102),'2013-14 BL Civics'!$A$14:$AG$500,5,FALSE)*100),"Not Tested") -> 49 | J102: 9 | K102: =IFERROR(IF(H102="N<10","N<10",VLOOKUP(VALUE($A102),'2012-13 BL Civics'!$A$14:$AG$500,11,FALSE)*100),"Not Tested") -> 55 | L102: =IFERROR(IF(I102="N<10","N<10",VLOOKUP(VALUE($A102),'2013-14 BL Civics'!$A$14:$AG$500,11,FALSE)*100),"Not Tested") -> 55 | M102: 0 | N102: =IFERROR(IF(K102="N<10","N<10",VLOOKUP(VALUE($A102),'2012-13 BL Civics'!$A$14:$AG$500,17,FALSE)*100),"Not Tested") -> 30 | O102: =IFERROR(IF(L102="N<10","N<10",VLOOKUP(VALUE($A102),'2013-14 BL Civics'!$A$14:$AG$500,17,FALSE)*100),"Not Tested") -> 43 | P102: 13 | Q102: =IFERROR(IF(J102="N<10","N<10",VLOOKUP(VALUE($A102),'2012-13 BL Civics'!$A$14:$AG$500,23,FALSE)*100),"Not Tested") -> 40 | R102: =IFERROR(IF(K102="N<10","N<10",VLOOKUP(VALUE($A102),'2013-14 BL Civics'!$A$14:$AG$500,23,FALSE)*100),"Not Tested") -> 49 | S102: 9 | T102: =IFERROR(IF(N102="N<10","N<10",VLOOKUP(VALUE($A102),'2012-13 BL Civics'!$A$14:$AG$500,29,FALSE)*100),"Not Tested") -> 39 | U102: =IFERROR(IF(O102="N<10","N<10",VLOOKUP(VALUE($A102),'2013-14 BL Civics'!$A$14:$AG$500,29,FALSE)*100),"Not Tested") -> 51 | V102: 12
A103: 6082 | C103: =VLOOKUP(TEXT(A103,"0000"),SchList!$A$2:$C$483,2,FALSE) -> ACADEMIR CHARTER SCHOOL MIDDLE | D103: =IFERROR(VLOOKUP(TEXT($A103,"0000"),'2012 BL Civics Enrollment'!$A$3:$C$500,3,FALSE),0) -> 13 | E103: =IFERROR(VLOOKUP(TEXT($A103,"0000"),'2013 BL Civics Enrollment'!$A$3:$C$500,3,FALSE),"") -> 22 | F103: =IFERROR(IF(VLOOKUP(VALUE(A103),'2012-13 BL Civics'!$A$14:$C$200,3,FALSE)<10,"N<10",IF(VLOOKUP(VALUE(A103),'2012-13 BL Civics'!$A$14:$C$200,3,FALSE)>D103,100,VLOOKUP(VALUE(A103),'2012-13 BL Civics'!$A$14:$C$200,3,FALSE)/D103%)),"Not Tested") -> 100 | G103: =IFERROR(IF(VLOOKUP(VALUE(A103),'2013-14 BL Civics'!$A$14:$C$200,3,FALSE)<10,"N<10",IF(VLOOKUP(VALUE(A103),'2013-14 BL Civics'!$A$14:$C$200,3,FALSE)>E103,100,VLOOKUP(VALUE(A103),'2013-14 BL Civics'!$A$14:$C$200,3,FALSE)/E103%)),"Not Tested") -> N<10 | H103: =IFERROR(IF(F103="N<10","N<10",VLOOKUP(VALUE($A103),'2012-13 BL Civics'!$A$14:$AG$500,5,FALSE)*100),"Not Tested") -> 34 | I103: =IFERROR(IF(G103="N<10","N<10",VLOOKUP(VALUE($A103),'2013-14 BL Civics'!$A$14:$AG$500,5,FALSE)*100),"Not Tested") -> N<10 | K103: =IFERROR(IF(H103="N<10","N<10",VLOOKUP(VALUE($A103),'2012-13 BL Civics'!$A$14:$AG$500,11,FALSE)*100),"Not Tested") -> 49 | L103: =IFERROR(IF(I103="N<10","N<10",VLOOKUP(VALUE($A103),'2013-14 BL Civics'!$A$14:$AG$500,11,FALSE)*100),"Not Tested") -> N<10 | N103: =IFERROR(IF(K103="N<10","N<10",VLOOKUP(VALUE($A103),'2012-13 BL Civics'!$A$14:$AG$500,17,FALSE)*100),"Not Tested") -> 27 | O103: =IFERROR(IF(L103="N<10","N<10",VLOOKUP(VALUE($A103),'2013-14 BL Civics'!$A$14:$AG$500,17,FALSE)*100),"Not Tested") -> N<10 | Q103: =IFERROR(IF(J103="N<10","N<10",VLOOKUP(VALUE($A103),'2012-13 BL Civics'!$A$14:$AG$500,23,FALSE)*100),"Not Tested") -> 31 | R103: =IFERROR(IF(K103="N<10","N<10",VLOOKUP(VALUE($A103),'2013-14 BL Civics'!$A$14:$AG$500,23,FALSE)*100),"Not Tested") -> 23 | S103: -8 | T103: =IFERROR(IF(N103="N<10","N<10",VLOOKUP(VALUE($A103),'2012-13 BL Civics'!$A$14:$AG$500,29,FALSE)*100),"Not Tested") -> 35 | U103: =IFERROR(IF(O103="N<10","N<10",VLOOKUP(VALUE($A103),'2013-14 BL Civics'!$A$14:$AG$500,29,FALSE)*100),"Not Tested") -> N<10
A104: 6091 | C104: =VLOOKUP(TEXT(A104,"0000"),SchList!$A$2:$C$483,2,FALSE) -> CITRUS GROVE MIDDLE SCHOOL | D104: =IFERROR(VLOOKUP(TEXT($A104,"0000"),'2012 BL Civics Enrollment'!$A$3:$C$500,3,FALSE),0) -> 322 | E104: =IFERROR(VLOOKUP(TEXT($A104,"0000"),'2013 BL Civics Enrollment'!$A$3:$C$500,3,FALSE),"") -> 282 | F104: =IFERROR(IF(VLOOKUP(VALUE(A104),'2012-13 BL Civics'!$A$14:$C$200,3,FALSE)<10,"N<10",IF(VLOOKUP(VALUE(A104),'2012-13 BL Civics'!$A$14:$C$200,3,FALSE)>D104,100,VLOOKUP(VALUE(A104),'2012-13 BL Civics'!$A$14:$C$200,3,FALSE)/D104%)),"Not Tested") -> 88.81987578 | G104: =IFERROR(IF(VLOOKUP(VALUE(A104),'2013-14 BL Civics'!$A$14:$C$200,3,FALSE)<10,"N<10",IF(VLOOKUP(VALUE(A104),'2013-14 BL Civics'!$A$14:$C$200,3,FALSE)>E104,100,VLOOKUP(VALUE(A104),'2013-14 BL Civics'!$A$14:$C$200,3,FALSE)/E104%)),"Not Tested") -> 93.26241135 | H104: =IFERROR(IF(F104="N<10","N<10",VLOOKUP(VALUE($A104),'2012-13 BL Civics'!$A$14:$AG$500,5,FALSE)*100),"Not Tested") -> 30 | I104: =IFERROR(IF(G104="N<10","N<10",VLOOKUP(VALUE($A104),'2013-14 BL Civics'!$A$14:$AG$500,5,FALSE)*100),"Not Tested") -> 31 | J104: 1 | K104: =IFERROR(IF(H104="N<10","N<10",VLOOKUP(VALUE($A104),'2012-13 BL Civics'!$A$14:$AG$500,11,FALSE)*100),"Not Tested") -> 33 | L104: =IFERROR(IF(I104="N<10","N<10",VLOOKUP(VALUE($A104),'2013-14 BL Civics'!$A$14:$AG$500,11,FALSE)*100),"Not Tested") -> 31 | M104: -2 | N104: =IFERROR(IF(K104="N<10","N<10",VLOOKUP(VALUE($A104),'2012-13 BL Civics'!$A$14:$AG$500,17,FALSE)*100),"Not Tested") -> 27 | O104: =IFERROR(IF(L104="N<10","N<10",VLOOKUP(VALUE($A104),'2013-14 BL Civics'!$A$14:$AG$500,17,FALSE)*100),"Not Tested") -> 28 | P104: 1 | Q104: =IFERROR(IF(J104="N<10","N<10",VLOOKUP(VALUE($A104),'2012-13 BL Civics'!$A$14:$AG$500,23,FALSE)*100),"Not Tested") -> 29 | R104: =IFERROR(IF(K104="N<10","N<10",VLOOKUP(VALUE($A104),'2013-14 BL Civics'!$A$14:$AG$500,23,FALSE)*100),"Not Tested") -> 30 | S104: 1 | T104: =IFERROR(IF(N104="N<10","N<10",VLOOKUP(VALUE($A104),'2012-13 BL Civics'!$A$14:$AG$500,29,FALSE)*100),"Not Tested") -> 32 | U104: =IFERROR(IF(O104="N<10","N<10",VLOOKUP(VALUE($A104),'2013-14 BL Civics'!$A$14:$AG$500,29,FALSE)*100),"Not Tested") -> 36 | V104: 4
A105: 6111 | C105: =VLOOKUP(TEXT(A105,"0000"),SchList!$A$2:$C$483,2,FALSE) -> CUTLER RIDGE MIDDLE | D105: =IFERROR(VLOOKUP(TEXT($A105,"0000"),'2012 BL Civics Enrollment'!$A$3:$C$500,3,FALSE),0) -> 265 | E105: =IFERROR(VLOOKUP(TEXT($A105,"0000"),'2013 BL Civics Enrollment'!$A$3:$C$500,3,FALSE),"") -> 438 | F105: =IFERROR(IF(VLOOKUP(VALUE(A105),'2012-13 BL Civics'!$A$14:$C$200,3,FALSE)<10,"N<10",IF(VLOOKUP(VALUE(A105),'2012-13 BL Civics'!$A$14:$C$200,3,FALSE)>D105,100,VLOOKUP(VALUE(A105),'2012-13 BL Civics'!$A$14:$C$200,3,FALSE)/D105%)),"Not Tested") -> 92.45283019 | G105: =IFERROR(IF(VLOOKUP(VALUE(A105),'2013-14 BL Civics'!$A$14:$C$200,3,FALSE)<10,"N<10",IF(VLOOKUP(VALUE(A105),'2013-14 BL Civics'!$A$14:$C$200,3,FALSE)>E105,100,VLOOKUP(VALUE(A105),'2013-14 BL Civics'!$A$14:$C$200,3,FALSE)/E105%)),"Not Tested") -> 91.78082192 | H105: =IFERROR(IF(F105="N<10","N<10",VLOOKUP(VALUE($A105),'2012-13 BL Civics'!$A$14:$AG$500,5,FALSE)*100),"Not Tested") -> 30 | I105: =IFERROR(IF(G105="N<10","N<10",VLOOKUP(VALUE($A105),'2013-14 BL Civics'!$A$14:$AG$500,5,FALSE)*100),"Not Tested") -> 32 | J105: 2 | K105: =IFERROR(IF(H105="N<10","N<10",VLOOKUP(VALUE($A105),'2012-13 BL Civics'!$A$14:$AG$500,11,FALSE)*100),"Not Tested") -> 35 | L105: =IFERROR(IF(I105="N<10","N<10",VLOOKUP(VALUE($A105),'2013-14 BL Civics'!$A$14:$AG$500,11,FALSE)*100),"Not Tested") -> 32 | M105: -3 | N105: =IFERROR(IF(K105="N<10","N<10",VLOOKUP(VALUE($A105),'2012-13 BL Civics'!$A$14:$AG$500,17,FALSE)*100),"Not Tested") -> 27 | O105: =IFERROR(IF(L105="N<10","N<10",VLOOKUP(VALUE($A105),'2013-14 BL Civics'!$A$14:$AG$500,17,FALSE)*100),"Not Tested") -> 29 | P105: 2 | Q105: =IFERROR(IF(J105="N<10","N<10",VLOOKUP(VALUE($A105),'2012-13 BL Civics'!$A$14:$AG$500,23,FALSE)*100),"Not Tested") -> 30 | R105: =IFERROR(IF(K105="N<10","N<10",VLOOKUP(VALUE($A105),'2013-14 BL Civics'!$A$14:$AG$500,23,FALSE)*100),"Not Tested") -> 31 | S105: 1 | T105: =IFERROR(IF(N105="N<10","N<10",VLOOKUP(VALUE($A105),'2012-13 BL Civics'!$A$14:$AG$500,29,FALSE)*100),"Not Tested") -> 30 | U105: =IFERROR(IF(O105="N<10","N<10",VLOOKUP(VALUE($A105),'2013-14 BL Civics'!$A$14:$AG$500,29,FALSE)*100),"Not Tested") -> 37 | V105: 7
A106: 6121 | C106: =VLOOKUP(TEXT(A106,"0000"),SchList!$A$2:$C$483,2,FALSE) -> RUBEN DARIO MIDDLE | D106: =IFERROR(VLOOKUP(TEXT($A106,"0000"),'2012 BL Civics Enrollment'!$A$3:$C$500,3,FALSE),0) -> 221 | E106: =IFERROR(VLOOKUP(TEXT($A106,"0000"),'2013 BL Civics Enrollment'!$A$3:$C$500,3,FALSE),"") -> 210 | F106: =IFERROR(IF(VLOOKUP(VALUE(A106),'2012-13 BL Civics'!$A$14:$C$200,3,FALSE)<10,"N<10",IF(VLOOKUP(VALUE(A106),'2012-13 BL Civics'!$A$14:$C$200,3,FALSE)>D106,100,VLOOKUP(VALUE(A106),'2012-13 BL Civics'!$A$14:$C$200,3,FALSE)/D106%)),"Not Tested") -> 82.35294118 | G106: =IFERROR(IF(VLOOKUP(VALUE(A106),'2013-14 BL Civics'!$A$14:$C$200,3,FALSE)<10,"N<10",IF(VLOOKUP(VALUE(A106),'2013-14 BL Civics'!$A$14:$C$200,3,FALSE)>E106,100,VLOOKUP(VALUE(A106),'2013-14 BL Civics'!$A$14:$C$200,3,FALSE)/E106%)),"Not Tested") -> 95.23809524 | H106: =IFERROR(IF(F106="N<10","N<10",VLOOKUP(VALUE($A106),'2012-13 BL Civics'!$A$14:$AG$500,5,FALSE)*100),"Not Tested") -> 32 | I106: =IFERROR(IF(G106="N<10","N<10",VLOOKUP(VALUE($A106),'2013-14 BL Civics'!$A$14:$AG$500,5,FALSE)*100),"Not Tested") -> 32 | J106: 0 | K106: =IFERROR(IF(H106="N<10","N<10",VLOOKUP(VALUE($A106),'2012-13 BL Civics'!$A$14:$AG$500,11,FALSE)*100),"Not Tested") -> 39 | L106: =IFERROR(IF(I106="N<10","N<10",VLOOKUP(VALUE($A106),'2013-14 BL Civics'!$A$14:$AG$500,11,FALSE)*100),"Not Tested") -> 34 | M106: -5 | N106: =IFERROR(IF(K106="N<10","N<10",VLOOKUP(VALUE($A106),'2012-13 BL Civics'!$A$14:$AG$500,17,FALSE)*100),"Not Tested") -> 25 | O106: =IFERROR(IF(L106="N<10","N<10",VLOOKUP(VALUE($A106),'2013-14 BL Civics'!$A$14:$AG$500,17,FALSE)*100),"Not Tested") -> 28 | P106: 3 | Q106: =IFERROR(IF(J106="N<10","N<10",VLOOKUP(VALUE($A106),'2012-13 BL Civics'!$A$14:$AG$500,23,FALSE)*100),"Not Tested") -> 32 | R106: =IFERROR(IF(K106="N<10","N<10",VLOOKUP(VALUE($A106),'2013-14 BL Civics'!$A$14:$AG$500,23,FALSE)*100),"Not Tested") -> 32 | S106: 0 | T106: =IFERROR(IF(N106="N<10","N<10",VLOOKUP(VALUE($A106),'2012-13 BL Civics'!$A$14:$AG$500,29,FALSE)*100),"Not Tested") -> 35 | U106: =IFERROR(IF(O106="N<10","N<10",VLOOKUP(VALUE($A106),'2013-14 BL Civics'!$A$14:$AG$500,29,FALSE)*100),"Not Tested") -> 38 | V106: 3
A107: 6161 | C107: =VLOOKUP(TEXT(A107,"0000"),SchList!$A$2:$C$483,2,FALSE) -> LAWTON CHILES MIDDLE SCHOOL | D107: =IFERROR(VLOOKUP(TEXT($A107,"0000"),'2012 BL Civics Enrollment'!$A$3:$C$500,3,FALSE),0) -> 244 | E107: =IFERROR(VLOOKUP(TEXT($A107,"0000"),'2013 BL Civics Enrollment'!$A$3:$C$500,3,FALSE),"") -> 168 | F107: =IFERROR(IF(VLOOKUP(VALUE(A107),'2012-13 BL Civics'!$A$14:$C$200,3,FALSE)<10,"N<10",IF(VLOOKUP(VALUE(A107),'2012-13 BL Civics'!$A$14:$C$200,3,FALSE)>D107,100,VLOOKUP(VALUE(A107),'2012-13 BL Civics'!$A$14:$C$200,3,FALSE)/D107%)),"Not Tested") -> 98.7704918 | G107: =IFERROR(IF(VLOOKUP(VALUE(A107),'2013-14 BL Civics'!$A$14:$C$200,3,FALSE)<10,"N<10",IF(VLOOKUP(VALUE(A107),'2013-14 BL Civics'!$A$14:$C$200,3,FALSE)>E107,100,VLOOKUP(VALUE(A107),'2013-14 BL Civics'!$A$14:$C$200,3,FALSE)/E107%)),"Not Tested") -> 95.83333333 | H107: =IFERROR(IF(F107="N<10","N<10",VLOOKUP(VALUE($A107),'2012-13 BL Civics'!$A$14:$AG$500,5,FALSE)*100),"Not Tested") -> 31 | I107: =IFERROR(IF(G107="N<10","N<10",VLOOKUP(VALUE($A107),'2013-14 BL Civics'!$A$14:$AG$500,5,FALSE)*100),"Not Tested") -> 35 | J107: 4 | K107: =IFERROR(IF(H107="N<10","N<10",VLOOKUP(VALUE($A107),'2012-13 BL Civics'!$A$14:$AG$500,11,FALSE)*100),"Not Tested") -> 38 | L107: =IFERROR(IF(I107="N<10","N<10",VLOOKUP(VALUE($A107),'2013-14 BL Civics'!$A$14:$AG$500,11,FALSE)*100),"Not Tested") -> 34 | M107: -4 | N107: =IFERROR(IF(K107="N<10","N<10",VLOOKUP(VALUE($A107),'2012-13 BL Civics'!$A$14:$AG$500,17,FALSE)*100),"Not Tested") -> 28 | O107: =IFERROR(IF(L107="N<10","N<10",VLOOKUP(VALUE($A107),'2013-14 BL Civics'!$A$14:$AG$500,17,FALSE)*100),"Not Tested") -> 32 | P107: 4 | Q107: =IFERROR(IF(J107="N<10","N<10",VLOOKUP(VALUE($A107),'2012-13 BL Civics'!$A$14:$AG$500,23,FALSE)*100),"Not Tested") -> 29 | R107: =IFERROR(IF(K107="N<10","N<10",VLOOKUP(VALUE($A107),'2013-14 BL Civics'!$A$14:$AG$500,23,FALSE)*100),"Not Tested") -> 34 | S107: 5 | T107: =IFERROR(IF(N107="N<10","N<10",VLOOKUP(VALUE($A107),'2012-13 BL Civics'!$A$14:$AG$500,29,FALSE)*100),"Not Tested") -> 34 | U107: =IFERROR(IF(O107="N<10","N<10",VLOOKUP(VALUE($A107),'2013-14 BL Civics'!$A$14:$AG$500,29,FALSE)*100),"Not Tested") -> 40 | V107: 6
A108: 6171 | C108: =VLOOKUP(TEXT(A108,"0000"),SchList!$A$2:$C$483,2,FALSE) -> HENRY H. FILER MIDDLE | D108: =IFERROR(VLOOKUP(TEXT($A108,"0000"),'2012 BL Civics Enrollment'!$A$3:$C$500,3,FALSE),0) -> 389 | E108: =IFERROR(VLOOKUP(TEXT($A108,"0000"),'2013 BL Civics Enrollment'!$A$3:$C$500,3,FALSE),"") -> 361 | F108: =IFERROR(IF(VLOOKUP(VALUE(A108),'2012-13 BL Civics'!$A$14:$C$200,3,FALSE)<10,"N<10",IF(VLOOKUP(VALUE(A108),'2012-13 BL Civics'!$A$14:$C$200,3,FALSE)>D108,100,VLOOKUP(VALUE(A108),'2012-13 BL Civics'!$A$14:$C$200,3,FALSE)/D108%)),"Not Tested") -> 83.80462725 | G108: =IFERROR(IF(VLOOKUP(VALUE(A108),'2013-14 BL Civics'!$A$14:$C$200,3,FALSE)<10,"N<10",IF(VLOOKUP(VALUE(A108),'2013-14 BL Civics'!$A$14:$C$200,3,FALSE)>E108,100,VLOOKUP(VALUE(A108),'2013-14 BL Civics'!$A$14:$C$200,3,FALSE)/E108%)),"Not Tested") -> 88.64265928 | H108: =IFERROR(IF(F108="N<10","N<10",VLOOKUP(VALUE($A108),'2012-13 BL Civics'!$A$14:$AG$500,5,FALSE)*100),"Not Tested") -> 31 | I108: =IFERROR(IF(G108="N<10","N<10",VLOOKUP(VALUE($A108),'2013-14 BL Civics'!$A$14:$AG$500,5,FALSE)*100),"Not Tested") -> 32 | J108: 1 | K108: =IFERROR(IF(H108="N<10","N<10",VLOOKUP(VALUE($A108),'2012-13 BL Civics'!$A$14:$AG$500,11,FALSE)*100),"Not Tested") -> 39 | L108: =IFERROR(IF(I108="N<10","N<10",VLOOKUP(VALUE($A108),'2013-14 BL Civics'!$A$14:$AG$500,11,FALSE)*100),"Not Tested") -> 35 | M108: -4 | N108: =IFERROR(IF(K108="N<10","N<10",VLOOKUP(VALUE($A108),'2012-13 BL Civics'!$A$14:$AG$500,17,FALSE)*100),"Not Tested") -> 25 | O108: =IFERROR(IF(L108="N<10","N<10",VLOOKUP(VALUE($A108),'2013-14 BL Civics'!$A$14:$AG$500,17,FALSE)*100),"Not Tested") -> 28 | P108: 3 | Q108: =IFERROR(IF(J108="N<10","N<10",VLOOKUP(VALUE($A108),'2012-13 BL Civics'!$A$14:$AG$500,23,FALSE)*100),"Not Tested") -> 31 | R108: =IFERROR(IF(K108="N<10","N<10",VLOOKUP(VALUE($A108),'2013-14 BL Civics'!$A$14:$AG$500,23,FALSE)*100),"Not Tested") -> 30 | S108: -1 | T108: =IFERROR(IF(N108="N<10","N<10",VLOOKUP(VALUE($A108),'2012-13 BL Civics'!$A$14:$AG$500,29,FALSE)*100),"Not Tested") -> 33 | U108: =IFERROR(IF(O108="N<10","N<10",VLOOKUP(VALUE($A108),'2013-14 BL Civics'!$A$14:$AG$500,29,FALSE)*100),"Not Tested") -> 38 | V108: 5
A109: 6211 | C109: =VLOOKUP(TEXT(A109,"0000"),SchList!$A$2:$C$483,2,FALSE) -> GLADES MIDDLE | D109: =IFERROR(VLOOKUP(TEXT($A109,"0000"),'2012 BL Civics Enrollment'!$A$3:$C$500,3,FALSE),0) -> 376 | E109: =IFERROR(VLOOKUP(TEXT($A109,"0000"),'2013 BL Civics Enrollment'!$A$3:$C$500,3,FALSE),"") -> 411 | F109: =IFERROR(IF(VLOOKUP(VALUE(A109),'2012-13 BL Civics'!$A$14:$C$200,3,FALSE)<10,"N<10",IF(VLOOKUP(VALUE(A109),'2012-13 BL Civics'!$A$14:$C$200,3,FALSE)>D109,100,VLOOKUP(VALUE(A109),'2012-13 BL Civics'!$A$14:$C$200,3,FALSE)/D109%)),"Not Tested") -> 93.61702128 | G109: =IFERROR(IF(VLOOKUP(VALUE(A109),'2013-14 BL Civics'!$A$14:$C$200,3,FALSE)<10,"N<10",IF(VLOOKUP(VALUE(A109),'2013-14 BL Civics'!$A$14:$C$200,3,FALSE)>E109,100,VLOOKUP(VALUE(A109),'2013-14 BL Civics'!$A$14:$C$200,3,FALSE)/E109%)),"Not Tested") -> 99.02676399 | H109: =IFERROR(IF(F109="N<10","N<10",VLOOKUP(VALUE($A109),'2012-13 BL Civics'!$A$14:$AG$500,5,FALSE)*100),"Not Tested") -> 34 | I109: =IFERROR(IF(G109="N<10","N<10",VLOOKUP(VALUE($A109),'2013-14 BL Civics'!$A$14:$AG$500,5,FALSE)*100),"Not Tested") -> 37 | J109: 3 | K109: =IFERROR(IF(H109="N<10","N<10",VLOOKUP(VALUE($A109),'2012-13 BL Civics'!$A$14:$AG$500,11,FALSE)*100),"Not Tested") -> 41 | L109: =IFERROR(IF(I109="N<10","N<10",VLOOKUP(VALUE($A109),'2013-14 BL Civics'!$A$14:$AG$500,11,FALSE)*100),"Not Tested") -> 41 | M109: 0 | N109: =IFERROR(IF(K109="N<10","N<10",VLOOKUP(VALUE($A109),'2012-13 BL Civics'!$A$14:$AG$500,17,FALSE)*100),"Not Tested") -> 29 | O109: =IFERROR(IF(L109="N<10","N<10",VLOOKUP(VALUE($A109),'2013-14 BL Civics'!$A$14:$AG$500,17,FALSE)*100),"Not Tested") -> 32 | P109: 3 | Q109: =IFERROR(IF(J109="N<10","N<10",VLOOKUP(VALUE($A109),'2012-13 BL Civics'!$A$14:$AG$500,23,FALSE)*100),"Not Tested") -> 33 | R109: =IFERROR(IF(K109="N<10","N<10",VLOOKUP(VALUE($A109),'2013-14 BL Civics'!$A$14:$AG$500,23,FALSE)*100),"Not Tested") -> 35 | S109: 2 | T109: =IFERROR(IF(N109="N<10","N<10",VLOOKUP(VALUE($A109),'2012-13 BL Civics'!$A$14:$AG$500,29,FALSE)*100),"Not Tested") -> 35 | U109: =IFERROR(IF(O109="N<10","N<10",VLOOKUP(VALUE($A109),'2013-14 BL Civics'!$A$14:$AG$500,29,FALSE)*100),"Not Tested") -> 42 | V109: 7
A110: 6221 | C110: =VLOOKUP(TEXT(A110,"0000"),SchList!$A$2:$C$483,2,FALSE) -> HAMMOCKS MIDDLE | D110: =IFERROR(VLOOKUP(TEXT($A110,"0000"),'2012 BL Civics Enrollment'!$A$3:$C$500,3,FALSE),0) -> 385 | E110: =IFERROR(VLOOKUP(TEXT($A110,"0000"),'2013 BL Civics Enrollment'!$A$3:$C$500,3,FALSE),"") -> 398 | F110: =IFERROR(IF(VLOOKUP(VALUE(A110),'2012-13 BL Civics'!$A$14:$C$200,3,FALSE)<10,"N<10",IF(VLOOKUP(VALUE(A110),'2012-13 BL Civics'!$A$14:$C$200,3,FALSE)>D110,100,VLOOKUP(VALUE(A110),'2012-13 BL Civics'!$A$14:$C$200,3,FALSE)/D110%)),"Not Tested") -> 95.32467532 | G110: =IFERROR(IF(VLOOKUP(VALUE(A110),'2013-14 BL Civics'!$A$14:$C$200,3,FALSE)<10,"N<10",IF(VLOOKUP(VALUE(A110),'2013-14 BL Civics'!$A$14:$C$200,3,FALSE)>E110,100,VLOOKUP(VALUE(A110),'2013-14 BL Civics'!$A$14:$C$200,3,FALSE)/E110%)),"Not Tested") -> 91.95979899 | H110: =IFERROR(IF(F110="N<10","N<10",VLOOKUP(VALUE($A110),'2012-13 BL Civics'!$A$14:$AG$500,5,FALSE)*100),"Not Tested") -> 34 | I110: =IFERROR(IF(G110="N<10","N<10",VLOOKUP(VALUE($A110),'2013-14 BL Civics'!$A$14:$AG$500,5,FALSE)*100),"Not Tested") -> 38 | J110: 4 | K110: =IFERROR(IF(H110="N<10","N<10",VLOOKUP(VALUE($A110),'2012-13 BL Civics'!$A$14:$AG$500,11,FALSE)*100),"Not Tested") -> 42 | L110: =IFERROR(IF(I110="N<10","N<10",VLOOKUP(VALUE($A110),'2013-14 BL Civics'!$A$14:$AG$500,11,FALSE)*100),"Not Tested") -> 40 | M110: -2 | N110: =IFERROR(IF(K110="N<10","N<10",VLOOKUP(VALUE($A110),'2012-13 BL Civics'!$A$14:$AG$500,17,FALSE)*100),"Not Tested") -> 28 | O110: =IFERROR(IF(L110="N<10","N<10",VLOOKUP(VALUE($A110),'2013-14 BL Civics'!$A$14:$AG$500,17,FALSE)*100),"Not Tested") -> 34 | P110: 6 | Q110: =IFERROR(IF(J110="N<10","N<10",VLOOKUP(VALUE($A110),'2012-13 BL Civics'!$A$14:$AG$500,23,FALSE)*100),"Not Tested") -> 34 | R110: =IFERROR(IF(K110="N<10","N<10",VLOOKUP(VALUE($A110),'2013-14 BL Civics'!$A$14:$AG$500,23,FALSE)*100),"Not Tested") -> 36 | S110: 2 | T110: =IFERROR(IF(N110="N<10","N<10",VLOOKUP(VALUE($A110),'2012-13 BL Civics'!$A$14:$AG$500,29,FALSE)*100),"Not Tested") -> 38 | U110: =IFERROR(IF(O110="N<10","N<10",VLOOKUP(VALUE($A110),'2013-14 BL Civics'!$A$14:$AG$500,29,FALSE)*100),"Not Tested") -> 44 | V110: 6
A111: 6231 | C111: =VLOOKUP(TEXT(A111,"0000"),SchList!$A$2:$C$483,2,FALSE) -> HIALEAH MIDDLE | D111: =IFERROR(VLOOKUP(TEXT($A111,"0000"),'2012 BL Civics Enrollment'!$A$3:$C$500,3,FALSE),0) -> 272 | E111: =IFERROR(VLOOKUP(TEXT($A111,"0000"),'2013 BL Civics Enrollment'!$A$3:$C$500,3,FALSE),"") -> 276 | F111: =IFERROR(IF(VLOOKUP(VALUE(A111),'2012-13 BL Civics'!$A$14:$C$200,3,FALSE)<10,"N<10",IF(VLOOKUP(VALUE(A111),'2012-13 BL Civics'!$A$14:$C$200,3,FALSE)>D111,100,VLOOKUP(VALUE(A111),'2012-13 BL Civics'!$A$14:$C$200,3,FALSE)/D111%)),"Not Tested") -> 97.05882353 | G111: =IFERROR(IF(VLOOKUP(VALUE(A111),'2013-14 BL Civics'!$A$14:$C$200,3,FALSE)<10,"N<10",IF(VLOOKUP(VALUE(A111),'2013-14 BL Civics'!$A$14:$C$200,3,FALSE)>E111,100,VLOOKUP(VALUE(A111),'2013-14 BL Civics'!$A$14:$C$200,3,FALSE)/E111%)),"Not Tested") -> 90.2173913 | H111: =IFERROR(IF(F111="N<10","N<10",VLOOKUP(VALUE($A111),'2012-13 BL Civics'!$A$14:$AG$500,5,FALSE)*100),"Not Tested") -> 32 | I111: =IFERROR(IF(G111="N<10","N<10",VLOOKUP(VALUE($A111),'2013-14 BL Civics'!$A$14:$AG$500,5,FALSE)*100),"Not Tested") -> 33 | J111: 1 | K111: =IFERROR(IF(H111="N<10","N<10",VLOOKUP(VALUE($A111),'2012-13 BL Civics'!$A$14:$AG$500,11,FALSE)*100),"Not Tested") -> 38 | L111: =IFERROR(IF(I111="N<10","N<10",VLOOKUP(VALUE($A111),'2013-14 BL Civics'!$A$14:$AG$500,11,FALSE)*100),"Not Tested") -> 33 | M111: -5 | N111: =IFERROR(IF(K111="N<10","N<10",VLOOKUP(VALUE($A111),'2012-13 BL Civics'!$A$14:$AG$500,17,FALSE)*100),"Not Tested") -> 26 | O111: =IFERROR(IF(L111="N<10","N<10",VLOOKUP(VALUE($A111),'2013-14 BL Civics'!$A$14:$AG$500,17,FALSE)*100),"Not Tested") -> 29 | P111: 3 | Q111: =IFERROR(IF(J111="N<10","N<10",VLOOKUP(VALUE($A111),'2012-13 BL Civics'!$A$14:$AG$500,23,FALSE)*100),"Not Tested") -> 32 | R111: =IFERROR(IF(K111="N<10","N<10",VLOOKUP(VALUE($A111),'2013-14 BL Civics'!$A$14:$AG$500,23,FALSE)*100),"Not Tested") -> 32 | S111: 0 | T111: =IFERROR(IF(N111="N<10","N<10",VLOOKUP(VALUE($A111),'2012-13 BL Civics'!$A$14:$AG$500,29,FALSE)*100),"Not Tested") -> 34 | U111: =IFERROR(IF(O111="N<10","N<10",VLOOKUP(VALUE($A111),'2013-14 BL Civics'!$A$14:$AG$500,29,FALSE)*100),"Not Tested") -> 39 | V111: 5
A112: 6241 | C112: =VLOOKUP(TEXT(A112,"0000"),SchList!$A$2:$C$483,2,FALSE) -> HIGHLAND OAKS MIDDLE | D112: =IFERROR(VLOOKUP(TEXT($A112,"0000"),'2012 BL Civics Enrollment'!$A$3:$C$500,3,FALSE),0) -> 423 | E112: =IFERROR(VLOOKUP(TEXT($A112,"0000"),'2013 BL Civics Enrollment'!$A$3:$C$500,3,FALSE),"") -> 437 | F112: =IFERROR(IF(VLOOKUP(VALUE(A112),'2012-13 BL Civics'!$A$14:$C$200,3,FALSE)<10,"N<10",IF(VLOOKUP(VALUE(A112),'2012-13 BL Civics'!$A$14:$C$200,3,FALSE)>D112,100,VLOOKUP(VALUE(A112),'2012-13 BL Civics'!$A$14:$C$200,3,FALSE)/D112%)),"Not Tested") -> 98.10874704 | G112: =IFERROR(IF(VLOOKUP(VALUE(A112),'2013-14 BL Civics'!$A$14:$C$200,3,FALSE)<10,"N<10",IF(VLOOKUP(VALUE(A112),'2013-14 BL Civics'!$A$14:$C$200,3,FALSE)>E112,100,VLOOKUP(VALUE(A112),'2013-14 BL Civics'!$A$14:$C$200,3,FALSE)/E112%)),"Not Tested") -> 99.77116705 | H112: =IFERROR(IF(F112="N<10","N<10",VLOOKUP(VALUE($A112),'2012-13 BL Civics'!$A$14:$AG$500,5,FALSE)*100),"Not Tested") -> 33 | I112: =IFERROR(IF(G112="N<10","N<10",VLOOKUP(VALUE($A112),'2013-14 BL Civics'!$A$14:$AG$500,5,FALSE)*100),"Not Tested") -> 38 | J112: 5 | K112: =IFERROR(IF(H112="N<10","N<10",VLOOKUP(VALUE($A112),'2012-13 BL Civics'!$A$14:$AG$500,11,FALSE)*100),"Not Tested") -> 41 | L112: =IFERROR(IF(I112="N<10","N<10",VLOOKUP(VALUE($A112),'2013-14 BL Civics'!$A$14:$AG$500,11,FALSE)*100),"Not Tested") -> 42 | M112: 1 | N112: =IFERROR(IF(K112="N<10","N<10",VLOOKUP(VALUE($A112),'2012-13 BL Civics'!$A$14:$AG$500,17,FALSE)*100),"Not Tested") -> 27 | O112: =IFERROR(IF(L112="N<10","N<10",VLOOKUP(VALUE($A112),'2013-14 BL Civics'!$A$14:$AG$500,17,FALSE)*100),"Not Tested") -> 34 | P112: 7 | Q112: =IFERROR(IF(J112="N<10","N<10",VLOOKUP(VALUE($A112),'2012-13 BL Civics'!$A$14:$AG$500,23,FALSE)*100),"Not Tested") -> 33 | R112: =IFERROR(IF(K112="N<10","N<10",VLOOKUP(VALUE($A112),'2013-14 BL Civics'!$A$14:$AG$500,23,FALSE)*100),"Not Tested") -> 37 | S112: 4 | T112: =IFERROR(IF(N112="N<10","N<10",VLOOKUP(VALUE($A112),'2012-13 BL Civics'!$A$14:$AG$500,29,FALSE)*100),"Not Tested") -> 36 | U112: =IFERROR(IF(O112="N<10","N<10",VLOOKUP(VALUE($A112),'2013-14 BL Civics'!$A$14:$AG$500,29,FALSE)*100),"Not Tested") -> 44 | V112: 8
A113: 6251 | C113: =VLOOKUP(TEXT(A113,"0000"),SchList!$A$2:$C$483,2,FALSE) -> HOMESTEAD MIDDLE | D113: =IFERROR(VLOOKUP(TEXT($A113,"0000"),'2012 BL Civics Enrollment'!$A$3:$C$500,3,FALSE),0) -> 173 | E113: =IFERROR(VLOOKUP(TEXT($A113,"0000"),'2013 BL Civics Enrollment'!$A$3:$C$500,3,FALSE),"") -> 145 | F113: =IFERROR(IF(VLOOKUP(VALUE(A113),'2012-13 BL Civics'!$A$14:$C$200,3,FALSE)<10,"N<10",IF(VLOOKUP(VALUE(A113),'2012-13 BL Civics'!$A$14:$C$200,3,FALSE)>D113,100,VLOOKUP(VALUE(A113),'2012-13 BL Civics'!$A$14:$C$200,3,FALSE)/D113%)),"Not Tested") -> 100 | G113: =IFERROR(IF(VLOOKUP(VALUE(A113),'2013-14 BL Civics'!$A$14:$C$200,3,FALSE)<10,"N<10",IF(VLOOKUP(VALUE(A113),'2013-14 BL Civics'!$A$14:$C$200,3,FALSE)>E113,100,VLOOKUP(VALUE(A113),'2013-14 BL Civics'!$A$14:$C$200,3,FALSE)/E113%)),"Not Tested") -> 100 | H113: =IFERROR(IF(F113="N<10","N<10",VLOOKUP(VALUE($A113),'2012-13 BL Civics'!$A$14:$AG$500,5,FALSE)*100),"Not Tested") -> 30 | I113: =IFERROR(IF(G113="N<10","N<10",VLOOKUP(VALUE($A113),'2013-14 BL Civics'!$A$14:$AG$500,5,FALSE)*100),"Not Tested") -> 34 | J113: 4 | K113: =IFERROR(IF(H113="N<10","N<10",VLOOKUP(VALUE($A113),'2012-13 BL Civics'!$A$14:$AG$500,11,FALSE)*100),"Not Tested") -> 35 | L113: =IFERROR(IF(I113="N<10","N<10",VLOOKUP(VALUE($A113),'2013-14 BL Civics'!$A$14:$AG$500,11,FALSE)*100),"Not Tested") -> 33 | M113: -2 | N113: =IFERROR(IF(K113="N<10","N<10",VLOOKUP(VALUE($A113),'2012-13 BL Civics'!$A$14:$AG$500,17,FALSE)*100),"Not Tested") -> 25 | O113: =IFERROR(IF(L113="N<10","N<10",VLOOKUP(VALUE($A113),'2013-14 BL Civics'!$A$14:$AG$500,17,FALSE)*100),"Not Tested") -> 30 | P113: 5 | Q113: =IFERROR(IF(J113="N<10","N<10",VLOOKUP(VALUE($A113),'2012-13 BL Civics'!$A$14:$AG$500,23,FALSE)*100),"Not Tested") -> 30 | R113: =IFERROR(IF(K113="N<10","N<10",VLOOKUP(VALUE($A113),'2013-14 BL Civics'!$A$14:$AG$500,23,FALSE)*100),"Not Tested") -> 34 | S113: 4 | T113: =IFERROR(IF(N113="N<10","N<10",VLOOKUP(VALUE($A113),'2012-13 BL Civics'!$A$14:$AG$500,29,FALSE)*100),"Not Tested") -> 33 | U113: =IFERROR(IF(O113="N<10","N<10",VLOOKUP(VALUE($A113),'2013-14 BL Civics'!$A$14:$AG$500,29,FALSE)*100),"Not Tested") -> 40 | V113: 7
A114: 6281 | C114: =VLOOKUP(TEXT(A114,"0000"),SchList!$A$2:$C$483,2,FALSE) -> THOMAS JEFFERSON MIDDLE | D114: =IFERROR(VLOOKUP(TEXT($A114,"0000"),'2012 BL Civics Enrollment'!$A$3:$C$500,3,FALSE),0) -> 126 | E114: =IFERROR(VLOOKUP(TEXT($A114,"0000"),'2013 BL Civics Enrollment'!$A$3:$C$500,3,FALSE),"") -> 123 | F114: =IFERROR(IF(VLOOKUP(VALUE(A114),'2012-13 BL Civics'!$A$14:$C$200,3,FALSE)<10,"N<10",IF(VLOOKUP(VALUE(A114),'2012-13 BL Civics'!$A$14:$C$200,3,FALSE)>D114,100,VLOOKUP(VALUE(A114),'2012-13 BL Civics'!$A$14:$C$200,3,FALSE)/D114%)),"Not Tested") -> 100 | G114: =IFERROR(IF(VLOOKUP(VALUE(A114),'2013-14 BL Civics'!$A$14:$C$200,3,FALSE)<10,"N<10",IF(VLOOKUP(VALUE(A114),'2013-14 BL Civics'!$A$14:$C$200,3,FALSE)>E114,100,VLOOKUP(VALUE(A114),'2013-14 BL Civics'!$A$14:$C$200,3,FALSE)/E114%)),"Not Tested") -> 100 | H114: =IFERROR(IF(F114="N<10","N<10",VLOOKUP(VALUE($A114),'2012-13 BL Civics'!$A$14:$AG$500,5,FALSE)*100),"Not Tested") -> 30 | I114: =IFERROR(IF(G114="N<10","N<10",VLOOKUP(VALUE($A114),'2013-14 BL Civics'!$A$14:$AG$500,5,FALSE)*100),"Not Tested") -> 31 | J114: 1 | K114: =IFERROR(IF(H114="N<10","N<10",VLOOKUP(VALUE($A114),'2012-13 BL Civics'!$A$14:$AG$500,11,FALSE)*100),"Not Tested") -> 37 | L114: =IFERROR(IF(I114="N<10","N<10",VLOOKUP(VALUE($A114),'2013-14 BL Civics'!$A$14:$AG$500,11,FALSE)*100),"Not Tested") -> 31 | M114: -6 | N114: =IFERROR(IF(K114="N<10","N<10",VLOOKUP(VALUE($A114),'2012-13 BL Civics'!$A$14:$AG$500,17,FALSE)*100),"Not Tested") -> 24 | O114: =IFERROR(IF(L114="N<10","N<10",VLOOKUP(VALUE($A114),'2013-14 BL Civics'!$A$14:$AG$500,17,FALSE)*100),"Not Tested") -> 29 | P114: 5 | Q114: =IFERROR(IF(J114="N<10","N<10",VLOOKUP(VALUE($A114),'2012-13 BL Civics'!$A$14:$AG$500,23,FALSE)*100),"Not Tested") -> 29 | R114: =IFERROR(IF(K114="N<10","N<10",VLOOKUP(VALUE($A114),'2013-14 BL Civics'!$A$14:$AG$500,23,FALSE)*100),"Not Tested") -> 31 | S114: 2 | T114: =IFERROR(IF(N114="N<10","N<10",VLOOKUP(VALUE($A114),'2012-13 BL Civics'!$A$14:$AG$500,29,FALSE)*100),"Not Tested") -> 33 | U114: =IFERROR(IF(O114="N<10","N<10",VLOOKUP(VALUE($A114),'2013-14 BL Civics'!$A$14:$AG$500,29,FALSE)*100),"Not Tested") -> 36 | V114: 3
A115: 6301 | C115: =VLOOKUP(TEXT(A115,"0000"),SchList!$A$2:$C$483,2,FALSE) -> JOHN F. KENNEDY MIDDLE | D115: =IFERROR(VLOOKUP(TEXT($A115,"0000"),'2012 BL Civics Enrollment'!$A$3:$C$500,3,FALSE),0) -> 434 | E115: =IFERROR(VLOOKUP(TEXT($A115,"0000"),'2013 BL Civics Enrollment'!$A$3:$C$500,3,FALSE),"") -> 411 | F115: =IFERROR(IF(VLOOKUP(VALUE(A115),'2012-13 BL Civics'!$A$14:$C$200,3,FALSE)<10,"N<10",IF(VLOOKUP(VALUE(A115),'2012-13 BL Civics'!$A$14:$C$200,3,FALSE)>D115,100,VLOOKUP(VALUE(A115),'2012-13 BL Civics'!$A$14:$C$200,3,FALSE)/D115%)),"Not Tested") -> 91.24423963 | G115: =IFERROR(IF(VLOOKUP(VALUE(A115),'2013-14 BL Civics'!$A$14:$C$200,3,FALSE)<10,"N<10",IF(VLOOKUP(VALUE(A115),'2013-14 BL Civics'!$A$14:$C$200,3,FALSE)>E115,100,VLOOKUP(VALUE(A115),'2013-14 BL Civics'!$A$14:$C$200,3,FALSE)/E115%)),"Not Tested") -> 94.16058394 | H115: =IFERROR(IF(F115="N<10","N<10",VLOOKUP(VALUE($A115),'2012-13 BL Civics'!$A$14:$AG$500,5,FALSE)*100),"Not Tested") -> 35 | I115: =IFERROR(IF(G115="N<10","N<10",VLOOKUP(VALUE($A115),'2013-14 BL Civics'!$A$14:$AG$500,5,FALSE)*100),"Not Tested") -> 40 | J115: 5 | K115: =IFERROR(IF(H115="N<10","N<10",VLOOKUP(VALUE($A115),'2012-13 BL Civics'!$A$14:$AG$500,11,FALSE)*100),"Not Tested") -> 42 | L115: =IFERROR(IF(I115="N<10","N<10",VLOOKUP(VALUE($A115),'2013-14 BL Civics'!$A$14:$AG$500,11,FALSE)*100),"Not Tested") -> 41 | M115: -1 | N115: =IFERROR(IF(K115="N<10","N<10",VLOOKUP(VALUE($A115),'2012-13 BL Civics'!$A$14:$AG$500,17,FALSE)*100),"Not Tested") -> 29 | O115: =IFERROR(IF(L115="N<10","N<10",VLOOKUP(VALUE($A115),'2013-14 BL Civics'!$A$14:$AG$500,17,FALSE)*100),"Not Tested") -> 35 | P115: 6 | Q115: =IFERROR(IF(J115="N<10","N<10",VLOOKUP(VALUE($A115),'2012-13 BL Civics'!$A$14:$AG$500,23,FALSE)*100),"Not Tested") -> 33 | R115: =IFERROR(IF(K115="N<10","N<10",VLOOKUP(VALUE($A115),'2013-14 BL Civics'!$A$14:$AG$500,23,FALSE)*100),"Not Tested") -> 41 | S115: 8 | T115: =IFERROR(IF(N115="N<10","N<10",VLOOKUP(VALUE($A115),'2012-13 BL Civics'!$A$14:$AG$500,29,FALSE)*100),"Not Tested") -> 36 | U115: =IFERROR(IF(O115="N<10","N<10",VLOOKUP(VALUE($A115),'2013-14 BL Civics'!$A$14:$AG$500,29,FALSE)*100),"Not Tested") -> 44 | V115: 8
A116: 6331 | C116: =VLOOKUP(TEXT(A116,"0000"),SchList!$A$2:$C$483,2,FALSE) -> KINLOCH PARK MIDDLE | D116: =IFERROR(VLOOKUP(TEXT($A116,"0000"),'2012 BL Civics Enrollment'!$A$3:$C$500,3,FALSE),0) -> 419 | E116: =IFERROR(VLOOKUP(TEXT($A116,"0000"),'2013 BL Civics Enrollment'!$A$3:$C$500,3,FALSE),"") -> 384 | F116: =IFERROR(IF(VLOOKUP(VALUE(A116),'2012-13 BL Civics'!$A$14:$C$200,3,FALSE)<10,"N<10",IF(VLOOKUP(VALUE(A116),'2012-13 BL Civics'!$A$14:$C$200,3,FALSE)>D116,100,VLOOKUP(VALUE(A116),'2012-13 BL Civics'!$A$14:$C$200,3,FALSE)/D116%)),"Not Tested") -> 96.8973747 | G116: =IFERROR(IF(VLOOKUP(VALUE(A116),'2013-14 BL Civics'!$A$14:$C$200,3,FALSE)<10,"N<10",IF(VLOOKUP(VALUE(A116),'2013-14 BL Civics'!$A$14:$C$200,3,FALSE)>E116,100,VLOOKUP(VALUE(A116),'2013-14 BL Civics'!$A$14:$C$200,3,FALSE)/E116%)),"Not Tested") -> 94.79166667 | H116: =IFERROR(IF(F116="N<10","N<10",VLOOKUP(VALUE($A116),'2012-13 BL Civics'!$A$14:$AG$500,5,FALSE)*100),"Not Tested") -> 32 | I116: =IFERROR(IF(G116="N<10","N<10",VLOOKUP(VALUE($A116),'2013-14 BL Civics'!$A$14:$AG$500,5,FALSE)*100),"Not Tested") -> 32 | J116: 0 | K116: =IFERROR(IF(H116="N<10","N<10",VLOOKUP(VALUE($A116),'2012-13 BL Civics'!$A$14:$AG$500,11,FALSE)*100),"Not Tested") -> 37 | L116: =IFERROR(IF(I116="N<10","N<10",VLOOKUP(VALUE($A116),'2013-14 BL Civics'!$A$14:$AG$500,11,FALSE)*100),"Not Tested") -> 34 | M116: -3 | N116: =IFERROR(IF(K116="N<10","N<10",VLOOKUP(VALUE($A116),'2012-13 BL Civics'!$A$14:$AG$500,17,FALSE)*100),"Not Tested") -> 27 | O116: =IFERROR(IF(L116="N<10","N<10",VLOOKUP(VALUE($A116),'2013-14 BL Civics'!$A$14:$AG$500,17,FALSE)*100),"Not Tested") -> 27 | P116: 0 | Q116: =IFERROR(IF(J116="N<10","N<10",VLOOKUP(VALUE($A116),'2012-13 BL Civics'!$A$14:$AG$500,23,FALSE)*100),"Not Tested") -> 31 | R116: =IFERROR(IF(K116="N<10","N<10",VLOOKUP(VALUE($A116),'2013-14 BL Civics'!$A$14:$AG$500,23,FALSE)*100),"Not Tested") -> 32 | S116: 1 | T116: =IFERROR(IF(N116="N<10","N<10",VLOOKUP(VALUE($A116),'2012-13 BL Civics'!$A$14:$AG$500,29,FALSE)*100),"Not Tested") -> 33 | U116: =IFERROR(IF(O116="N<10","N<10",VLOOKUP(VALUE($A116),'2013-14 BL Civics'!$A$14:$AG$500,29,FALSE)*100),"Not Tested") -> 37 | V116: 4
A117: 6351 | C117: =VLOOKUP(TEXT(A117,"0000"),SchList!$A$2:$C$483,2,FALSE) -> LAKE STEVENS MIDDLE | D117: =IFERROR(VLOOKUP(TEXT($A117,"0000"),'2012 BL Civics Enrollment'!$A$3:$C$500,3,FALSE),0) -> 220 | E117: =IFERROR(VLOOKUP(TEXT($A117,"0000"),'2013 BL Civics Enrollment'!$A$3:$C$500,3,FALSE),"") -> 214 | F117: =IFERROR(IF(VLOOKUP(VALUE(A117),'2012-13 BL Civics'!$A$14:$C$200,3,FALSE)<10,"N<10",IF(VLOOKUP(VALUE(A117),'2012-13 BL Civics'!$A$14:$C$200,3,FALSE)>D117,100,VLOOKUP(VALUE(A117),'2012-13 BL Civics'!$A$14:$C$200,3,FALSE)/D117%)),"Not Tested") -> 88.63636364 | G117: =IFERROR(IF(VLOOKUP(VALUE(A117),'2013-14 BL Civics'!$A$14:$C$200,3,FALSE)<10,"N<10",IF(VLOOKUP(VALUE(A117),'2013-14 BL Civics'!$A$14:$C$200,3,FALSE)>E117,100,VLOOKUP(VALUE(A117),'2013-14 BL Civics'!$A$14:$C$200,3,FALSE)/E117%)),"Not Tested") -> 93.45794393 | H117: =IFERROR(IF(F117="N<10","N<10",VLOOKUP(VALUE($A117),'2012-13 BL Civics'!$A$14:$AG$500,5,FALSE)*100),"Not Tested") -> 32 | I117: =IFERROR(IF(G117="N<10","N<10",VLOOKUP(VALUE($A117),'2013-14 BL Civics'!$A$14:$AG$500,5,FALSE)*100),"Not Tested") -> 34 | J117: 2 | K117: =IFERROR(IF(H117="N<10","N<10",VLOOKUP(VALUE($A117),'2012-13 BL Civics'!$A$14:$AG$500,11,FALSE)*100),"Not Tested") -> 38 | L117: =IFERROR(IF(I117="N<10","N<10",VLOOKUP(VALUE($A117),'2013-14 BL Civics'!$A$14:$AG$500,11,FALSE)*100),"Not Tested") -> 36 | M117: -2 | N117: =IFERROR(IF(K117="N<10","N<10",VLOOKUP(VALUE($A117),'2012-13 BL Civics'!$A$14:$AG$500,17,FALSE)*100),"Not Tested") -> 27 | O117: =IFERROR(IF(L117="N<10","N<10",VLOOKUP(VALUE($A117),'2013-14 BL Civics'!$A$14:$AG$500,17,FALSE)*100),"Not Tested") -> 29 | P117: 2 | Q117: =IFERROR(IF(J117="N<10","N<10",VLOOKUP(VALUE($A117),'2012-13 BL Civics'!$A$14:$AG$500,23,FALSE)*100),"Not Tested") -> 29 | R117: =IFERROR(IF(K117="N<10","N<10",VLOOKUP(VALUE($A117),'2013-14 BL Civics'!$A$14:$AG$500,23,FALSE)*100),"Not Tested") -> 33 | S117: 4 | T117: =IFERROR(IF(N117="N<10","N<10",VLOOKUP(VALUE($A117),'2012-13 BL Civics'!$A$14:$AG$500,29,FALSE)*100),"Not Tested") -> 35 | U117: =IFERROR(IF(O117="N<10","N<10",VLOOKUP(VALUE($A117),'2013-14 BL Civics'!$A$14:$AG$500,29,FALSE)*100),"Not Tested") -> 40 | V117: 5
A118: 6361 | C118: =VLOOKUP(TEXT(A118,"0000"),SchList!$A$2:$C$483,2,FALSE) -> JOSE DE DIEGO MIDDLE SCHOOL | D118: =IFERROR(VLOOKUP(TEXT($A118,"0000"),'2012 BL Civics Enrollment'!$A$3:$C$500,3,FALSE),0) -> 178 | E118: =IFERROR(VLOOKUP(TEXT($A118,"0000"),'2013 BL Civics Enrollment'!$A$3:$C$500,3,FALSE),"") -> 227 | F118: =IFERROR(IF(VLOOKUP(VALUE(A118),'2012-13 BL Civics'!$A$14:$C$200,3,FALSE)<10,"N<10",IF(VLOOKUP(VALUE(A118),'2012-13 BL Civics'!$A$14:$C$200,3,FALSE)>D118,100,VLOOKUP(VALUE(A118),'2012-13 BL Civics'!$A$14:$C$200,3,FALSE)/D118%)),"Not Tested") -> 80.8988764 | G118: =IFERROR(IF(VLOOKUP(VALUE(A118),'2013-14 BL Civics'!$A$14:$C$200,3,FALSE)<10,"N<10",IF(VLOOKUP(VALUE(A118),'2013-14 BL Civics'!$A$14:$C$200,3,FALSE)>E118,100,VLOOKUP(VALUE(A118),'2013-14 BL Civics'!$A$14:$C$200,3,FALSE)/E118%)),"Not Tested") -> 87.2246696 | H118: =IFERROR(IF(F118="N<10","N<10",VLOOKUP(VALUE($A118),'2012-13 BL Civics'!$A$14:$AG$500,5,FALSE)*100),"Not Tested") -> 28 | I118: =IFERROR(IF(G118="N<10","N<10",VLOOKUP(VALUE($A118),'2013-14 BL Civics'!$A$14:$AG$500,5,FALSE)*100),"Not Tested") -> 27 | J118: -1 | K118: =IFERROR(IF(H118="N<10","N<10",VLOOKUP(VALUE($A118),'2012-13 BL Civics'!$A$14:$AG$500,11,FALSE)*100),"Not Tested") -> 30 | L118: =IFERROR(IF(I118="N<10","N<10",VLOOKUP(VALUE($A118),'2013-14 BL Civics'!$A$14:$AG$500,11,FALSE)*100),"Not Tested") -> 28 | M118: -2 | N118: =IFERROR(IF(K118="N<10","N<10",VLOOKUP(VALUE($A118),'2012-13 BL Civics'!$A$14:$AG$500,17,FALSE)*100),"Not Tested") -> 24 | O118: =IFERROR(IF(L118="N<10","N<10",VLOOKUP(VALUE($A118),'2013-14 BL Civics'!$A$14:$AG$500,17,FALSE)*100),"Not Tested") -> 24 | P118: 0 | Q118: =IFERROR(IF(J118="N<10","N<10",VLOOKUP(VALUE($A118),'2012-13 BL Civics'!$A$14:$AG$500,23,FALSE)*100),"Not Tested") -> 28 | R118: =IFERROR(IF(K118="N<10","N<10",VLOOKUP(VALUE($A118),'2013-14 BL Civics'!$A$14:$AG$500,23,FALSE)*100),"Not Tested") -> 26 | S118: -2 | T118: =IFERROR(IF(N118="N<10","N<10",VLOOKUP(VALUE($A118),'2012-13 BL Civics'!$A$14:$AG$500,29,FALSE)*100),"Not Tested") -> 32 | U118: =IFERROR(IF(O118="N<10","N<10",VLOOKUP(VALUE($A118),'2013-14 BL Civics'!$A$14:$AG$500,29,FALSE)*100),"Not Tested") -> 33 | V118: 1
A119: 6391 | C119: =VLOOKUP(TEXT(A119,"0000"),SchList!$A$2:$C$483,2,FALSE) -> MADISON MIDDLE SCHOOL | D119: =IFERROR(VLOOKUP(TEXT($A119,"0000"),'2012 BL Civics Enrollment'!$A$3:$C$500,3,FALSE),0) -> 160 | E119: =IFERROR(VLOOKUP(TEXT($A119,"0000"),'2013 BL Civics Enrollment'!$A$3:$C$500,3,FALSE),"") -> 158 | F119: =IFERROR(IF(VLOOKUP(VALUE(A119),'2012-13 BL Civics'!$A$14:$C$200,3,FALSE)<10,"N<10",IF(VLOOKUP(VALUE(A119),'2012-13 BL Civics'!$A$14:$C$200,3,FALSE)>D119,100,VLOOKUP(VALUE(A119),'2012-13 BL Civics'!$A$14:$C$200,3,FALSE)/D119%)),"Not Tested") -> N<10 | G119: =IFERROR(IF(VLOOKUP(VALUE(A119),'2013-14 BL Civics'!$A$14:$C$200,3,FALSE)<10,"N<10",IF(VLOOKUP(VALUE(A119),'2013-14 BL Civics'!$A$14:$C$200,3,FALSE)>E119,100,VLOOKUP(VALUE(A119),'2013-14 BL Civics'!$A$14:$C$200,3,FALSE)/E119%)),"Not Tested") -> 92.40506329 | H119: =IFERROR(IF(F119="N<10","N<10",VLOOKUP(VALUE($A119),'2012-13 BL Civics'!$A$14:$AG$500,5,FALSE)*100),"Not Tested") -> N<10 | I119: =IFERROR(IF(G119="N<10","N<10",VLOOKUP(VALUE($A119),'2013-14 BL Civics'!$A$14:$AG$500,5,FALSE)*100),"Not Tested") -> 33 | K119: =IFERROR(IF(H119="N<10","N<10",VLOOKUP(VALUE($A119),'2012-13 BL Civics'!$A$14:$AG$500,11,FALSE)*100),"Not Tested") -> N<10 | L119: =IFERROR(IF(I119="N<10","N<10",VLOOKUP(VALUE($A119),'2013-14 BL Civics'!$A$14:$AG$500,11,FALSE)*100),"Not Tested") -> 33 | N119: =IFERROR(IF(K119="N<10","N<10",VLOOKUP(VALUE($A119),'2012-13 BL Civics'!$A$14:$AG$500,17,FALSE)*100),"Not Tested") -> N<10 | O119: =IFERROR(IF(L119="N<10","N<10",VLOOKUP(VALUE($A119),'2013-14 BL Civics'!$A$14:$AG$500,17,FALSE)*100),"Not Tested") -> 27 | Q119: =IFERROR(IF(J119="N<10","N<10",VLOOKUP(VALUE($A119),'2012-13 BL Civics'!$A$14:$AG$500,23,FALSE)*100),"Not Tested") -> 31 | R119: =IFERROR(IF(K119="N<10","N<10",VLOOKUP(VALUE($A119),'2013-14 BL Civics'!$A$14:$AG$500,23,FALSE)*100),"Not Tested") -> N<10 | T119: =IFERROR(IF(N119="N<10","N<10",VLOOKUP(VALUE($A119),'2012-13 BL Civics'!$A$14:$AG$500,29,FALSE)*100),"Not Tested") -> N<10 | U119: =IFERROR(IF(O119="N<10","N<10",VLOOKUP(VALUE($A119),'2013-14 BL Civics'!$A$14:$AG$500,29,FALSE)*100),"Not Tested") -> 42
A120: 6411 | C120: =VLOOKUP(TEXT(A120,"0000"),SchList!$A$2:$C$483,2,FALSE) -> HORACE MANN MIDDLE | D120: =IFERROR(VLOOKUP(TEXT($A120,"0000"),'2012 BL Civics Enrollment'!$A$3:$C$500,3,FALSE),0) -> 221 | E120: =IFERROR(VLOOKUP(TEXT($A120,"0000"),'2013 BL Civics Enrollment'!$A$3:$C$500,3,FALSE),"") -> 239 | F120: =IFERROR(IF(VLOOKUP(VALUE(A120),'2012-13 BL Civics'!$A$14:$C$200,3,FALSE)<10,"N<10",IF(VLOOKUP(VALUE(A120),'2012-13 BL Civics'!$A$14:$C$200,3,FALSE)>D120,100,VLOOKUP(VALUE(A120),'2012-13 BL Civics'!$A$14:$C$200,3,FALSE)/D120%)),"Not Tested") -> 88.68778281 | G120: =IFERROR(IF(VLOOKUP(VALUE(A120),'2013-14 BL Civics'!$A$14:$C$200,3,FALSE)<10,"N<10",IF(VLOOKUP(VALUE(A120),'2013-14 BL Civics'!$A$14:$C$200,3,FALSE)>E120,100,VLOOKUP(VALUE(A120),'2013-14 BL Civics'!$A$14:$C$200,3,FALSE)/E120%)),"Not Tested") -> 97.90794979 | H120: =IFERROR(IF(F120="N<10","N<10",VLOOKUP(VALUE($A120),'2012-13 BL Civics'!$A$14:$AG$500,5,FALSE)*100),"Not Tested") -> 33 | I120: =IFERROR(IF(G120="N<10","N<10",VLOOKUP(VALUE($A120),'2013-14 BL Civics'!$A$14:$AG$500,5,FALSE)*100),"Not Tested") -> 33 | J120: 0 | K120: =IFERROR(IF(H120="N<10","N<10",VLOOKUP(VALUE($A120),'2012-13 BL Civics'!$A$14:$AG$500,11,FALSE)*100),"Not Tested") -> 40 | L120: =IFERROR(IF(I120="N<10","N<10",VLOOKUP(VALUE($A120),'2013-14 BL Civics'!$A$14:$AG$500,11,FALSE)*100),"Not Tested") -> 34 | M120: -6 | N120: =IFERROR(IF(K120="N<10","N<10",VLOOKUP(VALUE($A120),'2012-13 BL Civics'!$A$14:$AG$500,17,FALSE)*100),"Not Tested") -> 27 | O120: =IFERROR(IF(L120="N<10","N<10",VLOOKUP(VALUE($A120),'2013-14 BL Civics'!$A$14:$AG$500,17,FALSE)*100),"Not Tested") -> 29 | P120: 2 | Q120: =IFERROR(IF(J120="N<10","N<10",VLOOKUP(VALUE($A120),'2012-13 BL Civics'!$A$14:$AG$500,23,FALSE)*100),"Not Tested") -> 32 | R120: =IFERROR(IF(K120="N<10","N<10",VLOOKUP(VALUE($A120),'2013-14 BL Civics'!$A$14:$AG$500,23,FALSE)*100),"Not Tested") -> 33 | S120: 1 | T120: =IFERROR(IF(N120="N<10","N<10",VLOOKUP(VALUE($A120),'2012-13 BL Civics'!$A$14:$AG$500,29,FALSE)*100),"Not Tested") -> 34 | U120: =IFERROR(IF(O120="N<10","N<10",VLOOKUP(VALUE($A120),'2013-14 BL Civics'!$A$14:$AG$500,29,FALSE)*100),"Not Tested") -> 39 | V120: 5
A121: 6441 | C121: =VLOOKUP(TEXT(A121,"0000"),SchList!$A$2:$C$483,2,FALSE) -> HOWARD D. MCMILLAN MIDDLE | D121: =IFERROR(VLOOKUP(TEXT($A121,"0000"),'2012 BL Civics Enrollment'!$A$3:$C$500,3,FALSE),0) -> 245 | E121: =IFERROR(VLOOKUP(TEXT($A121,"0000"),'2013 BL Civics Enrollment'!$A$3:$C$500,3,FALSE),"") -> 295 | F121: =IFERROR(IF(VLOOKUP(VALUE(A121),'2012-13 BL Civics'!$A$14:$C$200,3,FALSE)<10,"N<10",IF(VLOOKUP(VALUE(A121),'2012-13 BL Civics'!$A$14:$C$200,3,FALSE)>D121,100,VLOOKUP(VALUE(A121),'2012-13 BL Civics'!$A$14:$C$200,3,FALSE)/D121%)),"Not Tested") -> 98.36734694 | G121: =IFERROR(IF(VLOOKUP(VALUE(A121),'2013-14 BL Civics'!$A$14:$C$200,3,FALSE)<10,"N<10",IF(VLOOKUP(VALUE(A121),'2013-14 BL Civics'!$A$14:$C$200,3,FALSE)>E121,100,VLOOKUP(VALUE(A121),'2013-14 BL Civics'!$A$14:$C$200,3,FALSE)/E121%)),"Not Tested") -> 95.25423729 | H121: =IFERROR(IF(F121="N<10","N<10",VLOOKUP(VALUE($A121),'2012-13 BL Civics'!$A$14:$AG$500,5,FALSE)*100),"Not Tested") -> 34 | I121: =IFERROR(IF(G121="N<10","N<10",VLOOKUP(VALUE($A121),'2013-14 BL Civics'!$A$14:$AG$500,5,FALSE)*100),"Not Tested") -> 37 | J121: 3 | K121: =IFERROR(IF(H121="N<10","N<10",VLOOKUP(VALUE($A121),'2012-13 BL Civics'!$A$14:$AG$500,11,FALSE)*100),"Not Tested") -> 41 | L121: =IFERROR(IF(I121="N<10","N<10",VLOOKUP(VALUE($A121),'2013-14 BL Civics'!$A$14:$AG$500,11,FALSE)*100),"Not Tested") -> 40 | M121: -1 | N121: =IFERROR(IF(K121="N<10","N<10",VLOOKUP(VALUE($A121),'2012-13 BL Civics'!$A$14:$AG$500,17,FALSE)*100),"Not Tested") -> 28 | O121: =IFERROR(IF(L121="N<10","N<10",VLOOKUP(VALUE($A121),'2013-14 BL Civics'!$A$14:$AG$500,17,FALSE)*100),"Not Tested") -> 32 | P121: 4 | Q121: =IFERROR(IF(J121="N<10","N<10",VLOOKUP(VALUE($A121),'2012-13 BL Civics'!$A$14:$AG$500,23,FALSE)*100),"Not Tested") -> 33 | R121: =IFERROR(IF(K121="N<10","N<10",VLOOKUP(VALUE($A121),'2013-14 BL Civics'!$A$14:$AG$500,23,FALSE)*100),"Not Tested") -> 37 | S121: 4 | T121: =IFERROR(IF(N121="N<10","N<10",VLOOKUP(VALUE($A121),'2012-13 BL Civics'!$A$14:$AG$500,29,FALSE)*100),"Not Tested") -> 37 | U121: =IFERROR(IF(O121="N<10","N<10",VLOOKUP(VALUE($A121),'2013-14 BL Civics'!$A$14:$AG$500,29,FALSE)*100),"Not Tested") -> 44 | V121: 7
A122: 6501 | C122: =VLOOKUP(TEXT(A122,"0000"),SchList!$A$2:$C$483,2,FALSE) -> MIAMI LAKES MIDDLE | D122: =IFERROR(VLOOKUP(TEXT($A122,"0000"),'2012 BL Civics Enrollment'!$A$3:$C$500,3,FALSE),0) -> 296 | E122: =IFERROR(VLOOKUP(TEXT($A122,"0000"),'2013 BL Civics Enrollment'!$A$3:$C$500,3,FALSE),"") -> 293 | F122: =IFERROR(IF(VLOOKUP(VALUE(A122),'2012-13 BL Civics'!$A$14:$C$200,3,FALSE)<10,"N<10",IF(VLOOKUP(VALUE(A122),'2012-13 BL Civics'!$A$14:$C$200,3,FALSE)>D122,100,VLOOKUP(VALUE(A122),'2012-13 BL Civics'!$A$14:$C$200,3,FALSE)/D122%)),"Not Tested") -> 88.51351351 | G122: =IFERROR(IF(VLOOKUP(VALUE(A122),'2013-14 BL Civics'!$A$14:$C$200,3,FALSE)<10,"N<10",IF(VLOOKUP(VALUE(A122),'2013-14 BL Civics'!$A$14:$C$200,3,FALSE)>E122,100,VLOOKUP(VALUE(A122),'2013-14 BL Civics'!$A$14:$C$200,3,FALSE)/E122%)),"Not Tested") -> 89.41979522 | H122: =IFERROR(IF(F122="N<10","N<10",VLOOKUP(VALUE($A122),'2012-13 BL Civics'!$A$14:$AG$500,5,FALSE)*100),"Not Tested") -> 32 | I122: =IFERROR(IF(G122="N<10","N<10",VLOOKUP(VALUE($A122),'2013-14 BL Civics'!$A$14:$AG$500,5,FALSE)*100),"Not Tested") -> 35 | J122: 3 | K122: =IFERROR(IF(H122="N<10","N<10",VLOOKUP(VALUE($A122),'2012-13 BL Civics'!$A$14:$AG$500,11,FALSE)*100),"Not Tested") -> 39 | L122: =IFERROR(IF(I122="N<10","N<10",VLOOKUP(VALUE($A122),'2013-14 BL Civics'!$A$14:$AG$500,11,FALSE)*100),"Not Tested") -> 36 | M122: -3 | N122: =IFERROR(IF(K122="N<10","N<10",VLOOKUP(VALUE($A122),'2012-13 BL Civics'!$A$14:$AG$500,17,FALSE)*100),"Not Tested") -> 27 | O122: =IFERROR(IF(L122="N<10","N<10",VLOOKUP(VALUE($A122),'2013-14 BL Civics'!$A$14:$AG$500,17,FALSE)*100),"Not Tested") -> 31 | P122: 4 | Q122: =IFERROR(IF(J122="N<10","N<10",VLOOKUP(VALUE($A122),'2012-13 BL Civics'!$A$14:$AG$500,23,FALSE)*100),"Not Tested") -> 30 | R122: =IFERROR(IF(K122="N<10","N<10",VLOOKUP(VALUE($A122),'2013-14 BL Civics'!$A$14:$AG$500,23,FALSE)*100),"Not Tested") -> 34 | S122: 4 | T122: =IFERROR(IF(N122="N<10","N<10",VLOOKUP(VALUE($A122),'2012-13 BL Civics'!$A$14:$AG$500,29,FALSE)*100),"Not Tested") -> 34 | U122: =IFERROR(IF(O122="N<10","N<10",VLOOKUP(VALUE($A122),'2013-14 BL Civics'!$A$14:$AG$500,29,FALSE)*100),"Not Tested") -> 41 | V122: 7
A123: 6521 | C123: =VLOOKUP(TEXT(A123,"0000"),SchList!$A$2:$C$483,2,FALSE) -> MIAMI SPRINGS MIDDLE | D123: =IFERROR(VLOOKUP(TEXT($A123,"0000"),'2012 BL Civics Enrollment'!$A$3:$C$500,3,FALSE),0) -> 521 | E123: =IFERROR(VLOOKUP(TEXT($A123,"0000"),'2013 BL Civics Enrollment'!$A$3:$C$500,3,FALSE),"") -> 493 | F123: =IFERROR(IF(VLOOKUP(VALUE(A123),'2012-13 BL Civics'!$A$14:$C$200,3,FALSE)<10,"N<10",IF(VLOOKUP(VALUE(A123),'2012-13 BL Civics'!$A$14:$C$200,3,FALSE)>D123,100,VLOOKUP(VALUE(A123),'2012-13 BL Civics'!$A$14:$C$200,3,FALSE)/D123%)),"Not Tested") -> 98.0806142 | G123: =IFERROR(IF(VLOOKUP(VALUE(A123),'2013-14 BL Civics'!$A$14:$C$200,3,FALSE)<10,"N<10",IF(VLOOKUP(VALUE(A123),'2013-14 BL Civics'!$A$14:$C$200,3,FALSE)>E123,100,VLOOKUP(VALUE(A123),'2013-14 BL Civics'!$A$14:$C$200,3,FALSE)/E123%)),"Not Tested") -> 92.49492901 | H123: =IFERROR(IF(F123="N<10","N<10",VLOOKUP(VALUE($A123),'2012-13 BL Civics'!$A$14:$AG$500,5,FALSE)*100),"Not Tested") -> 32 | I123: =IFERROR(IF(G123="N<10","N<10",VLOOKUP(VALUE($A123),'2013-14 BL Civics'!$A$14:$AG$500,5,FALSE)*100),"Not Tested") -> 34 | J123: 2 | K123: =IFERROR(IF(H123="N<10","N<10",VLOOKUP(VALUE($A123),'2012-13 BL Civics'!$A$14:$AG$500,11,FALSE)*100),"Not Tested") -> 39 | L123: =IFERROR(IF(I123="N<10","N<10",VLOOKUP(VALUE($A123),'2013-14 BL Civics'!$A$14:$AG$500,11,FALSE)*100),"Not Tested") -> 35 | M123: -4 | N123: =IFERROR(IF(K123="N<10","N<10",VLOOKUP(VALUE($A123),'2012-13 BL Civics'!$A$14:$AG$500,17,FALSE)*100),"Not Tested") -> 27 | O123: =IFERROR(IF(L123="N<10","N<10",VLOOKUP(VALUE($A123),'2013-14 BL Civics'!$A$14:$AG$500,17,FALSE)*100),"Not Tested") -> 31 | P123: 4 | Q123: =IFERROR(IF(J123="N<10","N<10",VLOOKUP(VALUE($A123),'2012-13 BL Civics'!$A$14:$AG$500,23,FALSE)*100),"Not Tested") -> 31 | R123: =IFERROR(IF(K123="N<10","N<10",VLOOKUP(VALUE($A123),'2013-14 BL Civics'!$A$14:$AG$500,23,FALSE)*100),"Not Tested") -> 34 | S123: 3 | T123: =IFERROR(IF(N123="N<10","N<10",VLOOKUP(VALUE($A123),'2012-13 BL Civics'!$A$14:$AG$500,29,FALSE)*100),"Not Tested") -> 35 | U123: =IFERROR(IF(O123="N<10","N<10",VLOOKUP(VALUE($A123),'2013-14 BL Civics'!$A$14:$AG$500,29,FALSE)*100),"Not Tested") -> 39 | V123: 4
A124: 6541 | C124: =VLOOKUP(TEXT(A124,"0000"),SchList!$A$2:$C$483,2,FALSE) -> NAUTILUS MIDDLE | D124: =IFERROR(VLOOKUP(TEXT($A124,"0000"),'2012 BL Civics Enrollment'!$A$3:$C$500,3,FALSE),0) -> 361 | E124: =IFERROR(VLOOKUP(TEXT($A124,"0000"),'2013 BL Civics Enrollment'!$A$3:$C$500,3,FALSE),"") -> 351 | F124: =IFERROR(IF(VLOOKUP(VALUE(A124),'2012-13 BL Civics'!$A$14:$C$200,3,FALSE)<10,"N<10",IF(VLOOKUP(VALUE(A124),'2012-13 BL Civics'!$A$14:$C$200,3,FALSE)>D124,100,VLOOKUP(VALUE(A124),'2012-13 BL Civics'!$A$14:$C$200,3,FALSE)/D124%)),"Not Tested") -> 92.52077562 | G124: =IFERROR(IF(VLOOKUP(VALUE(A124),'2013-14 BL Civics'!$A$14:$C$200,3,FALSE)<10,"N<10",IF(VLOOKUP(VALUE(A124),'2013-14 BL Civics'!$A$14:$C$200,3,FALSE)>E124,100,VLOOKUP(VALUE(A124),'2013-14 BL Civics'!$A$14:$C$200,3,FALSE)/E124%)),"Not Tested") -> 98.00569801 | H124: =IFERROR(IF(F124="N<10","N<10",VLOOKUP(VALUE($A124),'2012-13 BL Civics'!$A$14:$AG$500,5,FALSE)*100),"Not Tested") -> 34 | I124: =IFERROR(IF(G124="N<10","N<10",VLOOKUP(VALUE($A124),'2013-14 BL Civics'!$A$14:$AG$500,5,FALSE)*100),"Not Tested") -> 36 | J124: 2 | K124: =IFERROR(IF(H124="N<10","N<10",VLOOKUP(VALUE($A124),'2012-13 BL Civics'!$A$14:$AG$500,11,FALSE)*100),"Not Tested") -> 41 | L124: =IFERROR(IF(I124="N<10","N<10",VLOOKUP(VALUE($A124),'2013-14 BL Civics'!$A$14:$AG$500,11,FALSE)*100),"Not Tested") -> 41 | M124: 0 | N124: =IFERROR(IF(K124="N<10","N<10",VLOOKUP(VALUE($A124),'2012-13 BL Civics'!$A$14:$AG$500,17,FALSE)*100),"Not Tested") -> 27 | O124: =IFERROR(IF(L124="N<10","N<10",VLOOKUP(VALUE($A124),'2013-14 BL Civics'!$A$14:$AG$500,17,FALSE)*100),"Not Tested") -> 32 | P124: 5 | Q124: =IFERROR(IF(J124="N<10","N<10",VLOOKUP(VALUE($A124),'2012-13 BL Civics'!$A$14:$AG$500,23,FALSE)*100),"Not Tested") -> 34 | R124: =IFERROR(IF(K124="N<10","N<10",VLOOKUP(VALUE($A124),'2013-14 BL Civics'!$A$14:$AG$500,23,FALSE)*100),"Not Tested") -> 35 | S124: 1 | T124: =IFERROR(IF(N124="N<10","N<10",VLOOKUP(VALUE($A124),'2012-13 BL Civics'!$A$14:$AG$500,29,FALSE)*100),"Not Tested") -> 35 | U124: =IFERROR(IF(O124="N<10","N<10",VLOOKUP(VALUE($A124),'2013-14 BL Civics'!$A$14:$AG$500,29,FALSE)*100),"Not Tested") -> 41 | V124: 6
A125: 6571 | C125: =VLOOKUP(TEXT(A125,"0000"),SchList!$A$2:$C$483,2,FALSE) -> NORLAND MIDDLE | D125: =IFERROR(VLOOKUP(TEXT($A125,"0000"),'2012 BL Civics Enrollment'!$A$3:$C$500,3,FALSE),0) -> 240 | E125: =IFERROR(VLOOKUP(TEXT($A125,"0000"),'2013 BL Civics Enrollment'!$A$3:$C$500,3,FALSE),"") -> 343 | F125: =IFERROR(IF(VLOOKUP(VALUE(A125),'2012-13 BL Civics'!$A$14:$C$200,3,FALSE)<10,"N<10",IF(VLOOKUP(VALUE(A125),'2012-13 BL Civics'!$A$14:$C$200,3,FALSE)>D125,100,VLOOKUP(VALUE(A125),'2012-13 BL Civics'!$A$14:$C$200,3,FALSE)/D125%)),"Not Tested") -> 94.16666667 | G125: =IFERROR(IF(VLOOKUP(VALUE(A125),'2013-14 BL Civics'!$A$14:$C$200,3,FALSE)<10,"N<10",IF(VLOOKUP(VALUE(A125),'2013-14 BL Civics'!$A$14:$C$200,3,FALSE)>E125,100,VLOOKUP(VALUE(A125),'2013-14 BL Civics'!$A$14:$C$200,3,FALSE)/E125%)),"Not Tested") -> 82.50728863 | H125: =IFERROR(IF(F125="N<10","N<10",VLOOKUP(VALUE($A125),'2012-13 BL Civics'!$A$14:$AG$500,5,FALSE)*100),"Not Tested") -> 31 | I125: =IFERROR(IF(G125="N<10","N<10",VLOOKUP(VALUE($A125),'2013-14 BL Civics'!$A$14:$AG$500,5,FALSE)*100),"Not Tested") -> 34 | J125: 3 | K125: =IFERROR(IF(H125="N<10","N<10",VLOOKUP(VALUE($A125),'2012-13 BL Civics'!$A$14:$AG$500,11,FALSE)*100),"Not Tested") -> 38 | L125: =IFERROR(IF(I125="N<10","N<10",VLOOKUP(VALUE($A125),'2013-14 BL Civics'!$A$14:$AG$500,11,FALSE)*100),"Not Tested") -> 35 | M125: -3 | N125: =IFERROR(IF(K125="N<10","N<10",VLOOKUP(VALUE($A125),'2012-13 BL Civics'!$A$14:$AG$500,17,FALSE)*100),"Not Tested") -> 25 | O125: =IFERROR(IF(L125="N<10","N<10",VLOOKUP(VALUE($A125),'2013-14 BL Civics'!$A$14:$AG$500,17,FALSE)*100),"Not Tested") -> 29 | P125: 4 | Q125: =IFERROR(IF(J125="N<10","N<10",VLOOKUP(VALUE($A125),'2012-13 BL Civics'!$A$14:$AG$500,23,FALSE)*100),"Not Tested") -> 28 | R125: =IFERROR(IF(K125="N<10","N<10",VLOOKUP(VALUE($A125),'2013-14 BL Civics'!$A$14:$AG$500,23,FALSE)*100),"Not Tested") -> 32 | S125: 4 | T125: =IFERROR(IF(N125="N<10","N<10",VLOOKUP(VALUE($A125),'2012-13 BL Civics'!$A$14:$AG$500,29,FALSE)*100),"Not Tested") -> 34 | U125: =IFERROR(IF(O125="N<10","N<10",VLOOKUP(VALUE($A125),'2013-14 BL Civics'!$A$14:$AG$500,29,FALSE)*100),"Not Tested") -> 41 | V125: 7
A126: 6591 | C126: =VLOOKUP(TEXT(A126,"0000"),SchList!$A$2:$C$483,2,FALSE) -> NORTH DADE MIDDLE | D126: =IFERROR(VLOOKUP(TEXT($A126,"0000"),'2012 BL Civics Enrollment'!$A$3:$C$500,3,FALSE),0) -> 252 | E126: =IFERROR(VLOOKUP(TEXT($A126,"0000"),'2013 BL Civics Enrollment'!$A$3:$C$500,3,FALSE),"") -> 286 | F126: =IFERROR(IF(VLOOKUP(VALUE(A126),'2012-13 BL Civics'!$A$14:$C$200,3,FALSE)<10,"N<10",IF(VLOOKUP(VALUE(A126),'2012-13 BL Civics'!$A$14:$C$200,3,FALSE)>D126,100,VLOOKUP(VALUE(A126),'2012-13 BL Civics'!$A$14:$C$200,3,FALSE)/D126%)),"Not Tested") -> 96.03174603 | G126: =IFERROR(IF(VLOOKUP(VALUE(A126),'2013-14 BL Civics'!$A$14:$C$200,3,FALSE)<10,"N<10",IF(VLOOKUP(VALUE(A126),'2013-14 BL Civics'!$A$14:$C$200,3,FALSE)>E126,100,VLOOKUP(VALUE(A126),'2013-14 BL Civics'!$A$14:$C$200,3,FALSE)/E126%)),"Not Tested") -> 91.95804196 | H126: =IFERROR(IF(F126="N<10","N<10",VLOOKUP(VALUE($A126),'2012-13 BL Civics'!$A$14:$AG$500,5,FALSE)*100),"Not Tested") -> 32 | I126: =IFERROR(IF(G126="N<10","N<10",VLOOKUP(VALUE($A126),'2013-14 BL Civics'!$A$14:$AG$500,5,FALSE)*100),"Not Tested") -> 33 | J126: 1 | K126: =IFERROR(IF(H126="N<10","N<10",VLOOKUP(VALUE($A126),'2012-13 BL Civics'!$A$14:$AG$500,11,FALSE)*100),"Not Tested") -> 38 | L126: =IFERROR(IF(I126="N<10","N<10",VLOOKUP(VALUE($A126),'2013-14 BL Civics'!$A$14:$AG$500,11,FALSE)*100),"Not Tested") -> 35 | M126: -3 | N126: =IFERROR(IF(K126="N<10","N<10",VLOOKUP(VALUE($A126),'2012-13 BL Civics'!$A$14:$AG$500,17,FALSE)*100),"Not Tested") -> 25 | O126: =IFERROR(IF(L126="N<10","N<10",VLOOKUP(VALUE($A126),'2013-14 BL Civics'!$A$14:$AG$500,17,FALSE)*100),"Not Tested") -> 30 | P126: 5 | Q126: =IFERROR(IF(J126="N<10","N<10",VLOOKUP(VALUE($A126),'2012-13 BL Civics'!$A$14:$AG$500,23,FALSE)*100),"Not Tested") -> 31 | R126: =IFERROR(IF(K126="N<10","N<10",VLOOKUP(VALUE($A126),'2013-14 BL Civics'!$A$14:$AG$500,23,FALSE)*100),"Not Tested") -> 31 | S126: 0 | T126: =IFERROR(IF(N126="N<10","N<10",VLOOKUP(VALUE($A126),'2012-13 BL Civics'!$A$14:$AG$500,29,FALSE)*100),"Not Tested") -> 35 | U126: =IFERROR(IF(O126="N<10","N<10",VLOOKUP(VALUE($A126),'2013-14 BL Civics'!$A$14:$AG$500,29,FALSE)*100),"Not Tested") -> 40 | V126: 5
A127: 6611 | C127: =VLOOKUP(TEXT(A127,"0000"),SchList!$A$2:$C$483,2,FALSE) -> COUNTRY CLUB MIDDLE SCHOOL | D127: =IFERROR(VLOOKUP(TEXT($A127,"0000"),'2012 BL Civics Enrollment'!$A$3:$C$500,3,FALSE),0) -> 460 | E127: =IFERROR(VLOOKUP(TEXT($A127,"0000"),'2013 BL Civics Enrollment'!$A$3:$C$500,3,FALSE),"") -> 392 | F127: =IFERROR(IF(VLOOKUP(VALUE(A127),'2012-13 BL Civics'!$A$14:$C$200,3,FALSE)<10,"N<10",IF(VLOOKUP(VALUE(A127),'2012-13 BL Civics'!$A$14:$C$200,3,FALSE)>D127,100,VLOOKUP(VALUE(A127),'2012-13 BL Civics'!$A$14:$C$200,3,FALSE)/D127%)),"Not Tested") -> 94.7826087 | G127: =IFERROR(IF(VLOOKUP(VALUE(A127),'2013-14 BL Civics'!$A$14:$C$200,3,FALSE)<10,"N<10",IF(VLOOKUP(VALUE(A127),'2013-14 BL Civics'!$A$14:$C$200,3,FALSE)>E127,100,VLOOKUP(VALUE(A127),'2013-14 BL Civics'!$A$14:$C$200,3,FALSE)/E127%)),"Not Tested") -> 94.64285714 | H127: =IFERROR(IF(F127="N<10","N<10",VLOOKUP(VALUE($A127),'2012-13 BL Civics'!$A$14:$AG$500,5,FALSE)*100),"Not Tested") -> 32 | I127: =IFERROR(IF(G127="N<10","N<10",VLOOKUP(VALUE($A127),'2013-14 BL Civics'!$A$14:$AG$500,5,FALSE)*100),"Not Tested") -> 32 | J127: 0 | K127: =IFERROR(IF(H127="N<10","N<10",VLOOKUP(VALUE($A127),'2012-13 BL Civics'!$A$14:$AG$500,11,FALSE)*100),"Not Tested") -> 40 | L127: =IFERROR(IF(I127="N<10","N<10",VLOOKUP(VALUE($A127),'2013-14 BL Civics'!$A$14:$AG$500,11,FALSE)*100),"Not Tested") -> 32 | M127: -8 | N127: =IFERROR(IF(K127="N<10","N<10",VLOOKUP(VALUE($A127),'2012-13 BL Civics'!$A$14:$AG$500,17,FALSE)*100),"Not Tested") -> 27 | O127: =IFERROR(IF(L127="N<10","N<10",VLOOKUP(VALUE($A127),'2013-14 BL Civics'!$A$14:$AG$500,17,FALSE)*100),"Not Tested") -> 28 | P127: 1 | Q127: =IFERROR(IF(J127="N<10","N<10",VLOOKUP(VALUE($A127),'2012-13 BL Civics'!$A$14:$AG$500,23,FALSE)*100),"Not Tested") -> 30 | R127: =IFERROR(IF(K127="N<10","N<10",VLOOKUP(VALUE($A127),'2013-14 BL Civics'!$A$14:$AG$500,23,FALSE)*100),"Not Tested") -> 31 | S127: 1 | T127: =IFERROR(IF(N127="N<10","N<10",VLOOKUP(VALUE($A127),'2012-13 BL Civics'!$A$14:$AG$500,29,FALSE)*100),"Not Tested") -> 34 | U127: =IFERROR(IF(O127="N<10","N<10",VLOOKUP(VALUE($A127),'2013-14 BL Civics'!$A$14:$AG$500,29,FALSE)*100),"Not Tested") -> 38 | V127: 4
A128: 6631 | C128: =VLOOKUP(TEXT(A128,"0000"),SchList!$A$2:$C$483,2,FALSE) -> NORTH MIAMI MIDDLE | D128: =IFERROR(VLOOKUP(TEXT($A128,"0000"),'2012 BL Civics Enrollment'!$A$3:$C$500,3,FALSE),0) -> 350 | E128: =IFERROR(VLOOKUP(TEXT($A128,"0000"),'2013 BL Civics Enrollment'!$A$3:$C$500,3,FALSE),"") -> 344 | F128: =IFERROR(IF(VLOOKUP(VALUE(A128),'2012-13 BL Civics'!$A$14:$C$200,3,FALSE)<10,"N<10",IF(VLOOKUP(VALUE(A128),'2012-13 BL Civics'!$A$14:$C$200,3,FALSE)>D128,100,VLOOKUP(VALUE(A128),'2012-13 BL Civics'!$A$14:$C$200,3,FALSE)/D128%)),"Not Tested") -> 92.57142857 | G128: =IFERROR(IF(VLOOKUP(VALUE(A128),'2013-14 BL Civics'!$A$14:$C$200,3,FALSE)<10,"N<10",IF(VLOOKUP(VALUE(A128),'2013-14 BL Civics'!$A$14:$C$200,3,FALSE)>E128,100,VLOOKUP(VALUE(A128),'2013-14 BL Civics'!$A$14:$C$200,3,FALSE)/E128%)),"Not Tested") -> 95.05813953 | H128: =IFERROR(IF(F128="N<10","N<10",VLOOKUP(VALUE($A128),'2012-13 BL Civics'!$A$14:$AG$500,5,FALSE)*100),"Not Tested") -> 30 | I128: =IFERROR(IF(G128="N<10","N<10",VLOOKUP(VALUE($A128),'2013-14 BL Civics'!$A$14:$AG$500,5,FALSE)*100),"Not Tested") -> 33 | J128: 3 | K128: =IFERROR(IF(H128="N<10","N<10",VLOOKUP(VALUE($A128),'2012-13 BL Civics'!$A$14:$AG$500,11,FALSE)*100),"Not Tested") -> 36 | L128: =IFERROR(IF(I128="N<10","N<10",VLOOKUP(VALUE($A128),'2013-14 BL Civics'!$A$14:$AG$500,11,FALSE)*100),"Not Tested") -> 34 | M128: -2 | N128: =IFERROR(IF(K128="N<10","N<10",VLOOKUP(VALUE($A128),'2012-13 BL Civics'!$A$14:$AG$500,17,FALSE)*100),"Not Tested") -> 25 | O128: =IFERROR(IF(L128="N<10","N<10",VLOOKUP(VALUE($A128),'2013-14 BL Civics'!$A$14:$AG$500,17,FALSE)*100),"Not Tested") -> 29 | P128: 4 | Q128: =IFERROR(IF(J128="N<10","N<10",VLOOKUP(VALUE($A128),'2012-13 BL Civics'!$A$14:$AG$500,23,FALSE)*100),"Not Tested") -> 29 | R128: =IFERROR(IF(K128="N<10","N<10",VLOOKUP(VALUE($A128),'2013-14 BL Civics'!$A$14:$AG$500,23,FALSE)*100),"Not Tested") -> 32 | S128: 3 | T128: =IFERROR(IF(N128="N<10","N<10",VLOOKUP(VALUE($A128),'2012-13 BL Civics'!$A$14:$AG$500,29,FALSE)*100),"Not Tested") -> 31 | U128: =IFERROR(IF(O128="N<10","N<10",VLOOKUP(VALUE($A128),'2013-14 BL Civics'!$A$14:$AG$500,29,FALSE)*100),"Not Tested") -> 39 | V128: 8
A129: 6681 | C129: =VLOOKUP(TEXT(A129,"0000"),SchList!$A$2:$C$483,2,FALSE) -> PALM SPRINGS MIDDLE | D129: =IFERROR(VLOOKUP(TEXT($A129,"0000"),'2012 BL Civics Enrollment'!$A$3:$C$500,3,FALSE),0) -> 443 | E129: =IFERROR(VLOOKUP(TEXT($A129,"0000"),'2013 BL Civics Enrollment'!$A$3:$C$500,3,FALSE),"") -> 429 | F129: =IFERROR(IF(VLOOKUP(VALUE(A129),'2012-13 BL Civics'!$A$14:$C$200,3,FALSE)<10,"N<10",IF(VLOOKUP(VALUE(A129),'2012-13 BL Civics'!$A$14:$C$200,3,FALSE)>D129,100,VLOOKUP(VALUE(A129),'2012-13 BL Civics'!$A$14:$C$200,3,FALSE)/D129%)),"Not Tested") -> 93.22799097 | G129: =IFERROR(IF(VLOOKUP(VALUE(A129),'2013-14 BL Civics'!$A$14:$C$200,3,FALSE)<10,"N<10",IF(VLOOKUP(VALUE(A129),'2013-14 BL Civics'!$A$14:$C$200,3,FALSE)>E129,100,VLOOKUP(VALUE(A129),'2013-14 BL Civics'!$A$14:$C$200,3,FALSE)/E129%)),"Not Tested") -> 89.97668998 | H129: =IFERROR(IF(F129="N<10","N<10",VLOOKUP(VALUE($A129),'2012-13 BL Civics'!$A$14:$AG$500,5,FALSE)*100),"Not Tested") -> 33 | I129: =IFERROR(IF(G129="N<10","N<10",VLOOKUP(VALUE($A129),'2013-14 BL Civics'!$A$14:$AG$500,5,FALSE)*100),"Not Tested") -> 33 | J129: 0 | K129: =IFERROR(IF(H129="N<10","N<10",VLOOKUP(VALUE($A129),'2012-13 BL Civics'!$A$14:$AG$500,11,FALSE)*100),"Not Tested") -> 39 | L129: =IFERROR(IF(I129="N<10","N<10",VLOOKUP(VALUE($A129),'2013-14 BL Civics'!$A$14:$AG$500,11,FALSE)*100),"Not Tested") -> 34 | M129: -5 | N129: =IFERROR(IF(K129="N<10","N<10",VLOOKUP(VALUE($A129),'2012-13 BL Civics'!$A$14:$AG$500,17,FALSE)*100),"Not Tested") -> 28 | O129: =IFERROR(IF(L129="N<10","N<10",VLOOKUP(VALUE($A129),'2013-14 BL Civics'!$A$14:$AG$500,17,FALSE)*100),"Not Tested") -> 29 | P129: 1 | Q129: =IFERROR(IF(J129="N<10","N<10",VLOOKUP(VALUE($A129),'2012-13 BL Civics'!$A$14:$AG$500,23,FALSE)*100),"Not Tested") -> 33 | R129: =IFERROR(IF(K129="N<10","N<10",VLOOKUP(VALUE($A129),'2013-14 BL Civics'!$A$14:$AG$500,23,FALSE)*100),"Not Tested") -> 33 | S129: 0 | T129: =IFERROR(IF(N129="N<10","N<10",VLOOKUP(VALUE($A129),'2012-13 BL Civics'!$A$14:$AG$500,29,FALSE)*100),"Not Tested") -> 34 | U129: =IFERROR(IF(O129="N<10","N<10",VLOOKUP(VALUE($A129),'2013-14 BL Civics'!$A$14:$AG$500,29,FALSE)*100),"Not Tested") -> 39 | V129: 5
A130: 6701 | C130: =VLOOKUP(TEXT(A130,"0000"),SchList!$A$2:$C$483,2,FALSE) -> PALMETTO MIDDLE | D130: =IFERROR(VLOOKUP(TEXT($A130,"0000"),'2012 BL Civics Enrollment'!$A$3:$C$500,3,FALSE),0) -> 384 | E130: =IFERROR(VLOOKUP(TEXT($A130,"0000"),'2013 BL Civics Enrollment'!$A$3:$C$500,3,FALSE),"") -> 362 | F130: =IFERROR(IF(VLOOKUP(VALUE(A130),'2012-13 BL Civics'!$A$14:$C$200,3,FALSE)<10,"N<10",IF(VLOOKUP(VALUE(A130),'2012-13 BL Civics'!$A$14:$C$200,3,FALSE)>D130,100,VLOOKUP(VALUE(A130),'2012-13 BL Civics'!$A$14:$C$200,3,FALSE)/D130%)),"Not Tested") -> 96.875 | G130: =IFERROR(IF(VLOOKUP(VALUE(A130),'2013-14 BL Civics'!$A$14:$C$200,3,FALSE)<10,"N<10",IF(VLOOKUP(VALUE(A130),'2013-14 BL Civics'!$A$14:$C$200,3,FALSE)>E130,100,VLOOKUP(VALUE(A130),'2013-14 BL Civics'!$A$14:$C$200,3,FALSE)/E130%)),"Not Tested") -> 92.81767956 | H130: =IFERROR(IF(F130="N<10","N<10",VLOOKUP(VALUE($A130),'2012-13 BL Civics'!$A$14:$AG$500,5,FALSE)*100),"Not Tested") -> 38 | I130: =IFERROR(IF(G130="N<10","N<10",VLOOKUP(VALUE($A130),'2013-14 BL Civics'!$A$14:$AG$500,5,FALSE)*100),"Not Tested") -> 38 | J130: 0 | K130: =IFERROR(IF(H130="N<10","N<10",VLOOKUP(VALUE($A130),'2012-13 BL Civics'!$A$14:$AG$500,11,FALSE)*100),"Not Tested") -> 48 | L130: =IFERROR(IF(I130="N<10","N<10",VLOOKUP(VALUE($A130),'2013-14 BL Civics'!$A$14:$AG$500,11,FALSE)*100),"Not Tested") -> 41 | M130: -7 | N130: =IFERROR(IF(K130="N<10","N<10",VLOOKUP(VALUE($A130),'2012-13 BL Civics'!$A$14:$AG$500,17,FALSE)*100),"Not Tested") -> 29 | O130: =IFERROR(IF(L130="N<10","N<10",VLOOKUP(VALUE($A130),'2013-14 BL Civics'!$A$14:$AG$500,17,FALSE)*100),"Not Tested") -> 31 | P130: 2 | Q130: =IFERROR(IF(J130="N<10","N<10",VLOOKUP(VALUE($A130),'2012-13 BL Civics'!$A$14:$AG$500,23,FALSE)*100),"Not Tested") -> 39 | R130: =IFERROR(IF(K130="N<10","N<10",VLOOKUP(VALUE($A130),'2013-14 BL Civics'!$A$14:$AG$500,23,FALSE)*100),"Not Tested") -> 39 | S130: 0 | T130: =IFERROR(IF(N130="N<10","N<10",VLOOKUP(VALUE($A130),'2012-13 BL Civics'!$A$14:$AG$500,29,FALSE)*100),"Not Tested") -> 40 | U130: =IFERROR(IF(O130="N<10","N<10",VLOOKUP(VALUE($A130),'2013-14 BL Civics'!$A$14:$AG$500,29,FALSE)*100),"Not Tested") -> 43 | V130: 3
A131: 6741 | C131: =VLOOKUP(TEXT(A131,"0000"),SchList!$A$2:$C$483,2,FALSE) -> PONCE DE LEON MIDDLE | D131: =IFERROR(VLOOKUP(TEXT($A131,"0000"),'2012 BL Civics Enrollment'!$A$3:$C$500,3,FALSE),0) -> 260 | E131: =IFERROR(VLOOKUP(TEXT($A131,"0000"),'2013 BL Civics Enrollment'!$A$3:$C$500,3,FALSE),"") -> 269 | F131: =IFERROR(IF(VLOOKUP(VALUE(A131),'2012-13 BL Civics'!$A$14:$C$200,3,FALSE)<10,"N<10",IF(VLOOKUP(VALUE(A131),'2012-13 BL Civics'!$A$14:$C$200,3,FALSE)>D131,100,VLOOKUP(VALUE(A131),'2012-13 BL Civics'!$A$14:$C$200,3,FALSE)/D131%)),"Not Tested") -> 100 | G131: =IFERROR(IF(VLOOKUP(VALUE(A131),'2013-14 BL Civics'!$A$14:$C$200,3,FALSE)<10,"N<10",IF(VLOOKUP(VALUE(A131),'2013-14 BL Civics'!$A$14:$C$200,3,FALSE)>E131,100,VLOOKUP(VALUE(A131),'2013-14 BL Civics'!$A$14:$C$200,3,FALSE)/E131%)),"Not Tested") -> 100 | H131: =IFERROR(IF(F131="N<10","N<10",VLOOKUP(VALUE($A131),'2012-13 BL Civics'!$A$14:$AG$500,5,FALSE)*100),"Not Tested") -> 36 | I131: =IFERROR(IF(G131="N<10","N<10",VLOOKUP(VALUE($A131),'2013-14 BL Civics'!$A$14:$AG$500,5,FALSE)*100),"Not Tested") -> 35 | J131: -1 | K131: =IFERROR(IF(H131="N<10","N<10",VLOOKUP(VALUE($A131),'2012-13 BL Civics'!$A$14:$AG$500,11,FALSE)*100),"Not Tested") -> 43 | L131: =IFERROR(IF(I131="N<10","N<10",VLOOKUP(VALUE($A131),'2013-14 BL Civics'!$A$14:$AG$500,11,FALSE)*100),"Not Tested") -> 38 | M131: -5 | N131: =IFERROR(IF(K131="N<10","N<10",VLOOKUP(VALUE($A131),'2012-13 BL Civics'!$A$14:$AG$500,17,FALSE)*100),"Not Tested") -> 29 | O131: =IFERROR(IF(L131="N<10","N<10",VLOOKUP(VALUE($A131),'2013-14 BL Civics'!$A$14:$AG$500,17,FALSE)*100),"Not Tested") -> 31 | P131: 2 | Q131: =IFERROR(IF(J131="N<10","N<10",VLOOKUP(VALUE($A131),'2012-13 BL Civics'!$A$14:$AG$500,23,FALSE)*100),"Not Tested") -> 36 | R131: =IFERROR(IF(K131="N<10","N<10",VLOOKUP(VALUE($A131),'2013-14 BL Civics'!$A$14:$AG$500,23,FALSE)*100),"Not Tested") -> 36 | S131: 0 | T131: =IFERROR(IF(N131="N<10","N<10",VLOOKUP(VALUE($A131),'2012-13 BL Civics'!$A$14:$AG$500,29,FALSE)*100),"Not Tested") -> 38 | U131: =IFERROR(IF(O131="N<10","N<10",VLOOKUP(VALUE($A131),'2013-14 BL Civics'!$A$14:$AG$500,29,FALSE)*100),"Not Tested") -> 39 | V131: 1
A132: 6751 | C132: =VLOOKUP(TEXT(A132,"0000"),SchList!$A$2:$C$483,2,FALSE) -> HIALEAH GARDENS MIDDLE SCHOOL | D132: =IFERROR(VLOOKUP(TEXT($A132,"0000"),'2012 BL Civics Enrollment'!$A$3:$C$500,3,FALSE),0) -> 608 | E132: =IFERROR(VLOOKUP(TEXT($A132,"0000"),'2013 BL Civics Enrollment'!$A$3:$C$500,3,FALSE),"") -> 598 | F132: =IFERROR(IF(VLOOKUP(VALUE(A132),'2012-13 BL Civics'!$A$14:$C$200,3,FALSE)<10,"N<10",IF(VLOOKUP(VALUE(A132),'2012-13 BL Civics'!$A$14:$C$200,3,FALSE)>D132,100,VLOOKUP(VALUE(A132),'2012-13 BL Civics'!$A$14:$C$200,3,FALSE)/D132%)),"Not Tested") -> 94.90131579 | G132: =IFERROR(IF(VLOOKUP(VALUE(A132),'2013-14 BL Civics'!$A$14:$C$200,3,FALSE)<10,"N<10",IF(VLOOKUP(VALUE(A132),'2013-14 BL Civics'!$A$14:$C$200,3,FALSE)>E132,100,VLOOKUP(VALUE(A132),'2013-14 BL Civics'!$A$14:$C$200,3,FALSE)/E132%)),"Not Tested") -> 97.32441472 | H132: =IFERROR(IF(F132="N<10","N<10",VLOOKUP(VALUE($A132),'2012-13 BL Civics'!$A$14:$AG$500,5,FALSE)*100),"Not Tested") -> 32 | I132: =IFERROR(IF(G132="N<10","N<10",VLOOKUP(VALUE($A132),'2013-14 BL Civics'!$A$14:$AG$500,5,FALSE)*100),"Not Tested") -> 37 | J132: =IFERROR(I132-H132,"") -> 5 | K132: =IFERROR(IF(H132="N<10","N<10",VLOOKUP(VALUE($A132),'2012-13 BL Civics'!$A$14:$AG$500,11,FALSE)*100),"Not Tested") -> 39 | L132: =IFERROR(IF(I132="N<10","N<10",VLOOKUP(VALUE($A132),'2013-14 BL Civics'!$A$14:$AG$500,11,FALSE)*100),"Not Tested") -> 40 | M132: =IFERROR(L132-K132,"") -> 1 | N132: =IFERROR(IF(K132="N<10","N<10",VLOOKUP(VALUE($A132),'2012-13 BL Civics'!$A$14:$AG$500,17,FALSE)*100),"Not Tested") -> 27 | O132: =IFERROR(IF(L132="N<10","N<10",VLOOKUP(VALUE($A132),'2013-14 BL Civics'!$A$14:$AG$500,17,FALSE)*100),"Not Tested") -> 32 | P132: =IFERROR(O132-N132,"") -> 5 | Q132: =IFERROR(IF(J132="N<10","N<10",VLOOKUP(VALUE($A132),'2012-13 BL Civics'!$A$14:$AG$500,23,FALSE)*100),"Not Tested") -> 31 | R132: =IFERROR(IF(K132="N<10","N<10",VLOOKUP(VALUE($A132),'2013-14 BL Civics'!$A$14:$AG$500,23,FALSE)*100),"Not Tested") -> 36 | S132: =IFERROR(R132-Q132,"") -> 5 | T132: =IFERROR(IF(N132="N<10","N<10",VLOOKUP(VALUE($A132),'2012-13 BL Civics'!$A$14:$AG$500,29,FALSE)*100),"Not Tested") -> 34 | U132: =IFERROR(IF(O132="N<10","N<10",VLOOKUP(VALUE($A132),'2013-14 BL Civics'!$A$14:$AG$500,29,FALSE)*100),"Not Tested") -> 44 | V132: =IFERROR(U132-T132,"") -> 10
A133: 6761 | C133: =VLOOKUP(TEXT(A133,"0000"),SchList!$A$2:$C$483,2,FALSE) -> REDLAND MIDDLE | D133: =IFERROR(VLOOKUP(TEXT($A133,"0000"),'2012 BL Civics Enrollment'!$A$3:$C$500,3,FALSE),0) -> 164 | E133: =IFERROR(VLOOKUP(TEXT($A133,"0000"),'2013 BL Civics Enrollment'!$A$3:$C$500,3,FALSE),"") -> 157 | F133: =IFERROR(IF(VLOOKUP(VALUE(A133),'2012-13 BL Civics'!$A$14:$C$200,3,FALSE)<10,"N<10",IF(VLOOKUP(VALUE(A133),'2012-13 BL Civics'!$A$14:$C$200,3,FALSE)>D133,100,VLOOKUP(VALUE(A133),'2012-13 BL Civics'!$A$14:$C$200,3,FALSE)/D133%)),"Not Tested") -> 87.19512195 | G133: =IFERROR(IF(VLOOKUP(VALUE(A133),'2013-14 BL Civics'!$A$14:$C$200,3,FALSE)<10,"N<10",IF(VLOOKUP(VALUE(A133),'2013-14 BL Civics'!$A$14:$C$200,3,FALSE)>E133,100,VLOOKUP(VALUE(A133),'2013-14 BL Civics'!$A$14:$C$200,3,FALSE)/E133%)),"Not Tested") -> 98.08917197 | H133: =IFERROR(IF(F133="N<10","N<10",VLOOKUP(VALUE($A133),'2012-13 BL Civics'!$A$14:$AG$500,5,FALSE)*100),"Not Tested") -> 32 | I133: =IFERROR(IF(G133="N<10","N<10",VLOOKUP(VALUE($A133),'2013-14 BL Civics'!$A$14:$AG$500,5,FALSE)*100),"Not Tested") -> 34 | J133: 2 | K133: =IFERROR(IF(H133="N<10","N<10",VLOOKUP(VALUE($A133),'2012-13 BL Civics'!$A$14:$AG$500,11,FALSE)*100),"Not Tested") -> 37 | L133: =IFERROR(IF(I133="N<10","N<10",VLOOKUP(VALUE($A133),'2013-14 BL Civics'!$A$14:$AG$500,11,FALSE)*100),"Not Tested") -> 34 | M133: -3 | N133: =IFERROR(IF(K133="N<10","N<10",VLOOKUP(VALUE($A133),'2012-13 BL Civics'!$A$14:$AG$500,17,FALSE)*100),"Not Tested") -> 27 | O133: =IFERROR(IF(L133="N<10","N<10",VLOOKUP(VALUE($A133),'2013-14 BL Civics'!$A$14:$AG$500,17,FALSE)*100),"Not Tested") -> 31 | P133: 4 | Q133: =IFERROR(IF(J133="N<10","N<10",VLOOKUP(VALUE($A133),'2012-13 BL Civics'!$A$14:$AG$500,23,FALSE)*100),"Not Tested") -> 33 | R133: =IFERROR(IF(K133="N<10","N<10",VLOOKUP(VALUE($A133),'2013-14 BL Civics'!$A$14:$AG$500,23,FALSE)*100),"Not Tested") -> 33 | S133: 0 | T133: =IFERROR(IF(N133="N<10","N<10",VLOOKUP(VALUE($A133),'2012-13 BL Civics'!$A$14:$AG$500,29,FALSE)*100),"Not Tested") -> 34 | U133: =IFERROR(IF(O133="N<10","N<10",VLOOKUP(VALUE($A133),'2013-14 BL Civics'!$A$14:$AG$500,29,FALSE)*100),"Not Tested") -> 38 | V133: 4
A134: 6771 | C134: =VLOOKUP(TEXT(A134,"0000"),SchList!$A$2:$C$483,2,FALSE) -> JORGE MAS CANOSA MIDDLE | D134: =IFERROR(VLOOKUP(TEXT($A134,"0000"),'2012 BL Civics Enrollment'!$A$3:$C$500,3,FALSE),0) -> 723 | E134: =IFERROR(VLOOKUP(TEXT($A134,"0000"),'2013 BL Civics Enrollment'!$A$3:$C$500,3,FALSE),"") -> 661 | F134: =IFERROR(IF(VLOOKUP(VALUE(A134),'2012-13 BL Civics'!$A$14:$C$200,3,FALSE)<10,"N<10",IF(VLOOKUP(VALUE(A134),'2012-13 BL Civics'!$A$14:$C$200,3,FALSE)>D134,100,VLOOKUP(VALUE(A134),'2012-13 BL Civics'!$A$14:$C$200,3,FALSE)/D134%)),"Not Tested") -> 97.78699862 | G134: =IFERROR(IF(VLOOKUP(VALUE(A134),'2013-14 BL Civics'!$A$14:$C$200,3,FALSE)<10,"N<10",IF(VLOOKUP(VALUE(A134),'2013-14 BL Civics'!$A$14:$C$200,3,FALSE)>E134,100,VLOOKUP(VALUE(A134),'2013-14 BL Civics'!$A$14:$C$200,3,FALSE)/E134%)),"Not Tested") -> 96.67170953 | H134: =IFERROR(IF(F134="N<10","N<10",VLOOKUP(VALUE($A134),'2012-13 BL Civics'!$A$14:$AG$500,5,FALSE)*100),"Not Tested") -> 34 | I134: =IFERROR(IF(G134="N<10","N<10",VLOOKUP(VALUE($A134),'2013-14 BL Civics'!$A$14:$AG$500,5,FALSE)*100),"Not Tested") -> 37 | J134: 3 | K134: =IFERROR(IF(H134="N<10","N<10",VLOOKUP(VALUE($A134),'2012-13 BL Civics'!$A$14:$AG$500,11,FALSE)*100),"Not Tested") -> 41 | L134: =IFERROR(IF(I134="N<10","N<10",VLOOKUP(VALUE($A134),'2013-14 BL Civics'!$A$14:$AG$500,11,FALSE)*100),"Not Tested") -> 41 | M134: 0 | N134: =IFERROR(IF(K134="N<10","N<10",VLOOKUP(VALUE($A134),'2012-13 BL Civics'!$A$14:$AG$500,17,FALSE)*100),"Not Tested") -> 28 | O134: =IFERROR(IF(L134="N<10","N<10",VLOOKUP(VALUE($A134),'2013-14 BL Civics'!$A$14:$AG$500,17,FALSE)*100),"Not Tested") -> 31 | P134: 3 | Q134: =IFERROR(IF(J134="N<10","N<10",VLOOKUP(VALUE($A134),'2012-13 BL Civics'!$A$14:$AG$500,23,FALSE)*100),"Not Tested") -> 33 | R134: =IFERROR(IF(K134="N<10","N<10",VLOOKUP(VALUE($A134),'2013-14 BL Civics'!$A$14:$AG$500,23,FALSE)*100),"Not Tested") -> 35 | S134: 2 | T134: =IFERROR(IF(N134="N<10","N<10",VLOOKUP(VALUE($A134),'2012-13 BL Civics'!$A$14:$AG$500,29,FALSE)*100),"Not Tested") -> 36 | U134: =IFERROR(IF(O134="N<10","N<10",VLOOKUP(VALUE($A134),'2013-14 BL Civics'!$A$14:$AG$500,29,FALSE)*100),"Not Tested") -> 44 | V134: 8
A135: 6781 | C135: =VLOOKUP(TEXT(A135,"0000"),SchList!$A$2:$C$483,2,FALSE) -> RICHMOND HEIGHTS MIDDLE | D135: =IFERROR(VLOOKUP(TEXT($A135,"0000"),'2012 BL Civics Enrollment'!$A$3:$C$500,3,FALSE),0) -> 153 | E135: =IFERROR(VLOOKUP(TEXT($A135,"0000"),'2013 BL Civics Enrollment'!$A$3:$C$500,3,FALSE),"") -> 176 | F135: =IFERROR(IF(VLOOKUP(VALUE(A135),'2012-13 BL Civics'!$A$14:$C$200,3,FALSE)<10,"N<10",IF(VLOOKUP(VALUE(A135),'2012-13 BL Civics'!$A$14:$C$200,3,FALSE)>D135,100,VLOOKUP(VALUE(A135),'2012-13 BL Civics'!$A$14:$C$200,3,FALSE)/D135%)),"Not Tested") -> 100 | G135: =IFERROR(IF(VLOOKUP(VALUE(A135),'2013-14 BL Civics'!$A$14:$C$200,3,FALSE)<10,"N<10",IF(VLOOKUP(VALUE(A135),'2013-14 BL Civics'!$A$14:$C$200,3,FALSE)>E135,100,VLOOKUP(VALUE(A135),'2013-14 BL Civics'!$A$14:$C$200,3,FALSE)/E135%)),"Not Tested") -> 81.81818182 | H135: =IFERROR(IF(F135="N<10","N<10",VLOOKUP(VALUE($A135),'2012-13 BL Civics'!$A$14:$AG$500,5,FALSE)*100),"Not Tested") -> 33 | I135: =IFERROR(IF(G135="N<10","N<10",VLOOKUP(VALUE($A135),'2013-14 BL Civics'!$A$14:$AG$500,5,FALSE)*100),"Not Tested") -> 32 | J135: -1 | K135: =IFERROR(IF(H135="N<10","N<10",VLOOKUP(VALUE($A135),'2012-13 BL Civics'!$A$14:$AG$500,11,FALSE)*100),"Not Tested") -> 38 | L135: =IFERROR(IF(I135="N<10","N<10",VLOOKUP(VALUE($A135),'2013-14 BL Civics'!$A$14:$AG$500,11,FALSE)*100),"Not Tested") -> 32 | M135: -6 | N135: =IFERROR(IF(K135="N<10","N<10",VLOOKUP(VALUE($A135),'2012-13 BL Civics'!$A$14:$AG$500,17,FALSE)*100),"Not Tested") -> 28 | O135: =IFERROR(IF(L135="N<10","N<10",VLOOKUP(VALUE($A135),'2013-14 BL Civics'!$A$14:$AG$500,17,FALSE)*100),"Not Tested") -> 30 | P135: 2 | Q135: =IFERROR(IF(J135="N<10","N<10",VLOOKUP(VALUE($A135),'2012-13 BL Civics'!$A$14:$AG$500,23,FALSE)*100),"Not Tested") -> 33 | R135: =IFERROR(IF(K135="N<10","N<10",VLOOKUP(VALUE($A135),'2013-14 BL Civics'!$A$14:$AG$500,23,FALSE)*100),"Not Tested") -> 31 | S135: -2 | T135: =IFERROR(IF(N135="N<10","N<10",VLOOKUP(VALUE($A135),'2012-13 BL Civics'!$A$14:$AG$500,29,FALSE)*100),"Not Tested") -> 33 | U135: =IFERROR(IF(O135="N<10","N<10",VLOOKUP(VALUE($A135),'2013-14 BL Civics'!$A$14:$AG$500,29,FALSE)*100),"Not Tested") -> 39 | V135: 6
A136: 6801 | C136: =VLOOKUP(TEXT(A136,"0000"),SchList!$A$2:$C$483,2,FALSE) -> RIVIERA MIDDLE | D136: =IFERROR(VLOOKUP(TEXT($A136,"0000"),'2012 BL Civics Enrollment'!$A$3:$C$500,3,FALSE),0) -> 257 | E136: =IFERROR(VLOOKUP(TEXT($A136,"0000"),'2013 BL Civics Enrollment'!$A$3:$C$500,3,FALSE),"") -> 266 | F136: =IFERROR(IF(VLOOKUP(VALUE(A136),'2012-13 BL Civics'!$A$14:$C$200,3,FALSE)<10,"N<10",IF(VLOOKUP(VALUE(A136),'2012-13 BL Civics'!$A$14:$C$200,3,FALSE)>D136,100,VLOOKUP(VALUE(A136),'2012-13 BL Civics'!$A$14:$C$200,3,FALSE)/D136%)),"Not Tested") -> 100 | G136: =IFERROR(IF(VLOOKUP(VALUE(A136),'2013-14 BL Civics'!$A$14:$C$200,3,FALSE)<10,"N<10",IF(VLOOKUP(VALUE(A136),'2013-14 BL Civics'!$A$14:$C$200,3,FALSE)>E136,100,VLOOKUP(VALUE(A136),'2013-14 BL Civics'!$A$14:$C$200,3,FALSE)/E136%)),"Not Tested") -> 97.36842105 | H136: =IFERROR(IF(F136="N<10","N<10",VLOOKUP(VALUE($A136),'2012-13 BL Civics'!$A$14:$AG$500,5,FALSE)*100),"Not Tested") -> 32 | I136: =IFERROR(IF(G136="N<10","N<10",VLOOKUP(VALUE($A136),'2013-14 BL Civics'!$A$14:$AG$500,5,FALSE)*100),"Not Tested") -> 37 | J136: 5 | K136: =IFERROR(IF(H136="N<10","N<10",VLOOKUP(VALUE($A136),'2012-13 BL Civics'!$A$14:$AG$500,11,FALSE)*100),"Not Tested") -> 36 | L136: =IFERROR(IF(I136="N<10","N<10",VLOOKUP(VALUE($A136),'2013-14 BL Civics'!$A$14:$AG$500,11,FALSE)*100),"Not Tested") -> 40 | M136: 4 | N136: =IFERROR(IF(K136="N<10","N<10",VLOOKUP(VALUE($A136),'2012-13 BL Civics'!$A$14:$AG$500,17,FALSE)*100),"Not Tested") -> 27 | O136: =IFERROR(IF(L136="N<10","N<10",VLOOKUP(VALUE($A136),'2013-14 BL Civics'!$A$14:$AG$500,17,FALSE)*100),"Not Tested") -> 33 | P136: 6 | Q136: =IFERROR(IF(J136="N<10","N<10",VLOOKUP(VALUE($A136),'2012-13 BL Civics'!$A$14:$AG$500,23,FALSE)*100),"Not Tested") -> 31 | R136: =IFERROR(IF(K136="N<10","N<10",VLOOKUP(VALUE($A136),'2013-14 BL Civics'!$A$14:$AG$500,23,FALSE)*100),"Not Tested") -> 38 | S136: 7 | T136: =IFERROR(IF(N136="N<10","N<10",VLOOKUP(VALUE($A136),'2012-13 BL Civics'!$A$14:$AG$500,29,FALSE)*100),"Not Tested") -> 34 | U136: =IFERROR(IF(O136="N<10","N<10",VLOOKUP(VALUE($A136),'2013-14 BL Civics'!$A$14:$AG$500,29,FALSE)*100),"Not Tested") -> 41 | V136: 7
A137: 6821 | C137: =VLOOKUP(TEXT(A137,"0000"),SchList!$A$2:$C$483,2,FALSE) -> ROCKWAY MIDDLE | D137: =IFERROR(VLOOKUP(TEXT($A137,"0000"),'2012 BL Civics Enrollment'!$A$3:$C$500,3,FALSE),0) -> 409 | E137: =IFERROR(VLOOKUP(TEXT($A137,"0000"),'2013 BL Civics Enrollment'!$A$3:$C$500,3,FALSE),"") -> 304 | F137: =IFERROR(IF(VLOOKUP(VALUE(A137),'2012-13 BL Civics'!$A$14:$C$200,3,FALSE)<10,"N<10",IF(VLOOKUP(VALUE(A137),'2012-13 BL Civics'!$A$14:$C$200,3,FALSE)>D137,100,VLOOKUP(VALUE(A137),'2012-13 BL Civics'!$A$14:$C$200,3,FALSE)/D137%)),"Not Tested") -> 98.04400978 | G137: =IFERROR(IF(VLOOKUP(VALUE(A137),'2013-14 BL Civics'!$A$14:$C$200,3,FALSE)<10,"N<10",IF(VLOOKUP(VALUE(A137),'2013-14 BL Civics'!$A$14:$C$200,3,FALSE)>E137,100,VLOOKUP(VALUE(A137),'2013-14 BL Civics'!$A$14:$C$200,3,FALSE)/E137%)),"Not Tested") -> 99.34210526 | H137: =IFERROR(IF(F137="N<10","N<10",VLOOKUP(VALUE($A137),'2012-13 BL Civics'!$A$14:$AG$500,5,FALSE)*100),"Not Tested") -> 33 | I137: =IFERROR(IF(G137="N<10","N<10",VLOOKUP(VALUE($A137),'2013-14 BL Civics'!$A$14:$AG$500,5,FALSE)*100),"Not Tested") -> 35 | J137: 2 | K137: =IFERROR(IF(H137="N<10","N<10",VLOOKUP(VALUE($A137),'2012-13 BL Civics'!$A$14:$AG$500,11,FALSE)*100),"Not Tested") -> 41 | L137: =IFERROR(IF(I137="N<10","N<10",VLOOKUP(VALUE($A137),'2013-14 BL Civics'!$A$14:$AG$500,11,FALSE)*100),"Not Tested") -> 37 | M137: -4 | N137: =IFERROR(IF(K137="N<10","N<10",VLOOKUP(VALUE($A137),'2012-13 BL Civics'!$A$14:$AG$500,17,FALSE)*100),"Not Tested") -> 26 | O137: =IFERROR(IF(L137="N<10","N<10",VLOOKUP(VALUE($A137),'2013-14 BL Civics'!$A$14:$AG$500,17,FALSE)*100),"Not Tested") -> 29 | P137: 3 | Q137: =IFERROR(IF(J137="N<10","N<10",VLOOKUP(VALUE($A137),'2012-13 BL Civics'!$A$14:$AG$500,23,FALSE)*100),"Not Tested") -> 33 | R137: =IFERROR(IF(K137="N<10","N<10",VLOOKUP(VALUE($A137),'2013-14 BL Civics'!$A$14:$AG$500,23,FALSE)*100),"Not Tested") -> 34 | S137: 1 | T137: =IFERROR(IF(N137="N<10","N<10",VLOOKUP(VALUE($A137),'2012-13 BL Civics'!$A$14:$AG$500,29,FALSE)*100),"Not Tested") -> 35 | U137: =IFERROR(IF(O137="N<10","N<10",VLOOKUP(VALUE($A137),'2013-14 BL Civics'!$A$14:$AG$500,29,FALSE)*100),"Not Tested") -> 42 | V137: 7
A138: 6841 | C138: =VLOOKUP(TEXT(A138,"0000"),SchList!$A$2:$C$483,2,FALSE) -> SHENANDOAH MIDDLE | D138: =IFERROR(VLOOKUP(TEXT($A138,"0000"),'2012 BL Civics Enrollment'!$A$3:$C$500,3,FALSE),0) -> 412 | E138: =IFERROR(VLOOKUP(TEXT($A138,"0000"),'2013 BL Civics Enrollment'!$A$3:$C$500,3,FALSE),"") -> 377 | F138: =IFERROR(IF(VLOOKUP(VALUE(A138),'2012-13 BL Civics'!$A$14:$C$200,3,FALSE)<10,"N<10",IF(VLOOKUP(VALUE(A138),'2012-13 BL Civics'!$A$14:$C$200,3,FALSE)>D138,100,VLOOKUP(VALUE(A138),'2012-13 BL Civics'!$A$14:$C$200,3,FALSE)/D138%)),"Not Tested") -> 98.05825243 | G138: =IFERROR(IF(VLOOKUP(VALUE(A138),'2013-14 BL Civics'!$A$14:$C$200,3,FALSE)<10,"N<10",IF(VLOOKUP(VALUE(A138),'2013-14 BL Civics'!$A$14:$C$200,3,FALSE)>E138,100,VLOOKUP(VALUE(A138),'2013-14 BL Civics'!$A$14:$C$200,3,FALSE)/E138%)),"Not Tested") -> 98.93899204 | H138: =IFERROR(IF(F138="N<10","N<10",VLOOKUP(VALUE($A138),'2012-13 BL Civics'!$A$14:$AG$500,5,FALSE)*100),"Not Tested") -> 31 | I138: =IFERROR(IF(G138="N<10","N<10",VLOOKUP(VALUE($A138),'2013-14 BL Civics'!$A$14:$AG$500,5,FALSE)*100),"Not Tested") -> 33 | J138: 2 | K138: =IFERROR(IF(H138="N<10","N<10",VLOOKUP(VALUE($A138),'2012-13 BL Civics'!$A$14:$AG$500,11,FALSE)*100),"Not Tested") -> 37 | L138: =IFERROR(IF(I138="N<10","N<10",VLOOKUP(VALUE($A138),'2013-14 BL Civics'!$A$14:$AG$500,11,FALSE)*100),"Not Tested") -> 35 | M138: -2 | N138: =IFERROR(IF(K138="N<10","N<10",VLOOKUP(VALUE($A138),'2012-13 BL Civics'!$A$14:$AG$500,17,FALSE)*100),"Not Tested") -> 26 | O138: =IFERROR(IF(L138="N<10","N<10",VLOOKUP(VALUE($A138),'2013-14 BL Civics'!$A$14:$AG$500,17,FALSE)*100),"Not Tested") -> 30 | P138: 4 | Q138: =IFERROR(IF(J138="N<10","N<10",VLOOKUP(VALUE($A138),'2012-13 BL Civics'!$A$14:$AG$500,23,FALSE)*100),"Not Tested") -> 31 | R138: =IFERROR(IF(K138="N<10","N<10",VLOOKUP(VALUE($A138),'2013-14 BL Civics'!$A$14:$AG$500,23,FALSE)*100),"Not Tested") -> 33 | S138: 2 | T138: =IFERROR(IF(N138="N<10","N<10",VLOOKUP(VALUE($A138),'2012-13 BL Civics'!$A$14:$AG$500,29,FALSE)*100),"Not Tested") -> 34 | U138: =IFERROR(IF(O138="N<10","N<10",VLOOKUP(VALUE($A138),'2013-14 BL Civics'!$A$14:$AG$500,29,FALSE)*100),"Not Tested") -> 38 | V138: 4
A139: 6861 | C139: =VLOOKUP(TEXT(A139,"0000"),SchList!$A$2:$C$483,2,FALSE) -> SOUTHWOOD MIDDLE | D139: =IFERROR(VLOOKUP(TEXT($A139,"0000"),'2012 BL Civics Enrollment'!$A$3:$C$500,3,FALSE),0) -> 485 | E139: =IFERROR(VLOOKUP(TEXT($A139,"0000"),'2013 BL Civics Enrollment'!$A$3:$C$500,3,FALSE),"") -> 425 | F139: =IFERROR(IF(VLOOKUP(VALUE(A139),'2012-13 BL Civics'!$A$14:$C$200,3,FALSE)<10,"N<10",IF(VLOOKUP(VALUE(A139),'2012-13 BL Civics'!$A$14:$C$200,3,FALSE)>D139,100,VLOOKUP(VALUE(A139),'2012-13 BL Civics'!$A$14:$C$200,3,FALSE)/D139%)),"Not Tested") -> 98.96907216 | G139: =IFERROR(IF(VLOOKUP(VALUE(A139),'2013-14 BL Civics'!$A$14:$C$200,3,FALSE)<10,"N<10",IF(VLOOKUP(VALUE(A139),'2013-14 BL Civics'!$A$14:$C$200,3,FALSE)>E139,100,VLOOKUP(VALUE(A139),'2013-14 BL Civics'!$A$14:$C$200,3,FALSE)/E139%)),"Not Tested") -> 96.23529412 | H139: =IFERROR(IF(F139="N<10","N<10",VLOOKUP(VALUE($A139),'2012-13 BL Civics'!$A$14:$AG$500,5,FALSE)*100),"Not Tested") -> 36 | I139: =IFERROR(IF(G139="N<10","N<10",VLOOKUP(VALUE($A139),'2013-14 BL Civics'!$A$14:$AG$500,5,FALSE)*100),"Not Tested") -> 40 | J139: 4 | K139: =IFERROR(IF(H139="N<10","N<10",VLOOKUP(VALUE($A139),'2012-13 BL Civics'!$A$14:$AG$500,11,FALSE)*100),"Not Tested") -> 44 | L139: =IFERROR(IF(I139="N<10","N<10",VLOOKUP(VALUE($A139),'2013-14 BL Civics'!$A$14:$AG$500,11,FALSE)*100),"Not Tested") -> 43 | M139: -1 | N139: =IFERROR(IF(K139="N<10","N<10",VLOOKUP(VALUE($A139),'2012-13 BL Civics'!$A$14:$AG$500,17,FALSE)*100),"Not Tested") -> 29 | O139: =IFERROR(IF(L139="N<10","N<10",VLOOKUP(VALUE($A139),'2013-14 BL Civics'!$A$14:$AG$500,17,FALSE)*100),"Not Tested") -> 34 | P139: 5 | Q139: =IFERROR(IF(J139="N<10","N<10",VLOOKUP(VALUE($A139),'2012-13 BL Civics'!$A$14:$AG$500,23,FALSE)*100),"Not Tested") -> 36 | R139: =IFERROR(IF(K139="N<10","N<10",VLOOKUP(VALUE($A139),'2013-14 BL Civics'!$A$14:$AG$500,23,FALSE)*100),"Not Tested") -> 40 | S139: 4 | T139: =IFERROR(IF(N139="N<10","N<10",VLOOKUP(VALUE($A139),'2012-13 BL Civics'!$A$14:$AG$500,29,FALSE)*100),"Not Tested") -> 38 | U139: =IFERROR(IF(O139="N<10","N<10",VLOOKUP(VALUE($A139),'2013-14 BL Civics'!$A$14:$AG$500,29,FALSE)*100),"Not Tested") -> 45 | V139: 7
A140: 6881 | C140: =VLOOKUP(TEXT(A140,"0000"),SchList!$A$2:$C$483,2,FALSE) -> SOUTH MIAMI MIDDLE SCHOOL | D140: =IFERROR(VLOOKUP(TEXT($A140,"0000"),'2012 BL Civics Enrollment'!$A$3:$C$500,3,FALSE),0) -> 344 | E140: =IFERROR(VLOOKUP(TEXT($A140,"0000"),'2013 BL Civics Enrollment'!$A$3:$C$500,3,FALSE),"") -> 349 | F140: =IFERROR(IF(VLOOKUP(VALUE(A140),'2012-13 BL Civics'!$A$14:$C$200,3,FALSE)<10,"N<10",IF(VLOOKUP(VALUE(A140),'2012-13 BL Civics'!$A$14:$C$200,3,FALSE)>D140,100,VLOOKUP(VALUE(A140),'2012-13 BL Civics'!$A$14:$C$200,3,FALSE)/D140%)),"Not Tested") -> 98.8372093 | G140: =IFERROR(IF(VLOOKUP(VALUE(A140),'2013-14 BL Civics'!$A$14:$C$200,3,FALSE)<10,"N<10",IF(VLOOKUP(VALUE(A140),'2013-14 BL Civics'!$A$14:$C$200,3,FALSE)>E140,100,VLOOKUP(VALUE(A140),'2013-14 BL Civics'!$A$14:$C$200,3,FALSE)/E140%)),"Not Tested") -> 99.71346705 | H140: =IFERROR(IF(F140="N<10","N<10",VLOOKUP(VALUE($A140),'2012-13 BL Civics'!$A$14:$AG$500,5,FALSE)*100),"Not Tested") -> 37 | I140: =IFERROR(IF(G140="N<10","N<10",VLOOKUP(VALUE($A140),'2013-14 BL Civics'!$A$14:$AG$500,5,FALSE)*100),"Not Tested") -> 43 | J140: 6 | K140: =IFERROR(IF(H140="N<10","N<10",VLOOKUP(VALUE($A140),'2012-13 BL Civics'!$A$14:$AG$500,11,FALSE)*100),"Not Tested") -> 49 | L140: =IFERROR(IF(I140="N<10","N<10",VLOOKUP(VALUE($A140),'2013-14 BL Civics'!$A$14:$AG$500,11,FALSE)*100),"Not Tested") -> 49 | M140: 0 | N140: =IFERROR(IF(K140="N<10","N<10",VLOOKUP(VALUE($A140),'2012-13 BL Civics'!$A$14:$AG$500,17,FALSE)*100),"Not Tested") -> 29 | O140: =IFERROR(IF(L140="N<10","N<10",VLOOKUP(VALUE($A140),'2013-14 BL Civics'!$A$14:$AG$500,17,FALSE)*100),"Not Tested") -> 36 | P140: 7 | Q140: =IFERROR(IF(J140="N<10","N<10",VLOOKUP(VALUE($A140),'2012-13 BL Civics'!$A$14:$AG$500,23,FALSE)*100),"Not Tested") -> 37 | R140: =IFERROR(IF(K140="N<10","N<10",VLOOKUP(VALUE($A140),'2013-14 BL Civics'!$A$14:$AG$500,23,FALSE)*100),"Not Tested") -> 42 | S140: 5 | T140: =IFERROR(IF(N140="N<10","N<10",VLOOKUP(VALUE($A140),'2012-13 BL Civics'!$A$14:$AG$500,29,FALSE)*100),"Not Tested") -> 36 | U140: =IFERROR(IF(O140="N<10","N<10",VLOOKUP(VALUE($A140),'2013-14 BL Civics'!$A$14:$AG$500,29,FALSE)*100),"Not Tested") -> 48 | V140: 12
A141: 6901 | C141: =VLOOKUP(TEXT(A141,"0000"),SchList!$A$2:$C$483,2,FALSE) -> W. R. THOMAS MIDDLE | D141: =IFERROR(VLOOKUP(TEXT($A141,"0000"),'2012 BL Civics Enrollment'!$A$3:$C$500,3,FALSE),0) -> 309 | E141: =IFERROR(VLOOKUP(TEXT($A141,"0000"),'2013 BL Civics Enrollment'!$A$3:$C$500,3,FALSE),"") -> 391 | F141: =IFERROR(IF(VLOOKUP(VALUE(A141),'2012-13 BL Civics'!$A$14:$C$200,3,FALSE)<10,"N<10",IF(VLOOKUP(VALUE(A141),'2012-13 BL Civics'!$A$14:$C$200,3,FALSE)>D141,100,VLOOKUP(VALUE(A141),'2012-13 BL Civics'!$A$14:$C$200,3,FALSE)/D141%)),"Not Tested") -> 99.6763754 | G141: =IFERROR(IF(VLOOKUP(VALUE(A141),'2013-14 BL Civics'!$A$14:$C$200,3,FALSE)<10,"N<10",IF(VLOOKUP(VALUE(A141),'2013-14 BL Civics'!$A$14:$C$200,3,FALSE)>E141,100,VLOOKUP(VALUE(A141),'2013-14 BL Civics'!$A$14:$C$200,3,FALSE)/E141%)),"Not Tested") -> 97.18670077 | H141: =IFERROR(IF(F141="N<10","N<10",VLOOKUP(VALUE($A141),'2012-13 BL Civics'!$A$14:$AG$500,5,FALSE)*100),"Not Tested") -> 37 | I141: =IFERROR(IF(G141="N<10","N<10",VLOOKUP(VALUE($A141),'2013-14 BL Civics'!$A$14:$AG$500,5,FALSE)*100),"Not Tested") -> 40 | J141: 3 | K141: =IFERROR(IF(H141="N<10","N<10",VLOOKUP(VALUE($A141),'2012-13 BL Civics'!$A$14:$AG$500,11,FALSE)*100),"Not Tested") -> 45 | L141: =IFERROR(IF(I141="N<10","N<10",VLOOKUP(VALUE($A141),'2013-14 BL Civics'!$A$14:$AG$500,11,FALSE)*100),"Not Tested") -> 45 | M141: 0 | N141: =IFERROR(IF(K141="N<10","N<10",VLOOKUP(VALUE($A141),'2012-13 BL Civics'!$A$14:$AG$500,17,FALSE)*100),"Not Tested") -> 31 | O141: =IFERROR(IF(L141="N<10","N<10",VLOOKUP(VALUE($A141),'2013-14 BL Civics'!$A$14:$AG$500,17,FALSE)*100),"Not Tested") -> 34 | P141: 3 | Q141: =IFERROR(IF(J141="N<10","N<10",VLOOKUP(VALUE($A141),'2012-13 BL Civics'!$A$14:$AG$500,23,FALSE)*100),"Not Tested") -> 38 | R141: =IFERROR(IF(K141="N<10","N<10",VLOOKUP(VALUE($A141),'2013-14 BL Civics'!$A$14:$AG$500,23,FALSE)*100),"Not Tested") -> 39 | S141: 1 | T141: =IFERROR(IF(N141="N<10","N<10",VLOOKUP(VALUE($A141),'2012-13 BL Civics'!$A$14:$AG$500,29,FALSE)*100),"Not Tested") -> 37 | U141: =IFERROR(IF(O141="N<10","N<10",VLOOKUP(VALUE($A141),'2013-14 BL Civics'!$A$14:$AG$500,29,FALSE)*100),"Not Tested") -> 44 | V141: 7
